Workbook

Sheet Données
C1: Heure début < | I1: CP | J1: 2015-06-01 | K1: 2015-05-31
B2: Midi | C2: 0.4895833333 | J2: =DATEDIF(J3,K3,"m")*2.08 -> 104 | S2: TRUC POUR CORRIGER LA SOMME DES HEURES | Z2: [h]:mm
B3: Soir | C3: 0.78125 | J3: 2011-09-12 | K3: =TODAY() -> 2015-12-02
S4: .
B5: Taux horaire | C5: Pour | J5: période d'acquisition des congés
B6: 1 | C6: =< | D6: 1.458333333 | J6: du 01/04/N au 31/03/N+1 | S6: Tout est une question de format de cellules. Si vous utilisez le format de cellules suivant: [h]:mm, vous pourrez corriger le tir.
B7: 1.1 | C7: entre | D7: 1.458333333 | E7: et | F7: 1.625
B8: 1.2 | C8: entre | D8: 1.625 | E8: et | F8: 1.791666667 | J8: période de prise des congés | S8: .
B9: 1.4 | C9: > | D9: 1.791666667 | J9: du 01/05/N au 30/04/N+1
S10: Pour modifier le format des cellules, sélectionnez d’abord la zone de données, cliquez à droite sur votre souris, choisissez l’option "Format de cellules" ("Format Cells") et cliquez sur "Personnaliser" ("Custom"). Entrez ensuite le format [h]:mm et cliquez sur OK.
B11: Entre soir et matin doit y avoir : | F11: 11:00:00
F12: 00:00:00
B14: Année | C14: 5 | F14: Mois | G14: 12 | I14: Date | M14: Année
A15: 1 | B15: 2010 | C15: =VLOOKUP(C14,A15:B103,2) -> 2014 | E15: 1 | F15: Janvier | G15: =VLOOKUP(G14,E15:F26,2) -> Décembre | I15: =DATE(Exemple!$J$2,Exemple!$F$2,1) -> 2014-12-01 | O15: 1900-01-05 | S15: .
A16: 2 | B16: 2011 | E16: 2 | F16: Février | M16: Pâques | N16: 2015-04-05 | O16: =ROUND(DATE(S_Année+2009,4,MOD(234-11*MOD(S_Année+2009,19),30))/7,0)*7-6 -> 2014-04-20
A17: 3 | B17: 2012 | E17: 3 | F17: Mars | I17: =Exemple!B5 -> 2014-12-01 | M17: Pentecôte | N17: 2015-05-24 | O17: =Pâques+49 -> 2014-06-08
A18: 4 | B18: 2013 | E18: 4 | F18: Avril | M18: Jour de l'an | N18: 2015-01-01 | O18: =DATE(S_Année+2009,1,1) -> 2014-01-01
A19: 5 | B19: 2014 | E19: 5 | F19: Mai | M19: Vendredi Saint | N19: 2015-04-03 | O19: =Pâques-2 -> 2014-04-18
A20: 6 | B20: 2015 | E20: 6 | F20: Juin | M20: Lundi de Pâques | N20: 2015-04-06 | O20: =Pâques+1 -> 2014-04-21
A21: 7 | B21: 2016 | E21: 7 | F21: Juillet | J21: 50 | L21: REPOS | M21: Fête du Travail | N21: 2015-05-01 | O21: =DATE(S_Année+2009,5,1) -> 2014-05-01
A22: 8 | B22: 2017 | E22: 8 | F22: Août | J22: 42 | L22: Récup | M22: 8 Mai 1945 | N22: 2015-05-08 | O22: =DATE(S_Année+2009,5,8) -> 2014-05-08
A23: 9 | B23: 2018 | E23: 9 | F23: Septembre | J23: 48 | L23: JFG | M23: Jeudi de l'Ascension | N23: 2015-05-14 | O23: =Pâques+39 -> 2014-05-29
A24: 10 | B24: 2019 | E24: 10 | F24: Octobre | J24: 44 | L24: VAC | M24: Lundi de Pentecôte | N24: 2015-05-25 | O24: =Pâques+50 -> 2014-06-09
A25: 11 | B25: 2020 | E25: 11 | F25: Novembre | J25: 3 | L25: MAL | M25: Fête Nationale | N25: 2015-07-14 | O25: =DATE(S_Année+2009,7,14) -> 2014-07-14
A26: 12 | B26: 2021 | E26: 12 | F26: Décembre | J26: =CodeCouleur(K26) -> 2 | L26: Travaillé | M26: Assomption | N26: 2015-08-15 | O26: =DATE(S_Année+2009,8,15) -> 2014-08-15
A27: 13 | B27: 2022 | M27: La Toussaint | N27: 2015-11-01 | O27: =DATE(S_Année+2009,11,1) -> 2014-11-01
A28: 14 | B28: 2023 | M28: Armistice | N28: 2015-11-11 | O28: =DATE(S_Année+2009,11,11) -> 2014-11-11
A29: 15 | B29: 2024 | M29: Noël | N29: 2015-12-25 | O29: =DATE(S_Année+2009,12,25) -> 2014-12-25
A30: 16 | B30: 2025 | M30: Saint Etienne | N30: 2015-12-26 | O30: =Noel+1 -> 2014-12-26
A31: 17 | B31: 2026
A32: 18 | B32: 2027
A33: 19 | B33: 2028
A34: 20 | B34: 2029
A35: 21 | B35: 2030
A36: 22 | B36: 2031
A37: 23 | B37: 2032
A38: 24 | B38: 2033
A39: 25 | B39: 2034
A40: 26 | B40: 2035 | S40: .
A41: 27 | B41: 2036
A42: 28 | B42: 2037 | S42: Résultat? Vos données seront converties dans un format compréhensible par Excel. Vous obtiendrez donc un total de 40 heures, tel que l’on pourrait s’y attendre.
A43: 29 | B43: 2038
A44: 30 | B44: 2039 | S44: .
A45: 31 | B45: 2040
A46: 32 | B46: 2041
A47: 33 | B47: 2042
A48: 34 | B48: 2043
A49: 35 | B49: 2044
A50: 36 | B50: 2045
A51: 37 | B51: 2046
A52: 38 | B52: 2047
A53: 39 | B53: 2048
A54: 40 | B54: 2049
A55: 41 | B55: 2050
A56: 42 | B56: 2051
A57: 43 | B57: 2052
A58: 44 | B58: 2053
A59: 45 | B59: 2054
A60: 46 | B60: 2055
A61: 47 | B61: 2056
A62: 48 | B62: 2057
A63: 49 | B63: 2058
A64: 50 | B64: 2059
A65: 51 | B65: 2060
A66: 52 | B66: 2061
A67: 53 | B67: 2062
A68: 54 | B68: 2063
A69: 55 | B69: 2064
A70: 56 | B70: 2065
A71: 57 | B71: 2066
A72: 58 | B72: 2067
A73: 59 | B73: 2068
A74: 60 | B74: 2069
A75: 61 | B75: 2070
A76: 62 | B76: 2071
A77: 63 | B77: 2072
A78: 64 | B78: 2073
A79: 65 | B79: 2074
A80: 66 | B80: 2075
A81: 67 | B81: 2076
A82: 68 | B82: 2077
A83: 69 | B83: 2078
A84: 70 | B84: 2079
A85: 71 | B85: 2080
A86: 72 | B86: 2081
A87: 73 | B87: 2082
A88: 74 | B88: 2083
A89: 75 | B89: 2084
A90: 76 | B90: 2085
A91: 77 | B91: 2086
A92: 78 | B92: 2087
A93: 79 | B93: 2088
A94: 80 | B94: 2089
A95: 81 | B95: 2090
A96: 82 | B96: 2091
A97: 83 | B97: 2092
A98: 84 | B98: 2093
A99: 85 | B99: 2094
A100: 86 | B100: 2095
A101: 87 | B101: 2096
A102: 88 | B102: 2097
A103: 89 | B103: 2098

Sheet Exemple
D1: TEMPS DE TRAVAIL | S1: RÉCAPITULATIF | AE1: IMPÔTS
F2: =Données!G14 -> 12 | J2: =Données!C15 -> 2014
B3: Jour | D3: Midi | F3: Cumul Midi | G3: Repas | H3: Soir | J3: Cumul Soir | K3: Repas | L3: Totaux | M3: Total Repas
D4: Début | E4: Fin | H4: Début | I4: Fin | AF4: =VLOOKUP(F2,Données!E15:F26,2) -> Décembre | AG4: =J2 -> 2014
B5: =Données!I15-WEEKDAY(Données!I15-1)+1 -> 2014-12-01 | F5: =$E5-$D5+IF($D5>$E5,1) -> 0 | G5: =IF($D5<>"",IF($D5<Données!$C$2,1,0),0) -> 0 | J5: =$I5-$H5+IF($H5>$I5,1) -> 0 | K5: =IF($H5<>"",IF($H5<Données!$C$3,1,0),0) -> 0 | L5: =$F5+$J5-($G5+$K5)*("00:30") -> 0 | M5: =$G5+$K5 -> 0
B6: =B5+1 -> 2014-12-02 | F6: =$E6-$D6+IF($D6>$E6,1) -> 0 | G6: =IF($D6<>"",IF($D6<Données!$C$2,1,0),0) -> 0 | J6: =$I6-$H6+IF($H6>$I6,1) -> 0 | K6: =IF($H6<>"",IF($H6<Données!$C$3,1,0),0) -> 0 | L6: =$F6+$J6-($G6+$K6)*("00:30") -> 0 | M6: =$G6+$K6 -> 0 | N6: =$D6-$I5+IF($I5>$D6,1) -> 0 | O6: =IF($N6=Données!$F$12,0,IF($N6<Données!$F$11,1,0)) -> 0 | S6: Soit au total pour le mois de : | U6: =VLOOKUP(F2,Données!E15:F26,2) -> Décembre | V6: =J2 -> 2014
B7: =B6+1 -> 2014-12-03 | F7: 0 | G7: =IF($D7<>"",IF($D7<Données!$C$2,1,0),0) -> 0 | J7: 0 | K7: =IF($H7<>"",IF($H7<Données!$C$3,1,0),0) -> 0 | L7: 0 | M7: 0 | N7: =$D7-$I6+IF($I6>$D7,1) -> 0 | O7: =IF($N7=Données!$F$12,0,IF($N7<Données!$F$11,1,0)) -> 0
B8: 2014-12-04 | F8: 0 | G8: =IF($D8<>"",IF($D8<Données!$C$2,1,0),0) -> 0 | J8: 0 | K8: =IF($H8<>"",IF($H8<Données!$C$3,1,0),0) -> 0 | L8: 0 | M8: 0 | N8: =$D8-$I7+IF($I7>$D8,1) -> 0 | O8: =IF($N8=Données!$F$12,0,IF($N8<Données!$F$11,1,0)) -> 0 | AE8: Numéro Fiscal :
B9: 2014-12-05 | F9: 0 | G9: =IF($D9<>"",IF($D9<Données!$C$2,1,0),0) -> 0 | J9: 0 | K9: =IF($H9<>"",IF($H9<Données!$C$3,1,0),0) -> 0 | L9: 0 | M9: 0 | N9: 0 | O9: =IF($N9=Données!$F$12,0,IF($N9<Données!$F$11,1,0)) -> 0 | S9: Nombre de jours travaillés : | U9: =H78 -> 0 | AE9: MDP:
B10: 2014-12-06 | F10: 0 | G10: =IF($D10<>"",IF($D10<Données!$C$2,1,0),0) -> 0 | J10: 0 | K10: =IF($H10<>"",IF($H10<Données!$C$3,1,0),0) -> 0 | L10: 0 | M10: 0 | N10: =$D10-$I9+IF($I9>$D10,1) -> 0 | O10: =IF($N10=Données!$F$12,0,IF($N10<Données!$F$11,1,0)) -> 0 | S10: Nombre de jours repos : | U10: =B78 -> 0
B11: 2014-12-07 | F11: 0 | G11: =IF($D11<>"",IF($D11<Données!$C$2,1,0),0) -> 0 | J11: 0 | K11: =IF($H11<>"",IF($H11<Données!$C$3,1,0),0) -> 0 | L11: 0 | M11: 0 | N11: =$D11-$I10+IF($I10>$D11,1) -> 0 | O11: =IF($N11=Données!$F$12,0,IF($N11<Données!$F$11,1,0)) -> 0 | S11: Nombre de jours récup : | U11: =C$78 -> 0 | AE11: Adresse domicile: | AF11: -
B12: Total Semaine | E12: =WEEKNUM(B5,21) -> 49 | F12: =SUM($F5:$F11) -> 0 | G12: =G5+G6+G7+G8+G9+G10+G11 -> 0 | J12: =SUM(J5:J11) -> 0 | K12: =K5+K6+K7+K8+K9+K10+K11 -> 0 | L12: =SUM(L5:L11) -> 0 | M12: =SUM(M5:M11) -> 0 | O12: =SUM(O6:O11) -> 0 | S12: Nombre de jfg : | U12: =D$78 -> 0
B13: =B11+1 -> 2014-12-08 | F13: =$E13-$D13+IF($D13>$E13,1) -> 0 | G13: =IF($D13<>"",IF($D13<Données!$C$2,1,0),0) -> 0 | J13: =$I13-$H13+IF($H13>$I13,1) -> 0 | K13: =IF($H13<>"",IF($H13<Données!$C$3,1,0),0) -> 0 | L13: =$F13+$J13-($G13+$K13)*("00:30") -> 0 | M13: =$G13+$K13 -> 0 | N13: =$D13-$I11+IF($I11>$D13,1) -> 0 | O13: =IF($N13=Données!$F$12,0,IF($N13<Données!$F$11,1,0)) -> 0 | S13: Nombre de jours de vacances : | U13: =E$78 -> 0
B14: =B13+1 -> 2014-12-09 | F14: =$E14-$D14+IF($D14>$E14,1) -> 0 | G14: =IF($D14<>"",IF($D14<Données!$C$2,1,0),0) -> 0 | J14: =$I14-$H14+IF($H14>$I14,1) -> 0 | K14: =IF($H14<>"",IF($H14<Données!$C$3,1,0),0) -> 0 | L14: =$F14+$J14-($G14+$K14)*("00:30") -> 0 | M14: =$G14+$K14 -> 0 | N14: =$D14-$I13+IF($I13>$D14,1) -> 0 | O14: =IF($N14=Données!$F$12,0,IF($N14<Données!$F$11,1,0)) -> 0 | S14: Nombre de jours de maladie : | U14: =F$78 -> 0
B15: =B14+1 -> 2014-12-10 | F15: 0 | G15: =IF($D15<>"",IF($D15<Données!$C$2,1,0),0) -> 0 | J15: 0 | K15: =IF($H15<>"",IF($H15<Données!$C$3,1,0),0) -> 0 | L15: 0 | M15: 0 | N15: =$D15-$I14+IF($I14>$D15,1) -> 0 | O15: =IF($N15=Données!$F$12,0,IF($N15<Données!$F$11,1,0)) -> 0 | S15: Nombre jours fériées travaillés : | U15: =I78 -> 0 | AE15: Adresse lieu de travail: | AF15: -
B16: 2014-12-11 | F16: 0 | G16: =IF($D16<>"",IF($D16<Données!$C$2,1,0),0) -> 0 | J16: 0 | K16: =IF($H16<>"",IF($H16<Données!$C$3,1,0),0) -> 0 | L16: 0 | M16: 0 | N16: 0 | O16: =IF($N16=Données!$F$12,0,IF($N16<Données!$F$11,1,0)) -> 0 | S16: Nombre de fois 11h de batement non respecté : | U16: =J78 -> 0
B17: 2014-12-12 | F17: 0 | G17: =IF($D17<>"",IF($D17<Données!$C$2,1,0),0) -> 0 | J17: 0 | K17: =IF($H17<>"",IF($H17<Données!$C$3,1,0),0) -> 0 | L17: 0 | M17: 0 | N17: 0 | O17: =IF($N17=Données!$F$12,0,IF($N17<Données!$F$11,1,0)) -> 0
B18: 2014-12-13 | F18: 0 | G18: =IF($D18<>"",IF($D18<Données!$C$2,1,0),0) -> 0 | J18: 0 | K18: =IF($H18<>"",IF($H18<Données!$C$3,1,0),0) -> 0 | L18: 0 | M18: 0 | N18: 0 | O18: =IF($N18=Données!$F$12,0,IF($N18<Données!$F$11,1,0)) -> 0 | AE18: Distance ( Source Mappy) : | AF18: - | AG18: 7,4 KM
B19: 2014-12-14 | F19: 0 | G19: =IF($D19<>"",IF($D19<Données!$C$2,1,0),0) -> 0 | J19: 0 | K19: =IF($H19<>"",IF($H19<Données!$C$3,1,0),0) -> 0 | L19: 0 | M19: 0 | N19: 0 | O19: =IF($N19=Données!$F$12,0,IF($N19<Données!$F$11,1,0)) -> 0 | U19: =SUM(L12+L20+L28+L36+L44+L52) -> 0 | V19: Heures effectués
B20: Total Semaine | E20: =WEEKNUM(B13,21) -> 50 | F20: =SUM($F13:$F19) -> 0 | G20: =G13+G14+G15+G16+G17+G18+G19 -> 0 | J20: =SUM(J13:J19) -> 0 | K20: =K13+K14+K15+K16+K17+K18+K19 -> 0 | L20: =SUM(L13:L19) -> 0 | M20: =SUM(M13:M19) -> 0 | O20: =SUM(O13:O19) -> 0 | U20: =IF(U19<N53,"- "&TEXT(ABS(N53-U19),"[hh]:mm"),U19-N53) -> - 169:00 | V20: Heures dues/supp | AE20: Nombre Aller-Retour : | AF20: - | AG20: =COUNT(E5:E11,I5:I11,E13:E19,I13:I19,E21:E27,I21:I27,E29:E35,I29:I35,E37:E43,I37:I43,E45:E51,I45:I51) -> 0
B21: =B19+1 -> 2014-12-15 | F21: =$E21-$D21+IF($D21>$E21,1) -> 0 | G21: =IF($D21<>"",IF($D21<Données!$C$2,1,0),0) -> 0 | J21: =$I21-$H21+IF($H21>$I21,1) -> 0 | K21: =IF($H21<>"",IF($H21<Données!$C$3,1,0),0) -> 0 | L21: =$F21+$J21-($G21+$K21)*("00:30") -> 0 | M21: =$G21+$K21 -> 0 | N21: =$D21-$I19+IF($I19>$D21,1) -> 0 | O21: =IF($N21=Données!$F$12,0,IF($N21<Données!$F$11,1,0)) -> 0 | AE21: Km Parcourue : | AF21: - | AG21: =SUM(AG20*14.8) -> 0 | AH21: Km
B22: =B21+1 -> 2014-12-16 | F22: =$E22-$D22+IF($D22>$E22,1) -> 0 | G22: =IF($D22<>"",IF($D22<Données!$C$2,1,0),0) -> 0 | J22: =$I22-$H22+IF($H22>$I22,1) -> 0 | K22: =IF($H22<>"",IF($H22<Données!$C$3,1,0),0) -> 0 | L22: =$F22+$J22-($G22+$K22)*("00:30") -> 0 | M22: =$G22+$K22 -> 0 | N22: =$D22-$I21+IF($I21>$D22,1) -> 0 | O22: =IF($N22=Données!$F$12,0,IF($N22<Données!$F$11,1,0)) -> 0 | AE22: Horodateur Payé : | AF22: -
B23: =B22+1 -> 2014-12-17 | F23: 0 | G23: =IF($D23<>"",IF($D23<Données!$C$2,1,0),0) -> 0 | J23: 0 | K23: =IF($H23<>"",IF($H23<Données!$C$3,1,0),0) -> 0 | L23: 0 | M23: 0 | N23: =$D23-$I22+IF($I22>$D23,1) -> 0 | O23: =IF($N23=Données!$F$12,0,IF($N23<Données!$F$11,1,0)) -> 0 | S23: Dont : | T23: - | U23: =$B$68 -> 0 | V23: Heures à taux normal ( 35h ) | AE23: Achat divers pour le travail : | AF23: -
B24: 2014-12-18 | F24: 0 | G24: =IF($D24<>"",IF($D24<Données!$C$2,1,0),0) -> 0 | J24: 0 | K24: =IF($H24<>"",IF($H24<Données!$C$3,1,0),0) -> 0 | L24: 0 | M24: 0 | N24: 0 | O24: =IF($N24=Données!$F$12,0,IF($N24<Données!$F$11,1,0)) -> 0 | T24: - | U24: =$C$68 -> 0 | V24: Heures en HS 10% ( 35h à 39h ) | AF24: -
B25: 2014-12-19 | F25: 0 | G25: =IF($D25<>"",IF($D25<Données!$C$2,1,0),0) -> 0 | J25: 0 | K25: =IF($H25<>"",IF($H25<Données!$C$3,1,0),0) -> 0 | L25: 0 | M25: 0 | N25: 0 | O25: =IF($N25=Données!$F$12,0,IF($N25<Données!$F$11,1,0)) -> 0 | T25: - | U25: =$D$68 -> 0 | V25: Heures en HS 20% (39h à 43h ) | AF25: -
B26: 2014-12-20 | F26: 0 | G26: =IF($D26<>"",IF($D26<Données!$C$2,1,0),0) -> 0 | J26: 0 | K26: =IF($H26<>"",IF($H26<Données!$C$3,1,0),0) -> 0 | L26: 0 | M26: 0 | N26: 0 | O26: =IF($N26=Données!$F$12,0,IF($N26<Données!$F$11,1,0)) -> 0 | T26: - | U26: =$E$68 -> 0 | V26: Heures en HS 40% ( 43h et plus ) | AF26: -
B27: 2014-12-21 | F27: 0 | G27: =IF($D27<>"",IF($D27<Données!$C$2,1,0),0) -> 0 | J27: 0 | K27: =IF($H27<>"",IF($H27<Données!$C$3,1,0),0) -> 0 | L27: 0 | M27: 0 | N27: 0 | O27: =IF($N27=Données!$F$12,0,IF($N27<Données!$F$11,1,0)) -> 0 | T27: - | U27: =SUM(M12+M20+M28+M36+M44+M52) -> 0 | V27: Nombre de repas | AF27: -
B28: Total Semaine | E28: =WEEKNUM(B21,21) -> 51 | F28: =SUM($F21:$F27) -> 0 | G28: =G21+G22+G23+G24+G25+G26+G27 -> 0 | J28: =SUM(J21:J27) -> 0 | K28: =K21+K22+K23+K24+K25+K26+K27 -> 0 | L28: =SUM(L21:L27) -> 0 | M28: =SUM(M21:M27) -> 0 | O28: =SUM(O21:O27) -> 0 | AF28: -
B29: =B27+1 -> 2014-12-22 | F29: =$E29-$D29+IF($D29>$E29,1) -> 0 | G29: =IF($D29<>"",IF($D29<Données!$C$2,1,0),0) -> 0 | J29: =$I29-$H29+IF($H29>$I29,1) -> 0 | K29: =IF($H29<>"",IF($H29<Données!$C$3,1,0),0) -> 0 | L29: =$F29+$J29-($G29+$K29)*("00:30") -> 0 | M29: =$G29+$K29 -> 0 | N29: =$D29-$I27+IF($I27>$D29,1) -> 0 | O29: =IF($N29=Données!$F$12,0,IF($N29<Données!$F$11,1,0)) -> 0 | S29: Heure fiche de paie: | AF29: -
B30: =B29+1 -> 2014-12-23 | F30: =$E30-$D30+IF($D30>$E30,1) -> 0 | G30: =IF($D30<>"",IF($D30<Données!$C$2,1,0),0) -> 0 | J30: =$I30-$H30+IF($H30>$I30,1) -> 0 | K30: =IF($H30<>"",IF($H30<Données!$C$3,1,0),0) -> 0 | L30: =$F30+$J30-($G30+$K30)*("00:30") -> 0 | M30: =$G30+$K30 -> 0 | N30: =$D30-$I29+IF($I29>$D30,1) -> 0 | O30: =IF($N30=Données!$F$12,0,IF($N30<Données!$F$11,1,0)) -> 0 | AF30: -
B31: =B30+1 -> 2014-12-24 | F31: 0 | G31: =IF($D31<>"",IF($D31<Données!$C$2,1,0),0) -> 0 | J31: 0 | K31: =IF($H31<>"",IF($H31<Données!$C$3,1,0),0) -> 0 | L31: 0 | M31: 0 | N31: =$D31-$I30+IF($I30>$D31,1) -> 0 | O31: =IF($N31=Données!$F$12,0,IF($N31<Données!$F$11,1,0)) -> 0 | S31: Dont : | T31: - | U31: 6.319444444 | V31: Heures à taux normal | AF31: -
B32: 2014-12-25 | F32: 0 | G32: =IF($D32<>"",IF($D32<Données!$C$2,1,0),0) -> 0 | J32: 0 | K32: =IF($H32<>"",IF($H32<Données!$C$3,1,0),0) -> 0 | L32: 0 | M32: 0 | N32: 0 | O32: =IF($N32=Données!$F$12,0,IF($N32<Données!$F$11,1,0)) -> 0 | T32: - | U32: 0.73125 | V32: Heures en HS 10% | AF32: -
B33: 2014-12-26 | F33: 0 | G33: =IF($D33<>"",IF($D33<Données!$C$2,1,0),0) -> 0 | J33: 0 | K33: =IF($H33<>"",IF($H33<Données!$C$3,1,0),0) -> 0 | L33: 0 | M33: 0 | N33: 0 | O33: =IF($N33=Données!$F$12,0,IF($N33<Données!$F$11,1,0)) -> 0 | T33: - | U33: 0 | V33: Heures en HS 20%
B34: 2014-12-27 | F34: 0 | G34: =IF($D34<>"",IF($D34<Données!$C$2,1,0),0) -> 0 | J34: 0 | K34: =IF($H34<>"",IF($H34<Données!$C$3,1,0),0) -> 0 | L34: 0 | M34: 0 | N34: 0 | O34: =IF($N34=Données!$F$12,0,IF($N34<Données!$F$11,1,0)) -> 0 | T34: - | U34: 0 | V34: Heures en HS 40% | AE34: Total dépenses: | AF34: - | AG34: =SUM(AG22:AG32) -> 0
B35: 2014-12-28 | F35: 0 | G35: =IF($D35<>"",IF($D35<Données!$C$2,1,0),0) -> 0 | J35: 0 | K35: =IF($H35<>"",IF($H35<Données!$C$3,1,0),0) -> 0 | L35: 0 | M35: 0 | N35: 0 | O35: =IF($N35=Données!$F$12,0,IF($N35<Données!$F$11,1,0)) -> 0 | T35: - | U35: 0 | V35: Nombre de repas
B36: Total Semaine | E36: =WEEKNUM(B29,21) -> 52 | F36: =SUM($F29:$F35) -> 0 | G36: =G29+G30+G31+G32+G33+G34+G35 -> 0 | J36: =SUM(J29:J35) -> 0 | K36: =K29+K30+K31+K32+K33+K34+K35 -> 0 | L36: =SUM(L29:L35) -> 0 | M36: =SUM(M29:M35) -> 0 | O36: =SUM(O29:O35) -> 0
B37: =B35+1 -> 2014-12-29 | F37: =$E37-$D37+IF($D37>$E37,1) -> 0 | G37: =IF($D37<>"",IF($D37<Données!$C$2,1,0),0) -> 0 | J37: =$I37-$H37+IF($H37>$I37,1) -> 0 | K37: =IF($H37<>"",IF($H37<Données!$C$3,1,0),0) -> 0 | L37: =$F37+$J37-($G37+$K37)*("00:30") -> 0 | M37: =$G37+$K37 -> 0 | N37: =$D37-$I35+IF($I35>$D37,1) -> 0 | O37: =IF($N37=Données!$F$12,0,IF($N37<Données!$F$11,1,0)) -> 0 | S37: Différence:
B38: =B37+1 -> 2014-12-30 | F38: =$E38-$D38+IF($D38>$E38,1) -> 0 | G38: =IF($D38<>"",IF($D38<Données!$C$2,1,0),0) -> 0 | J38: =$I38-$H38+IF($H38>$I38,1) -> 0 | K38: =IF($H38<>"",IF($H38<Données!$C$3,1,0),0) -> 0 | L38: =$F38+$J38-($G38+$K38)*("00:30") -> 0 | M38: =$G38+$K38 -> 0 | N38: =$D38-$I37+IF($I37>$D38,1) -> 0 | O38: =IF($N38=Données!$F$12,0,IF($N38<Données!$F$11,1,0)) -> 0
B39: =B38+1 -> 2014-12-31 | F39: 0 | G39: =IF($D39<>"",IF($D39<Données!$C$2,1,0),0) -> 0 | J39: 0 | K39: =IF($H39<>"",IF($H39<Données!$C$3,1,0),0) -> 0 | L39: 0 | M39: 0 | N39: =$D39-$I38+IF($I38>$D39,1) -> 0 | O39: =IF($N39=Données!$F$12,0,IF($N39<Données!$F$11,1,0)) -> 0 | S39: Dont : | T39: - | U39: =$U31-$U23+IF($U23>$U31,1) -> 6.319444444 | V39: Heures à taux normal
B40: 2015-01-01 | F40: 0 | G40: =IF($D40<>"",IF($D40<Données!$C$2,1,0),0) -> 0 | J40: 0 | K40: =IF($H40<>"",IF($H40<Données!$C$3,1,0),0) -> 0 | L40: 0 | M40: 0 | N40: 0 | O40: =IF($N40=Données!$F$12,0,IF($N40<Données!$F$11,1,0)) -> 0 | T40: - | U40: =$U32-$U24+IF($U24>$U32,1) -> 0.73125 | V40: Heures en HS 10%
B41: 2015-01-02 | F41: 0 | G41: =IF($D41<>"",IF($D41<Données!$C$2,1,0),0) -> 0 | J41: 0 | K41: =IF($H41<>"",IF($H41<Données!$C$3,1,0),0) -> 0 | L41: 0 | M41: 0 | N41: 0 | O41: =IF($N41=Données!$F$12,0,IF($N41<Données!$F$11,1,0)) -> 0 | T41: - | U41: =$U33-$U25+IF($U25>$U33,1) -> 0 | V41: Heures en HS 20%
B42: 2015-01-03 | F42: 0 | G42: =IF($D42<>"",IF($D42<Données!$C$2,1,0),0) -> 0 | J42: 0 | K42: =IF($H42<>"",IF($H42<Données!$C$3,1,0),0) -> 0 | L42: 0 | M42: 0 | N42: 0 | O42: =IF($N42=Données!$F$12,0,IF($N42<Données!$F$11,1,0)) -> 0 | T42: - | U42: =$U34-$U26+IF($U26>$U34,1) -> 0 | V42: Heures en HS 40%
B43: 2015-01-04 | F43: 0 | G43: =IF($D43<>"",IF($D43<Données!$C$2,1,0),0) -> 0 | J43: 0 | K43: =IF($H43<>"",IF($H43<Données!$C$3,1,0),0) -> 0 | L43: 0 | M43: 0 | N43: 0 | O43: =IF($N43=Données!$F$12,0,IF($N43<Données!$F$11,1,0)) -> 0 | T43: - | U43: =SUM(U35-U27) -> 0 | V43: Nombre de repas
B44: Total Semaine | E44: =WEEKNUM(B37,21) -> 1 | F44: =SUM($F37:$F43) -> 0 | G44: =G37+G38+G39+G40+G41+G42+G43 -> 0 | J44: =SUM(J37:J43) -> 0 | K44: =K37+K38+K39+K40+K41+K42+K43 -> 0 | L44: =SUM(L37:L43) -> 0 | M44: =SUM(M37:M43) -> 0 | O44: =SUM(O37:O43) -> 0
B45: =B43+1 -> 2015-01-05 | F45: =$E45-$D45+IF($D45>$E45,1) -> 0 | G45: =IF($D45<>"",IF($D45<Données!$C$2,1,0),0) -> 0 | J45: =$I45-$H45+IF($H45>$I45,1) -> 0 | K45: =IF($H45<>"",IF($H45<Données!$C$3,1,0),0) -> 0 | L45: =$F45+$J45-($G45+$K45)*("00:30") -> 0 | M45: =$G45+$K45 -> 0 | N45: =$D45-$I43+IF($I43>$D45,1) -> 0 | O45: =IF($N45=Données!$F$12,0,IF($N45<Données!$F$11,1,0)) -> 0
B46: =B45+1 -> 2015-01-06 | F46: 0 | G46: =IF($D46<>"",IF($D46<Données!$C$2,1,0),0) -> 0 | J46: =$I46-$H46+IF($H46>$I46,1) -> 0 | K46: =IF($H46<>"",IF($H46<Données!$C$3,1,0),0) -> 0 | L46: =$F46+$J46-($G46+$K46)*("00:30") -> 0 | M46: =$G46+$K46 -> 0 | N46: =$D46-$I45+IF($I45>$D46,1) -> 0 | O46: =IF($N46=Données!$F$12,0,IF($N46<Données!$F$11,1,0)) -> 0
B47: =B46+1 -> 2015-01-07 | F47: 0 | G47: =IF($D47<>"",IF($D47<Données!$C$2,1,0),0) -> 0 | J47: 0 | K47: =IF($H47<>"",IF($H47<Données!$C$3,1,0),0) -> 0 | L47: 0 | M47: 0 | N47: =$D47-$I46+IF($I46>$D47,1) -> 0 | O47: =IF($N47=Données!$F$12,0,IF($N47<Données!$F$11,1,0)) -> 0
B48: 2015-01-08 | F48: 0 | G48: =IF($D48<>"",IF($D48<Données!$C$2,1,0),0) -> 0 | J48: 0 | K48: =IF($H48<>"",IF($H48<Données!$C$3,1,0),0) -> 0 | L48: 0 | M48: 0 | N48: 0 | O48: =IF($N48=Données!$F$12,0,IF($N48<Données!$F$11,1,0)) -> 0
B49: 2015-01-09 | F49: 0 | G49: =IF($D49<>"",IF($D49<Données!$C$2,1,0),0) -> 0 | J49: 0 | K49: =IF($H49<>"",IF($H49<Données!$C$3,1,0),0) -> 0 | L49: 0 | M49: 0 | N49: 0 | O49: =IF($N49=Données!$F$12,0,IF($N49<Données!$F$11,1,0)) -> 0
B50: 2015-01-10 | F50: 0 | G50: =IF($D50<>"",IF($D50<Données!$C$2,1,0),0) -> 0 | J50: 0 | K50: =IF($H50<>"",IF($H50<Données!$C$3,1,0),0) -> 0 | L50: 0 | M50: 0 | N50: 0 | O50: =IF($N50=Données!$F$12,0,IF($N50<Données!$F$11,1,0)) -> 0
B51: 2015-01-11 | F51: 0 | G51: =IF($D51<>"",IF($D51<Données!$C$2,1,0),0) -> 0 | J51: 0 | K51: =IF($H51<>"",IF($H51<Données!$C$3,1,0),0) -> 0 | L51: 0 | M51: 0 | N51: 0 | O51: =IF($N51=Données!$F$12,0,IF($N51<Données!$F$11,1,0)) -> 0
B52: Total semaine | E52: =WEEKNUM(B45,21) -> 2 | F52: =SUM($F45:$F51) -> 0 | G52: =G45+G46+G47+G48+G49+G50+G51 -> 0 | J52: =SUM(J45:J51) -> 0 | K52: =K45+K46+K47+K48+K49+K50+K51 -> 0 | L52: =SUM(L45:L51) -> 0 | M52: =SUM(M45:M51) -> 0 | O52: =SUM(O45:O51) -> 0
N53: 7.041666667
L54: =CodeCouleur(M54) -> 50 | N54: REPOS
L55: =CodeCouleur(M55) -> 42 | N55: Récup
L56: 48 | N56: JFG
L57: 44 | N57: VAC
L58: 3 | N58: MAL
L59: =CodeCouleur(M59) -> 40 | N59: Jf Taf
A60: Heures | C60: 1.458333333 | D60: 1.625 | E60: 1.791666667 | F60: Total
A61: Taux | B61: 1 | C61: 1.1 | D61: 1.2 | E61: 1.4
A62: S 1 | B62: =IF($L$12<=$C$60,$L$12,$C$60) -> 0 | C62: =IF($L$12<=$C$60,0,IF($L$12<=$D$60,$L$12,$D$60)-$C$60) -> 0 | D62: =IF($L$12<=$D$60,0,IF($L$12<=$E$60,$L$12,$D$60)-$C$60) -> 0 | E62: =IF($L$12<=$E$60,0,IF($L$12>$E$60,$L$12,$E$60)-$E$60) -> 0 | F62: =B62+C62+D62+E62 -> 0
A63: S 2 | B63: =IF($L$20<=$C$60,$L$20,$C$60) -> 0 | C63: =IF($L$20<=$C$60,0,IF($L$20<=$D$60,$L$20,$D$60)-$C$60) -> 0 | D63: =IF($L$20<=$D$60,0,IF($L$20<=$E$60,$L$20,$D$60)-$C$60) -> 0 | E63: =IF($L$20<=$E$60,0,IF($L$20>$E$60,$L$20,$E$60)-$E$60) -> 0 | F63: 0
A64: S 3 | B64: =IF($L$28<=$C$60,$L$28,$C$60) -> 0 | C64: =IF($L$28<=$C$60,0,IF($L$28<=$D$60,$L$28,$D$60)-$C$60) -> 0 | D64: =IF($L$28<=$D$60,0,IF($L$28<=$E$60,$L$28,$D$60)-$C$60) -> 0 | E64: =IF($L$28<=$E$60,0,IF($L$28>$E$60,$L$28,$E$60)-$E$60) -> 0 | F64: 0
A65: S 4 | B65: =IF($L$36<=$C$60,$L$36,$C$60) -> 0 | C65: =IF($L$36<=$C$60,0,IF($L$36<=$D$60,$L$36,$D$60)-$C$60) -> 0 | D65: =IF($L$36<=$D$60,0,IF($L$36<=$E$60,$L$36,$D$60)-$C$60) -> 0 | E65: =IF($L$36<=$E$60,0,IF($L$36>$E$60,$L$36,$E$60)-$E$60) -> 0 | F65: 0
A66: S 5 | B66: =IF($L$44<=$C$60,$L$44,$C$60) -> 0 | C66: =IF($L$44<=$C$60,0,IF($L$44<=$D$60,$L$44,$D$60)-$C$60) -> 0 | D66: =IF($L$44<=$D$60,0,IF($L$44<=$E$60,$L$44,$D$60)-$C$60) -> 0 | E66: =IF($L$44<=$E$60,0,IF($L$44>$E$60,$L$44,$E$60)-$E$60) -> 0 | F66: 0
A67: S 6 | B67: =IF($L$52<=$C$60,$L$52,$C$60) -> 0 | C67: =IF($L$52<=$C$60,0,IF($L$52<=$D$60,$L$52,$D$60)-$C$60) -> 0 | D67: =IF($L$52<=$D$60,0,IF($L$52<=$E$60,$L$52,$D$60)-$C$60) -> 0 | E67: =IF($L$52<=$E$60,0,IF($L$52>$E$60,$L$52,$E$60)-$E$60) -> 0 | F67: 0
A68: Total | B68: =SUM(B62:B67) -> 0 | C68: =SUM(C62:C67) -> 0 | D68: =SUM(D62:D67) -> 0 | E68: =SUM(E62:E67) -> 0 | F68: 0
A71: Jours | B71: Repos | C71: Récup | D71: Jfg | E71: Vac | F71: Mal | G71: Vides | H71: Taf | I71: Jf Taf | J71: <11h
A72: S 1 | B72: =NbCellsCoul($D$5:$I$11,50)*0.25 -> 0 | C72: =NbCellsCoul($D$5:$I$11,42)*0.25 -> 0 | D72: =NbCellsCoul($D$5:$I$11,48)*0.25 -> 0 | E72: =NbCellsCoul($D$5:$I$11,44)*0.25 -> 0 | F72: =NbCellsCoul($D$5:$I$11,3)*0.25 -> 0 | G72: =+COUNTBLANK(E5:H11)/2 -> 7 | H72: =7-$G72 -> 0 | I72: =NbCellsCoul($D$5:$I$11,40)*0.25 -> 0 | J72: =SUM($O$6:$O$11) -> 0
A73: S 2 | B73: =NbCellsCoul($D$13:$I$19,50)*0.25 -> 0 | C73: =NbCellsCoul($D$13:$I$19,42)*0.25 -> 0 | D73: =NbCellsCoul($D$13:$I$19,48)*0.25 -> 0 | E73: =NbCellsCoul($D$13:$I$19,44)*0.25 -> 0 | F73: =NbCellsCoul($D$13:$I$19,3)*0.25 -> 0 | G73: =+COUNTBLANK(E13:H19)/2 -> 7 | H73: 0 | I73: =NbCellsCoul($D$13:$I$19,40)*0.25 -> 0 | J73: =SUM($O$13:$O$19) -> 0
A74: S 3 | B74: =NbCellsCoul($D$21:$I$27,50)*0.25 -> 0 | C74: =NbCellsCoul($D$21:$I$27,42)*0.25 -> 0 | D74: =NbCellsCoul($D$21:$I$27,48)*0.25 -> 0 | E74: =NbCellsCoul($D$21:$I$27,44)*0.25 -> 0 | F74: =NbCellsCoul($D$21:$I$27,3)*0.25 -> 0 | G74: =+COUNTBLANK(E21:H27)/2 -> 7 | H74: 0 | I74: =NbCellsCoul($D$21:$I$27,40)*0.25 -> 0 | J74: =SUM($O$21:$O$27) -> 0
A75: S 4 | B75: =NbCellsCoul($D$29:$I$35,50)*0.25 -> 0 | C75: =NbCellsCoul($D$29:$I$35,42)*0.25 -> 0 | D75: =NbCellsCoul($D$29:$I$35,48)*0.25 -> 0 | E75: =NbCellsCoul($D$29:$I$35,44)*0.25 -> 0 | F75: =NbCellsCoul($D$29:$I$35,3)*0.25 -> 0 | G75: =+COUNTBLANK(E29:H35)/2 -> 7 | H75: 0 | I75: =NbCellsCoul($D$29:$I$35,40)*0.25 -> 0 | J75: =SUM($O$29:$O$35) -> 0
A76: S 5 | B76: =NbCellsCoul($D$37:$I$43,50)*0.25 -> 0 | C76: =NbCellsCoul($D$37:$I$43,42)*0.25 -> 0 | D76: =NbCellsCoul($D$37:$I$43,48)*0.25 -> 0 | E76: =NbCellsCoul($D$37:$I$43,44)*0.25 -> 0 | F76: =NbCellsCoul($D$37:$I$43,3)*0.25 -> 0 | G76: =+COUNTBLANK(E37:H43)/2 -> 7 | H76: 0 | I76: =NbCellsCoul($D$37:$I$43,40)*0.25 -> 0 | J76: =SUM($O$37:$O$43) -> 0
A77: S 6 | B77: =NbCellsCoul($D$45:$I$51,50)*0.25 -> 0 | C77: =NbCellsCoul($D$45:$I$51,42)*0.25 -> 0 | D77: =NbCellsCoul($D$45:$I$51,48)*0.25 -> 0 | E77: =NbCellsCoul($D$45:$I$51,44)*0.25 -> 0 | F77: =NbCellsCoul($D$45:$I$51,3)*0.25 -> 0 | G77: =+COUNTBLANK(E45:H51)/2 -> 7 | H77: 0 | I77: =NbCellsCoul($D$45:$I$51,40)*0.25 -> 0 | J77: =SUM($O$45:$O$51) -> 0
A78: Total | B78: =SUM(B$72:B$77) -> 0 | C78: 0 | D78: 0 | E78: 0 | F78: =SUM(F$72:F$77) -> 0 | G78: =SUM(G$72:G$77) -> 42 | H78: =SUM(H$72:H$77) -> 0 | I78: =SUM(I$72:I$77) -> 0 | J78: =SUM(J$72:J$77) -> 0

Sheet Bilan 14
E1: BILAN ANNUELLE | H1: 2014 | L1: BILAN ANUELLE IMPOTS | O1: 2014
D6: - | E6: =SUM('Jan 14'!$U9+'Fév 14'!$U9+'Mars 14'!$U9+Avril14!$U9+'Mai 14'!$U9+'Juin 14'!$U9+'Juill 14'!$U9+'Août 14'!$U9+'Sept 14'!$U9+'Oct 14'!$U9+'Nov 14'!$U9+'Déc 14'!$U9) -> 224 | G6: Nombre de jours travaillés | L6: - | M6: =#REF!+#REF!+#REF!+#REF!+#REF!+#REF!+#REF!+#REF!+#REF!+#REF!+#REF!+#REF! ->  | N6: Nombre d'aller retour
D7: - | E7: =SUM('Jan 14'!$U10+'Fév 14'!$U10+'Mars 14'!$U10+Avril14!$U10+'Mai 14'!$U10+'Juin 14'!$U10+'Juill 14'!$U10+'Août 14'!$U10+'Sept 14'!$U10+'Oct 14'!$U10+'Nov 14'!$U10+'Déc 14'!$U10) -> 99.5 | G7: Nombre de jours repos | L7: - | M7: =#REF!+#REF!+#REF!+#REF!+#REF!+#REF!+#REF!+#REF!+#REF!+#REF!+#REF!+#REF! ->  | N7: KM Parcourue
D8: - | E8: =SUM('Jan 14'!$U11+'Fév 14'!$U11+'Mars 14'!$U11+Avril14!$U11+'Mai 14'!$U11+'Juin 14'!$U11+'Juill 14'!$U11+'Août 14'!$U11+'Sept 14'!$U11+'Oct 14'!$U11+'Nov 14'!$U11+'Déc 14'!$U11) -> 2 | G8: Nombre de jours récup | L8: - | M8: =#REF!+#REF!+#REF!+#REF!+#REF!+#REF!+#REF!+#REF!+#REF!+#REF!+#REF!+#REF! ->  | N8: Horadateur Payé
D9: - | E9: =SUM('Jan 14'!$U12+'Fév 14'!$U12+'Mars 14'!$U12+Avril14!$U12+'Mai 14'!$U12+'Juin 14'!$U12+'Juill 14'!$U12+'Août 14'!$U12+'Sept 14'!$U12+'Oct 14'!$U12+'Nov 14'!$U12+'Déc 14'!$U12) -> 0 | G9: Nombre de jfg
D10: - | E10: =SUM('Jan 14'!$U13+'Fév 14'!$U13+'Mars 14'!$U13+Avril14!$U13+'Mai 14'!$U13+'Juin 14'!$U13+'Juill 14'!$U13+'Août 14'!$U13+'Sept 14'!$U13+'Oct 14'!$U13+'Nov 14'!$U13+'Déc 14'!$U13) -> 28 | G10: Nombre de jours de vacances
D11: - | E11: =SUM('Jan 14'!$U14+'Fév 14'!$U14+'Mars 14'!$U14+Avril14!$U14+'Mai 14'!$U14+'Juin 14'!$U14+'Juill 14'!$U14+'Août 14'!$U14+'Sept 14'!$U14+'Oct 14'!$U14+'Nov 14'!$U14+'Déc 14'!$U14) -> 9 | G11: Nombre de jours de maladie
D12: - | E12: =SUM('Jan 14'!$U15+'Fév 14'!$U15+'Mars 14'!$U15+Avril14!$U15+'Mai 14'!$U15+'Juin 14'!$U15+'Juill 14'!$U15+'Août 14'!$U15+'Sept 14'!$U15+'Oct 14'!$U15+'Nov 14'!$U15+'Déc 14'!$U15) -> 8 | G12: Nombre jours fériées travaillés
D13: - | E13: =SUM('Jan 14'!$U16+'Fév 14'!$U16+'Mars 14'!$U16+Avril14!$U16+'Mai 14'!$U16+'Juin 14'!$U16+'Juill 14'!$U16+'Août 14'!$U16+'Sept 14'!$U16+'Oct 14'!$U16+'Nov 14'!$U16+'Déc 14'!$U16) -> 42 | G13: Nombre de fois 11h de batement non respecté
D14: -
D16: - | E16: =169*12 -> 2028 | G16: Nombre d'heure théorique a l’année
E17: =SUM('Jan 14'!$U19+'Fév 14'!$U19+'Mars 14'!$U19+Avril14!$U19+'Mai 14'!$U19+'Juin 14'!$U19+'Juill 14'!$U19+'Août 14'!$U19+'Sept 14'!$U19+'Oct 14'!$U19+'Nov 14'!$U19+'Déc 14'!$U19) -> 91.72916667 | G17: Nombre d'heure éffectué
C18: Dont : | D18: -
D19: - | E19: ='Jan 14'!U20+'Fév 14'!U20+'Mars 14'!U20+Avril14!U20+'Mai 14'!U20+'Juin 14'!U20 ->  | G19: Nombre d'heure supp
D20: -
D21: - | E21: =#REF!+#REF!+#REF!+#REF!+#REF!+#REF!+#REF!+#REF!+#REF!+#REF!+#REF!+#REF! ->  | G21: Heures à taux normal ( 35h )
D22: - | E22: =#REF!+#REF!+#REF!+#REF!+#REF!+#REF!+#REF!+#REF!+#REF!+#REF!+#REF!+#REF! ->  | G22: Heures en HS 10% ( 35h à 39h )
E23: =#REF!+#REF!+#REF!+#REF!+#REF!+#REF!+#REF!+#REF!+#REF!+#REF!+#REF!+#REF! ->  | G23: Heures en HS 20% (39h à 43h )
C24: Heure fiche de paie: | E24: =#REF!+#REF!+#REF!+#REF!+#REF!+#REF!+#REF!+#REF!+#REF!+#REF!+#REF!+#REF! ->  | G24: Heures en HS 40% ( 43h et plus )
E25: =#REF!+#REF!+#REF!+#REF!+#REF!+#REF!+#REF!+#REF!+#REF!+#REF!+#REF!+#REF! ->  | G25: Nombre de repas pris
C26: Dont : | D26: -
D27: -
D28: -
D29: - | E29: =#REF!+#REF!+#REF!+#REF!+#REF!+#REF!+#REF!+#REF!+#REF!+#REF!+#REF!+#REF! ->  | G29: Heures à taux normal
D30: - | E30: =#REF!+#REF!+#REF!+#REF!+#REF!+#REF!+#REF!+#REF!+#REF!+#REF!+#REF!+#REF! ->  | G30: Heures en HS 10%
E31: =#REF!+#REF!+#REF!+#REF!+#REF!+#REF!+#REF!+#REF!+#REF!+#REF!+#REF!+#REF! ->  | G31: Heures en HS 20%
C32: Différence: | E32: =#REF!+#REF!+#REF!+#REF!+#REF!+#REF!+#REF!+#REF!+#REF!+#REF!+#REF!+#REF! ->  | G32: Heures en HS 40%
E33: =#REF!+#REF!+#REF!+#REF!+#REF!+#REF!+#REF!+#REF!+#REF!+#REF!+#REF!+#REF! ->  | G33: Nombre de repas
C34: Dont : | D34: -
D35: -
D36: -
D37: - | E37: =#REF!+#REF!+#REF!+#REF!+#REF!+#REF!+#REF!+#REF!+#REF!+#REF!+#REF!+#REF! ->  | G37: Heures à taux normal
D38: - | E38: =#REF!+#REF!+#REF!+#REF!+#REF!+#REF!+#REF!+#REF!+#REF!+#REF!+#REF!+#REF! ->  | G38: Heures en HS 10%
E39: =#REF!+#REF!+#REF!+#REF!+#REF!+#REF!+#REF!+#REF!+#REF!+#REF!+#REF!+#REF! ->  | G39: Heures en HS 20%
E40: =#REF!+#REF!+#REF!+#REF!+#REF!+#REF!+#REF!+#REF!+#REF!+#REF!+#REF!+#REF! ->  | G40: Heures en HS 40%
E41: =#REF!+#REF!+#REF!+#REF!+#REF!+#REF!+#REF!+#REF!+#REF!+#REF!+#REF!+#REF! ->  | G41: Nombre de repas

Sheet Jan 14
D1: TEMPS DE TRAVAIL | S1: RÉCAPITULATIF | AE1: IMPÔTS
F2: =Données!G14 -> 12 | J2: =Données!C15 -> 2014
B3: Jour | D3: Midi | F3: Cumul Midi | G3: Repas | H3: Soir | J3: Cumul Soir | K3: Repas | L3: Totaux | M3: Total Repas
D4: Début | E4: Fin | H4: Début | I4: Fin | AF4: =VLOOKUP(F2,Données!E15:F26,2) -> Décembre | AG4: =J2 -> 2014
B5: =Données!I15-WEEKDAY(Données!I15-1)+1 -> 2014-12-01 | F5: =$E5-$D5+IF($D5>$E5,1) -> 0 | G5: =IF($D5<>"",IF($D5<Données!$C$2,1,0),0) -> 0 | J5: =$I5-$H5+IF($H5>$I5,1) -> 0 | K5: =IF($H5<>"",IF($H5<Données!$C$3,1,0),0) -> 0 | L5: =$F5+$J5-($G5+$K5)*("00:30") -> 0 | M5: =$G5+$K5 -> 0
B6: =B5+1 -> 2014-12-02 | F6: =$E6-$D6+IF($D6>$E6,1) -> 0 | G6: =IF($D6<>"",IF($D6<Données!$C$2,1,0),0) -> 0 | J6: =$I6-$H6+IF($H6>$I6,1) -> 0 | K6: =IF($H6<>"",IF($H6<Données!$C$3,1,0),0) -> 0 | L6: =$F6+$J6-($G6+$K6)*("00:30") -> 0 | M6: =$G6+$K6 -> 0 | N6: =$D6-$I5+IF($I5>$D6,1) -> 0 | O6: =IF($N6=Données!$F$12,0,IF($N6<Données!$F$11,1,0)) -> 0 | S6: Soit au total pour le mois de : | U6: =VLOOKUP(F2,Données!E15:F26,2) -> Décembre | V6: =J2 -> 2014
B7: =B6+1 -> 2014-12-03 | D7: 0.4895833333 | E7: 0.6666666667 | F7: 0.1770833333 | G7: =IF($D7<>"",IF($D7<Données!$C$2,1,0),0) -> 0 | J7: 0 | K7: =IF($H7<>"",IF($H7<Données!$C$3,1,0),0) -> 0 | L7: 0.1770833333 | M7: 0 | N7: =$D7-$I6+IF($I6>$D7,1) -> 0.4895833333 | O7: =IF($N7=Données!$F$12,0,IF($N7<Données!$F$11,1,0)) -> 0
B8: 2014-12-04 | D8: 0.4895833333 | E8: 0.625 | F8: 0.1354166667 | G8: =IF($D8<>"",IF($D8<Données!$C$2,1,0),0) -> 0 | H8: 0.78125 | I8: 0.9375 | J8: 0.15625 | K8: =IF($H8<>"",IF($H8<Données!$C$3,1,0),0) -> 0 | L8: 0.2916666667 | M8: 0 | N8: =$D8-$I7+IF($I7>$D8,1) -> 0.4895833333 | O8: =IF($N8=Données!$F$12,0,IF($N8<Données!$F$11,1,0)) -> 0 | AE8: Numéro Fiscal :
B9: 2014-12-05 | D9: 0.4895833333 | E9: 0.6354166667 | F9: 0.1458333333 | G9: =IF($D9<>"",IF($D9<Données!$C$2,1,0),0) -> 0 | H9: 0.78125 | I9: 0.9375 | J9: 0.15625 | K9: =IF($H9<>"",IF($H9<Données!$C$3,1,0),0) -> 0 | L9: 0.3020833333 | M9: 0 | N9: 0.5520833333 | O9: =IF($N9=Données!$F$12,0,IF($N9<Données!$F$11,1,0)) -> 0 | S9: Nombre de jours travaillés : | U9: =H78 -> 21 | AE9: MDP:
B10: 2014-12-06 | D10: 0.4895833333 | E10: 0.625 | F10: 0.1354166667 | G10: =IF($D10<>"",IF($D10<Données!$C$2,1,0),0) -> 0 | H10: 0.78125 | I10: 0.9270833333 | J10: 0.1458333333 | K10: =IF($H10<>"",IF($H10<Données!$C$3,1,0),0) -> 0 | L10: 0.28125 | M10: 0 | N10: =$D10-$I9+IF($I9>$D10,1) -> 0.5520833333 | O10: =IF($N10=Données!$F$12,0,IF($N10<Données!$F$11,1,0)) -> 0 | S10: Nombre de jours repos : | U10: =B78 -> 8.5
B11: 2014-12-07 | D11: 0.4895833333 | E11: 0.625 | F11: 0.1354166667 | G11: =IF($D11<>"",IF($D11<Données!$C$2,1,0),0) -> 0 | H11: 0.78125 | I11: 0.875 | J11: 0.09375 | K11: =IF($H11<>"",IF($H11<Données!$C$3,1,0),0) -> 0 | L11: 0.2291666667 | M11: 0 | N11: =$D11-$I10+IF($I10>$D11,1) -> 0.5625 | O11: =IF($N11=Données!$F$12,0,IF($N11<Données!$F$11,1,0)) -> 0 | S11: Nombre de jours récup : | U11: =C$78 -> 0.5 | AE11: Adresse domicile: | AF11: -
B12: Total Semaine | E12: =WEEKNUM(B5,21) -> 49 | F12: =SUM($F5:$F11) -> 0.7291666667 | G12: =G5+G6+G7+G8+G9+G10+G11 -> 0 | J12: =SUM(J5:J11) -> 0.5520833333 | K12: =K5+K6+K7+K8+K9+K10+K11 -> 0 | L12: =SUM(L5:L11) -> 1.28125 | M12: =SUM(M5:M11) -> 0 | O12: =SUM(O6:O11) -> 0 | S12: Nombre de jfg : | U12: =D$78 -> 0
B13: =B11+1 -> 2014-12-08 | D13: 0.5 | E13: 0.6354166667 | F13: =$E13-$D13+IF($D13>$E13,1) -> 0.1354166667 | G13: =IF($D13<>"",IF($D13<Données!$C$2,1,0),0) -> 0 | H13: 0.78125 | I13: 0.9895833333 | J13: =$I13-$H13+IF($H13>$I13,1) -> 0.2083333333 | K13: =IF($H13<>"",IF($H13<Données!$C$3,1,0),0) -> 0 | L13: =$F13+$J13-($G13+$K13)*("00:30") -> 0.34375 | M13: =$G13+$K13 -> 0 | N13: =$D13-$I11+IF($I11>$D13,1) -> 0.625 | O13: =IF($N13=Données!$F$12,0,IF($N13<Données!$F$11,1,0)) -> 0 | S13: Nombre de jours de vacances : | U13: =E$78 -> 1
B14: =B13+1 -> 2014-12-09 | F14: =$E14-$D14+IF($D14>$E14,1) -> 0 | G14: =IF($D14<>"",IF($D14<Données!$C$2,1,0),0) -> 0 | J14: =$I14-$H14+IF($H14>$I14,1) -> 0 | K14: =IF($H14<>"",IF($H14<Données!$C$3,1,0),0) -> 0 | L14: =$F14+$J14-($G14+$K14)*("00:30") -> 0 | M14: =$G14+$K14 -> 0 | N14: =$D14-$I13+IF($I13>$D14,1) -> 0.01041666667 | O14: 0 | S14: Nombre de jours de maladie : | U14: =F$78 -> 0
B15: =B14+1 -> 2014-12-10 | F15: 0 | G15: =IF($D15<>"",IF($D15<Données!$C$2,1,0),0) -> 0 | J15: 0 | K15: =IF($H15<>"",IF($H15<Données!$C$3,1,0),0) -> 0 | L15: 0 | M15: 0 | N15: =$D15-$I14+IF($I14>$D15,1) -> 0 | O15: =IF($N15=Données!$F$12,0,IF($N15<Données!$F$11,1,0)) -> 0 | S15: Nombre jours fériées travaillés : | U15: =I78 -> 0.5 | AE15: Adresse lieu de travail: | AF15: -
B16: 2014-12-11 | D16: 0.4895833333 | E16: 0.6458333333 | F16: 0.15625 | G16: =IF($D16<>"",IF($D16<Données!$C$2,1,0),0) -> 0 | H16: 0.78125 | I16: 0.8854166667 | J16: 0.1041666667 | K16: =IF($H16<>"",IF($H16<Données!$C$3,1,0),0) -> 0 | L16: 0.2604166667 | M16: 0 | N16: 0.4895833333 | O16: =IF($N16=Données!$F$12,0,IF($N16<Données!$F$11,1,0)) -> 0 | S16: Nombre de fois 11h de batement non respecté : | U16: =J78 -> 1
B17: 2014-12-12 | D17: 0.4895833333 | E17: 0.6041666667 | F17: 0.1145833333 | G17: =IF($D17<>"",IF($D17<Données!$C$2,1,0),0) -> 0 | H17: 0.78125 | I17: 0.9375 | J17: 0.15625 | K17: =IF($H17<>"",IF($H17<Données!$C$3,1,0),0) -> 0 | L17: 0.2708333333 | M17: 0 | N17: 0.6041666667 | O17: =IF($N17=Données!$F$12,0,IF($N17<Données!$F$11,1,0)) -> 0
B18: 2014-12-13 | D18: 0.4895833333 | E18: 0.65625 | F18: 0.1666666667 | G18: =IF($D18<>"",IF($D18<Données!$C$2,1,0),0) -> 0 | H18: 0.78125 | I18: 0.9375 | J18: 0.15625 | K18: =IF($H18<>"",IF($H18<Données!$C$3,1,0),0) -> 0 | L18: 0.3229166667 | M18: 0 | N18: 0.5520833333 | O18: =IF($N18=Données!$F$12,0,IF($N18<Données!$F$11,1,0)) -> 0 | AE18: Distance ( Source Mappy) : | AF18: - | AG18: 7,4 KM
B19: 2014-12-14 | D19: 0.4895833333 | E19: 0.625 | F19: 0.1354166667 | G19: =IF($D19<>"",IF($D19<Données!$C$2,1,0),0) -> 0 | H19: 0.7916666667 | I19: 0.875 | J19: 0.08333333333 | K19: =IF($H19<>"",IF($H19<Données!$C$3,1,0),0) -> 0 | L19: 0.21875 | M19: 0 | N19: 0.5520833333 | O19: =IF($N19=Données!$F$12,0,IF($N19<Données!$F$11,1,0)) -> 0 | U19: =SUM(L12+L20+L28+L36+L44+L52) -> 6.197916667 | V19: Heures effectués
B20: Total Semaine | E20: =WEEKNUM(B13,21) -> 50 | F20: =SUM($F13:$F19) -> 0.7083333333 | G20: =G13+G14+G15+G16+G17+G18+G19 -> 0 | J20: =SUM(J13:J19) -> 0.7083333333 | K20: =K13+K14+K15+K16+K17+K18+K19 -> 0 | L20: =SUM(L13:L19) -> 1.416666667 | M20: =SUM(M13:M19) -> 0 | O20: =SUM(O13:O19) -> 0 | U20: =IF(U19<N53,"- "&TEXT(ABS(N53-U19),"[hh]:mm"),U19-N53) -> - 20:15 | V20: Heures dues/supp | AE20: Nombre Aller-Retour : | AF20: - | AG20: =COUNT(E5:E11,I5:I11,E13:E19,I13:I19,E21:E27,I21:I27,E29:E35,I29:I35,E37:E43,I37:I43,E45:E51,I45:I51) -> 42
B21: =B19+1 -> 2014-12-15 | D21: 0.4895833333 | E21: 0.6041666667 | F21: =$E21-$D21+IF($D21>$E21,1) -> 0.1145833333 | G21: =IF($D21<>"",IF($D21<Données!$C$2,1,0),0) -> 0 | H21: 0.78125 | I21: 0.9583333333 | J21: =$I21-$H21+IF($H21>$I21,1) -> 0.1770833333 | K21: =IF($H21<>"",IF($H21<Données!$C$3,1,0),0) -> 0 | L21: =$F21+$J21-($G21+$K21)*("00:30") -> 0.2916666667 | M21: =$G21+$K21 -> 0 | N21: =$D21-$I19+IF($I19>$D21,1) -> 0.6145833333 | O21: =IF($N21=Données!$F$12,0,IF($N21<Données!$F$11,1,0)) -> 0 | AE21: Km Parcourue : | AF21: - | AG21: =SUM(AG20*14.8) -> 621.6 | AH21: Km
B22: =B21+1 -> 2014-12-16 | F22: =$E22-$D22+IF($D22>$E22,1) -> 0 | G22: =IF($D22<>"",IF($D22<Données!$C$2,1,0),0) -> 0 | J22: =$I22-$H22+IF($H22>$I22,1) -> 0 | K22: =IF($H22<>"",IF($H22<Données!$C$3,1,0),0) -> 0 | L22: =$F22+$J22-($G22+$K22)*("00:30") -> 0 | M22: =$G22+$K22 -> 0 | N22: =$D22-$I21+IF($I21>$D22,1) -> 0.04166666667 | O22: 0 | AE22: Horodateur Payé : | AF22: - | AG22: 29.1
B23: =B22+1 -> 2014-12-17 | F23: 0 | G23: =IF($D23<>"",IF($D23<Données!$C$2,1,0),0) -> 0 | J23: 0 | K23: =IF($H23<>"",IF($H23<Données!$C$3,1,0),0) -> 0 | L23: 0 | M23: 0 | N23: =$D23-$I22+IF($I22>$D23,1) -> 0 | O23: =IF($N23=Données!$F$12,0,IF($N23<Données!$F$11,1,0)) -> 0 | S23: Dont : | T23: - | U23: =$B$68 -> 6.166666667 | V23: Heures à taux normal ( 35h ) | AE23: Achat divers pour le travail : | AF23: -
B24: 2014-12-18 | D24: 0.4895833333 | E24: 0.625 | F24: 0.1354166667 | G24: =IF($D24<>"",IF($D24<Données!$C$2,1,0),0) -> 0 | H24: 0.78125 | I24: 0.875 | J24: 0.09375 | K24: =IF($H24<>"",IF($H24<Données!$C$3,1,0),0) -> 0 | L24: 0.2291666667 | M24: 0 | N24: 0.4895833333 | O24: =IF($N24=Données!$F$12,0,IF($N24<Données!$F$11,1,0)) -> 0 | T24: - | U24: =$C$68 -> 0.03125 | V24: Heures en HS 10% ( 35h à 39h ) | AF24: -
B25: 2014-12-19 | D25: 0.4895833333 | E25: 0.625 | F25: 0.1354166667 | G25: =IF($D25<>"",IF($D25<Données!$C$2,1,0),0) -> 0 | H25: 0.8333333333 | I25: 0.9583333333 | J25: 0.125 | K25: =IF($H25<>"",IF($H25<Données!$C$3,1,0),0) -> 0 | L25: 0.2604166667 | M25: 0 | N25: 0.6145833333 | O25: =IF($N25=Données!$F$12,0,IF($N25<Données!$F$11,1,0)) -> 0 | T25: - | U25: =$D$68 -> 0 | V25: Heures en HS 20% (39h à 43h ) | AF25: -
B26: 2014-12-20 | F26: 0 | G26: =IF($D26<>"",IF($D26<Données!$C$2,1,0),0) -> 0 | H26: 0.78125 | I26: 0.96875 | J26: 0.1875 | K26: =IF($H26<>"",IF($H26<Données!$C$3,1,0),0) -> 0 | L26: 0.1875 | M26: 0 | N26: =$D26-$I25+IF($I25>$D26,1) -> 0.04166666667 | O26: 0 | T26: - | U26: =$E$68 -> 0 | V26: Heures en HS 40% ( 43h et plus ) | AF26: -
B27: 2014-12-21 | D27: 0.4895833333 | E27: 0.6458333333 | F27: 0.15625 | G27: =IF($D27<>"",IF($D27<Données!$C$2,1,0),0) -> 0 | H27: 0.78125 | I27: 0.9166666667 | J27: 0.1354166667 | K27: =IF($H27<>"",IF($H27<Données!$C$3,1,0),0) -> 0 | L27: 0.2916666667 | M27: 0 | N27: 0.5208333333 | O27: =IF($N27=Données!$F$12,0,IF($N27<Données!$F$11,1,0)) -> 0 | T27: - | U27: =SUM(M12+M20+M28+M36+M44+M52) -> 0 | V27: Nombre de repas | AF27: -
B28: Total Semaine | E28: =WEEKNUM(B21,21) -> 51 | F28: =SUM($F21:$F27) -> 0.5416666667 | G28: =G21+G22+G23+G24+G25+G26+G27 -> 0 | J28: =SUM(J21:J27) -> 0.71875 | K28: =K21+K22+K23+K24+K25+K26+K27 -> 0 | L28: =SUM(L21:L27) -> 1.260416667 | M28: =SUM(M21:M27) -> 0 | O28: =SUM(O21:O27) -> 0 | AF28: -
B29: =B27+1 -> 2014-12-22 | F29: =$E29-$D29+IF($D29>$E29,1) -> 0 | G29: =IF($D29<>"",IF($D29<Données!$C$2,1,0),0) -> 0 | J29: =$I29-$H29+IF($H29>$I29,1) -> 0 | K29: =IF($H29<>"",IF($H29<Données!$C$3,1,0),0) -> 0 | L29: 0.3229166667 | M29: =$G29+$K29 -> 0 | N29: =$D29-$I27+IF($I27>$D29,1) -> 0.08333333333 | O29: 0 | S29: Heure fiche de paie: | AF29: -
B30: =B29+1 -> 2014-12-23 | F30: =$E30-$D30+IF($D30>$E30,1) -> 0 | G30: =IF($D30<>"",IF($D30<Données!$C$2,1,0),0) -> 0 | J30: =$I30-$H30+IF($H30>$I30,1) -> 0 | K30: =IF($H30<>"",IF($H30<Données!$C$3,1,0),0) -> 0 | L30: =$F30+$J30-($G30+$K30)*("00:30") -> 0 | M30: =$G30+$K30 -> 0 | N30: =$D30-$I29+IF($I29>$D30,1) -> 0 | O30: =IF($N30=Données!$F$12,0,IF($N30<Données!$F$11,1,0)) -> 0 | AF30: -
B31: =B30+1 -> 2014-12-24 | F31: 0 | G31: =IF($D31<>"",IF($D31<Données!$C$2,1,0),0) -> 0 | J31: 0 | K31: =IF($H31<>"",IF($H31<Données!$C$3,1,0),0) -> 0 | L31: 0 | M31: 0 | N31: =$D31-$I30+IF($I30>$D31,1) -> 0 | O31: =IF($N31=Données!$F$12,0,IF($N31<Données!$F$11,1,0)) -> 0 | S31: Dont : | T31: - | U31: 6.319444444 | V31: Heures à taux normal | AF31: -
B32: 2014-12-25 | D32: 0.4895833333 | E32: 0.6145833333 | F32: 0.125 | G32: =IF($D32<>"",IF($D32<Données!$C$2,1,0),0) -> 0 | H32: 0.78125 | I32: 0.9270833333 | J32: 0.1458333333 | K32: =IF($H32<>"",IF($H32<Données!$C$3,1,0),0) -> 0 | L32: 0.2708333333 | M32: 0 | N32: 0.4895833333 | O32: =IF($N32=Données!$F$12,0,IF($N32<Données!$F$11,1,0)) -> 0 | T32: - | U32: 0.73125 | V32: Heures en HS 10% | AF32: -
B33: 2014-12-26 | D33: 0.4895833333 | E33: 0.6041666667 | F33: 0.1145833333 | G33: =IF($D33<>"",IF($D33<Données!$C$2,1,0),0) -> 0 | H33: 0.78125 | I33: 0.9166666667 | J33: 0.1354166667 | K33: =IF($H33<>"",IF($H33<Données!$C$3,1,0),0) -> 0 | L33: 0.25 | M33: 0 | N33: 0.5625 | O33: =IF($N33=Données!$F$12,0,IF($N33<Données!$F$11,1,0)) -> 0 | T33: - | U33: 0 | V33: Heures en HS 20%
B34: 2014-12-27 | D34: 0.4895833333 | E34: 0.625 | F34: 0.1354166667 | G34: =IF($D34<>"",IF($D34<Données!$C$2,1,0),0) -> 0 | H34: 0.78125 | I34: 0.05208333333 | J34: 0.2708333333 | K34: =IF($H34<>"",IF($H34<Données!$C$3,1,0),0) -> 0 | L34: 0.40625 | M34: 0 | N34: 0.5729166667 | O34: =IF($N34=Données!$F$12,0,IF($N34<Données!$F$11,1,0)) -> 0 | T34: - | U34: 0 | V34: Heures en HS 40% | AE34: Total dépenses: | AF34: - | AG34: =SUM(AG22:AG32) -> 29.1
B35: 2014-12-28 | D35: 0.4895833333 | E35: 0.6354166667 | F35: 0.1458333333 | G35: =IF($D35<>"",IF($D35<Données!$C$2,1,0),0) -> 0 | H35: 0.78125 | I35: 0.875 | J35: 0.09375 | K35: =IF($H35<>"",IF($H35<Données!$C$3,1,0),0) -> 0 | L35: 0.2395833333 | M35: 0 | N35: =$D35-$I34+IF($I34>$D35,1) -> 0.4375 | O35: =IF($N35=Données!$F$12,0,IF($N35<Données!$F$11,1,0)) -> 1 | T35: - | U35: 0 | V35: Nombre de repas
B36: Total Semaine | E36: =WEEKNUM(B29,21) -> 52 | F36: =SUM($F29:$F35) -> 0.5208333333 | G36: =G29+G30+G31+G32+G33+G34+G35 -> 0 | J36: =SUM(J29:J35) -> 0.6458333333 | K36: =K29+K30+K31+K32+K33+K34+K35 -> 0 | L36: =SUM(L29:L35) -> 1.489583333 | M36: =SUM(M29:M35) -> 0 | O36: =SUM(O29:O35) -> 1
B37: =B35+1 -> 2014-12-29 | D37: 0.5 | E37: 0.6041666667 | F37: =$E37-$D37+IF($D37>$E37,1) -> 0.1041666667 | G37: =IF($D37<>"",IF($D37<Données!$C$2,1,0),0) -> 0 | H37: 0.8333333333 | I37: 0.9791666667 | J37: =$I37-$H37+IF($H37>$I37,1) -> 0.1458333333 | K37: =IF($H37<>"",IF($H37<Données!$C$3,1,0),0) -> 0 | L37: =$F37+$J37-($G37+$K37)*("00:30") -> 0.25 | M37: =$G37+$K37 -> 0 | N37: =$D37-$I35+IF($I35>$D37,1) -> 0.625 | O37: =IF($N37=Données!$F$12,0,IF($N37<Données!$F$11,1,0)) -> 0 | S37: Différence:
B38: =B37+1 -> 2014-12-30 | F38: =$E38-$D38+IF($D38>$E38,1) -> 0 | G38: =IF($D38<>"",IF($D38<Données!$C$2,1,0),0) -> 0 | J38: =$I38-$H38+IF($H38>$I38,1) -> 0 | K38: =IF($H38<>"",IF($H38<Données!$C$3,1,0),0) -> 0 | L38: =$F38+$J38-($G38+$K38)*("00:30") -> 0 | M38: =$G38+$K38 -> 0 | N38: =$D38-$I37+IF($I37>$D38,1) -> 0.02083333333 | O38: 0
B39: =B38+1 -> 2014-12-31 | F39: 0 | G39: =IF($D39<>"",IF($D39<Données!$C$2,1,0),0) -> 0 | J39: 0 | K39: =IF($H39<>"",IF($H39<Données!$C$3,1,0),0) -> 0 | L39: 0 | M39: 0 | N39: =$D39-$I38+IF($I38>$D39,1) -> 0 | O39: =IF($N39=Données!$F$12,0,IF($N39<Données!$F$11,1,0)) -> 0 | S39: Dont : | T39: - | U39: -3:40 | V39: Heures à taux normal
B40: 2015-01-01 | D40: 0.4895833333 | E40: 0.625 | F40: 0.1354166667 | G40: =IF($D40<>"",IF($D40<Données!$C$2,1,0),0) -> 0 | H40: 0.78125 | I40: 0.8958333333 | J40: 0.1145833333 | K40: =IF($H40<>"",IF($H40<Données!$C$3,1,0),0) -> 0 | L40: 0.25 | M40: 0 | N40: 0.4895833333 | O40: =IF($N40=Données!$F$12,0,IF($N40<Données!$F$11,1,0)) -> 0 | T40: - | U40: =$U32-$U24+IF($U24>$U32,1) -> 0.7 | V40: Heures en HS 10%
B41: 2015-01-02 | D41: 0.4895833333 | E41: 0.5729166667 | F41: 0.08333333333 | G41: =IF($D41<>"",IF($D41<Données!$C$2,1,0),0) -> 0 | H41: 0.8333333333 | I41: 0 | J41: 0.1666666667 | K41: =IF($H41<>"",IF($H41<Données!$C$3,1,0),0) -> 0 | L41: 0.25 | M41: 0 | N41: 0.59375 | O41: =IF($N41=Données!$F$12,0,IF($N41<Données!$F$11,1,0)) -> 0 | T41: - | U41: =$U33-$U25+IF($U25>$U33,1) -> 0 | V41: Heures en HS 20%
B42: 2015-01-03 | F42: 0 | G42: =IF($D42<>"",IF($D42<Données!$C$2,1,0),0) -> 0 | J42: 0 | K42: =IF($H42<>"",IF($H42<Données!$C$3,1,0),0) -> 0 | L42: 0 | M42: 0 | N42: 0 | O42: =IF($N42=Données!$F$12,0,IF($N42<Données!$F$11,1,0)) -> 0 | T42: - | U42: =$U34-$U26+IF($U26>$U34,1) -> 0 | V42: Heures en HS 40%
B43: 2015-01-04 | F43: 0 | G43: =IF($D43<>"",IF($D43<Données!$C$2,1,0),0) -> 0 | J43: 0 | K43: =IF($H43<>"",IF($H43<Données!$C$3,1,0),0) -> 0 | L43: 0 | M43: 0 | N43: 0 | O43: =IF($N43=Données!$F$12,0,IF($N43<Données!$F$11,1,0)) -> 0 | T43: - | U43: =SUM(U35-U27) -> 0 | V43: Nombre de repas
B44: Total Semaine | E44: =WEEKNUM(B37,21) -> 1 | F44: =SUM($F37:$F43) -> 0.3229166667 | G44: =G37+G38+G39+G40+G41+G42+G43 -> 0 | J44: =SUM(J37:J43) -> 0.4270833333 | K44: =K37+K38+K39+K40+K41+K42+K43 -> 0 | L44: =SUM(L37:L43) -> 0.75 | M44: =SUM(M37:M43) -> 0 | O44: =SUM(O37:O43) -> 0
B45: =B43+1 -> 2015-01-05 | F45: =$E45-$D45+IF($D45>$E45,1) -> 0 | G45: =IF($D45<>"",IF($D45<Données!$C$2,1,0),0) -> 0 | J45: =$I45-$H45+IF($H45>$I45,1) -> 0 | K45: =IF($H45<>"",IF($H45<Données!$C$3,1,0),0) -> 0 | L45: =$F45+$J45-($G45+$K45)*("00:30") -> 0 | M45: =$G45+$K45 -> 0 | N45: =$D45-$I43+IF($I43>$D45,1) -> 0 | O45: =IF($N45=Données!$F$12,0,IF($N45<Données!$F$11,1,0)) -> 0
B46: =B45+1 -> 2015-01-06 | F46: 0 | G46: =IF($D46<>"",IF($D46<Données!$C$2,1,0),0) -> 0 | J46: =$I46-$H46+IF($H46>$I46,1) -> 0 | K46: =IF($H46<>"",IF($H46<Données!$C$3,1,0),0) -> 0 | L46: =$F46+$J46-($G46+$K46)*("00:30") -> 0 | M46: =$G46+$K46 -> 0 | N46: =$D46-$I45+IF($I45>$D46,1) -> 0 | O46: =IF($N46=Données!$F$12,0,IF($N46<Données!$F$11,1,0)) -> 0
B47: =B46+1 -> 2015-01-07 | F47: 0 | G47: =IF($D47<>"",IF($D47<Données!$C$2,1,0),0) -> 0 | J47: 0 | K47: =IF($H47<>"",IF($H47<Données!$C$3,1,0),0) -> 0 | L47: 0 | M47: 0 | N47: =$D47-$I46+IF($I46>$D47,1) -> 0 | O47: =IF($N47=Données!$F$12,0,IF($N47<Données!$F$11,1,0)) -> 0
B48: 2015-01-08 | F48: 0 | G48: =IF($D48<>"",IF($D48<Données!$C$2,1,0),0) -> 0 | J48: 0 | K48: =IF($H48<>"",IF($H48<Données!$C$3,1,0),0) -> 0 | L48: 0 | M48: 0 | N48: 0 | O48: =IF($N48=Données!$F$12,0,IF($N48<Données!$F$11,1,0)) -> 0
B49: 2015-01-09 | F49: 0 | G49: =IF($D49<>"",IF($D49<Données!$C$2,1,0),0) -> 0 | J49: 0 | K49: =IF($H49<>"",IF($H49<Données!$C$3,1,0),0) -> 0 | L49: 0 | M49: 0 | N49: 0 | O49: =IF($N49=Données!$F$12,0,IF($N49<Données!$F$11,1,0)) -> 0
B50: 2015-01-10 | F50: 0 | G50: =IF($D50<>"",IF($D50<Données!$C$2,1,0),0) -> 0 | J50: 0 | K50: =IF($H50<>"",IF($H50<Données!$C$3,1,0),0) -> 0 | L50: 0 | M50: 0 | N50: 0 | O50: =IF($N50=Données!$F$12,0,IF($N50<Données!$F$11,1,0)) -> 0
B51: 2015-01-11 | F51: 0 | G51: =IF($D51<>"",IF($D51<Données!$C$2,1,0),0) -> 0 | J51: 0 | K51: =IF($H51<>"",IF($H51<Données!$C$3,1,0),0) -> 0 | L51: 0 | M51: 0 | N51: 0 | O51: =IF($N51=Données!$F$12,0,IF($N51<Données!$F$11,1,0)) -> 0
B52: Total semaine | E52: =WEEKNUM(B45,21) -> 2 | F52: =SUM($F45:$F51) -> 0 | G52: =G45+G46+G47+G48+G49+G50+G51 -> 0 | J52: =SUM(J45:J51) -> 0 | K52: =K45+K46+K47+K48+K49+K50+K51 -> 0 | L52: =SUM(L45:L51) -> 0 | M52: =SUM(M45:M51) -> 0 | O52: =SUM(O45:O51) -> 0
N53: 7.041666667
L54: =CodeCouleur(M54) -> 50 | N54: REPOS
L55: =CodeCouleur(M55) -> 42 | N55: Récup
L56: 48 | N56: JFG
L57: 44 | N57: VAC
L58: 3 | N58: MAL
L59: =CodeCouleur(M59) -> 40 | N59: Jf Taf
A60: Heures | C60: 1.458333333 | D60: 1.625 | E60: 1.791666667 | F60: Total
A61: Taux | B61: 1 | C61: 1.1 | D61: 1.2 | E61: 1.4
A62: S 1 | B62: =IF($L$12<=$C$60,$L$12,$C$60) -> 1.28125 | C62: =IF($L$12<=$C$60,0,IF($L$12<=$D$60,$L$12,$D$60)-$C$60) -> 0 | D62: =IF($L$12<=$D$60,0,IF($L$12<=$E$60,$L$12,$D$60)-$C$60) -> 0 | E62: =IF($L$12<=$E$60,0,IF($L$12>$E$60,$L$12,$E$60)-$E$60) -> 0 | F62: =B62+C62+D62+E62 -> 1.28125
A63: S 2 | B63: =IF($L$20<=$C$60,$L$20,$C$60) -> 1.416666667 | C63: =IF($L$20<=$C$60,0,IF($L$20<=$D$60,$L$20,$D$60)-$C$60) -> 0 | D63: =IF($L$20<=$D$60,0,IF($L$20<=$E$60,$L$20,$D$60)-$C$60) -> 0 | E63: =IF($L$20<=$E$60,0,IF($L$20>$E$60,$L$20,$E$60)-$E$60) -> 0 | F63: 1.416666667
A64: S 3 | B64: =IF($L$28<=$C$60,$L$28,$C$60) -> 1.260416667 | C64: =IF($L$28<=$C$60,0,IF($L$28<=$D$60,$L$28,$D$60)-$C$60) -> 0 | D64: =IF($L$28<=$D$60,0,IF($L$28<=$E$60,$L$28,$D$60)-$C$60) -> 0 | E64: =IF($L$28<=$E$60,0,IF($L$28>$E$60,$L$28,$E$60)-$E$60) -> 0 | F64: 1.260416667
A65: S 4 | B65: =IF($L$36<=$C$60,$L$36,$C$60) -> 1.458333333 | C65: =IF($L$36<=$C$60,0,IF($L$36<=$D$60,$L$36,$D$60)-$C$60) -> 0.03125 | D65: =IF($L$36<=$D$60,0,IF($L$36<=$E$60,$L$36,$D$60)-$C$60) -> 0 | E65: =IF($L$36<=$E$60,0,IF($L$36>$E$60,$L$36,$E$60)-$E$60) -> 0 | F65: 1.489583333
A66: S 5 | B66: =IF($L$44<=$C$60,$L$44,$C$60) -> 0.75 | C66: =IF($L$44<=$C$60,0,IF($L$44<=$D$60,$L$44,$D$60)-$C$60) -> 0 | D66: =IF($L$44<=$D$60,0,IF($L$44<=$E$60,$L$44,$D$60)-$C$60) -> 0 | E66: =IF($L$44<=$E$60,0,IF($L$44>$E$60,$L$44,$E$60)-$E$60) -> 0 | F66: 0.75
A67: S 6 | B67: =IF($L$52<=$C$60,$L$52,$C$60) -> 0 | C67: =IF($L$52<=$C$60,0,IF($L$52<=$D$60,$L$52,$D$60)-$C$60) -> 0 | D67: =IF($L$52<=$D$60,0,IF($L$52<=$E$60,$L$52,$D$60)-$C$60) -> 0 | E67: =IF($L$52<=$E$60,0,IF($L$52>$E$60,$L$52,$E$60)-$E$60) -> 0 | F67: 0
A68: Total | B68: =SUM(B62:B67) -> 6.166666667 | C68: =SUM(C62:C67) -> 0.03125 | D68: =SUM(D62:D67) -> 0 | E68: =SUM(E62:E67) -> 0 | F68: 6.197916667
A71: Jours | B71: Repos | C71: Récup | D71: Jfg | E71: Vac | F71: Mal | G71: Vides | H71: Taf | I71: Jf Taf | J71: <11h
A72: S 1 | B72: =NbCellsCoul($D$5:$I$11,50)*0.25 -> 0.5 | C72: =NbCellsCoul($D$5:$I$11,42)*0.25 -> 0 | D72: =NbCellsCoul($D$5:$I$11,48)*0.25 -> 0 | E72: =NbCellsCoul($D$5:$I$11,44)*0.25 -> 0 | F72: =NbCellsCoul($D$5:$I$11,3)*0.25 -> 0 | G72: =+COUNTBLANK(E5:H11)/2 -> 2.5 | H72: =7-$G72 -> 4.5 | I72: =NbCellsCoul($D$5:$I$11,40)*0.25 -> 0.5 | J72: =SUM($O$6:$O$11) -> 0
A73: S 2 | B73: =NbCellsCoul($D$13:$I$19,50)*0.25 -> 2 | C73: =NbCellsCoul($D$13:$I$19,42)*0.25 -> 0 | D73: =NbCellsCoul($D$13:$I$19,48)*0.25 -> 0 | E73: =NbCellsCoul($D$13:$I$19,44)*0.25 -> 0 | F73: =NbCellsCoul($D$13:$I$19,3)*0.25 -> 0 | G73: =+COUNTBLANK(E13:H19)/2 -> 2 | H73: 5 | I73: =NbCellsCoul($D$13:$I$19,40)*0.25 -> 0 | J73: =SUM($O$13:$O$19) -> 0
A74: S 3 | B74: =NbCellsCoul($D$21:$I$27,50)*0.25 -> 2 | C74: =NbCellsCoul($D$21:$I$27,42)*0.25 -> 0.5 | D74: =NbCellsCoul($D$21:$I$27,48)*0.25 -> 0 | E74: =NbCellsCoul($D$21:$I$27,44)*0.25 -> 0 | F74: =NbCellsCoul($D$21:$I$27,3)*0.25 -> 0 | G74: =+COUNTBLANK(E21:H27)/2 -> 2.5 | H74: 4.5 | I74: =NbCellsCoul($D$21:$I$27,40)*0.25 -> 0 | J74: =SUM($O$21:$O$27) -> 0
A75: S 4 | B75: =NbCellsCoul($D$29:$I$35,50)*0.25 -> 2 | C75: =NbCellsCoul($D$29:$I$35,42)*0.25 -> 0 | D75: =NbCellsCoul($D$29:$I$35,48)*0.25 -> 0 | E75: =NbCellsCoul($D$29:$I$35,44)*0.25 -> 1 | F75: =NbCellsCoul($D$29:$I$35,3)*0.25 -> 0 | G75: =+COUNTBLANK(E29:H35)/2 -> 3 | H75: 4 | I75: =NbCellsCoul($D$29:$I$35,40)*0.25 -> 0 | J75: =SUM($O$29:$O$35) -> 1
A76: S 5 | B76: =NbCellsCoul($D$37:$I$43,50)*0.25 -> 2 | C76: =NbCellsCoul($D$37:$I$43,42)*0.25 -> 0 | D76: =NbCellsCoul($D$37:$I$43,48)*0.25 -> 0 | E76: =NbCellsCoul($D$37:$I$43,44)*0.25 -> 0 | F76: =NbCellsCoul($D$37:$I$43,3)*0.25 -> 0 | G76: =+COUNTBLANK(E37:H43)/2 -> 4 | H76: 3 | I76: =NbCellsCoul($D$37:$I$43,40)*0.25 -> 0 | J76: =SUM($O$37:$O$43) -> 0
A77: S 6 | B77: =NbCellsCoul($D$45:$I$51,50)*0.25 -> 0 | C77: =NbCellsCoul($D$45:$I$51,42)*0.25 -> 0 | D77: =NbCellsCoul($D$45:$I$51,48)*0.25 -> 0 | E77: =NbCellsCoul($D$45:$I$51,44)*0.25 -> 0 | F77: =NbCellsCoul($D$45:$I$51,3)*0.25 -> 0 | G77: =+COUNTBLANK(E45:H51)/2 -> 7 | H77: 0 | I77: =NbCellsCoul($D$45:$I$51,40)*0.25 -> 0 | J77: =SUM($O$45:$O$51) -> 0
A78: Total | B78: =SUM(B$72:B$77) -> 8.5 | C78: 0.5 | D78: 0 | E78: 1 | F78: =SUM(F$72:F$77) -> 0 | G78: =SUM(G$72:G$77) -> 21 | H78: =SUM(H$72:H$77) -> 21 | I78: =SUM(I$72:I$77) -> 0.5 | J78: =SUM(J$72:J$77) -> 1

Sheet Fév 14
D1: TEMPS DE TRAVAIL | S1: RÉCAPITULATIF | AE1: IMPÔTS
F2: =Données!G14 -> 12 | J2: =Données!C15 -> 2014
B3: Jour | D3: Midi | F3: Cumul Midi | G3: Repas | H3: Soir | J3: Cumul Soir | K3: Repas | L3: Totaux | M3: Total Repas
D4: Début | E4: Fin | H4: Début | I4: Fin | AF4: =VLOOKUP(F2,Données!E15:F26,2) -> Décembre | AG4: =J2 -> 2014
B5: =Données!I15-WEEKDAY(Données!I15-1)+1 -> 2014-12-01 | F5: =$E5-$D5+IF($D5>$E5,1) -> 0 | G5: =IF($D5<>"",IF($D5<Données!$C$2,1,0),0) -> 0 | J5: =$I5-$H5+IF($H5>$I5,1) -> 0 | K5: =IF($H5<>"",IF($H5<Données!$C$3,1,0),0) -> 0 | L5: =$F5+$J5-($G5+$K5)*("00:30") -> 0 | M5: =$G5+$K5 -> 0
B6: =B5+1 -> 2014-12-02 | F6: =$E6-$D6+IF($D6>$E6,1) -> 0 | G6: =IF($D6<>"",IF($D6<Données!$C$2,1,0),0) -> 0 | J6: =$I6-$H6+IF($H6>$I6,1) -> 0 | K6: =IF($H6<>"",IF($H6<Données!$C$3,1,0),0) -> 0 | L6: =$F6+$J6-($G6+$K6)*("00:30") -> 0 | M6: =$G6+$K6 -> 0 | N6: =$D6-$I5+IF($I5>$D6,1) -> 0 | O6: =IF($N6=Données!$F$12,0,IF($N6<Données!$F$11,1,0)) -> 0 | S6: Soit au total pour le mois de : | U6: =VLOOKUP(F2,Données!E15:F26,2) -> Décembre | V6: =J2 -> 2014
B7: =B6+1 -> 2014-12-03 | F7: 0 | G7: =IF($D7<>"",IF($D7<Données!$C$2,1,0),0) -> 0 | J7: 0 | K7: =IF($H7<>"",IF($H7<Données!$C$3,1,0),0) -> 0 | L7: 0 | M7: 0 | N7: =$D7-$I6+IF($I6>$D7,1) -> 0 | O7: =IF($N7=Données!$F$12,0,IF($N7<Données!$F$11,1,0)) -> 0
B8: 2014-12-04 | F8: 0 | G8: =IF($D8<>"",IF($D8<Données!$C$2,1,0),0) -> 0 | J8: 0 | K8: =IF($H8<>"",IF($H8<Données!$C$3,1,0),0) -> 0 | L8: 0 | M8: 0 | N8: =$D8-$I7+IF($I7>$D8,1) -> 0 | O8: =IF($N8=Données!$F$12,0,IF($N8<Données!$F$11,1,0)) -> 0 | AE8: Numéro Fiscal :
B9: 2014-12-05 | F9: 0 | G9: =IF($D9<>"",IF($D9<Données!$C$2,1,0),0) -> 0 | J9: 0 | K9: =IF($H9<>"",IF($H9<Données!$C$3,1,0),0) -> 0 | L9: 0 | M9: 0 | N9: 0 | O9: =IF($N9=Données!$F$12,0,IF($N9<Données!$F$11,1,0)) -> 0 | S9: Nombre de jours travaillés : | U9: =H78 -> 17.5 | AE9: MDP:
B10: 2014-12-06 | D10: 0.4895833333 | E10: 0.6145833333 | F10: 0.125 | G10: =IF($D10<>"",IF($D10<Données!$C$2,1,0),0) -> 0 | H10: 0.78125 | I10: 0.02083333333 | J10: 0.2395833333 | K10: =IF($H10<>"",IF($H10<Données!$C$3,1,0),0) -> 0 | L10: 0.3645833333 | M10: 0 | N10: =$D10-$I9+IF($I9>$D10,1) -> 0.4895833333 | O10: =IF($N10=Données!$F$12,0,IF($N10<Données!$F$11,1,0)) -> 0 | S10: Nombre de jours repos : | U10: =B78 -> 8.5
B11: 2014-12-07 | D11: 0.4895833333 | E11: 0.6458333333 | F11: 0.15625 | G11: =IF($D11<>"",IF($D11<Données!$C$2,1,0),0) -> 0 | H11: 0.78125 | I11: 0.9479166667 | J11: 0.1666666667 | K11: =IF($H11<>"",IF($H11<Données!$C$3,1,0),0) -> 0 | L11: 0.3229166667 | M11: 0 | N11: =$D11-$I10+IF($I10>$D11,1) -> 0.46875 | O11: =IF($N11=Données!$F$12,0,IF($N11<Données!$F$11,1,0)) -> 0 | S11: Nombre de jours récup : | U11: =C$78 -> 0 | AE11: Adresse domicile: | AF11: -
B12: Total Semaine | E12: =WEEKNUM(B5,21) -> 49 | F12: =SUM($F5:$F11) -> 0.28125 | G12: =G5+G6+G7+G8+G9+G10+G11 -> 0 | J12: =SUM(J5:J11) -> 0.40625 | K12: =K5+K6+K7+K8+K9+K10+K11 -> 0 | L12: =SUM(L5:L11) -> 0.6875 | M12: =SUM(M5:M11) -> 0 | O12: =SUM(O6:O11) -> 0 | S12: Nombre de jfg : | U12: =D$78 -> 0
B13: =B11+1 -> 2014-12-08 | D13: 0.5 | E13: 0.6041666667 | F13: =$E13-$D13+IF($D13>$E13,1) -> 0.1041666667 | G13: =IF($D13<>"",IF($D13<Données!$C$2,1,0),0) -> 0 | H13: 0.78125 | I13: 0.96875 | J13: =$I13-$H13+IF($H13>$I13,1) -> 0.1875 | K13: =IF($H13<>"",IF($H13<Données!$C$3,1,0),0) -> 0 | L13: =$F13+$J13-($G13+$K13)*("00:30") -> 0.2916666667 | M13: =$G13+$K13 -> 0 | N13: =$D13-$I11+IF($I11>$D13,1) -> 0.5520833333 | O13: =IF($N13=Données!$F$12,0,IF($N13<Données!$F$11,1,0)) -> 0 | S13: Nombre de jours de vacances : | U13: =E$78 -> 2
B14: =B13+1 -> 2014-12-09 | F14: =$E14-$D14+IF($D14>$E14,1) -> 0 | G14: =IF($D14<>"",IF($D14<Données!$C$2,1,0),0) -> 0 | J14: =$I14-$H14+IF($H14>$I14,1) -> 0 | K14: =IF($H14<>"",IF($H14<Données!$C$3,1,0),0) -> 0 | L14: =$F14+$J14-($G14+$K14)*("00:30") -> 0 | M14: =$G14+$K14 -> 0 | N14: =$D14-$I13+IF($I13>$D14,1) -> 0.03125 | O14: 0 | S14: Nombre de jours de maladie : | U14: =F$78 -> 0
B15: =B14+1 -> 2014-12-10 | F15: 0 | G15: =IF($D15<>"",IF($D15<Données!$C$2,1,0),0) -> 0 | J15: 0 | K15: =IF($H15<>"",IF($H15<Données!$C$3,1,0),0) -> 0 | L15: 0 | M15: 0 | N15: =$D15-$I14+IF($I14>$D15,1) -> 0 | O15: =IF($N15=Données!$F$12,0,IF($N15<Données!$F$11,1,0)) -> 0 | S15: Nombre jours fériées travaillés : | U15: =I78 -> 0 | AE15: Adresse lieu de travail: | AF15: -
B16: 2014-12-11 | D16: 0.4895833333 | E16: 0.625 | F16: 0.1354166667 | G16: =IF($D16<>"",IF($D16<Données!$C$2,1,0),0) -> 0 | H16: 0.78125 | I16: 0.9166666667 | J16: 0.1354166667 | K16: =IF($H16<>"",IF($H16<Données!$C$3,1,0),0) -> 0 | L16: 0.2708333333 | M16: 0 | N16: 0.4895833333 | O16: =IF($N16=Données!$F$12,0,IF($N16<Données!$F$11,1,0)) -> 0 | S16: Nombre de fois 11h de batement non respecté : | U16: =J78 -> 5
B17: 2014-12-12 | D17: 0.4895833333 | E17: 0.6354166667 | F17: 0.1458333333 | G17: =IF($D17<>"",IF($D17<Données!$C$2,1,0),0) -> 0 | H17: 0.78125 | I17: 0.01041666667 | J17: 0.2291666667 | K17: =IF($H17<>"",IF($H17<Données!$C$3,1,0),0) -> 0 | L17: 0.375 | M17: 0 | N17: 0.5729166667 | O17: =IF($N17=Données!$F$12,0,IF($N17<Données!$F$11,1,0)) -> 0
B18: 2014-12-13 | D18: 0.4895833333 | E18: 0.59375 | F18: 0.1041666667 | G18: =IF($D18<>"",IF($D18<Données!$C$2,1,0),0) -> 0 | H18: 0.78125 | I18: 0.04166666667 | J18: 0.2604166667 | K18: =IF($H18<>"",IF($H18<Données!$C$3,1,0),0) -> 0 | L18: 0.3645833333 | M18: 0 | N18: 0.4791666667 | O18: =IF($N18=Données!$F$12,0,IF($N18<Données!$F$11,1,0)) -> 0 | AE18: Distance ( Source Mappy) : | AF18: - | AG18: 7,4 KM
B19: 2014-12-14 | D19: 0.4895833333 | E19: 0.65625 | F19: 0.1666666667 | G19: =IF($D19<>"",IF($D19<Données!$C$2,1,0),0) -> 0 | H19: 0.78125 | I19: 0.8958333333 | J19: 0.1145833333 | K19: =IF($H19<>"",IF($H19<Données!$C$3,1,0),0) -> 0 | L19: 0.28125 | M19: 0 | N19: =$D19-$I18+IF($I18>$D19,1) -> 0.4479166667 | O19: =IF($N19=Données!$F$12,0,IF($N19<Données!$F$11,1,0)) -> 1 | U19: =SUM(L12+L20+L28+L36+L44+L52) -> 6.864583333 | V19: Heures effectués
B20: Total Semaine | E20: =WEEKNUM(B13,21) -> 50 | F20: =SUM($F13:$F19) -> 0.65625 | G20: =G13+G14+G15+G16+G17+G18+G19 -> 0 | J20: =SUM(J13:J19) -> 0.9270833333 | K20: =K13+K14+K15+K16+K17+K18+K19 -> 0 | L20: =SUM(L13:L19) -> 1.583333333 | M20: =SUM(M13:M19) -> 0 | O20: =SUM(O13:O19) -> 1 | U20: =IF(U19<N53,"- "&TEXT(ABS(N53-U19),"[hh]:mm"),U19-N53) -> - 04:15 | V20: Heures dues/supp | AE20: Nombre Aller-Retour : | AF20: - | AG20: =COUNT(E5:E11,I5:I11,E13:E19,I13:I19,E21:E27,I21:I27,E29:E35,I29:I35,E37:E43,I37:I43,E45:E51,I45:I51) -> 35
B21: =B19+1 -> 2014-12-15 | D21: 0.5 | E21: 0.625 | F21: =$E21-$D21+IF($D21>$E21,1) -> 0.125 | G21: =IF($D21<>"",IF($D21<Données!$C$2,1,0),0) -> 0 | H21: 0.7916666667 | I21: 0.01041666667 | J21: =$I21-$H21+IF($H21>$I21,1) -> 0.21875 | K21: =IF($H21<>"",IF($H21<Données!$C$3,1,0),0) -> 0 | L21: =$F21+$J21-($G21+$K21)*("00:30") -> 0.34375 | M21: =$G21+$K21 -> 0 | N21: =$D21-$I19+IF($I19>$D21,1) -> 0.6041666667 | O21: =IF($N21=Données!$F$12,0,IF($N21<Données!$F$11,1,0)) -> 0 | AE21: Km Parcourue : | AF21: - | AG21: =SUM(AG20*14.8) -> 518 | AH21: Km
B22: =B21+1 -> 2014-12-16 | F22: =$E22-$D22+IF($D22>$E22,1) -> 0 | G22: =IF($D22<>"",IF($D22<Données!$C$2,1,0),0) -> 0 | J22: =$I22-$H22+IF($H22>$I22,1) -> 0 | K22: =IF($H22<>"",IF($H22<Données!$C$3,1,0),0) -> 0 | L22: =$F22+$J22-($G22+$K22)*("00:30") -> 0 | M22: =$G22+$K22 -> 0 | N22: =$D22-$I21+IF($I21>$D22,1) -> 0.9895833333 | O22: =IF($N22=Données!$F$12,0,IF($N22<Données!$F$11,1,0)) -> 0 | AE22: Horodateur Payé : | AF22: - | AG22: 16.7
B23: =B22+1 -> 2014-12-17 | F23: 0 | G23: =IF($D23<>"",IF($D23<Données!$C$2,1,0),0) -> 0 | J23: 0 | K23: =IF($H23<>"",IF($H23<Données!$C$3,1,0),0) -> 0 | L23: 0 | M23: 0 | N23: =$D23-$I22+IF($I22>$D23,1) -> 0 | O23: =IF($N23=Données!$F$12,0,IF($N23<Données!$F$11,1,0)) -> 0 | S23: Dont : | T23: - | U23: =$B$68 -> 6.020833333 | V23: Heures à taux normal ( 35h ) | AE23: Achat divers pour le travail : | AF23: -
B24: 2014-12-18 | D24: 0.4895833333 | E24: 0.6145833333 | F24: 0.125 | G24: =IF($D24<>"",IF($D24<Données!$C$2,1,0),0) -> 0 | H24: 0.78125 | I24: 0.9479166667 | J24: 0.1666666667 | K24: =IF($H24<>"",IF($H24<Données!$C$3,1,0),0) -> 0 | L24: 0.2916666667 | M24: 0 | N24: 0.4895833333 | O24: =IF($N24=Données!$F$12,0,IF($N24<Données!$F$11,1,0)) -> 0 | T24: - | U24: =$C$68 -> 0.4583333333 | V24: Heures en HS 10% ( 35h à 39h ) | AF24: -
B25: 2014-12-19 | D25: 0.4895833333 | E25: 0.625 | F25: 0.1354166667 | G25: =IF($D25<>"",IF($D25<Données!$C$2,1,0),0) -> 0 | H25: 0.7708333333 | I25: 0.0625 | J25: 0.2916666667 | K25: 0 | L25: 0.4270833333 | M25: 0 | N25: 0.5416666667 | O25: =IF($N25=Données!$F$12,0,IF($N25<Données!$F$11,1,0)) -> 0 | T25: - | U25: =$D$68 -> 0.28125 | V25: Heures en HS 20% (39h à 43h ) | AF25: -
B26: 2014-12-20 | D26: 0.4895833333 | E26: 0.6458333333 | F26: 0.15625 | G26: =IF($D26<>"",IF($D26<Données!$C$2,1,0),0) -> 0 | H26: 0.78125 | I26: 0.04166666667 | J26: 0.2604166667 | K26: =IF($H26<>"",IF($H26<Données!$C$3,1,0),0) -> 0 | L26: 0.4166666667 | M26: 0 | N26: =$D26-$I25+IF($I25>$D26,1) -> 0.4270833333 | O26: =IF($N26=Données!$F$12,0,IF($N26<Données!$F$11,1,0)) -> 1 | T26: - | U26: =$E$68 -> 0.1041666667 | V26: Heures en HS 40% ( 43h et plus ) | AF26: -
B27: 2014-12-21 | D27: 0.4895833333 | E27: 0.7083333333 | F27: 0.21875 | G27: =IF($D27<>"",IF($D27<Données!$C$2,1,0),0) -> 0 | H27: 0.78125 | I27: 0.9791666667 | J27: 0.1979166667 | K27: =IF($H27<>"",IF($H27<Données!$C$3,1,0),0) -> 0 | L27: 0.4166666667 | M27: 0 | N27: 0.4479166667 | O27: =IF($N27=Données!$F$12,0,IF($N27<Données!$F$11,1,0)) -> 1 | T27: - | U27: =SUM(M12+M20+M28+M36+M44+M52) -> 0 | V27: Nombre de repas | AF27: -
B28: Total Semaine | E28: =WEEKNUM(B21,21) -> 51 | F28: =SUM($F21:$F27) -> 0.7604166667 | G28: =G21+G22+G23+G24+G25+G26+G27 -> 0 | J28: =SUM(J21:J27) -> 1.135416667 | K28: =K21+K22+K23+K24+K25+K26+K27 -> 0 | L28: =SUM(L21:L27) -> 1.895833333 | M28: =SUM(M21:M27) -> 0 | O28: =SUM(O21:O27) -> 2 | AF28: -
B29: =B27+1 -> 2014-12-22 | D29: 0.4895833333 | E29: 0.625 | F29: =$E29-$D29+IF($D29>$E29,1) -> 0.1354166667 | G29: =IF($D29<>"",IF($D29<Données!$C$2,1,0),0) -> 0 | H29: 0.78125 | I29: 0.9791666667 | J29: =$I29-$H29+IF($H29>$I29,1) -> 0.1979166667 | K29: =IF($H29<>"",IF($H29<Données!$C$3,1,0),0) -> 0 | L29: =$F29+$J29-($G29+$K29)*("00:30") -> 0.3333333333 | M29: =$G29+$K29 -> 0 | N29: =$D29-$I27+IF($I27>$D29,1) -> 0.5104166667 | O29: =IF($N29=Données!$F$12,0,IF($N29<Données!$F$11,1,0)) -> 0 | S29: Heure fiche de paie: | AF29: -
B30: =B29+1 -> 2014-12-23 | F30: =$E30-$D30+IF($D30>$E30,1) -> 0 | G30: =IF($D30<>"",IF($D30<Données!$C$2,1,0),0) -> 0 | J30: =$I30-$H30+IF($H30>$I30,1) -> 0 | K30: =IF($H30<>"",IF($H30<Données!$C$3,1,0),0) -> 0 | L30: =$F30+$J30-($G30+$K30)*("00:30") -> 0 | M30: =$G30+$K30 -> 0 | N30: =$D30-$I29+IF($I29>$D30,1) -> 0.02083333333 | O30: 0 | AF30: -
B31: =B30+1 -> 2014-12-24 | F31: 0 | G31: =IF($D31<>"",IF($D31<Données!$C$2,1,0),0) -> 0 | J31: 0 | K31: =IF($H31<>"",IF($H31<Données!$C$3,1,0),0) -> 0 | L31: 0 | M31: 0 | N31: =$D31-$I30+IF($I30>$D31,1) -> 0 | O31: =IF($N31=Données!$F$12,0,IF($N31<Données!$F$11,1,0)) -> 0 | S31: Dont : | T31: - | U31: 6.319444444 | V31: Heures à taux normal | AF31: -
B32: 2014-12-25 | F32: 0 | G32: =IF($D32<>"",IF($D32<Données!$C$2,1,0),0) -> 0 | J32: 0 | K32: =IF($H32<>"",IF($H32<Données!$C$3,1,0),0) -> 0 | L32: 0.3229166667 | M32: 0 | N32: 0 | O32: =IF($N32=Données!$F$12,0,IF($N32<Données!$F$11,1,0)) -> 0 | T32: - | U32: 0.73125 | V32: Heures en HS 10% | AF32: -
B33: 2014-12-26 | F33: 0 | G33: =IF($D33<>"",IF($D33<Données!$C$2,1,0),0) -> 0 | J33: 0 | K33: =IF($H33<>"",IF($H33<Données!$C$3,1,0),0) -> 0 | L33: 0.3229166667 | M33: 0 | N33: 0 | O33: =IF($N33=Données!$F$12,0,IF($N33<Données!$F$11,1,0)) -> 0 | T33: - | U33: 0 | V33: Heures en HS 20%
B34: 2014-12-27 | D34: 0.4895833333 | E34: 0.6354166667 | F34: 0.1458333333 | G34: =IF($D34<>"",IF($D34<Données!$C$2,1,0),0) -> 0 | H34: 0.78125 | I34: 0.05208333333 | J34: 0.2708333333 | K34: =IF($H34<>"",IF($H34<Données!$C$3,1,0),0) -> 0 | L34: 0.4166666667 | M34: 0 | N34: 0.4895833333 | O34: =IF($N34=Données!$F$12,0,IF($N34<Données!$F$11,1,0)) -> 0 | T34: - | U34: 0 | V34: Heures en HS 40% | AE34: Total dépenses: | AF34: - | AG34: =SUM(AG22:AG32) -> 16.7
B35: 2014-12-28 | D35: 0.4895833333 | E35: 0.6354166667 | F35: 0.1458333333 | G35: =IF($D35<>"",IF($D35<Données!$C$2,1,0),0) -> 0 | H35: 0.78125 | I35: 0.9791666667 | J35: 0.1979166667 | K35: =IF($H35<>"",IF($H35<Données!$C$3,1,0),0) -> 0 | L35: 0.34375 | M35: 0 | N35: 0.4375 | O35: =IF($N35=Données!$F$12,0,IF($N35<Données!$F$11,1,0)) -> 1 | T35: - | U35: 0 | V35: Nombre de repas
B36: Total Semaine | E36: =WEEKNUM(B29,21) -> 52 | F36: =SUM($F29:$F35) -> 0.4270833333 | G36: =G29+G30+G31+G32+G33+G34+G35 -> 0 | J36: =SUM(J29:J35) -> 0.6666666667 | K36: =K29+K30+K31+K32+K33+K34+K35 -> 0 | L36: =SUM(L29:L35) -> 1.739583333 | M36: =SUM(M29:M35) -> 0 | O36: =SUM(O29:O35) -> 1
B37: =B35+1 -> 2014-12-29 | D37: 0.4895833333 | E37: 0.6145833333 | F37: =$E37-$D37+IF($D37>$E37,1) -> 0.125 | G37: =IF($D37<>"",IF($D37<Données!$C$2,1,0),0) -> 0 | H37: 0.78125 | I37: 0 | J37: =$I37-$H37+IF($H37>$I37,1) -> 0.21875 | K37: =IF($H37<>"",IF($H37<Données!$C$3,1,0),0) -> 0 | L37: =$F37+$J37-($G37+$K37)*("00:30") -> 0.34375 | M37: =$G37+$K37 -> 0 | N37: =$D37-$I35+IF($I35>$D37,1) -> 0.5104166667 | O37: =IF($N37=Données!$F$12,0,IF($N37<Données!$F$11,1,0)) -> 0 | S37: Différence:
B38: =B37+1 -> 2014-12-30 | F38: =$E38-$D38+IF($D38>$E38,1) -> 0 | G38: =IF($D38<>"",IF($D38<Données!$C$2,1,0),0) -> 0 | J38: =$I38-$H38+IF($H38>$I38,1) -> 0 | K38: =IF($H38<>"",IF($H38<Données!$C$3,1,0),0) -> 0 | L38: =$F38+$J38-($G38+$K38)*("00:30") -> 0 | M38: =$G38+$K38 -> 0 | N38: =$D38-$I37+IF($I37>$D38,1) -> 0 | O38: =IF($N38=Données!$F$12,0,IF($N38<Données!$F$11,1,0)) -> 0
B39: =B38+1 -> 2014-12-31 | F39: 0 | G39: =IF($D39<>"",IF($D39<Données!$C$2,1,0),0) -> 0 | J39: 0 | K39: =IF($H39<>"",IF($H39<Données!$C$3,1,0),0) -> 0 | L39: 0 | M39: 0 | N39: =$D39-$I38+IF($I38>$D39,1) -> 0 | O39: =IF($N39=Données!$F$12,0,IF($N39<Données!$F$11,1,0)) -> 0 | S39: Dont : | T39: - | U39: -7:10 | V39: Heures à taux normal
B40: 2015-01-01 | D40: 0.4895833333 | E40: 0.625 | F40: 0.1354166667 | G40: =IF($D40<>"",IF($D40<Données!$C$2,1,0),0) -> 0 | H40: 0.78125 | I40: 0.9791666667 | J40: 0.1979166667 | K40: =IF($H40<>"",IF($H40<Données!$C$3,1,0),0) -> 0 | L40: 0.3333333333 | M40: 0 | N40: 0.4895833333 | O40: =IF($N40=Données!$F$12,0,IF($N40<Données!$F$11,1,0)) -> 0 | T40: - | U40: -6:33 | V40: Heures en HS 10%
B41: 2015-01-02 | F41: 0 | G41: =IF($D41<>"",IF($D41<Données!$C$2,1,0),0) -> 0 | H41: 0.78125 | I41: 0.0625 | J41: 0.28125 | K41: =IF($H41<>"",IF($H41<Données!$C$3,1,0),0) -> 0 | L41: 0.28125 | M41: 0 | N41: 0.02083333333 | O41: 1 | T41: - | U41: =$U25-$U33+IF($U33>$U25,1) -> 0.28125 | V41: Heures en HS 20%
B42: 2015-01-03 | F42: 0 | G42: =IF($D42<>"",IF($D42<Données!$C$2,1,0),0) -> 0 | J42: 0 | K42: =IF($H42<>"",IF($H42<Données!$C$3,1,0),0) -> 0 | L42: 0 | M42: 0 | N42: 0.9375 | O42: =IF($N42=Données!$F$12,0,IF($N42<Données!$F$11,1,0)) -> 0 | T42: - | U42: =$U26-$U34+IF($U34>$U26,1) -> 0.1041666667 | V42: Heures en HS 40%
B43: 2015-01-04 | F43: 0 | G43: =IF($D43<>"",IF($D43<Données!$C$2,1,0),0) -> 0 | J43: 0 | K43: =IF($H43<>"",IF($H43<Données!$C$3,1,0),0) -> 0 | L43: 0 | M43: 0 | N43: 0 | O43: =IF($N43=Données!$F$12,0,IF($N43<Données!$F$11,1,0)) -> 0 | T43: - | U43: =SUM(U35-U27) -> 0 | V43: Nombre de repas
B44: Total Semaine | E44: =WEEKNUM(B37,21) -> 1 | F44: =SUM($F37:$F43) -> 0.2604166667 | G44: =G37+G38+G39+G40+G41+G42+G43 -> 0 | J44: =SUM(J37:J43) -> 0.6979166667 | K44: =K37+K38+K39+K40+K41+K42+K43 -> 0 | L44: =SUM(L37:L43) -> 0.9583333333 | M44: =SUM(M37:M43) -> 0 | O44: =SUM(O37:O43) -> 1
B45: =B43+1 -> 2015-01-05 | F45: =$E45-$D45+IF($D45>$E45,1) -> 0 | G45: =IF($D45<>"",IF($D45<Données!$C$2,1,0),0) -> 0 | J45: =$I45-$H45+IF($H45>$I45,1) -> 0 | K45: =IF($H45<>"",IF($H45<Données!$C$3,1,0),0) -> 0 | L45: =$F45+$J45-($G45+$K45)*("00:30") -> 0 | M45: =$G45+$K45 -> 0 | N45: =$D45-$I43+IF($I43>$D45,1) -> 0 | O45: =IF($N45=Données!$F$12,0,IF($N45<Données!$F$11,1,0)) -> 0
B46: =B45+1 -> 2015-01-06 | F46: 0 | G46: =IF($D46<>"",IF($D46<Données!$C$2,1,0),0) -> 0 | J46: =$I46-$H46+IF($H46>$I46,1) -> 0 | K46: =IF($H46<>"",IF($H46<Données!$C$3,1,0),0) -> 0 | L46: =$F46+$J46-($G46+$K46)*("00:30") -> 0 | M46: =$G46+$K46 -> 0 | N46: =$D46-$I45+IF($I45>$D46,1) -> 0 | O46: =IF($N46=Données!$F$12,0,IF($N46<Données!$F$11,1,0)) -> 0
B47: =B46+1 -> 2015-01-07 | F47: 0 | G47: =IF($D47<>"",IF($D47<Données!$C$2,1,0),0) -> 0 | J47: 0 | K47: =IF($H47<>"",IF($H47<Données!$C$3,1,0),0) -> 0 | L47: 0 | M47: 0 | N47: =$D47-$I46+IF($I46>$D47,1) -> 0 | O47: =IF($N47=Données!$F$12,0,IF($N47<Données!$F$11,1,0)) -> 0
B48: 2015-01-08 | F48: 0 | G48: =IF($D48<>"",IF($D48<Données!$C$2,1,0),0) -> 0 | J48: 0 | K48: =IF($H48<>"",IF($H48<Données!$C$3,1,0),0) -> 0 | L48: 0 | M48: 0 | N48: 0 | O48: =IF($N48=Données!$F$12,0,IF($N48<Données!$F$11,1,0)) -> 0
B49: 2015-01-09 | F49: 0 | G49: =IF($D49<>"",IF($D49<Données!$C$2,1,0),0) -> 0 | J49: 0 | K49: =IF($H49<>"",IF($H49<Données!$C$3,1,0),0) -> 0 | L49: 0 | M49: 0 | N49: 0 | O49: =IF($N49=Données!$F$12,0,IF($N49<Données!$F$11,1,0)) -> 0
B50: 2015-01-10 | F50: 0 | G50: =IF($D50<>"",IF($D50<Données!$C$2,1,0),0) -> 0 | J50: 0 | K50: =IF($H50<>"",IF($H50<Données!$C$3,1,0),0) -> 0 | L50: 0 | M50: 0 | N50: 0 | O50: =IF($N50=Données!$F$12,0,IF($N50<Données!$F$11,1,0)) -> 0
B51: 2015-01-11 | F51: 0 | G51: =IF($D51<>"",IF($D51<Données!$C$2,1,0),0) -> 0 | J51: 0 | K51: =IF($H51<>"",IF($H51<Données!$C$3,1,0),0) -> 0 | L51: 0 | M51: 0 | N51: 0 | O51: =IF($N51=Données!$F$12,0,IF($N51<Données!$F$11,1,0)) -> 0
B52: Total semaine | E52: =WEEKNUM(B45,21) -> 2 | F52: =SUM($F45:$F51) -> 0 | G52: =G45+G46+G47+G48+G49+G50+G51 -> 0 | J52: =SUM(J45:J51) -> 0 | K52: =K45+K46+K47+K48+K49+K50+K51 -> 0 | L52: =SUM(L45:L51) -> 0 | M52: =SUM(M45:M51) -> 0 | O52: =SUM(O45:O51) -> 0
N53: 7.041666667
L54: =CodeCouleur(M54) -> 50 | N54: REPOS
L55: =CodeCouleur(M55) -> 42 | N55: Récup
L56: 48 | N56: JFG
L57: 44 | N57: VAC
L58: 3 | N58: MAL
L59: =CodeCouleur(M59) -> 40 | N59: Jf Taf
A60: Heures | C60: 1.458333333 | D60: 1.625 | E60: 1.791666667 | F60: Total
A61: Taux | B61: 1 | C61: 1.1 | D61: 1.2 | E61: 1.4
A62: S 1 | B62: =IF($L$12<=$C$60,$L$12,$C$60) -> 0.6875 | C62: =IF($L$12<=$C$60,0,IF($L$12<=$D$60,$L$12,$D$60)-$C$60) -> 0 | D62: =IF($L$12<=$D$60,0,IF($L$12<=$E$60,$L$12,$D$60)-$C$60) -> 0 | E62: =IF($L$12<=$E$60,0,IF($L$12>$E$60,$L$12,$E$60)-$E$60) -> 0 | F62: =B62+C62+D62+E62 -> 0.6875
A63: S 2 | B63: =IF($L$20<=$C$60,$L$20,$C$60) -> 1.458333333 | C63: =IF($L$20<=$C$60,0,IF($L$20<=$D$60,$L$20,$D$60)-$C$60) -> 0.125 | D63: =IF($L$20<=$D$60,0,IF($L$20<=$E$60,$L$20,$D$60)-$C$60) -> 0 | E63: =IF($L$20<=$E$60,0,IF($L$20>$E$60,$L$20,$E$60)-$E$60) -> 0 | F63: 1.583333333
A64: S 3 | B64: =IF($L$28<=$C$60,$L$28,$C$60) -> 1.458333333 | C64: =IF($L$28<=$C$60,0,IF($L$28<=$D$60,$L$28,$D$60)-$C$60) -> 0.1666666667 | D64: =IF($L$28<=$D$60,0,IF($L$28<=$E$60,$L$28,$D$60)-$C$60) -> 0.1666666667 | E64: =IF($L$28<=$E$60,0,IF($L$28>$E$60,$L$28,$E$60)-$E$60) -> 0.1041666667 | F64: 1.895833333
A65: S 4 | B65: =IF($L$36<=$C$60,$L$36,$C$60) -> 1.458333333 | C65: =IF($L$36<=$C$60,0,IF($L$36<=$D$60,$L$36,$D$60)-$C$60) -> 0.1666666667 | D65: 0.1145833333 | E65: =IF($L$36<=$E$60,0,IF($L$36>$E$60,$L$36,$E$60)-$E$60) -> 0 | F65: 1.739583333
A66: S 5 | B66: =IF($L$44<=$C$60,$L$44,$C$60) -> 0.9583333333 | C66: =IF($L$44<=$C$60,0,IF($L$44<=$D$60,$L$44,$D$60)-$C$60) -> 0 | D66: =IF($L$44<=$D$60,0,IF($L$44<=$E$60,$L$44,$D$60)-$C$60) -> 0 | E66: =IF($L$44<=$E$60,0,IF($L$44>$E$60,$L$44,$E$60)-$E$60) -> 0 | F66: 0.9583333333
A67: S 6 | B67: =IF($L$52<=$C$60,$L$52,$C$60) -> 0 | C67: =IF($L$52<=$C$60,0,IF($L$52<=$D$60,$L$52,$D$60)-$C$60) -> 0 | D67: =IF($L$52<=$D$60,0,IF($L$52<=$E$60,$L$52,$D$60)-$C$60) -> 0 | E67: =IF($L$52<=$E$60,0,IF($L$52>$E$60,$L$52,$E$60)-$E$60) -> 0 | F67: 0
A68: Total | B68: =SUM(B62:B67) -> 6.020833333 | C68: =SUM(C62:C67) -> 0.4583333333 | D68: =SUM(D62:D67) -> 0.28125 | E68: =SUM(E62:E67) -> 0.1041666667 | F68: 6.864583333
A71: Jours | B71: Repos | C71: Récup | D71: Jfg | E71: Vac | F71: Mal | G71: Vides | H71: Taf | I71: Jf Taf | J71: <11h
A72: S 1 | B72: =NbCellsCoul($D$5:$I$11,50)*0.25 -> 0 | C72: =NbCellsCoul($D$5:$I$11,42)*0.25 -> 0 | D72: =NbCellsCoul($D$5:$I$11,48)*0.25 -> 0 | E72: =NbCellsCoul($D$5:$I$11,44)*0.25 -> 0 | F72: =NbCellsCoul($D$5:$I$11,3)*0.25 -> 0 | G72: =+COUNTBLANK(E5:H11)/2 -> 5 | H72: =7-$G72 -> 2 | I72: =NbCellsCoul($D$5:$I$11,40)*0.25 -> 0 | J72: =SUM($O$6:$O$11) -> 0
A73: S 2 | B73: =NbCellsCoul($D$13:$I$19,50)*0.25 -> 2 | C73: =NbCellsCoul($D$13:$I$19,42)*0.25 -> 0 | D73: =NbCellsCoul($D$13:$I$19,48)*0.25 -> 0 | E73: =NbCellsCoul($D$13:$I$19,44)*0.25 -> 0 | F73: =NbCellsCoul($D$13:$I$19,3)*0.25 -> 0 | G73: =+COUNTBLANK(E13:H19)/2 -> 2 | H73: 5 | I73: =NbCellsCoul($D$13:$I$19,40)*0.25 -> 0 | J73: =SUM($O$13:$O$19) -> 1
A74: S 3 | B74: =NbCellsCoul($D$21:$I$27,50)*0.25 -> 2 | C74: =NbCellsCoul($D$21:$I$27,42)*0.25 -> 0 | D74: =NbCellsCoul($D$21:$I$27,48)*0.25 -> 0 | E74: =NbCellsCoul($D$21:$I$27,44)*0.25 -> 0 | F74: =NbCellsCoul($D$21:$I$27,3)*0.25 -> 0 | G74: =+COUNTBLANK(E21:H27)/2 -> 2 | H74: 5 | I74: =NbCellsCoul($D$21:$I$27,40)*0.25 -> 0 | J74: =SUM($O$21:$O$27) -> 2
A75: S 4 | B75: =NbCellsCoul($D$29:$I$35,50)*0.25 -> 2 | C75: =NbCellsCoul($D$29:$I$35,42)*0.25 -> 0 | D75: =NbCellsCoul($D$29:$I$35,48)*0.25 -> 0 | E75: =NbCellsCoul($D$29:$I$35,44)*0.25 -> 2 | F75: =NbCellsCoul($D$29:$I$35,3)*0.25 -> 0 | G75: =+COUNTBLANK(E29:H35)/2 -> 4 | H75: 3 | I75: =NbCellsCoul($D$29:$I$35,40)*0.25 -> 0 | J75: =SUM($O$29:$O$35) -> 1
A76: S 5 | B76: =NbCellsCoul($D$37:$I$43,50)*0.25 -> 2.5 | C76: =NbCellsCoul($D$37:$I$43,42)*0.25 -> 0 | D76: =NbCellsCoul($D$37:$I$43,48)*0.25 -> 0 | E76: =NbCellsCoul($D$37:$I$43,44)*0.25 -> 0 | F76: =NbCellsCoul($D$37:$I$43,3)*0.25 -> 0 | G76: =+COUNTBLANK(E37:H43)/2 -> 4.5 | H76: 2.5 | I76: =NbCellsCoul($D$37:$I$43,40)*0.25 -> 0 | J76: =SUM($O$37:$O$43) -> 1
A77: S 6 | B77: =NbCellsCoul($D$45:$I$51,50)*0.25 -> 0 | C77: =NbCellsCoul($D$45:$I$51,42)*0.25 -> 0 | D77: =NbCellsCoul($D$45:$I$51,48)*0.25 -> 0 | E77: =NbCellsCoul($D$45:$I$51,44)*0.25 -> 0 | F77: =NbCellsCoul($D$45:$I$51,3)*0.25 -> 0 | G77: =+COUNTBLANK(E45:H51)/2 -> 7 | H77: 0 | I77: =NbCellsCoul($D$45:$I$51,40)*0.25 -> 0 | J77: =SUM($O$45:$O$51) -> 0
A78: Total | B78: =SUM(B$72:B$77) -> 8.5 | C78: 0 | D78: 0 | E78: 2 | F78: =SUM(F$72:F$77) -> 0 | G78: =SUM(G$72:G$77) -> 24.5 | H78: =SUM(H$72:H$77) -> 17.5 | I78: =SUM(I$72:I$77) -> 0 | J78: =SUM(J$72:J$77) -> 5

Sheet Mars 14
D1: TEMPS DE TRAVAIL | S1: RÉCAPITULATIF | AE1: IMPÔTS
F2: =Données!G14 -> 12 | J2: =Données!C15 -> 2014
B3: Jour | D3: Midi | F3: Cumul Midi | G3: Repas | H3: Soir | J3: Cumul Soir | K3: Repas | L3: Totaux | M3: Total Repas
D4: Début | E4: Fin | H4: Début | I4: Fin | AF4: =VLOOKUP(F2,Données!E15:F26,2) -> Décembre | AG4: =J2 -> 2014
B5: =Données!I15-WEEKDAY(Données!I15-1)+1 -> 2014-12-01 | F5: =$E5-$D5+IF($D5>$E5,1) -> 0 | G5: =IF($D5<>"",IF($D5<Données!$C$2,1,0),0) -> 0 | J5: =$I5-$H5+IF($H5>$I5,1) -> 0 | K5: =IF($H5<>"",IF($H5<Données!$C$3,1,0),0) -> 0 | L5: =$F5+$J5-($G5+$K5)*("00:30") -> 0 | M5: =$G5+$K5 -> 0
B6: =B5+1 -> 2014-12-02 | F6: =$E6-$D6+IF($D6>$E6,1) -> 0 | G6: =IF($D6<>"",IF($D6<Données!$C$2,1,0),0) -> 0 | J6: =$I6-$H6+IF($H6>$I6,1) -> 0 | K6: =IF($H6<>"",IF($H6<Données!$C$3,1,0),0) -> 0 | L6: =$F6+$J6-($G6+$K6)*("00:30") -> 0 | M6: =$G6+$K6 -> 0 | N6: =$D6-$I5+IF($I5>$D6,1) -> 0 | O6: =IF($N6=Données!$F$12,0,IF($N6<Données!$F$11,1,0)) -> 0 | S6: Soit au total pour le mois de : | U6: =VLOOKUP(F2,Données!E15:F26,2) -> Décembre | V6: =J2 -> 2014
B7: =B6+1 -> 2014-12-03 | F7: 0 | G7: =IF($D7<>"",IF($D7<Données!$C$2,1,0),0) -> 0 | J7: 0 | K7: =IF($H7<>"",IF($H7<Données!$C$3,1,0),0) -> 0 | L7: 0 | M7: 0 | N7: =$D7-$I6+IF($I6>$D7,1) -> 0 | O7: =IF($N7=Données!$F$12,0,IF($N7<Données!$F$11,1,0)) -> 0
B8: 2014-12-04 | F8: 0 | G8: =IF($D8<>"",IF($D8<Données!$C$2,1,0),0) -> 0 | J8: 0 | K8: =IF($H8<>"",IF($H8<Données!$C$3,1,0),0) -> 0 | L8: 0 | M8: 0 | N8: =$D8-$I7+IF($I7>$D8,1) -> 0 | O8: =IF($N8=Données!$F$12,0,IF($N8<Données!$F$11,1,0)) -> 0 | AE8: Numéro Fiscal :
B9: 2014-12-05 | F9: 0 | G9: =IF($D9<>"",IF($D9<Données!$C$2,1,0),0) -> 0 | J9: 0 | K9: =IF($H9<>"",IF($H9<Données!$C$3,1,0),0) -> 0 | L9: 0 | M9: 0 | N9: 0 | O9: =IF($N9=Données!$F$12,0,IF($N9<Données!$F$11,1,0)) -> 0 | S9: Nombre de jours travaillés : | U9: =H78 -> 12 | AE9: MDP:
B10: 2014-12-06 | D10: 0.4895833333 | E10: 0.625 | F10: 0.1354166667 | G10: =IF($D10<>"",IF($D10<Données!$C$2,1,0),0) -> 0 | H10: 0.78125 | I10: 0.05208333333 | J10: 0.2708333333 | K10: =IF($H10<>"",IF($H10<Données!$C$3,1,0),0) -> 0 | L10: 0.40625 | M10: 0 | N10: =$D10-$I9+IF($I9>$D10,1) -> 0.4895833333 | O10: =IF($N10=Données!$F$12,0,IF($N10<Données!$F$11,1,0)) -> 0 | S10: Nombre de jours repos : | U10: =B78 -> 8
B11: 2014-12-07 | D11: 0.4895833333 | E11: 0.6770833333 | F11: 0.1875 | G11: =IF($D11<>"",IF($D11<Données!$C$2,1,0),0) -> 0 | H11: 0.78125 | I11: 0.9583333333 | J11: 0.1770833333 | K11: =IF($H11<>"",IF($H11<Données!$C$3,1,0),0) -> 0 | L11: 0.3645833333 | M11: 0 | N11: =$D11-$I10+IF($I10>$D11,1) -> 0.4375 | O11: =IF($N11=Données!$F$12,0,IF($N11<Données!$F$11,1,0)) -> 1 | S11: Nombre de jours récup : | U11: =C$78 -> 1 | AE11: Adresse domicile: | AF11: -
B12: Total Semaine | E12: =WEEKNUM(B5,21) -> 49 | F12: =SUM($F5:$F11) -> 0.3229166667 | G12: =G5+G6+G7+G8+G9+G10+G11 -> 0 | J12: =SUM(J5:J11) -> 0.4479166667 | K12: =K5+K6+K7+K8+K9+K10+K11 -> 0 | L12: =SUM(L5:L11) -> 0.7708333333 | M12: =SUM(M5:M11) -> 0 | O12: =SUM(O6:O11) -> 1 | S12: Nombre de jfg : | U12: =D$78 -> 0
B13: =B11+1 -> 2014-12-08 | D13: 0.4895833333 | E13: 0.65625 | F13: =$E13-$D13+IF($D13>$E13,1) -> 0.1666666667 | G13: =IF($D13<>"",IF($D13<Données!$C$2,1,0),0) -> 0 | H13: 0.78125 | I13: 0.9895833333 | J13: =$I13-$H13+IF($H13>$I13,1) -> 0.2083333333 | K13: =IF($H13<>"",IF($H13<Données!$C$3,1,0),0) -> 0 | L13: =$F13+$J13-($G13+$K13)*("00:30") -> 0.375 | M13: =$G13+$K13 -> 0 | N13: =$D13-$I11+IF($I11>$D13,1) -> 0.53125 | O13: =IF($N13=Données!$F$12,0,IF($N13<Données!$F$11,1,0)) -> 0 | S13: Nombre de jours de vacances : | U13: =E$78 -> 10
B14: =B13+1 -> 2014-12-09 | F14: =$E14-$D14+IF($D14>$E14,1) -> 0 | G14: =IF($D14<>"",IF($D14<Données!$C$2,1,0),0) -> 0 | J14: =$I14-$H14+IF($H14>$I14,1) -> 0 | K14: =IF($H14<>"",IF($H14<Données!$C$3,1,0),0) -> 0 | L14: =$F14+$J14-($G14+$K14)*("00:30") -> 0 | M14: =$G14+$K14 -> 0 | N14: =$D14-$I13+IF($I13>$D14,1) -> 0.01041666667 | O14: 0 | S14: Nombre de jours de maladie : | U14: =F$78 -> 0
B15: =B14+1 -> 2014-12-10 | F15: 0 | G15: =IF($D15<>"",IF($D15<Données!$C$2,1,0),0) -> 0 | J15: 0 | K15: =IF($H15<>"",IF($H15<Données!$C$3,1,0),0) -> 0 | L15: 0 | M15: 0 | N15: =$D15-$I14+IF($I14>$D15,1) -> 0 | O15: =IF($N15=Données!$F$12,0,IF($N15<Données!$F$11,1,0)) -> 0 | S15: Nombre jours fériées travaillés : | U15: =I78 -> 0 | AE15: Adresse lieu de travail: | AF15: -
B16: 2014-12-11 | D16: 0.4895833333 | E16: 0.5833333333 | F16: 0.09375 | G16: =IF($D16<>"",IF($D16<Données!$C$2,1,0),0) -> 0 | H16: 0.78125 | I16: 0.9375 | J16: 0.15625 | K16: =IF($H16<>"",IF($H16<Données!$C$3,1,0),0) -> 0 | L16: 0.25 | M16: 0 | N16: 0.4895833333 | O16: =IF($N16=Données!$F$12,0,IF($N16<Données!$F$11,1,0)) -> 0 | S16: Nombre de fois 11h de batement non respecté : | U16: =J78 -> 1
B17: 2014-12-12 | F17: 0 | G17: =IF($D17<>"",IF($D17<Données!$C$2,1,0),0) -> 0 | H17: 0.78125 | I17: 0.9583333333 | J17: 0.1770833333 | K17: =IF($H17<>"",IF($H17<Données!$C$3,1,0),0) -> 0 | L17: 0.1770833333 | M17: 0 | N17: 0.0625 | O17: 0
B18: 2014-12-13 | D18: 0.4895833333 | E18: 0.625 | F18: 0.1354166667 | G18: =IF($D18<>"",IF($D18<Données!$C$2,1,0),0) -> 0 | H18: 0.78125 | I18: 0.9791666667 | J18: 0.1979166667 | K18: =IF($H18<>"",IF($H18<Données!$C$3,1,0),0) -> 0 | L18: 0.3333333333 | M18: 0 | N18: 0.53125 | O18: =IF($N18=Données!$F$12,0,IF($N18<Données!$F$11,1,0)) -> 0 | AE18: Distance ( Source Mappy) : | AF18: - | AG18: 7,4 KM
B19: 2014-12-14 | D19: 0.4895833333 | E19: 0.6666666667 | F19: 0.1770833333 | G19: =IF($D19<>"",IF($D19<Données!$C$2,1,0),0) -> 0 | H19: 0.78125 | I19: 0.9583333333 | J19: 0.1770833333 | K19: =IF($H19<>"",IF($H19<Données!$C$3,1,0),0) -> 0 | L19: 0.3541666667 | M19: 0 | N19: 0.5104166667 | O19: =IF($N19=Données!$F$12,0,IF($N19<Données!$F$11,1,0)) -> 0 | U19: =SUM(L12+L20+L28+L36+L44+L52) -> 7.447916667 | V19: Heures effectués
B20: Total Semaine | E20: =WEEKNUM(B13,21) -> 50 | F20: =SUM($F13:$F19) -> 0.5729166667 | G20: =G13+G14+G15+G16+G17+G18+G19 -> 0 | J20: =SUM(J13:J19) -> 0.9166666667 | K20: =K13+K14+K15+K16+K17+K18+K19 -> 0 | L20: =SUM(L13:L19) -> 1.489583333 | M20: =SUM(M13:M19) -> 0 | O20: =SUM(O13:O19) -> 0 | U20: =IF(U19<N53,"- "&TEXT(ABS(N53-U19),"[hh]:mm"),U19-N53) -> 0.40625 | V20: Heures dues/supp | AE20: Nombre Aller-Retour : | AF20: - | AG20: =COUNT(E5:E11,I5:I11,E13:E19,I13:I19,E21:E27,I21:I27,E29:E35,I29:I35,E37:E43,I37:I43,E45:E51,I45:I51) -> 24
B21: =B19+1 -> 2014-12-15 | F21: =$E21-$D21+IF($D21>$E21,1) -> 0 | G21: =IF($D21<>"",IF($D21<Données!$C$2,1,0),0) -> 0 | J21: =$I21-$H21+IF($H21>$I21,1) -> 0 | K21: =IF($H21<>"",IF($H21<Données!$C$3,1,0),0) -> 0 | L21: 0.3229166667 | M21: =$G21+$K21 -> 0 | N21: =$D21-$I19+IF($I19>$D21,1) -> 0.04166666667 | O21: 0 | AE21: Km Parcourue : | AF21: - | AG21: =SUM(AG20*14.8) -> 355.2 | AH21: Km
B22: =B21+1 -> 2014-12-16 | F22: =$E22-$D22+IF($D22>$E22,1) -> 0 | G22: =IF($D22<>"",IF($D22<Données!$C$2,1,0),0) -> 0 | J22: =$I22-$H22+IF($H22>$I22,1) -> 0 | K22: =IF($H22<>"",IF($H22<Données!$C$3,1,0),0) -> 0 | L22: =$F22+$J22-($G22+$K22)*("00:30") -> 0 | M22: =$G22+$K22 -> 0 | N22: =$D22-$I21+IF($I21>$D22,1) -> 0 | O22: =IF($N22=Données!$F$12,0,IF($N22<Données!$F$11,1,0)) -> 0 | AE22: Horodateur Payé : | AF22: - | AG22: 16.5
B23: =B22+1 -> 2014-12-17 | F23: 0 | G23: =IF($D23<>"",IF($D23<Données!$C$2,1,0),0) -> 0 | J23: 0 | K23: =IF($H23<>"",IF($H23<Données!$C$3,1,0),0) -> 0 | L23: 0 | M23: 0 | N23: =$D23-$I22+IF($I22>$D23,1) -> 0 | O23: =IF($N23=Données!$F$12,0,IF($N23<Données!$F$11,1,0)) -> 0 | S23: Dont : | T23: - | U23: =$B$68 -> 6.979166667 | V23: Heures à taux normal ( 35h ) | AE23: Achat divers pour le travail : | AF23: -
B24: 2014-12-18 | F24: 0 | G24: =IF($D24<>"",IF($D24<Données!$C$2,1,0),0) -> 0 | J24: 0 | K24: =IF($H24<>"",IF($H24<Données!$C$3,1,0),0) -> 0 | L24: 0.3229166667 | M24: 0 | N24: 0 | O24: =IF($N24=Données!$F$12,0,IF($N24<Données!$F$11,1,0)) -> 0 | T24: - | U24: =$C$68 -> 0.46875 | V24: Heures en HS 10% ( 35h à 39h ) | AF24: -
B25: 2014-12-19 | F25: 0 | G25: =IF($D25<>"",IF($D25<Données!$C$2,1,0),0) -> 0 | J25: 0 | K25: =IF($H25<>"",IF($H25<Données!$C$3,1,0),0) -> 0 | L25: 0.3229166667 | M25: 0 | N25: 0 | O25: =IF($N25=Données!$F$12,0,IF($N25<Données!$F$11,1,0)) -> 0 | T25: - | U25: =$D$68 -> 0 | V25: Heures en HS 20% (39h à 43h ) | AF25: -
B26: 2014-12-20 | F26: 0 | G26: =IF($D26<>"",IF($D26<Données!$C$2,1,0),0) -> 0 | J26: 0 | K26: =IF($H26<>"",IF($H26<Données!$C$3,1,0),0) -> 0 | L26: 0.3229166667 | M26: 0 | N26: 0 | O26: =IF($N26=Données!$F$12,0,IF($N26<Données!$F$11,1,0)) -> 0 | T26: - | U26: =$E$68 -> 0 | V26: Heures en HS 40% ( 43h et plus ) | AF26: -
B27: 2014-12-21 | F27: 0 | G27: =IF($D27<>"",IF($D27<Données!$C$2,1,0),0) -> 0 | J27: 0 | K27: =IF($H27<>"",IF($H27<Données!$C$3,1,0),0) -> 0 | L27: 0.3229166667 | M27: 0 | N27: 0 | O27: =IF($N27=Données!$F$12,0,IF($N27<Données!$F$11,1,0)) -> 0 | T27: - | U27: =SUM(M12+M20+M28+M36+M44+M52) -> 0 | V27: Nombre de repas | AF27: -
B28: Total Semaine | E28: =WEEKNUM(B21,21) -> 51 | F28: =SUM($F21:$F27) -> 0 | G28: =G21+G22+G23+G24+G25+G26+G27 -> 0 | J28: =SUM(J21:J27) -> 0 | K28: =K21+K22+K23+K24+K25+K26+K27 -> 0 | L28: =SUM(L21:L27) -> 1.614583333 | M28: =SUM(M21:M27) -> 0 | O28: =SUM(O21:O27) -> 0 | AF28: -
B29: =B27+1 -> 2014-12-22 | F29: =$E29-$D29+IF($D29>$E29,1) -> 0 | G29: =IF($D29<>"",IF($D29<Données!$C$2,1,0),0) -> 0 | J29: =$I29-$H29+IF($H29>$I29,1) -> 0 | K29: =IF($H29<>"",IF($H29<Données!$C$3,1,0),0) -> 0 | L29: 0.3229166667 | M29: =$G29+$K29 -> 0 | N29: =$D29-$I27+IF($I27>$D29,1) -> 0 | O29: =IF($N29=Données!$F$12,0,IF($N29<Données!$F$11,1,0)) -> 0 | S29: Heure fiche de paie: | AF29: -
B30: =B29+1 -> 2014-12-23 | F30: =$E30-$D30+IF($D30>$E30,1) -> 0 | G30: =IF($D30<>"",IF($D30<Données!$C$2,1,0),0) -> 0 | J30: =$I30-$H30+IF($H30>$I30,1) -> 0 | K30: =IF($H30<>"",IF($H30<Données!$C$3,1,0),0) -> 0 | L30: =$F30+$J30-($G30+$K30)*("00:30") -> 0 | M30: =$G30+$K30 -> 0 | N30: =$D30-$I29+IF($I29>$D30,1) -> 0 | O30: =IF($N30=Données!$F$12,0,IF($N30<Données!$F$11,1,0)) -> 0 | AF30: -
B31: =B30+1 -> 2014-12-24 | F31: 0 | G31: =IF($D31<>"",IF($D31<Données!$C$2,1,0),0) -> 0 | J31: 0 | K31: =IF($H31<>"",IF($H31<Données!$C$3,1,0),0) -> 0 | L31: 0 | M31: 0 | N31: =$D31-$I30+IF($I30>$D31,1) -> 0 | O31: =IF($N31=Données!$F$12,0,IF($N31<Données!$F$11,1,0)) -> 0 | S31: Dont : | T31: - | U31: 6.319444444 | V31: Heures à taux normal | AF31: -
B32: 2014-12-25 | F32: 0 | G32: =IF($D32<>"",IF($D32<Données!$C$2,1,0),0) -> 0 | J32: 0 | K32: =IF($H32<>"",IF($H32<Données!$C$3,1,0),0) -> 0 | L32: 0.3229166667 | M32: 0 | N32: 0 | O32: =IF($N32=Données!$F$12,0,IF($N32<Données!$F$11,1,0)) -> 0 | T32: - | U32: 0.73125 | V32: Heures en HS 10% | AF32: -
B33: 2014-12-26 | F33: 0 | G33: =IF($D33<>"",IF($D33<Données!$C$2,1,0),0) -> 0 | J33: 0 | K33: =IF($H33<>"",IF($H33<Données!$C$3,1,0),0) -> 0 | L33: 0.3229166667 | M33: 0 | N33: 0 | O33: =IF($N33=Données!$F$12,0,IF($N33<Données!$F$11,1,0)) -> 0 | T33: - | U33: 0 | V33: Heures en HS 20%
B34: 2014-12-27 | F34: 0 | G34: =IF($D34<>"",IF($D34<Données!$C$2,1,0),0) -> 0 | J34: 0 | K34: =IF($H34<>"",IF($H34<Données!$C$3,1,0),0) -> 0 | L34: 0.3229166667 | M34: 0 | N34: 0 | O34: =IF($N34=Données!$F$12,0,IF($N34<Données!$F$11,1,0)) -> 0 | T34: - | U34: 0 | V34: Heures en HS 40% | AE34: Total dépenses: | AF34: - | AG34: =SUM(AG22:AG32) -> 16.5
B35: 2014-12-28 | F35: 0 | G35: =IF($D35<>"",IF($D35<Données!$C$2,1,0),0) -> 0 | J35: 0 | K35: =IF($H35<>"",IF($H35<Données!$C$3,1,0),0) -> 0 | L35: 0.3229166667 | M35: 0 | N35: 0 | O35: =IF($N35=Données!$F$12,0,IF($N35<Données!$F$11,1,0)) -> 0 | T35: - | U35: 0 | V35: Nombre de repas
B36: Total Semaine | E36: =WEEKNUM(B29,21) -> 52 | F36: =SUM($F29:$F35) -> 0 | G36: =G29+G30+G31+G32+G33+G34+G35 -> 0 | J36: =SUM(J29:J35) -> 0 | K36: =K29+K30+K31+K32+K33+K34+K35 -> 0 | L36: =SUM(L29:L35) -> 1.614583333 | M36: =SUM(M29:M35) -> 0 | O36: =SUM(O29:O35) -> 0
B37: =B35+1 -> 2014-12-29 | D37: 0.4895833333 | E37: 0.65625 | F37: =$E37-$D37+IF($D37>$E37,1) -> 0.1666666667 | G37: =IF($D37<>"",IF($D37<Données!$C$2,1,0),0) -> 0 | H37: 0.78125 | I37: 0.03125 | J37: =$I37-$H37+IF($H37>$I37,1) -> 0.25 | K37: =IF($H37<>"",IF($H37<Données!$C$3,1,0),0) -> 0 | L37: =$F37+$J37-($G37+$K37)*("00:30") -> 0.4166666667 | M37: =$G37+$K37 -> 0 | N37: =$D37-$I35+IF($I35>$D37,1) -> 0.4895833333 | O37: =IF($N37=Données!$F$12,0,IF($N37<Données!$F$11,1,0)) -> 0 | S37: Différence:
B38: =B37+1 -> 2014-12-30 | F38: =$E38-$D38+IF($D38>$E38,1) -> 0 | G38: =IF($D38<>"",IF($D38<Données!$C$2,1,0),0) -> 0 | J38: =$I38-$H38+IF($H38>$I38,1) -> 0 | K38: =IF($H38<>"",IF($H38<Données!$C$3,1,0),0) -> 0 | L38: =$F38+$J38-($G38+$K38)*("00:30") -> 0 | M38: =$G38+$K38 -> 0 | N38: =$D38-$I37+IF($I37>$D38,1) -> 0.96875 | O38: =IF($N38=Données!$F$12,0,IF($N38<Données!$F$11,1,0)) -> 0
B39: =B38+1 -> 2014-12-31 | F39: 0 | G39: =IF($D39<>"",IF($D39<Données!$C$2,1,0),0) -> 0 | J39: 0 | K39: =IF($H39<>"",IF($H39<Données!$C$3,1,0),0) -> 0 | L39: 0 | M39: 0 | N39: =$D39-$I38+IF($I38>$D39,1) -> 0 | O39: =IF($N39=Données!$F$12,0,IF($N39<Données!$F$11,1,0)) -> 0 | S39: Dont : | T39: - | U39: =$U31-$U23+IF($U23>$U31,1) -> 0.3402777778 | V39: Heures à taux normal
B40: 2015-01-01 | D40: 0.4895833333 | E40: 0.6041666667 | F40: 0.1145833333 | G40: =IF($D40<>"",IF($D40<Données!$C$2,1,0),0) -> 0 | H40: 0.78125 | I40: 0.9895833333 | J40: 0.2083333333 | K40: =IF($H40<>"",IF($H40<Données!$C$3,1,0),0) -> 0 | L40: 0.3229166667 | M40: 0 | N40: 0.4895833333 | O40: =IF($N40=Données!$F$12,0,IF($N40<Données!$F$11,1,0)) -> 0 | T40: - | U40: -6:18 | V40: Heures en HS 10%
B41: 2015-01-02 | F41: 0 | G41: =IF($D41<>"",IF($D41<Données!$C$2,1,0),0) -> 0 | H41: 0.78125 | I41: 0.03125 | J41: 0.25 | K41: =IF($H41<>"",IF($H41<Données!$C$3,1,0),0) -> 0 | L41: 0.25 | M41: 0 | N41: 0.01041666667 | O41: 0 | T41: - | U41: =NbCellsCoul($D$5:$I$11,50)*0.25 -> 0 | V41: Heures en HS 20%
B42: 2015-01-03 | D42: 0.4895833333 | E42: 0.6041666667 | F42: 0.1145833333 | G42: =IF($D42<>"",IF($D42<Données!$C$2,1,0),0) -> 0 | H42: 0.78125 | I42: 0 | J42: 0.21875 | K42: =IF($H42<>"",IF($H42<Données!$C$3,1,0),0) -> 0 | L42: 0.3333333333 | M42: 0 | N42: 0.4583333333 | O42: =IF($N42=Données!$F$12,0,IF($N42<Données!$F$11,1,0)) -> 0 | T42: - | U42: =$U34-$U26+IF($U26>$U34,1) -> 0 | V42: Heures en HS 40%
B43: 2015-01-04 | D43: 0.4895833333 | E43: 0.6145833333 | F43: 0.125 | G43: =IF($D43<>"",IF($D43<Données!$C$2,1,0),0) -> 0 | H43: 0.78125 | I43: 0.9166666667 | J43: 0.1354166667 | K43: =IF($H43<>"",IF($H43<Données!$C$3,1,0),0) -> 0 | L43: 0.2604166667 | M43: 0 | N43: 0.4895833333 | O43: =IF($N43=Données!$F$12,0,IF($N43<Données!$F$11,1,0)) -> 0 | T43: - | U43: =SUM(U35-U27) -> 0 | V43: Nombre de repas
B44: Total Semaine | E44: =WEEKNUM(B37,21) -> 1 | F44: =SUM($F37:$F43) -> 0.5208333333 | G44: =G37+G38+G39+G40+G41+G42+G43 -> 0 | J44: =SUM(J37:J43) -> 1.0625 | K44: =K37+K38+K39+K40+K41+K42+K43 -> 0 | L44: =SUM(L37:L43) -> 1.583333333 | M44: =SUM(M37:M43) -> 0 | O44: =SUM(O37:O43) -> 0
B45: =B43+1 -> 2015-01-05 | D45: 0.4895833333 | E45: 0.625 | F45: =$E45-$D45+IF($D45>$E45,1) -> 0.1354166667 | G45: =IF($D45<>"",IF($D45<Données!$C$2,1,0),0) -> 0 | H45: 0.78125 | I45: 0.02083333333 | J45: =$I45-$H45+IF($H45>$I45,1) -> 0.2395833333 | K45: =IF($H45<>"",IF($H45<Données!$C$3,1,0),0) -> 0 | L45: =$F45+$J45-($G45+$K45)*("00:30") -> 0.375 | M45: =$G45+$K45 -> 0 | N45: =$D45-$I43+IF($I43>$D45,1) -> 0.5729166667 | O45: =IF($N45=Données!$F$12,0,IF($N45<Données!$F$11,1,0)) -> 0
B46: =B45+1 -> 2015-01-06 | F46: 0 | G46: =IF($D46<>"",IF($D46<Données!$C$2,1,0),0) -> 0 | J46: =$I46-$H46+IF($H46>$I46,1) -> 0 | K46: =IF($H46<>"",IF($H46<Données!$C$3,1,0),0) -> 0 | L46: =$F46+$J46-($G46+$K46)*("00:30") -> 0 | M46: =$G46+$K46 -> 0 | N46: =$D46-$I45+IF($I45>$D46,1) -> 0.9791666667 | O46: =IF($N46=Données!$F$12,0,IF($N46<Données!$F$11,1,0)) -> 0
B47: =B46+1 -> 2015-01-07 | F47: 0 | G47: =IF($D47<>"",IF($D47<Données!$C$2,1,0),0) -> 0 | J47: 0 | K47: =IF($H47<>"",IF($H47<Données!$C$3,1,0),0) -> 0 | L47: 0 | M47: 0 | N47: =$D47-$I46+IF($I46>$D47,1) -> 0 | O47: =IF($N47=Données!$F$12,0,IF($N47<Données!$F$11,1,0)) -> 0
B48: 2015-01-08 | F48: 0 | G48: =IF($D48<>"",IF($D48<Données!$C$2,1,0),0) -> 0 | J48: 0 | K48: =IF($H48<>"",IF($H48<Données!$C$3,1,0),0) -> 0 | L48: 0 | M48: 0 | N48: 0 | O48: =IF($N48=Données!$F$12,0,IF($N48<Données!$F$11,1,0)) -> 0
B49: 2015-01-09 | F49: 0 | G49: =IF($D49<>"",IF($D49<Données!$C$2,1,0),0) -> 0 | J49: 0 | K49: =IF($H49<>"",IF($H49<Données!$C$3,1,0),0) -> 0 | L49: 0 | M49: 0 | N49: 0 | O49: =IF($N49=Données!$F$12,0,IF($N49<Données!$F$11,1,0)) -> 0
B50: 2015-01-10 | F50: 0 | G50: =IF($D50<>"",IF($D50<Données!$C$2,1,0),0) -> 0 | J50: 0 | K50: =IF($H50<>"",IF($H50<Données!$C$3,1,0),0) -> 0 | L50: 0 | M50: 0 | N50: 0 | O50: =IF($N50=Données!$F$12,0,IF($N50<Données!$F$11,1,0)) -> 0
B51: 2015-01-11 | F51: 0 | G51: =IF($D51<>"",IF($D51<Données!$C$2,1,0),0) -> 0 | J51: 0 | K51: =IF($H51<>"",IF($H51<Données!$C$3,1,0),0) -> 0 | L51: 0 | M51: 0 | N51: 0 | O51: =IF($N51=Données!$F$12,0,IF($N51<Données!$F$11,1,0)) -> 0
B52: Total semaine | E52: =WEEKNUM(B45,21) -> 2 | F52: =SUM($F45:$F51) -> 0.1354166667 | G52: =G45+G46+G47+G48+G49+G50+G51 -> 0 | J52: =SUM(J45:J51) -> 0.2395833333 | K52: =K45+K46+K47+K48+K49+K50+K51 -> 0 | L52: =SUM(L45:L51) -> 0.375 | M52: =SUM(M45:M51) -> 0 | O52: =SUM(O45:O51) -> 0
N53: 7.041666667
L54: =CodeCouleur(M54) -> 50 | N54: REPOS
L55: =CodeCouleur(M55) -> 42 | N55: Récup
L56: 48 | N56: JFG
L57: 44 | N57: VAC
L58: 3 | N58: MAL
L59: =CodeCouleur(M59) -> 40 | N59: Jf Taf
A60: Heures | C60: 1.458333333 | D60: 1.625 | E60: 1.791666667 | F60: Total
A61: Taux | B61: 1 | C61: 1.1 | D61: 1.2 | E61: 1.4
A62: S 1 | B62: =IF($L$12<=$C$60,$L$12,$C$60) -> 0.7708333333 | C62: =IF($L$12<=$C$60,0,IF($L$12<=$D$60,$L$12,$D$60)-$C$60) -> 0 | D62: =IF($L$12<=$D$60,0,IF($L$12<=$E$60,$L$12,$D$60)-$C$60) -> 0 | E62: =IF($L$12<=$E$60,0,IF($L$12>$E$60,$L$12,$E$60)-$E$60) -> 0 | F62: =B62+C62+D62+E62 -> 0.7708333333
A63: S 2 | B63: =IF($L$20<=$C$60,$L$20,$C$60) -> 1.458333333 | C63: =IF($L$20<=$C$60,0,IF($L$20<=$D$60,$L$20,$D$60)-$C$60) -> 0.03125 | D63: =IF($L$20<=$D$60,0,IF($L$20<=$E$60,$L$20,$D$60)-$C$60) -> 0 | E63: =IF($L$20<=$E$60,0,IF($L$20>$E$60,$L$20,$E$60)-$E$60) -> 0 | F63: 1.489583333
A64: S 3 | B64: =IF($L$28<=$C$60,$L$28,$C$60) -> 1.458333333 | C64: =IF($L$28<=$C$60,0,IF($L$28<=$D$60,$L$28,$D$60)-$C$60) -> 0.15625 | D64: =IF($L$28<=$D$60,0,IF($L$28<=$E$60,$L$28,$D$60)-$C$60) -> 0 | E64: =IF($L$28<=$E$60,0,IF($L$28>$E$60,$L$28,$E$60)-$E$60) -> 0 | F64: 1.614583333
A65: S 4 | B65: =IF($L$36<=$C$60,$L$36,$C$60) -> 1.458333333 | C65: =IF($L$36<=$C$60,0,IF($L$36<=$D$60,$L$36,$D$60)-$C$60) -> 0.15625 | D65: =IF($L$36<=$D$60,0,IF($L$36<=$E$60,$L$36,$D$60)-$C$60) -> 0 | E65: =IF($L$36<=$E$60,0,IF($L$36>$E$60,$L$36,$E$60)-$E$60) -> 0 | F65: 1.614583333
A66: S 5 | B66: =IF($L$44<=$C$60,$L$44,$C$60) -> 1.458333333 | C66: =IF($L$44<=$C$60,0,IF($L$44<=$D$60,$L$44,$D$60)-$C$60) -> 0.125 | D66: =IF($L$44<=$D$60,0,IF($L$44<=$E$60,$L$44,$D$60)-$C$60) -> 0 | E66: =IF($L$44<=$E$60,0,IF($L$44>$E$60,$L$44,$E$60)-$E$60) -> 0 | F66: 1.583333333
A67: S 6 | B67: =IF($L$52<=$C$60,$L$52,$C$60) -> 0.375 | C67: =IF($L$52<=$C$60,0,IF($L$52<=$D$60,$L$52,$D$60)-$C$60) -> 0 | D67: =IF($L$52<=$D$60,0,IF($L$52<=$E$60,$L$52,$D$60)-$C$60) -> 0 | E67: =IF($L$52<=$E$60,0,IF($L$52>$E$60,$L$52,$E$60)-$E$60) -> 0 | F67: 0.375
A68: Total | B68: =SUM(B62:B67) -> 6.979166667 | C68: =SUM(C62:C67) -> 0.46875 | D68: =SUM(D62:D67) -> 0 | E68: =SUM(E62:E67) -> 0 | F68: 7.447916667
A71: Jours | B71: Repos | C71: Récup | D71: Jfg | E71: Vac | F71: Mal | G71: Vides | H71: Taf | I71: Jf Taf | J71: <11h
A72: S 1 | B72: =NbCellsCoul($D$5:$I$11,50)*0.25 -> 0 | C72: =NbCellsCoul($D$5:$I$11,42)*0.25 -> 0 | D72: =NbCellsCoul($D$5:$I$11,48)*0.25 -> 0 | E72: =NbCellsCoul($D$5:$I$11,44)*0.25 -> 0 | F72: =NbCellsCoul($D$5:$I$11,3)*0.25 -> 0 | G72: =+COUNTBLANK(E5:H11)/2 -> 5 | H72: =7-$G72 -> 2 | I72: =NbCellsCoul($D$5:$I$11,40)*0.25 -> 0 | J72: =SUM($O$6:$O$11) -> 1
A73: S 2 | B73: =NbCellsCoul($D$13:$I$19,50)*0.25 -> 2 | C73: =NbCellsCoul($D$13:$I$19,42)*0.25 -> 0.5 | D73: =NbCellsCoul($D$13:$I$19,48)*0.25 -> 0 | E73: =NbCellsCoul($D$13:$I$19,44)*0.25 -> 0 | F73: =NbCellsCoul($D$13:$I$19,3)*0.25 -> 0 | G73: =+COUNTBLANK(E13:H19)/2 -> 2.5 | H73: 4.5 | I73: =NbCellsCoul($D$13:$I$19,40)*0.25 -> 0 | J73: =SUM($O$13:$O$19) -> 0
A74: S 3 | B74: =NbCellsCoul($D$21:$I$27,50)*0.25 -> 2 | C74: =NbCellsCoul($D$21:$I$27,42)*0.25 -> 0 | D74: =NbCellsCoul($D$21:$I$27,48)*0.25 -> 0 | E74: =NbCellsCoul($D$21:$I$27,44)*0.25 -> 5 | F74: =NbCellsCoul($D$21:$I$27,3)*0.25 -> 0 | G74: =+COUNTBLANK(E21:H27)/2 -> 7 | H74: 0 | I74: =NbCellsCoul($D$21:$I$27,40)*0.25 -> 0 | J74: =SUM($O$21:$O$27) -> 0
A75: S 4 | B75: =NbCellsCoul($D$29:$I$35,50)*0.25 -> 2 | C75: =NbCellsCoul($D$29:$I$35,42)*0.25 -> 0 | D75: =NbCellsCoul($D$29:$I$35,48)*0.25 -> 0 | E75: =NbCellsCoul($D$29:$I$35,44)*0.25 -> 5 | F75: =NbCellsCoul($D$29:$I$35,3)*0.25 -> 0 | G75: =+COUNTBLANK(E29:H35)/2 -> 7 | H75: 0 | I75: =NbCellsCoul($D$29:$I$35,40)*0.25 -> 0 | J75: =SUM($O$29:$O$35) -> 0
A76: S 5 | B76: =NbCellsCoul($D$37:$I$43,50)*0.25 -> 2 | C76: =NbCellsCoul($D$37:$I$43,42)*0.25 -> 0.5 | D76: =NbCellsCoul($D$37:$I$43,48)*0.25 -> 0 | E76: =NbCellsCoul($D$37:$I$43,44)*0.25 -> 0 | F76: =NbCellsCoul($D$37:$I$43,3)*0.25 -> 0 | G76: =+COUNTBLANK(E37:H43)/2 -> 2.5 | H76: 4.5 | I76: =NbCellsCoul($D$37:$I$43,40)*0.25 -> 0 | J76: =SUM($O$37:$O$43) -> 0
A77: S 6 | B77: =NbCellsCoul($D$45:$I$51,50)*0.25 -> 0 | C77: =NbCellsCoul($D$45:$I$51,42)*0.25 -> 0 | D77: =NbCellsCoul($D$45:$I$51,48)*0.25 -> 0 | E77: =NbCellsCoul($D$45:$I$51,44)*0.25 -> 0 | F77: =NbCellsCoul($D$45:$I$51,3)*0.25 -> 0 | G77: =+COUNTBLANK(E45:H51)/2 -> 6 | H77: 1 | I77: =NbCellsCoul($D$45:$I$51,40)*0.25 -> 0 | J77: =SUM($O$45:$O$51) -> 0
A78: Total | B78: =SUM(B$72:B$77) -> 8 | C78: 1 | D78: 0 | E78: 10 | F78: =SUM(F$72:F$77) -> 0 | G78: =SUM(G$72:G$77) -> 30 | H78: =SUM(H$72:H$77) -> 12 | I78: =SUM(I$72:I$77) -> 0 | J78: =SUM(J$72:J$77) -> 1

Sheet Avril14
D1: TEMPS DE TRAVAIL | S1: RÉCAPITULATIF | AE1: IMPÔTS
F2: =Données!G14 -> 12 | J2: =Données!C15 -> 2014
B3: Jour | D3: Midi | F3: Cumul Midi | G3: Repas | H3: Soir | J3: Cumul Soir | K3: Repas | L3: Totaux | M3: Total Repas
D4: Début | E4: Fin | H4: Début | I4: Fin | AF4: =VLOOKUP(F2,Données!E15:F26,2) -> Décembre | AG4: =J2 -> 2014
B5: =Données!I15-WEEKDAY(Données!I15-1)+1 -> 2014-12-01 | F5: =$E5-$D5+IF($D5>$E5,1) -> 0 | G5: =IF($D5<>"",IF($D5<Données!$C$2,1,0),0) -> 0 | J5: =$I5-$H5+IF($H5>$I5,1) -> 0 | K5: =IF($H5<>"",IF($H5<Données!$C$3,1,0),0) -> 0 | L5: =$F5+$J5-($G5+$K5)*("00:30") -> 0 | M5: =$G5+$K5 -> 0
B6: =B5+1 -> 2014-12-02 | F6: =$E6-$D6+IF($D6>$E6,1) -> 0 | G6: =IF($D6<>"",IF($D6<Données!$C$2,1,0),0) -> 0 | J6: =$I6-$H6+IF($H6>$I6,1) -> 0 | K6: =IF($H6<>"",IF($H6<Données!$C$3,1,0),0) -> 0 | L6: =$F6+$J6-($G6+$K6)*("00:30") -> 0 | M6: =$G6+$K6 -> 0 | N6: =$D6-$I5+IF($I5>$D6,1) -> 0 | O6: =IF($N6=Données!$F$12,0,IF($N6<Données!$F$11,1,0)) -> 0 | S6: Soit au total pour le mois de : | U6: =VLOOKUP(F2,Données!E15:F26,2) -> Décembre | V6: =J2 -> 2014
B7: =B6+1 -> 2014-12-03 | F7: 0 | G7: =IF($D7<>"",IF($D7<Données!$C$2,1,0),0) -> 0 | J7: 0 | K7: =IF($H7<>"",IF($H7<Données!$C$3,1,0),0) -> 0 | L7: 0 | M7: 0 | N7: =$D7-$I6+IF($I6>$D7,1) -> 0 | O7: =IF($N7=Données!$F$12,0,IF($N7<Données!$F$11,1,0)) -> 0
B8: 2014-12-04 | D8: 0.4895833333 | E8: 0.5729166667 | F8: 0.08333333333 | G8: =IF($D8<>"",IF($D8<Données!$C$2,1,0),0) -> 0 | H8: 0.78125 | I8: 0.02083333333 | J8: 0.2395833333 | K8: =IF($H8<>"",IF($H8<Données!$C$3,1,0),0) -> 0 | L8: 0.3229166667 | M8: 0 | N8: =$D8-$I7+IF($I7>$D8,1) -> 0.4895833333 | O8: =IF($N8=Données!$F$12,0,IF($N8<Données!$F$11,1,0)) -> 0 | AE8: Numéro Fiscal :
B9: 2014-12-05 | D9: 0.4895833333 | E9: 0.6458333333 | F9: 0.15625 | G9: =IF($D9<>"",IF($D9<Données!$C$2,1,0),0) -> 0 | H9: 0.78125 | I9: 0.96875 | J9: 0.1875 | K9: =IF($H9<>"",IF($H9<Données!$C$3,1,0),0) -> 0 | L9: 0.34375 | M9: 0 | N9: 0.46875 | O9: =IF($N9=Données!$F$12,0,IF($N9<Données!$F$11,1,0)) -> 0 | S9: Nombre de jours travaillés : | U9: =H78 -> 20 | AE9: MDP:
B10: 2014-12-06 | D10: 0.4895833333 | E10: 0.6666666667 | F10: 0.1770833333 | G10: =IF($D10<>"",IF($D10<Données!$C$2,1,0),0) -> 0 | H10: 0.78125 | I10: 0.9479166667 | J10: 0.1666666667 | K10: =IF($H10<>"",IF($H10<Données!$C$3,1,0),0) -> 0 | L10: 0.34375 | M10: 0 | N10: =$D10-$I9+IF($I9>$D10,1) -> 0.5208333333 | O10: =IF($N10=Données!$F$12,0,IF($N10<Données!$F$11,1,0)) -> 0 | S10: Nombre de jours repos : | U10: =B78 -> 10
B11: 2014-12-07 | D11: 0.4895833333 | E11: 0.625 | F11: 0.1354166667 | G11: =IF($D11<>"",IF($D11<Données!$C$2,1,0),0) -> 0 | H11: 0.78125 | I11: 0.8854166667 | J11: 0.1041666667 | K11: =IF($H11<>"",IF($H11<Données!$C$3,1,0),0) -> 0 | L11: 0.2395833333 | M11: 0 | N11: =$D11-$I10+IF($I10>$D11,1) -> 0.5416666667 | O11: =IF($N11=Données!$F$12,0,IF($N11<Données!$F$11,1,0)) -> 0 | S11: Nombre de jours récup : | U11: =C$78 -> 0 | AE11: Adresse domicile: | AF11: -
B12: Total Semaine | E12: =WEEKNUM(B5,21) -> 49 | F12: =SUM($F5:$F11) -> 0.5520833333 | G12: =G5+G6+G7+G8+G9+G10+G11 -> 0 | J12: =SUM(J5:J11) -> 0.6979166667 | K12: =K5+K6+K7+K8+K9+K10+K11 -> 0 | L12: =SUM(L5:L11) -> 1.25 | M12: =SUM(M5:M11) -> 0 | O12: =SUM(O6:O11) -> 0 | S12: Nombre de jfg : | U12: =D$78 -> 0
B13: =B11+1 -> 2014-12-08 | D13: 0.4895833333 | E13: 0.625 | F13: =$E13-$D13+IF($D13>$E13,1) -> 0.1354166667 | G13: =IF($D13<>"",IF($D13<Données!$C$2,1,0),0) -> 0 | H13: 0.78125 | I13: 0.05208333333 | J13: =$I13-$H13+IF($H13>$I13,1) -> 0.2708333333 | K13: =IF($H13<>"",IF($H13<Données!$C$3,1,0),0) -> 0 | L13: =$F13+$J13-($G13+$K13)*("00:30") -> 0.40625 | M13: =$G13+$K13 -> 0 | N13: =$D13-$I11+IF($I11>$D13,1) -> 0.6041666667 | O13: =IF($N13=Données!$F$12,0,IF($N13<Données!$F$11,1,0)) -> 0 | S13: Nombre de jours de vacances : | U13: =E$78 -> 0
B14: =B13+1 -> 2014-12-09 | F14: =$E14-$D14+IF($D14>$E14,1) -> 0 | G14: =IF($D14<>"",IF($D14<Données!$C$2,1,0),0) -> 0 | J14: =$I14-$H14+IF($H14>$I14,1) -> 0 | K14: =IF($H14<>"",IF($H14<Données!$C$3,1,0),0) -> 0 | L14: =$F14+$J14-($G14+$K14)*("00:30") -> 0 | M14: =$G14+$K14 -> 0 | N14: =$D14-$I13+IF($I13>$D14,1) -> 0.9479166667 | O14: =IF($N14=Données!$F$12,0,IF($N14<Données!$F$11,1,0)) -> 0 | S14: Nombre de jours de maladie : | U14: =F$78 -> 0
B15: =B14+1 -> 2014-12-10 | F15: 0 | G15: =IF($D15<>"",IF($D15<Données!$C$2,1,0),0) -> 0 | J15: 0 | K15: =IF($H15<>"",IF($H15<Données!$C$3,1,0),0) -> 0 | L15: 0 | M15: 0 | N15: =$D15-$I14+IF($I14>$D15,1) -> 0 | O15: =IF($N15=Données!$F$12,0,IF($N15<Données!$F$11,1,0)) -> 0 | S15: Nombre jours fériées travaillés : | U15: =I78 -> 2 | AE15: Adresse lieu de travail: | AF15: -
B16: 2014-12-11 | D16: 0.4895833333 | E16: 0.625 | F16: 0.1354166667 | G16: =IF($D16<>"",IF($D16<Données!$C$2,1,0),0) -> 0 | H16: 0.78125 | I16: 0.02083333333 | J16: 0.2395833333 | K16: =IF($H16<>"",IF($H16<Données!$C$3,1,0),0) -> 0 | L16: 0.375 | M16: 0 | N16: 0.4895833333 | O16: =IF($N16=Données!$F$12,0,IF($N16<Données!$F$11,1,0)) -> 0 | S16: Nombre de fois 11h de batement non respecté : | U16: =J78 -> 1
B17: 2014-12-12 | D17: 0.4895833333 | E17: 0.5833333333 | F17: 0.09375 | G17: =IF($D17<>"",IF($D17<Données!$C$2,1,0),0) -> 0 | H17: 0.8333333333 | I17: 0.9791666667 | J17: 0.1458333333 | K17: =IF($H17<>"",IF($H17<Données!$C$3,1,0),0) -> 0 | L17: 0.2395833333 | M17: 0 | N17: 0.46875 | O17: =IF($N17=Données!$F$12,0,IF($N17<Données!$F$11,1,0)) -> 0
B18: 2014-12-13 | D18: 0.4895833333 | E18: 0.625 | F18: 0.1354166667 | G18: =IF($D18<>"",IF($D18<Données!$C$2,1,0),0) -> 0 | H18: 0.78125 | I18: 0.96875 | J18: 0.1875 | K18: =IF($H18<>"",IF($H18<Données!$C$3,1,0),0) -> 0 | L18: 0.3229166667 | M18: 0 | N18: 0.5104166667 | O18: =IF($N18=Données!$F$12,0,IF($N18<Données!$F$11,1,0)) -> 0 | AE18: Distance ( Source Mappy) : | AF18: - | AG18: 7,4 KM
B19: 2014-12-14 | D19: 0.4895833333 | E19: 0.6145833333 | F19: 0.125 | G19: =IF($D19<>"",IF($D19<Données!$C$2,1,0),0) -> 0 | H19: 0.78125 | I19: 0.9166666667 | J19: 0.1354166667 | K19: =IF($H19<>"",IF($H19<Données!$C$3,1,0),0) -> 0 | L19: 0.2604166667 | M19: 0 | N19: 0.5208333333 | O19: =IF($N19=Données!$F$12,0,IF($N19<Données!$F$11,1,0)) -> 0 | U19: =SUM(L12+L20+L28+L36+L44+L52) -> 6.5 | V19: Heures effectués
B20: Total Semaine | E20: =WEEKNUM(B13,21) -> 50 | F20: =SUM($F13:$F19) -> 0.625 | G20: =G13+G14+G15+G16+G17+G18+G19 -> 0 | J20: =SUM(J13:J19) -> 0.9791666667 | K20: =K13+K14+K15+K16+K17+K18+K19 -> 0 | L20: =SUM(L13:L19) -> 1.604166667 | M20: =SUM(M13:M19) -> 0 | O20: =SUM(O13:O19) -> 0 | U20: =IF(U19<N53,"- "&TEXT(ABS(N53-U19),"[hh]:mm"),U19-N53) -> - 13:00 | V20: Heures dues/supp | AE20: Nombre Aller-Retour : | AF20: - | AG20: =COUNT(E5:E11,I5:I11,E13:E19,I13:I19,E21:E27,I21:I27,E29:E35,I29:I35,E37:E43,I37:I43,E45:E51,I45:I51) -> 40
B21: =B19+1 -> 2014-12-15 | D21: 0.4895833333 | E21: 0.6354166667 | F21: =$E21-$D21+IF($D21>$E21,1) -> 0.1458333333 | G21: =IF($D21<>"",IF($D21<Données!$C$2,1,0),0) -> 0 | H21: 0.78125 | I21: 0.9895833333 | J21: =$I21-$H21+IF($H21>$I21,1) -> 0.2083333333 | K21: =IF($H21<>"",IF($H21<Données!$C$3,1,0),0) -> 0 | L21: =$F21+$J21-($G21+$K21)*("00:30") -> 0.3541666667 | M21: =$G21+$K21 -> 0 | N21: =$D21-$I19+IF($I19>$D21,1) -> 0.5729166667 | O21: =IF($N21=Données!$F$12,0,IF($N21<Données!$F$11,1,0)) -> 0 | AE21: Km Parcourue : | AF21: - | AG21: =SUM(AG20*14.8) -> 592 | AH21: Km
B22: =B21+1 -> 2014-12-16 | F22: =$E22-$D22+IF($D22>$E22,1) -> 0 | G22: =IF($D22<>"",IF($D22<Données!$C$2,1,0),0) -> 0 | J22: =$I22-$H22+IF($H22>$I22,1) -> 0 | K22: =IF($H22<>"",IF($H22<Données!$C$3,1,0),0) -> 0 | L22: =$F22+$J22-($G22+$K22)*("00:30") -> 0 | M22: =$G22+$K22 -> 0 | N22: =$D22-$I21+IF($I21>$D22,1) -> 0.01041666667 | O22: 0 | AE22: Horodateur Payé : | AF22: - | AG22: 28.5
B23: =B22+1 -> 2014-12-17 | F23: 0 | G23: =IF($D23<>"",IF($D23<Données!$C$2,1,0),0) -> 0 | J23: 0 | K23: =IF($H23<>"",IF($H23<Données!$C$3,1,0),0) -> 0 | L23: 0 | M23: 0 | N23: =$D23-$I22+IF($I22>$D23,1) -> 0 | O23: =IF($N23=Données!$F$12,0,IF($N23<Données!$F$11,1,0)) -> 0 | S23: Dont : | T23: - | U23: =$B$68 -> 6.010416667 | V23: Heures à taux normal ( 35h ) | AE23: Achat divers pour le travail : | AF23: -
B24: 2014-12-18 | D24: 0.4895833333 | E24: 0.59375 | F24: 0.1041666667 | G24: =IF($D24<>"",IF($D24<Données!$C$2,1,0),0) -> 0 | H24: 0.78125 | I24: 0.02083333333 | J24: 0.2395833333 | K24: =IF($H24<>"",IF($H24<Données!$C$3,1,0),0) -> 0 | L24: 0.34375 | M24: 0 | N24: 0.4895833333 | O24: =IF($N24=Données!$F$12,0,IF($N24<Données!$F$11,1,0)) -> 0 | T24: - | U24: =$C$68 -> 0.4270833333 | V24: Heures en HS 10% ( 35h à 39h ) | AF24: -
B25: 2014-12-19 | D25: 0.4895833333 | E25: 0.59375 | F25: 0.1041666667 | G25: =IF($D25<>"",IF($D25<Données!$C$2,1,0),0) -> 0 | H25: 0.78125 | I25: 0.02083333333 | J25: 0.2395833333 | K25: =IF($H25<>"",IF($H25<Données!$C$3,1,0),0) -> 0 | L25: 0.34375 | M25: 0 | N25: 0.46875 | O25: =IF($N25=Données!$F$12,0,IF($N25<Données!$F$11,1,0)) -> 0 | T25: - | U25: =$D$68 -> 0.0625 | V25: Heures en HS 20% (39h à 43h ) | AF25: -
B26: 2014-12-20 | D26: 0.4895833333 | E26: 0.625 | F26: 0.1354166667 | G26: =IF($D26<>"",IF($D26<Données!$C$2,1,0),0) -> 0 | H26: 0.78125 | I26: 0.9895833333 | J26: 0.2083333333 | K26: =IF($H26<>"",IF($H26<Données!$C$3,1,0),0) -> 0 | L26: 0.34375 | M26: 0 | N26: 0.46875 | O26: =IF($N26=Données!$F$12,0,IF($N26<Données!$F$11,1,0)) -> 0 | T26: - | U26: =$E$68 -> 0 | V26: Heures en HS 40% ( 43h et plus ) | AF26: -
B27: 2014-12-21 | D27: 0.4895833333 | E27: 0.6666666667 | F27: 0.1770833333 | G27: =IF($D27<>"",IF($D27<Données!$C$2,1,0),0) -> 0 | H27: 0.78125 | I27: 0.90625 | J27: 0.125 | K27: =IF($H27<>"",IF($H27<Données!$C$3,1,0),0) -> 0 | L27: 0.3020833333 | M27: 0 | N27: 0.5 | O27: =IF($N27=Données!$F$12,0,IF($N27<Données!$F$11,1,0)) -> 0 | T27: - | U27: =SUM(M12+M20+M28+M36+M44+M52) -> 0 | V27: Nombre de repas | AF27: -
B28: Total Semaine | E28: =WEEKNUM(B21,21) -> 51 | F28: =SUM($F21:$F27) -> 0.6666666667 | G28: =G21+G22+G23+G24+G25+G26+G27 -> 0 | J28: =SUM(J21:J27) -> 1.020833333 | K28: =K21+K22+K23+K24+K25+K26+K27 -> 0 | L28: =SUM(L21:L27) -> 1.6875 | M28: =SUM(M21:M27) -> 0 | O28: =SUM(O21:O27) -> 0 | AF28: -
B29: =B27+1 -> 2014-12-22 | D29: 0.4895833333 | E29: 0.6354166667 | F29: =$E29-$D29+IF($D29>$E29,1) -> 0.1458333333 | G29: =IF($D29<>"",IF($D29<Données!$C$2,1,0),0) -> 0 | H29: 0.78125 | I29: 0.96875 | J29: =$I29-$H29+IF($H29>$I29,1) -> 0.1875 | K29: =IF($H29<>"",IF($H29<Données!$C$3,1,0),0) -> 0 | L29: =$F29+$J29-($G29+$K29)*("00:30") -> 0.3333333333 | M29: =$G29+$K29 -> 0 | N29: =$D29-$I27+IF($I27>$D29,1) -> 0.5833333333 | O29: =IF($N29=Données!$F$12,0,IF($N29<Données!$F$11,1,0)) -> 0 | S29: Heure fiche de paie: | AF29: -
B30: =B29+1 -> 2014-12-23 | F30: =$E30-$D30+IF($D30>$E30,1) -> 0 | G30: =IF($D30<>"",IF($D30<Données!$C$2,1,0),0) -> 0 | J30: =$I30-$H30+IF($H30>$I30,1) -> 0 | K30: =IF($H30<>"",IF($H30<Données!$C$3,1,0),0) -> 0 | L30: =$F30+$J30-($G30+$K30)*("00:30") -> 0 | M30: =$G30+$K30 -> 0 | N30: =$D30-$I29+IF($I29>$D30,1) -> 0.03125 | O30: 0 | AF30: -
B31: =B30+1 -> 2014-12-24 | F31: 0 | G31: =IF($D31<>"",IF($D31<Données!$C$2,1,0),0) -> 0 | J31: 0 | K31: =IF($H31<>"",IF($H31<Données!$C$3,1,0),0) -> 0 | L31: 0 | M31: 0 | N31: =$D31-$I30+IF($I30>$D31,1) -> 0 | O31: =IF($N31=Données!$F$12,0,IF($N31<Données!$F$11,1,0)) -> 0 | S31: Dont : | T31: - | U31: 6.319444444 | V31: Heures à taux normal | AF31: -
B32: 2014-12-25 | D32: 0.4895833333 | E32: 0.5833333333 | F32: 0.09375 | G32: =IF($D32<>"",IF($D32<Données!$C$2,1,0),0) -> 0 | H32: 0.78125 | I32: 0.9166666667 | J32: 0.1354166667 | K32: =IF($H32<>"",IF($H32<Données!$C$3,1,0),0) -> 0 | L32: 0.2291666667 | M32: 0 | N32: 0.4895833333 | O32: =IF($N32=Données!$F$12,0,IF($N32<Données!$F$11,1,0)) -> 0 | T32: - | U32: 0.73125 | V32: Heures en HS 10% | AF32: -
B33: 2014-12-26 | D33: 0.4895833333 | E33: 0.5833333333 | F33: 0.09375 | G33: =IF($D33<>"",IF($D33<Données!$C$2,1,0),0) -> 0 | H33: 0.78125 | I33: 0.09375 | J33: 0.3125 | K33: =IF($H33<>"",IF($H33<Données!$C$3,1,0),0) -> 0 | L33: 0.40625 | M33: 0 | N33: 0.5729166667 | O33: =IF($N33=Données!$F$12,0,IF($N33<Données!$F$11,1,0)) -> 0 | T33: - | U33: 0 | V33: Heures en HS 20%
B34: 2014-12-27 | D34: 0.4895833333 | E34: 0.625 | F34: 0.1354166667 | G34: =IF($D34<>"",IF($D34<Données!$C$2,1,0),0) -> 0 | H34: 0.78125 | I34: 0.01041666667 | J34: 0.2291666667 | K34: =IF($H34<>"",IF($H34<Données!$C$3,1,0),0) -> 0 | L34: 0.3645833333 | M34: 0 | N34: =$D34-$I33+IF($I33>$D34,1) -> 0.3958333333 | O34: =IF($N34=Données!$F$12,0,IF($N34<Données!$F$11,1,0)) -> 1 | T34: - | U34: 0 | V34: Heures en HS 40% | AE34: Total dépenses: | AF34: - | AG34: =SUM(AG22:AG32) -> 28.5
B35: 2014-12-28 | D35: 0.4895833333 | E35: 0.6145833333 | F35: 0.125 | G35: =IF($D35<>"",IF($D35<Données!$C$2,1,0),0) -> 0 | H35: 0.78125 | I35: 0.8958333333 | J35: 0.1145833333 | K35: =IF($H35<>"",IF($H35<Données!$C$3,1,0),0) -> 0 | L35: 0.2395833333 | M35: 0 | N35: 0.4791666667 | O35: =IF($N35=Données!$F$12,0,IF($N35<Données!$F$11,1,0)) -> 0 | T35: - | U35: 0 | V35: Nombre de repas
B36: Total Semaine | E36: =WEEKNUM(B29,21) -> 52 | F36: =SUM($F29:$F35) -> 0.59375 | G36: =G29+G30+G31+G32+G33+G34+G35 -> 0 | J36: =SUM(J29:J35) -> 0.9791666667 | K36: =K29+K30+K31+K32+K33+K34+K35 -> 0 | L36: =SUM(L29:L35) -> 1.572916667 | M36: =SUM(M29:M35) -> 0 | O36: =SUM(O29:O35) -> 1
B37: =B35+1 -> 2014-12-29 | D37: 0.4895833333 | E37: 0.625 | F37: =$E37-$D37+IF($D37>$E37,1) -> 0.1354166667 | G37: =IF($D37<>"",IF($D37<Données!$C$2,1,0),0) -> 0 | H37: 0.78125 | I37: 0.03125 | J37: =$I37-$H37+IF($H37>$I37,1) -> 0.25 | K37: =IF($H37<>"",IF($H37<Données!$C$3,1,0),0) -> 0 | L37: =$F37+$J37-($G37+$K37)*("00:30") -> 0.3854166667 | M37: =$G37+$K37 -> 0 | N37: =$D37-$I35+IF($I35>$D37,1) -> 0.59375 | O37: =IF($N37=Données!$F$12,0,IF($N37<Données!$F$11,1,0)) -> 0 | S37: Différence:
B38: =B37+1 -> 2014-12-30 | F38: =$E38-$D38+IF($D38>$E38,1) -> 0 | G38: =IF($D38<>"",IF($D38<Données!$C$2,1,0),0) -> 0 | J38: =$I38-$H38+IF($H38>$I38,1) -> 0 | K38: =IF($H38<>"",IF($H38<Données!$C$3,1,0),0) -> 0 | L38: =$F38+$J38-($G38+$K38)*("00:30") -> 0 | M38: =$G38+$K38 -> 0 | N38: =$D38-$I37+IF($I37>$D38,1) -> 0.96875 | O38: =IF($N38=Données!$F$12,0,IF($N38<Données!$F$11,1,0)) -> 0
B39: =B38+1 -> 2014-12-31 | F39: 0 | G39: =IF($D39<>"",IF($D39<Données!$C$2,1,0),0) -> 0 | J39: 0 | K39: =IF($H39<>"",IF($H39<Données!$C$3,1,0),0) -> 0 | L39: 0 | M39: 0 | N39: =$D39-$I38+IF($I38>$D39,1) -> 0 | O39: =IF($N39=Données!$F$12,0,IF($N39<Données!$F$11,1,0)) -> 0 | S39: Dont : | T39: - | U39: -7:25 | V39: Heures à taux normal
B40: 2015-01-01 | F40: 0 | G40: =IF($D40<>"",IF($D40<Données!$C$2,1,0),0) -> 0 | J40: 0 | K40: =IF($H40<>"",IF($H40<Données!$C$3,1,0),0) -> 0 | L40: 0 | M40: 0 | N40: 0 | O40: =IF($N40=Données!$F$12,0,IF($N40<Données!$F$11,1,0)) -> 0 | T40: - | U40: -7:18 | V40: Heures en HS 10%
B41: 2015-01-02 | F41: 0 | G41: =IF($D41<>"",IF($D41<Données!$C$2,1,0),0) -> 0 | J41: 0 | K41: =IF($H41<>"",IF($H41<Données!$C$3,1,0),0) -> 0 | L41: 0 | M41: 0 | N41: 0 | O41: =IF($N41=Données!$F$12,0,IF($N41<Données!$F$11,1,0)) -> 0 | T41: - | U41: =$U25-$U33+IF($U33>$U25,1) -> 0.0625 | V41: Heures en HS 20%
B42: 2015-01-03 | F42: 0 | G42: =IF($D42<>"",IF($D42<Données!$C$2,1,0),0) -> 0 | J42: 0 | K42: =IF($H42<>"",IF($H42<Données!$C$3,1,0),0) -> 0 | L42: 0 | M42: 0 | N42: 0 | O42: =IF($N42=Données!$F$12,0,IF($N42<Données!$F$11,1,0)) -> 0 | T42: - | V42: Heures en HS 40%
B43: 2015-01-04 | F43: 0 | G43: =IF($D43<>"",IF($D43<Données!$C$2,1,0),0) -> 0 | J43: 0 | K43: =IF($H43<>"",IF($H43<Données!$C$3,1,0),0) -> 0 | L43: 0 | M43: 0 | N43: 0 | O43: =IF($N43=Données!$F$12,0,IF($N43<Données!$F$11,1,0)) -> 0 | T43: - | U43: =SUM(U35-U27) -> 0 | V43: Nombre de repas
B44: Total Semaine | E44: =WEEKNUM(B37,21) -> 1 | F44: =SUM($F37:$F43) -> 0.1354166667 | G44: =G37+G38+G39+G40+G41+G42+G43 -> 0 | J44: =SUM(J37:J43) -> 0.25 | K44: =K37+K38+K39+K40+K41+K42+K43 -> 0 | L44: =SUM(L37:L43) -> 0.3854166667 | M44: =SUM(M37:M43) -> 0 | O44: =SUM(O37:O43) -> 0
B45: =B43+1 -> 2015-01-05 | F45: =$E45-$D45+IF($D45>$E45,1) -> 0 | G45: =IF($D45<>"",IF($D45<Données!$C$2,1,0),0) -> 0 | J45: =$I45-$H45+IF($H45>$I45,1) -> 0 | K45: =IF($H45<>"",IF($H45<Données!$C$3,1,0),0) -> 0 | L45: =$F45+$J45-($G45+$K45)*("00:30") -> 0 | M45: =$G45+$K45 -> 0 | N45: =$D45-$I43+IF($I43>$D45,1) -> 0 | O45: =IF($N45=Données!$F$12,0,IF($N45<Données!$F$11,1,0)) -> 0
B46: =B45+1 -> 2015-01-06 | F46: 0 | G46: =IF($D46<>"",IF($D46<Données!$C$2,1,0),0) -> 0 | J46: =$I46-$H46+IF($H46>$I46,1) -> 0 | K46: =IF($H46<>"",IF($H46<Données!$C$3,1,0),0) -> 0 | L46: =$F46+$J46-($G46+$K46)*("00:30") -> 0 | M46: =$G46+$K46 -> 0 | N46: =$D46-$I45+IF($I45>$D46,1) -> 0 | O46: =IF($N46=Données!$F$12,0,IF($N46<Données!$F$11,1,0)) -> 0
B47: =B46+1 -> 2015-01-07 | F47: 0 | G47: =IF($D47<>"",IF($D47<Données!$C$2,1,0),0) -> 0 | J47: 0 | K47: =IF($H47<>"",IF($H47<Données!$C$3,1,0),0) -> 0 | L47: 0 | M47: 0 | N47: =$D47-$I46+IF($I46>$D47,1) -> 0 | O47: =IF($N47=Données!$F$12,0,IF($N47<Données!$F$11,1,0)) -> 0
B48: 2015-01-08 | F48: 0 | G48: =IF($D48<>"",IF($D48<Données!$C$2,1,0),0) -> 0 | J48: 0 | K48: =IF($H48<>"",IF($H48<Données!$C$3,1,0),0) -> 0 | L48: 0 | M48: 0 | N48: 0 | O48: =IF($N48=Données!$F$12,0,IF($N48<Données!$F$11,1,0)) -> 0
B49: 2015-01-09 | F49: 0 | G49: =IF($D49<>"",IF($D49<Données!$C$2,1,0),0) -> 0 | J49: 0 | K49: =IF($H49<>"",IF($H49<Données!$C$3,1,0),0) -> 0 | L49: 0 | M49: 0 | N49: 0 | O49: =IF($N49=Données!$F$12,0,IF($N49<Données!$F$11,1,0)) -> 0
B50: 2015-01-10 | F50: 0 | G50: =IF($D50<>"",IF($D50<Données!$C$2,1,0),0) -> 0 | J50: 0 | K50: =IF($H50<>"",IF($H50<Données!$C$3,1,0),0) -> 0 | L50: 0 | M50: 0 | N50: 0 | O50: =IF($N50=Données!$F$12,0,IF($N50<Données!$F$11,1,0)) -> 0
B51: 2015-01-11 | F51: 0 | G51: =IF($D51<>"",IF($D51<Données!$C$2,1,0),0) -> 0 | J51: 0 | K51: =IF($H51<>"",IF($H51<Données!$C$3,1,0),0) -> 0 | L51: 0 | M51: 0 | N51: 0 | O51: =IF($N51=Données!$F$12,0,IF($N51<Données!$F$11,1,0)) -> 0
B52: Total semaine | E52: =WEEKNUM(B45,21) -> 2 | F52: =SUM($F45:$F51) -> 0 | G52: =G45+G46+G47+G48+G49+G50+G51 -> 0 | J52: =SUM(J45:J51) -> 0 | K52: =K45+K46+K47+K48+K49+K50+K51 -> 0 | L52: =SUM(L45:L51) -> 0 | M52: =SUM(M45:M51) -> 0 | O52: =SUM(O45:O51) -> 0
N53: 7.041666667
L54: =CodeCouleur(M54) -> 50 | N54: REPOS
L55: =CodeCouleur(M55) -> 42 | N55: Récup
L56: 48 | N56: JFG
L57: 44 | N57: VAC
L58: 3 | N58: MAL
L59: =CodeCouleur(M59) -> 40 | N59: Jf Taf
A60: Heures | C60: 1.458333333 | D60: 1.625 | E60: 1.791666667 | F60: Total
A61: Taux | B61: 1 | C61: 1.1 | D61: 1.2 | E61: 1.4
A62: S 1 | B62: =IF($L$12<=$C$60,$L$12,$C$60) -> 1.25 | C62: =IF($L$12<=$C$60,0,IF($L$12<=$D$60,$L$12,$D$60)-$C$60) -> 0 | D62: =IF($L$12<=$D$60,0,IF($L$12<=$E$60,$L$12,$D$60)-$C$60) -> 0 | E62: =IF($L$12<=$E$60,0,IF($L$12>$E$60,$L$12,$E$60)-$E$60) -> 0 | F62: =B62+C62+D62+E62 -> 1.25
A63: S 2 | B63: =IF($L$20<=$C$60,$L$20,$C$60) -> 1.458333333 | C63: =IF($L$20<=$C$60,0,IF($L$20<=$D$60,$L$20,$D$60)-$C$60) -> 0.1458333333 | D63: =IF($L$20<=$D$60,0,IF($L$20<=$E$60,$L$20,$D$60)-$C$60) -> 0 | E63: =IF($L$20<=$E$60,0,IF($L$20>$E$60,$L$20,$E$60)-$E$60) -> 0 | F63: 1.604166667
A64: S 3 | B64: =IF($L$28<=$C$60,$L$28,$C$60) -> 1.458333333 | C64: =IF($L$28<=$C$60,0,IF($L$28<=$D$60,$L$28,$D$60)-$C$60) -> 0.1666666667 | D64: 0.0625 | E64: =IF($L$28<=$E$60,0,IF($L$28>$E$60,$L$28,$E$60)-$E$60) -> 0 | F64: 1.6875
A65: S 4 | B65: =IF($L$36<=$C$60,$L$36,$C$60) -> 1.458333333 | C65: =IF($L$36<=$C$60,0,IF($L$36<=$D$60,$L$36,$D$60)-$C$60) -> 0.1145833333 | D65: =IF($L$36<=$D$60,0,IF($L$36<=$E$60,$L$36,$D$60)-$C$60) -> 0 | E65: =IF($L$36<=$E$60,0,IF($L$36>$E$60,$L$36,$E$60)-$E$60) -> 0 | F65: 1.572916667
A66: S 5 | B66: =IF($L$44<=$C$60,$L$44,$C$60) -> 0.3854166667 | C66: =IF($L$44<=$C$60,0,IF($L$44<=$D$60,$L$44,$D$60)-$C$60) -> 0 | D66: =IF($L$44<=$D$60,0,IF($L$44<=$E$60,$L$44,$D$60)-$C$60) -> 0 | E66: =IF($L$44<=$E$60,0,IF($L$44>$E$60,$L$44,$E$60)-$E$60) -> 0 | F66: 0.3854166667
A67: S 6 | B67: =IF($L$52<=$C$60,$L$52,$C$60) -> 0 | C67: =IF($L$52<=$C$60,0,IF($L$52<=$D$60,$L$52,$D$60)-$C$60) -> 0 | D67: =IF($L$52<=$D$60,0,IF($L$52<=$E$60,$L$52,$D$60)-$C$60) -> 0 | E67: =IF($L$52<=$E$60,0,IF($L$52>$E$60,$L$52,$E$60)-$E$60) -> 0 | F67: 0
A68: Total | B68: =SUM(B62:B67) -> 6.010416667 | C68: =SUM(C62:C67) -> 0.4270833333 | D68: =SUM(D62:D67) -> 0.0625 | E68: =SUM(E62:E67) -> 0 | F68: 6.5
A71: Jours | B71: Repos | C71: Récup | D71: Jfg | E71: Vac | F71: Mal | G71: Vides | H71: Taf | I71: Jf Taf | J71: <11h
A72: S 1 | B72: =NbCellsCoul($D$5:$I$11,50)*0.25 -> 2 | C72: =NbCellsCoul($D$5:$I$11,42)*0.25 -> 0 | D72: =NbCellsCoul($D$5:$I$11,48)*0.25 -> 0 | E72: =NbCellsCoul($D$5:$I$11,44)*0.25 -> 0 | F72: =NbCellsCoul($D$5:$I$11,3)*0.25 -> 0 | G72: =+COUNTBLANK(E5:H11)/2 -> 3 | H72: =7-$G72 -> 4 | I72: =NbCellsCoul($D$5:$I$11,40)*0.25 -> 0 | J72: =SUM($O$6:$O$11) -> 0
A73: S 2 | B73: =NbCellsCoul($D$13:$I$19,50)*0.25 -> 2 | C73: =NbCellsCoul($D$13:$I$19,42)*0.25 -> 0 | D73: =NbCellsCoul($D$13:$I$19,48)*0.25 -> 0 | E73: =NbCellsCoul($D$13:$I$19,44)*0.25 -> 0 | F73: =NbCellsCoul($D$13:$I$19,3)*0.25 -> 0 | G73: =+COUNTBLANK(E13:H19)/2 -> 2 | H73: 5 | I73: =NbCellsCoul($D$13:$I$19,40)*0.25 -> 0 | J73: =SUM($O$13:$O$19) -> 0
A74: S 3 | B74: =NbCellsCoul($D$21:$I$27,50)*0.25 -> 2 | C74: =NbCellsCoul($D$21:$I$27,42)*0.25 -> 0 | D74: =NbCellsCoul($D$21:$I$27,48)*0.25 -> 0 | E74: =NbCellsCoul($D$21:$I$27,44)*0.25 -> 0 | F74: =NbCellsCoul($D$21:$I$27,3)*0.25 -> 0 | G74: =+COUNTBLANK(E21:H27)/2 -> 2 | H74: 5 | I74: =NbCellsCoul($D$21:$I$27,40)*0.25 -> 1 | J74: =SUM($O$21:$O$27) -> 0
A75: S 4 | B75: =NbCellsCoul($D$29:$I$35,50)*0.25 -> 2 | C75: =NbCellsCoul($D$29:$I$35,42)*0.25 -> 0 | D75: =NbCellsCoul($D$29:$I$35,48)*0.25 -> 0 | E75: =NbCellsCoul($D$29:$I$35,44)*0.25 -> 0 | F75: =NbCellsCoul($D$29:$I$35,3)*0.25 -> 0 | G75: =+COUNTBLANK(E29:H35)/2 -> 2 | H75: 5 | I75: =NbCellsCoul($D$29:$I$35,40)*0.25 -> 1 | J75: =SUM($O$29:$O$35) -> 1
A76: S 5 | B76: =NbCellsCoul($D$37:$I$43,50)*0.25 -> 2 | C76: =NbCellsCoul($D$37:$I$43,42)*0.25 -> 0 | D76: =NbCellsCoul($D$37:$I$43,48)*0.25 -> 0 | E76: =NbCellsCoul($D$37:$I$43,44)*0.25 -> 0 | F76: =NbCellsCoul($D$37:$I$43,3)*0.25 -> 0 | G76: =+COUNTBLANK(E37:H43)/2 -> 6 | H76: 1 | I76: =NbCellsCoul($D$37:$I$43,40)*0.25 -> 0 | J76: =SUM($O$37:$O$43) -> 0
A77: S 6 | B77: =NbCellsCoul($D$45:$I$51,50)*0.25 -> 0 | C77: =NbCellsCoul($D$45:$I$51,42)*0.25 -> 0 | D77: =NbCellsCoul($D$45:$I$51,48)*0.25 -> 0 | E77: =NbCellsCoul($D$45:$I$51,44)*0.25 -> 0 | F77: =NbCellsCoul($D$45:$I$51,3)*0.25 -> 0 | G77: =+COUNTBLANK(E45:H51)/2 -> 7 | H77: 0 | I77: =NbCellsCoul($D$45:$I$51,40)*0.25 -> 0 | J77: =SUM($O$45:$O$51) -> 0
A78: Total | B78: =SUM(B$72:B$77) -> 10 | C78: 0 | D78: 0 | E78: 0 | F78: =SUM(F$72:F$77) -> 0 | G78: =SUM(G$72:G$77) -> 22 | H78: =SUM(H$72:H$77) -> 20 | I78: =SUM(I$72:I$77) -> 2 | J78: =SUM(J$72:J$77) -> 1

Sheet Mai 14
D1: TEMPS DE TRAVAIL | S1: RÉCAPITULATIF | AE1: IMPÔTS
F2: =Données!G14 -> 12 | J2: =Données!C15 -> 2014
B3: Jour | D3: Midi | F3: Cumul Midi | G3: Repas | H3: Soir | J3: Cumul Soir | K3: Repas | L3: Totaux | M3: Total Repas
D4: Début | E4: Fin | H4: Début | I4: Fin | AF4: =VLOOKUP(F2,Données!E15:F26,2) -> Décembre | AG4: =J2 -> 2014
B5: =Données!I15-WEEKDAY(Données!I15-1)+1 -> 2014-12-01 | F5: =$E5-$D5+IF($D5>$E5,1) -> 0 | G5: =IF($D5<>"",IF($D5<Données!$C$2,1,0),0) -> 0 | J5: =$I5-$H5+IF($H5>$I5,1) -> 0 | K5: =IF($H5<>"",IF($H5<Données!$C$3,1,0),0) -> 0 | L5: =$F5+$J5-($G5+$K5)*("00:30") -> 0 | M5: =$G5+$K5 -> 0
B6: =B5+1 -> 2014-12-02 | F6: =$E6-$D6+IF($D6>$E6,1) -> 0 | G6: =IF($D6<>"",IF($D6<Données!$C$2,1,0),0) -> 0 | J6: =$I6-$H6+IF($H6>$I6,1) -> 0 | K6: =IF($H6<>"",IF($H6<Données!$C$3,1,0),0) -> 0 | L6: =$F6+$J6-($G6+$K6)*("00:30") -> 0 | M6: =$G6+$K6 -> 0 | N6: =$D6-$I5+IF($I5>$D6,1) -> 0 | O6: =IF($N6=Données!$F$12,0,IF($N6<Données!$F$11,1,0)) -> 0 | S6: Soit au total pour le mois de : | U6: =VLOOKUP(F2,Données!E15:F26,2) -> Décembre | V6: =J2 -> 2014
B7: =B6+1 -> 2014-12-03 | F7: 0 | G7: =IF($D7<>"",IF($D7<Données!$C$2,1,0),0) -> 0 | J7: 0 | K7: =IF($H7<>"",IF($H7<Données!$C$3,1,0),0) -> 0 | L7: 0 | M7: 0 | N7: =$D7-$I6+IF($I6>$D7,1) -> 0 | O7: =IF($N7=Données!$F$12,0,IF($N7<Données!$F$11,1,0)) -> 0
B8: 2014-12-04 | D8: 0.4895833333 | E8: 0.6354166667 | F8: 0.1458333333 | G8: =IF($D8<>"",IF($D8<Données!$C$2,1,0),0) -> 0 | H8: 0.78125 | I8: 0.9375 | J8: 0.15625 | K8: =IF($H8<>"",IF($H8<Données!$C$3,1,0),0) -> 0 | L8: 0.3020833333 | M8: 0 | N8: =$D8-$I7+IF($I7>$D8,1) -> 0.4895833333 | O8: =IF($N8=Données!$F$12,0,IF($N8<Données!$F$11,1,0)) -> 0 | AE8: Numéro Fiscal :
B9: 2014-12-05 | D9: 0.4895833333 | E9: 0.6354166667 | F9: 0.1458333333 | G9: =IF($D9<>"",IF($D9<Données!$C$2,1,0),0) -> 0 | H9: 0.78125 | I9: 0.0625 | J9: 0.28125 | K9: =IF($H9<>"",IF($H9<Données!$C$3,1,0),0) -> 0 | L9: 0.4270833333 | M9: 0 | N9: =$D9-$I8+IF($I8>$D9,1) -> 0.5520833333 | O9: =IF($N9=Données!$F$12,0,IF($N9<Données!$F$11,1,0)) -> 0 | S9: Nombre de jours travaillés : | U9: =H78 -> 18.5 | AE9: MDP:
B10: 2014-12-06 | F10: 0 | G10: =IF($D10<>"",IF($D10<Données!$C$2,1,0),0) -> 0 | H10: 0.78125 | I10: 0.9791666667 | J10: 0.1979166667 | K10: =IF($H10<>"",IF($H10<Données!$C$3,1,0),0) -> 0 | L10: 0.1979166667 | M10: 0 | N10: =$D10-$I9+IF($I9>$D10,1) -> 0.9375 | O10: =IF($N10=Données!$F$12,0,IF($N10<Données!$F$11,1,0)) -> 0 | S10: Nombre de jours repos : | U10: =B78 -> 6
B11: 2014-12-07 | D11: 0.4895833333 | E11: 0.65625 | F11: 0.1666666667 | G11: =IF($D11<>"",IF($D11<Données!$C$2,1,0),0) -> 0 | H11: 0.78125 | I11: 0 | J11: 0.21875 | K11: =IF($H11<>"",IF($H11<Données!$C$3,1,0),0) -> 0 | L11: 0.3854166667 | M11: 0 | N11: =$D11-$I10+IF($I10>$D11,1) -> 0.5104166667 | O11: =IF($N11=Données!$F$12,0,IF($N11<Données!$F$11,1,0)) -> 0 | S11: Nombre de jours récup : | U11: =C$78 -> 0 | AE11: Adresse domicile: | AF11: -
B12: Total Semaine | E12: =WEEKNUM(B5,21) -> 49 | F12: =SUM($F5:$F11) -> 0.4583333333 | G12: =G5+G6+G7+G8+G9+G10+G11 -> 0 | J12: =SUM(J5:J11) -> 0.8541666667 | K12: =K5+K6+K7+K8+K9+K10+K11 -> 0 | L12: =SUM(L5:L11) -> 1.3125 | M12: =SUM(M5:M11) -> 0 | O12: =SUM(O6:O11) -> 0 | S12: Nombre de jfg : | U12: =D$78 -> 0
B13: =B11+1 -> 2014-12-08 | D13: 0.4895833333 | E13: 0.625 | F13: =$E13-$D13+IF($D13>$E13,1) -> 0.1354166667 | G13: =IF($D13<>"",IF($D13<Données!$C$2,1,0),0) -> 0 | H13: 0.78125 | I13: 0.9791666667 | J13: =$I13-$H13+IF($H13>$I13,1) -> 0.1979166667 | K13: =IF($H13<>"",IF($H13<Données!$C$3,1,0),0) -> 0 | L13: =$F13+$J13-($G13+$K13)*("00:30") -> 0.3333333333 | M13: =$G13+$K13 -> 0 | N13: =$D13-$I11+IF($I11>$D13,1) -> 0.4895833333 | O13: =IF($N13=Données!$F$12,0,IF($N13<Données!$F$11,1,0)) -> 0 | S13: Nombre de jours de vacances : | U13: =E$78 -> 0
B14: =B13+1 -> 2014-12-09 | F14: =$E14-$D14+IF($D14>$E14,1) -> 0 | G14: =IF($D14<>"",IF($D14<Données!$C$2,1,0),0) -> 0 | J14: =$I14-$H14+IF($H14>$I14,1) -> 0 | K14: =IF($H14<>"",IF($H14<Données!$C$3,1,0),0) -> 0 | L14: =$F14+$J14-($G14+$K14)*("00:30") -> 0 | M14: =$G14+$K14 -> 0 | N14: 0 | O14: =IF($N14=Données!$F$12,0,IF($N14<Données!$F$11,1,0)) -> 0 | S14: Nombre de jours de maladie : | U14: =F$78 -> 6
B15: =B14+1 -> 2014-12-10 | F15: 0 | G15: =IF($D15<>"",IF($D15<Données!$C$2,1,0),0) -> 0 | J15: 0 | K15: =IF($H15<>"",IF($H15<Données!$C$3,1,0),0) -> 0 | L15: 0 | M15: 0 | N15: =$D15-$I14+IF($I14>$D15,1) -> 0 | O15: =IF($N15=Données!$F$12,0,IF($N15<Données!$F$11,1,0)) -> 0 | S15: Nombre jours fériées travaillés : | U15: =I78 -> 1 | AE15: Adresse lieu de travail: | AF15: -
B16: 2014-12-11 | F16: 0 | G16: =IF($D16<>"",IF($D16<Données!$C$2,1,0),0) -> 0 | J16: 0 | K16: =IF($H16<>"",IF($H16<Données!$C$3,1,0),0) -> 0 | L16: 0.3229166667 | M16: 0 | N16: 0 | O16: =IF($N16=Données!$F$12,0,IF($N16<Données!$F$11,1,0)) -> 0 | S16: Nombre de fois 11h de batement non respecté : | U16: =J78 -> 5
B17: 2014-12-12 | F17: 0 | G17: =IF($D17<>"",IF($D17<Données!$C$2,1,0),0) -> 0 | J17: 0 | K17: =IF($H17<>"",IF($H17<Données!$C$3,1,0),0) -> 0 | L17: 0.3229166667 | M17: 0 | N17: 0 | O17: =IF($N17=Données!$F$12,0,IF($N17<Données!$F$11,1,0)) -> 0
B18: 2014-12-13 | F18: 0 | G18: =IF($D18<>"",IF($D18<Données!$C$2,1,0),0) -> 0 | J18: 0 | K18: =IF($H18<>"",IF($H18<Données!$C$3,1,0),0) -> 0 | L18: 0.3229166667 | M18: 0 | N18: 0 | O18: =IF($N18=Données!$F$12,0,IF($N18<Données!$F$11,1,0)) -> 0 | AE18: Distance ( Source Mappy) : | AF18: - | AG18: 7,4 KM
B19: 2014-12-14 | F19: 0 | G19: =IF($D19<>"",IF($D19<Données!$C$2,1,0),0) -> 0 | J19: 0 | K19: =IF($H19<>"",IF($H19<Données!$C$3,1,0),0) -> 0 | L19: 0.3229166667 | M19: 0 | N19: 0 | O19: =IF($N19=Données!$F$12,0,IF($N19<Données!$F$11,1,0)) -> 0 | U19: =SUM(L12+L20+L28+L36+L44+L52) -> 8.0625 | V19: Heures effectués
B20: Total Semaine | E20: =WEEKNUM(B13,21) -> 50 | F20: =SUM($F13:$F19) -> 0.1354166667 | G20: =G13+G14+G15+G16+G17+G18+G19 -> 0 | J20: =SUM(J13:J19) -> 0.1979166667 | K20: =K13+K14+K15+K16+K17+K18+K19 -> 0 | L20: =SUM(L13:L19) -> 1.625 | M20: =SUM(M13:M19) -> 0 | O20: =SUM(O13:O19) -> 0 | U20: =IF(U19<N53,"- "&TEXT(ABS(N53-U19),"[hh]:mm"),U19-N53) -> 1.020833333 | V20: Heures dues/supp | AE20: Nombre Aller-Retour : | AF20: - | AG20: =COUNT(E5:E11,I5:I11,E13:E19,I13:I19,E21:E27,I21:I27,E29:E35,I29:I35,E37:E43,I37:I43,E45:E51,I45:I51) -> 37
B21: =B19+1 -> 2014-12-15 | D21: 0.4895833333 | E21: 0.625 | F21: =$E21-$D21+IF($D21>$E21,1) -> 0.1354166667 | G21: =IF($D21<>"",IF($D21<Données!$C$2,1,0),0) -> 0 | H21: 0.78125 | I21: 0.9895833333 | J21: =$I21-$H21+IF($H21>$I21,1) -> 0.2083333333 | K21: =IF($H21<>"",IF($H21<Données!$C$3,1,0),0) -> 0 | L21: =$F21+$J21-($G21+$K21)*("00:30") -> 0.34375 | M21: =$G21+$K21 -> 0 | N21: =$D21-$I19+IF($I19>$D21,1) -> 0.4895833333 | O21: =IF($N21=Données!$F$12,0,IF($N21<Données!$F$11,1,0)) -> 0 | AE21: Km Parcourue : | AF21: - | AG21: =SUM(AG20*14.8) -> 547.6 | AH21: Km
B22: =B21+1 -> 2014-12-16 | D22: 0.4895833333 | E22: 0.6458333333 | F22: =$E22-$D22+IF($D22>$E22,1) -> 0.15625 | G22: =IF($D22<>"",IF($D22<Données!$C$2,1,0),0) -> 0 | J22: =$I22-$H22+IF($H22>$I22,1) -> 0 | K22: =IF($H22<>"",IF($H22<Données!$C$3,1,0),0) -> 0 | L22: =$F22+$J22-($G22+$K22)*("00:30") -> 0.15625 | M22: =$G22+$K22 -> 0 | N22: =$D22-$I21+IF($I21>$D22,1) -> 0.5 | O22: =IF($N22=Données!$F$12,0,IF($N22<Données!$F$11,1,0)) -> 0 | AE22: Horodateur Payé : | AF22: - | AG22: 22.5
B23: =B22+1 -> 2014-12-17 | F23: 0 | G23: =IF($D23<>"",IF($D23<Données!$C$2,1,0),0) -> 0 | J23: 0 | K23: =IF($H23<>"",IF($H23<Données!$C$3,1,0),0) -> 0 | L23: 0 | M23: 0 | N23: =$D23-$I22+IF($I22>$D23,1) -> 0 | O23: =IF($N23=Données!$F$12,0,IF($N23<Données!$F$11,1,0)) -> 0 | S23: Dont : | T23: - | U23: =$B$68 -> 7.145833333 | V23: Heures à taux normal ( 35h ) | AE23: Achat divers pour le travail : | AF23: -
B24: 2014-12-18 | D24: 0.4895833333 | E24: 0.6041666667 | F24: 0.1145833333 | G24: =IF($D24<>"",IF($D24<Données!$C$2,1,0),0) -> 0 | H24: 0.78125 | I24: 0.04166666667 | J24: 0.2604166667 | K24: =IF($H24<>"",IF($H24<Données!$C$3,1,0),0) -> 0 | L24: 0.375 | M24: 0 | N24: 0.4895833333 | O24: =IF($N24=Données!$F$12,0,IF($N24<Données!$F$11,1,0)) -> 0 | T24: - | U24: =$C$68 -> 0.5729166667 | V24: Heures en HS 10% ( 35h à 39h ) | AF24: -
B25: 2014-12-19 | D25: 0.4895833333 | E25: 0.6145833333 | F25: 0.125 | G25: =IF($D25<>"",IF($D25<Données!$C$2,1,0),0) -> 0 | J25: 0 | K25: =IF($H25<>"",IF($H25<Données!$C$3,1,0),0) -> 0 | L25: 0.125 | M25: 0 | N25: =$D25-$I24+IF($I24>$D25,1) -> 0.4479166667 | O25: =IF($N25=Données!$F$12,0,IF($N25<Données!$F$11,1,0)) -> 1 | T25: - | U25: =$D$68 -> 0.0625 | V25: Heures en HS 20% (39h à 43h ) | AF25: -
B26: 2014-12-20 | D26: 0.4895833333 | E26: 0.6041666667 | F26: 0.1145833333 | G26: =IF($D26<>"",IF($D26<Données!$C$2,1,0),0) -> 0 | H26: 0.78125 | I26: 0.0625 | J26: 0.28125 | K26: =IF($H26<>"",IF($H26<Données!$C$3,1,0),0) -> 0 | L26: 0.3958333333 | M26: 0 | N26: 0.4895833333 | O26: =IF($N26=Données!$F$12,0,IF($N26<Données!$F$11,1,0)) -> 0 | T26: - | U26: =$E$68 -> 0.1145833333 | V26: Heures en HS 40% ( 43h et plus ) | AF26: -
B27: 2014-12-21 | D27: 0.4895833333 | E27: 0.6145833333 | F27: 0.125 | G27: =IF($D27<>"",IF($D27<Données!$C$2,1,0),0) -> 0 | H27: 0.78125 | I27: 0.9479166667 | J27: 0.1666666667 | K27: =IF($H27<>"",IF($H27<Données!$C$3,1,0),0) -> 0 | L27: 0.2916666667 | M27: 0 | N27: 0.4270833333 | O27: =IF($N27=Données!$F$12,0,IF($N27<Données!$F$11,1,0)) -> 1 | T27: - | U27: =SUM(M12+M20+M28+M36+M44+M52) -> 1 | V27: Nombre de repas | AF27: -
B28: Total Semaine | E28: =WEEKNUM(B21,21) -> 51 | F28: =SUM($F21:$F27) -> 0.7708333333 | G28: =G21+G22+G23+G24+G25+G26+G27 -> 0 | J28: =SUM(J21:J27) -> 0.9166666667 | K28: =K21+K22+K23+K24+K25+K26+K27 -> 0 | L28: =SUM(L21:L27) -> 1.6875 | M28: =SUM(M21:M27) -> 0 | O28: =SUM(O21:O27) -> 2 | AF28: -
B29: =B27+1 -> 2014-12-22 | D29: 0.4895833333 | E29: 0.625 | F29: =$E29-$D29+IF($D29>$E29,1) -> 0.1354166667 | G29: =IF($D29<>"",IF($D29<Données!$C$2,1,0),0) -> 0 | H29: 0.78125 | I29: 0 | J29: =$I29-$H29+IF($H29>$I29,1) -> 0.21875 | K29: =IF($H29<>"",IF($H29<Données!$C$3,1,0),0) -> 0 | L29: =$F29+$J29-($G29+$K29)*("00:30") -> 0.3541666667 | M29: =$G29+$K29 -> 0 | N29: =$D29-$I27+IF($I27>$D29,1) -> 0.5416666667 | O29: =IF($N29=Données!$F$12,0,IF($N29<Données!$F$11,1,0)) -> 0 | S29: Heure fiche de paie: | AF29: -
B30: =B29+1 -> 2014-12-23 | F30: =$E30-$D30+IF($D30>$E30,1) -> 0 | G30: =IF($D30<>"",IF($D30<Données!$C$2,1,0),0) -> 0 | J30: =$I30-$H30+IF($H30>$I30,1) -> 0 | K30: =IF($H30<>"",IF($H30<Données!$C$3,1,0),0) -> 0 | L30: =$F30+$J30-($G30+$K30)*("00:30") -> 0 | M30: =$G30+$K30 -> 0 | N30: =$D30-$I29+IF($I29>$D30,1) -> 0 | O30: =IF($N30=Données!$F$12,0,IF($N30<Données!$F$11,1,0)) -> 0 | AF30: -
B31: =B30+1 -> 2014-12-24 | F31: 0 | G31: =IF($D31<>"",IF($D31<Données!$C$2,1,0),0) -> 0 | J31: 0 | K31: =IF($H31<>"",IF($H31<Données!$C$3,1,0),0) -> 0 | L31: 0 | M31: 0 | N31: =$D31-$I30+IF($I30>$D31,1) -> 0 | O31: =IF($N31=Données!$F$12,0,IF($N31<Données!$F$11,1,0)) -> 0 | S31: Dont : | T31: - | U31: 6.319444444 | V31: Heures à taux normal | AF31: -
B32: 2014-12-25 | D32: 0.4895833333 | E32: 0.6354166667 | F32: 0.1458333333 | G32: =IF($D32<>"",IF($D32<Données!$C$2,1,0),0) -> 0 | H32: 0.78125 | I32: 0.02083333333 | J32: 0.2395833333 | K32: =IF($H32<>"",IF($H32<Données!$C$3,1,0),0) -> 0 | L32: 0.3854166667 | M32: 0 | N32: 0.4895833333 | O32: =IF($N32=Données!$F$12,0,IF($N32<Données!$F$11,1,0)) -> 0 | T32: - | U32: 0.73125 | V32: Heures en HS 10% | AF32: -
B33: 2014-12-26 | D33: 0.4895833333 | E33: 0.6041666667 | F33: 0.1145833333 | G33: =IF($D33<>"",IF($D33<Données!$C$2,1,0),0) -> 0 | H33: 0.78125 | I33: 0.04166666667 | J33: 0.2604166667 | K33: =IF($H33<>"",IF($H33<Données!$C$3,1,0),0) -> 0 | L33: 0.375 | M33: 0 | N33: 0.46875 | O33: =IF($N33=Données!$F$12,0,IF($N33<Données!$F$11,1,0)) -> 0 | T33: - | U33: 0 | V33: Heures en HS 20%
B34: 2014-12-27 | D34: 0.4895833333 | E34: 0.6145833333 | F34: 0.125 | G34: =IF($D34<>"",IF($D34<Données!$C$2,1,0),0) -> 0 | H34: 0.78125 | I34: 0.04166666667 | J34: 0.2604166667 | K34: =IF($H34<>"",IF($H34<Données!$C$3,1,0),0) -> 0 | L34: 0.3854166667 | M34: 0 | N34: 0.4479166667 | O34: =IF($N34=Données!$F$12,0,IF($N34<Données!$F$11,1,0)) -> 1 | T34: - | U34: 0 | V34: Heures en HS 40% | AE34: Total dépenses: | AF34: - | AG34: =SUM(AG22:AG32) -> 22.5
B35: 2014-12-28 | D35: 0.4791666667 | E35: 0.71875 | F35: 0.2395833333 | G35: =IF($D35<>"",IF($D35<Données!$C$2,1,0),0) -> 1 | H35: 0.78125 | I35: 0.96875 | J35: 0.1875 | K35: =IF($H35<>"",IF($H35<Données!$C$3,1,0),0) -> 0 | L35: 0.40625 | M35: 1 | N35: 0.4375 | O35: =IF($N35=Données!$F$12,0,IF($N35<Données!$F$11,1,0)) -> 1 | T35: - | U35: 0 | V35: Nombre de repas
B36: Total Semaine | E36: =WEEKNUM(B29,21) -> 52 | F36: =SUM($F29:$F35) -> 0.7604166667 | G36: =G29+G30+G31+G32+G33+G34+G35 -> 1 | J36: =SUM(J29:J35) -> 1.166666667 | K36: =K29+K30+K31+K32+K33+K34+K35 -> 0 | L36: =SUM(L29:L35) -> 1.90625 | M36: =SUM(M29:M35) -> 1 | O36: =SUM(O29:O35) -> 2
B37: =B35+1 -> 2014-12-29 | D37: 0.4895833333 | E37: 0.6458333333 | F37: =$E37-$D37+IF($D37>$E37,1) -> 0.15625 | G37: =IF($D37<>"",IF($D37<Données!$C$2,1,0),0) -> 0 | H37: 0.78125 | I37: 0.02083333333 | J37: =$I37-$H37+IF($H37>$I37,1) -> 0.2395833333 | K37: =IF($H37<>"",IF($H37<Données!$C$3,1,0),0) -> 0 | L37: =$F37+$J37-($G37+$K37)*("00:30") -> 0.3958333333 | M37: =$G37+$K37 -> 0 | N37: =$D37-$I35+IF($I35>$D37,1) -> 0.5208333333 | O37: =IF($N37=Données!$F$12,0,IF($N37<Données!$F$11,1,0)) -> 0 | S37: Différence:
B38: =B37+1 -> 2014-12-30 | D38: 0.4895833333 | E38: 0.6354166667 | F38: =$E38-$D38+IF($D38>$E38,1) -> 0.1458333333 | G38: =IF($D38<>"",IF($D38<Données!$C$2,1,0),0) -> 0 | H38: 0.78125 | I38: 0.0625 | J38: =$I38-$H38+IF($H38>$I38,1) -> 0.28125 | K38: =IF($H38<>"",IF($H38<Données!$C$3,1,0),0) -> 0 | L38: =$F38+$J38-($G38+$K38)*("00:30") -> 0.4270833333 | M38: =$G38+$K38 -> 0 | N38: =$D38-$I37+IF($I37>$D38,1) -> 0.46875 | O38: =IF($N38=Données!$F$12,0,IF($N38<Données!$F$11,1,0)) -> 0
B39: =B38+1 -> 2014-12-31 | F39: 0 | G39: =IF($D39<>"",IF($D39<Données!$C$2,1,0),0) -> 0 | J39: 0 | K39: =IF($H39<>"",IF($H39<Données!$C$3,1,0),0) -> 0 | L39: 0 | M39: 0 | N39: =$D39-$I38+IF($I38>$D39,1) -> 0.9375 | O39: =IF($N39=Données!$F$12,0,IF($N39<Données!$F$11,1,0)) -> 0 | S39: Dont : | T39: - | U39: =$U31-$U23+IF($U23>$U31,1) -> 0.1736111111 | V39: Heures à taux normal
B40: 2015-01-01 | F40: 0 | G40: =IF($D40<>"",IF($D40<Données!$C$2,1,0),0) -> 0 | J40: 0 | K40: =IF($H40<>"",IF($H40<Données!$C$3,1,0),0) -> 0 | L40: 0 | M40: 0 | N40: 0 | O40: =IF($N40=Données!$F$12,0,IF($N40<Données!$F$11,1,0)) -> 0 | T40: - | U40: =$U32-$U24+IF($U24>$U32,1) -> 0.1583333333 | V40: Heures en HS 10%
B41: 2015-01-02 | D41: 0.4895833333 | E41: 0.6458333333 | F41: 0.15625 | G41: =IF($D41<>"",IF($D41<Données!$C$2,1,0),0) -> 0 | H41: 0.78125 | I41: 0.08333333333 | J41: 0.3020833333 | K41: =IF($H41<>"",IF($H41<Données!$C$3,1,0),0) -> 0 | L41: 0.4583333333 | M41: 0 | N41: 0.4895833333 | O41: =IF($N41=Données!$F$12,0,IF($N41<Données!$F$11,1,0)) -> 0 | T41: - | U41: =$U33-$U25+IF($U25>$U33,1) -> 0.9375 | V41: Heures en HS 20%
B42: 2015-01-03 | D42: 0.4895833333 | E42: 0.59375 | F42: 0.1041666667 | G42: =IF($D42<>"",IF($D42<Données!$C$2,1,0),0) -> 0 | H42: 0.8125 | I42: 0.9583333333 | J42: 0.1458333333 | K42: =IF($H42<>"",IF($H42<Données!$C$3,1,0),0) -> 0 | L42: 0.25 | M42: 0 | N42: 0.40625 | O42: =IF($N42=Données!$F$12,0,IF($N42<Données!$F$11,1,0)) -> 1 | T42: - | U42: =$U34-$U26+IF($U26>$U34,1) -> 0.8854166667 | V42: Heures en HS 40%
B43: 2015-01-04 | F43: 0 | G43: =IF($D43<>"",IF($D43<Données!$C$2,1,0),0) -> 0 | J43: 0 | K43: =IF($H43<>"",IF($H43<Données!$C$3,1,0),0) -> 0 | L43: 0 | M43: 0 | N43: 0 | O43: =IF($N43=Données!$F$12,0,IF($N43<Données!$F$11,1,0)) -> 0 | T43: - | U43: =SUM(U35-U27) -> -1 | V43: Nombre de repas
B44: Total Semaine | E44: =WEEKNUM(B37,21) -> 1 | F44: =SUM($F37:$F43) -> 0.5625 | G44: =G37+G38+G39+G40+G41+G42+G43 -> 0 | J44: =SUM(J37:J43) -> 0.96875 | K44: =K37+K38+K39+K40+K41+K42+K43 -> 0 | L44: =SUM(L37:L43) -> 1.53125 | M44: =SUM(M37:M43) -> 0 | O44: =SUM(O37:O43) -> 1
B45: =B43+1 -> 2015-01-05 | F45: =$E45-$D45+IF($D45>$E45,1) -> 0 | G45: =IF($D45<>"",IF($D45<Données!$C$2,1,0),0) -> 0 | J45: =$I45-$H45+IF($H45>$I45,1) -> 0 | K45: =IF($H45<>"",IF($H45<Données!$C$3,1,0),0) -> 0 | L45: =$F45+$J45-($G45+$K45)*("00:30") -> 0 | M45: =$G45+$K45 -> 0 | N45: =$D45-$I43+IF($I43>$D45,1) -> 0 | O45: =IF($N45=Données!$F$12,0,IF($N45<Données!$F$11,1,0)) -> 0
B46: =B45+1 -> 2015-01-06 | F46: 0 | G46: =IF($D46<>"",IF($D46<Données!$C$2,1,0),0) -> 0 | J46: =$I46-$H46+IF($H46>$I46,1) -> 0 | K46: =IF($H46<>"",IF($H46<Données!$C$3,1,0),0) -> 0 | L46: =$F46+$J46-($G46+$K46)*("00:30") -> 0 | M46: =$G46+$K46 -> 0 | N46: =$D46-$I45+IF($I45>$D46,1) -> 0 | O46: =IF($N46=Données!$F$12,0,IF($N46<Données!$F$11,1,0)) -> 0
B47: =B46+1 -> 2015-01-07 | F47: 0 | G47: =IF($D47<>"",IF($D47<Données!$C$2,1,0),0) -> 0 | J47: 0 | K47: =IF($H47<>"",IF($H47<Données!$C$3,1,0),0) -> 0 | L47: 0 | M47: 0 | N47: =$D47-$I46+IF($I46>$D47,1) -> 0 | O47: =IF($N47=Données!$F$12,0,IF($N47<Données!$F$11,1,0)) -> 0
B48: 2015-01-08 | F48: 0 | G48: =IF($D48<>"",IF($D48<Données!$C$2,1,0),0) -> 0 | J48: 0 | K48: =IF($H48<>"",IF($H48<Données!$C$3,1,0),0) -> 0 | L48: 0 | M48: 0 | N48: 0 | O48: =IF($N48=Données!$F$12,0,IF($N48<Données!$F$11,1,0)) -> 0
B49: 2015-01-09 | F49: 0 | G49: =IF($D49<>"",IF($D49<Données!$C$2,1,0),0) -> 0 | J49: 0 | K49: =IF($H49<>"",IF($H49<Données!$C$3,1,0),0) -> 0 | L49: 0 | M49: 0 | N49: 0 | O49: =IF($N49=Données!$F$12,0,IF($N49<Données!$F$11,1,0)) -> 0
B50: 2015-01-10 | F50: 0 | G50: =IF($D50<>"",IF($D50<Données!$C$2,1,0),0) -> 0 | J50: 0 | K50: =IF($H50<>"",IF($H50<Données!$C$3,1,0),0) -> 0 | L50: 0 | M50: 0 | N50: 0 | O50: =IF($N50=Données!$F$12,0,IF($N50<Données!$F$11,1,0)) -> 0
B51: 2015-01-11 | F51: 0 | G51: =IF($D51<>"",IF($D51<Données!$C$2,1,0),0) -> 0 | J51: 0 | K51: =IF($H51<>"",IF($H51<Données!$C$3,1,0),0) -> 0 | L51: 0 | M51: 0 | N51: 0 | O51: =IF($N51=Données!$F$12,0,IF($N51<Données!$F$11,1,0)) -> 0
B52: Total semaine | E52: =WEEKNUM(B45,21) -> 2 | F52: =SUM($F45:$F51) -> 0 | G52: =G45+G46+G47+G48+G49+G50+G51 -> 0 | J52: =SUM(J45:J51) -> 0 | K52: =K45+K46+K47+K48+K49+K50+K51 -> 0 | L52: =SUM(L45:L51) -> 0 | M52: =SUM(M45:M51) -> 0 | O52: =SUM(O45:O51) -> 0
N53: 7.041666667
L54: =CodeCouleur(M54) -> 50 | N54: REPOS
L55: =CodeCouleur(M55) -> 42 | N55: Récup
L56: 48 | N56: JFG
L57: 44 | N57: VAC
L58: 3 | N58: MAL
L59: =CodeCouleur(M59) -> 40 | N59: Jf Taf
A60: Heures | C60: 1.458333333 | D60: 1.625 | E60: 1.791666667 | F60: Total
A61: Taux | B61: 1 | C61: 1.1 | D61: 1.2 | E61: 1.4
A62: S 1 | B62: =IF($L$12<=$C$60,$L$12,$C$60) -> 1.3125 | C62: =IF($L$12<=$C$60,0,IF($L$12<=$D$60,$L$12,$D$60)-$C$60) -> 0 | D62: =IF($L$12<=$D$60,0,IF($L$12<=$E$60,$L$12,$D$60)-$C$60) -> 0 | E62: =IF($L$12<=$E$60,0,IF($L$12>$E$60,$L$12,$E$60)-$E$60) -> 0 | F62: =B62+C62+D62+E62 -> 1.3125
A63: S 2 | B63: =IF($L$20<=$C$60,$L$20,$C$60) -> 1.458333333 | C63: =IF($L$20<=$C$60,0,IF($L$20<=$D$60,$L$20,$D$60)-$C$60) -> 0.1666666667 | D63: =IF($L$20<=$D$60,0,IF($L$20<=$E$60,$L$20,$D$60)-$C$60) -> 0 | E63: =IF($L$20<=$E$60,0,IF($L$20>$E$60,$L$20,$E$60)-$E$60) -> 0 | F63: 1.625
A64: S 3 | B64: =IF($L$28<=$C$60,$L$28,$C$60) -> 1.458333333 | C64: =IF($L$28<=$C$60,0,IF($L$28<=$D$60,$L$28,$D$60)-$C$60) -> 0.1666666667 | D64: 0.0625 | E64: =IF($L$28<=$E$60,0,IF($L$28>$E$60,$L$28,$E$60)-$E$60) -> 0 | F64: 1.6875
A65: S 4 | B65: =IF($L$36<=$C$60,$L$36,$C$60) -> 1.458333333 | C65: =IF($L$36<=$C$60,0,IF($L$36<=$D$60,$L$36,$D$60)-$C$60) -> 0.1666666667 | D65: =NbCellsCoul($D$5:$I$11,50)*0.25 -> 0 | E65: =IF($L$36<=$E$60,0,IF($L$36>$E$60,$L$36,$E$60)-$E$60) -> 0.1145833333 | F65: 1.739583333
A66: S 5 | B66: =IF($L$44<=$C$60,$L$44,$C$60) -> 1.458333333 | C66: =IF($L$44<=$C$60,0,IF($L$44<=$D$60,$L$44,$D$60)-$C$60) -> 0.07291666667 | D66: =IF($L$44<=$D$60,0,IF($L$44<=$E$60,$L$44,$D$60)-$C$60) -> 0 | E66: =IF($L$44<=$E$60,0,IF($L$44>$E$60,$L$44,$E$60)-$E$60) -> 0 | F66: 1.53125
A67: S 6 | B67: =IF($L$52<=$C$60,$L$52,$C$60) -> 0 | C67: =IF($L$52<=$C$60,0,IF($L$52<=$D$60,$L$52,$D$60)-$C$60) -> 0 | D67: =IF($L$52<=$D$60,0,IF($L$52<=$E$60,$L$52,$D$60)-$C$60) -> 0 | E67: =IF($L$52<=$E$60,0,IF($L$52>$E$60,$L$52,$E$60)-$E$60) -> 0 | F67: 0
A68: Total | B68: =SUM(B62:B67) -> 7.145833333 | C68: =SUM(C62:C67) -> 0.5729166667 | D68: =SUM(D62:D67) -> 0.0625 | E68: =SUM(E62:E67) -> 0.1145833333 | F68: 7.895833333
A71: Jours | B71: Repos | C71: Récup | D71: Jfg | E71: Vac | F71: Mal | G71: Vides | H71: Taf | I71: Jf Taf | J71: <11h
A72: S 1 | B72: =NbCellsCoul($D$5:$I$11,50)*0.25 -> 0 | C72: =NbCellsCoul($D$5:$I$11,42)*0.25 -> 0 | D72: =NbCellsCoul($D$5:$I$11,48)*0.25 -> 0 | E72: =NbCellsCoul($D$5:$I$11,44)*0.25 -> 0 | F72: =NbCellsCoul($D$5:$I$11,3)*0.25 -> 0 | G72: =+COUNTBLANK(E5:H11)/2 -> 3.5 | H72: =7-$G72 -> 3.5 | I72: =NbCellsCoul($D$5:$I$11,40)*0.25 -> 1 | J72: =SUM($O$6:$O$11) -> 0
A73: S 2 | B73: =NbCellsCoul($D$13:$I$19,50)*0.25 -> 0 | C73: =NbCellsCoul($D$13:$I$19,42)*0.25 -> 0 | D73: =NbCellsCoul($D$13:$I$19,48)*0.25 -> 0 | E73: =NbCellsCoul($D$13:$I$19,44)*0.25 -> 0 | F73: =NbCellsCoul($D$13:$I$19,3)*0.25 -> 6 | G73: =+COUNTBLANK(E13:H19)/2 -> 6 | H73: 1 | I73: =NbCellsCoul($D$13:$I$19,40)*0.25 -> 0 | J73: =SUM($O$13:$O$19) -> 0
A74: S 3 | B74: =NbCellsCoul($D$21:$I$27,50)*0.25 -> 2 | C74: =NbCellsCoul($D$21:$I$27,42)*0.25 -> 0 | D74: =NbCellsCoul($D$21:$I$27,48)*0.25 -> 0 | E74: =NbCellsCoul($D$21:$I$27,44)*0.25 -> 0 | F74: =NbCellsCoul($D$21:$I$27,3)*0.25 -> 0 | G74: =+COUNTBLANK(E21:H27)/2 -> 2 | H74: 5 | I74: =NbCellsCoul($D$21:$I$27,40)*0.25 -> 0 | J74: =SUM($O$21:$O$27) -> 2
A75: S 4 | B75: =NbCellsCoul($D$29:$I$35,50)*0.25 -> 2 | C75: =NbCellsCoul($D$29:$I$35,42)*0.25 -> 0 | D75: =NbCellsCoul($D$29:$I$35,48)*0.25 -> 0 | E75: =NbCellsCoul($D$29:$I$35,44)*0.25 -> 0 | F75: =NbCellsCoul($D$29:$I$35,3)*0.25 -> 0 | G75: =+COUNTBLANK(E29:H35)/2 -> 2 | H75: 5 | I75: =NbCellsCoul($D$29:$I$35,40)*0.25 -> 0 | J75: =SUM($O$29:$O$35) -> 2
A76: S 5 | B76: =NbCellsCoul($D$37:$I$43,50)*0.25 -> 2 | C76: =NbCellsCoul($D$37:$I$43,42)*0.25 -> 0 | D76: =NbCellsCoul($D$37:$I$43,48)*0.25 -> 0 | E76: =NbCellsCoul($D$37:$I$43,44)*0.25 -> 0 | F76: =NbCellsCoul($D$37:$I$43,3)*0.25 -> 0 | G76: =+COUNTBLANK(E37:H43)/2 -> 3 | H76: 4 | I76: =NbCellsCoul($D$37:$I$43,40)*0.25 -> 0 | J76: =SUM($O$37:$O$43) -> 1
A77: S 6 | B77: =NbCellsCoul($D$45:$I$51,50)*0.25 -> 0 | C77: =NbCellsCoul($D$45:$I$51,42)*0.25 -> 0 | D77: =NbCellsCoul($D$45:$I$51,48)*0.25 -> 0 | E77: =NbCellsCoul($D$45:$I$51,44)*0.25 -> 0 | F77: =NbCellsCoul($D$45:$I$51,3)*0.25 -> 0 | G77: =+COUNTBLANK(E45:H51)/2 -> 7 | H77: 0 | I77: =NbCellsCoul($D$45:$I$51,40)*0.25 -> 0 | J77: =SUM($O$45:$O$51) -> 0
A78: Total | B78: =SUM(B$72:B$77) -> 6 | C78: 0 | D78: 0 | E78: 0 | F78: =SUM(F$72:F$77) -> 6 | G78: =SUM(G$72:G$77) -> 23.5 | H78: =SUM(H$72:H$77) -> 18.5 | I78: =SUM(I$72:I$77) -> 1 | J78: =SUM(J$72:J$77) -> 5

Sheet Juin 14
D1: TEMPS DE TRAVAIL | S1: RÉCAPITULATIF | AE1: IMPÔTS
F2: =Données!G14 -> 12 | J2: =Données!C15 -> 2014
B3: Jour | D3: Midi | F3: Cumul Midi | G3: Repas | H3: Soir | J3: Cumul Soir | K3: Repas | L3: Totaux | M3: Total Repas
D4: Début | E4: Fin | H4: Début | I4: Fin | AF4: =VLOOKUP(F2,Données!E15:F26,2) -> Décembre | AG4: =J2 -> 2014
B5: =Données!I15-WEEKDAY(Données!I15-1)+1 -> 2014-12-01 | F5: =$E5-$D5+IF($D5>$E5,1) -> 0 | G5: =IF($D5<>"",IF($D5<Données!$C$2,1,0),0) -> 0 | J5: =$I5-$H5+IF($H5>$I5,1) -> 0 | K5: =IF($H5<>"",IF($H5<Données!$C$3,1,0),0) -> 0 | L5: =$F5+$J5-($G5+$K5)*("00:30") -> 0 | M5: =$G5+$K5 -> 0
B6: =B5+1 -> 2014-12-02 | F6: =$E6-$D6+IF($D6>$E6,1) -> 0 | G6: =IF($D6<>"",IF($D6<Données!$C$2,1,0),0) -> 0 | J6: =$I6-$H6+IF($H6>$I6,1) -> 0 | K6: =IF($H6<>"",IF($H6<Données!$C$3,1,0),0) -> 0 | L6: =$F6+$J6-($G6+$K6)*("00:30") -> 0 | M6: =$G6+$K6 -> 0 | N6: =$D6-$I5+IF($I5>$D6,1) -> 0 | O6: =IF($N6=Données!$F$12,0,IF($N6<Données!$F$11,1,0)) -> 0 | S6: Soit au total pour le mois de : | U6: =VLOOKUP(F2,Données!E15:F26,2) -> Décembre | V6: =J2 -> 2014
B7: =B6+1 -> 2014-12-03 | F7: 0 | G7: =IF($D7<>"",IF($D7<Données!$C$2,1,0),0) -> 0 | J7: 0 | K7: =IF($H7<>"",IF($H7<Données!$C$3,1,0),0) -> 0 | L7: 0 | M7: 0 | N7: =$D7-$I6+IF($I6>$D7,1) -> 0 | O7: =IF($N7=Données!$F$12,0,IF($N7<Données!$F$11,1,0)) -> 0
B8: 2014-12-04 | F8: 0 | G8: =IF($D8<>"",IF($D8<Données!$C$2,1,0),0) -> 0 | J8: 0 | K8: =IF($H8<>"",IF($H8<Données!$C$3,1,0),0) -> 0 | L8: 0 | M8: 0 | N8: =$D8-$I7+IF($I7>$D8,1) -> 0 | O8: =IF($N8=Données!$F$12,0,IF($N8<Données!$F$11,1,0)) -> 0 | AE8: Numéro Fiscal :
B9: 2014-12-05 | F9: 0 | G9: =IF($D9<>"",IF($D9<Données!$C$2,1,0),0) -> 0 | J9: 0 | K9: =IF($H9<>"",IF($H9<Données!$C$3,1,0),0) -> 0 | L9: 0 | M9: 0 | N9: 0 | O9: =IF($N9=Données!$F$12,0,IF($N9<Données!$F$11,1,0)) -> 0 | S9: Nombre de jours travaillés : | U9: =H78 -> 22 | AE9: MDP:
B10: 2014-12-06 | F10: 0 | G10: =IF($D10<>"",IF($D10<Données!$C$2,1,0),0) -> 0 | J10: 0 | K10: =IF($H10<>"",IF($H10<Données!$C$3,1,0),0) -> 0 | L10: 0 | M10: 0 | N10: =$D10-$I9+IF($I9>$D10,1) -> 0 | O10: =IF($N10=Données!$F$12,0,IF($N10<Données!$F$11,1,0)) -> 0 | S10: Nombre de jours repos : | U10: =B78 -> 8
B11: 2014-12-07 | D11: 0.4895833333 | E11: 0.6666666667 | F11: 0.1770833333 | G11: =IF($D11<>"",IF($D11<Données!$C$2,1,0),0) -> 0 | H11: 0.7708333333 | I11: 0.9895833333 | J11: 0.21875 | K11: 0 | L11: 0.3958333333 | M11: 0 | N11: =$D11-$I10+IF($I10>$D11,1) -> 0.4895833333 | O11: =IF($N11=Données!$F$12,0,IF($N11<Données!$F$11,1,0)) -> 0 | S11: Nombre de jours récup : | U11: =C$78 -> 0 | AE11: Adresse domicile: | AF11: -
B12: Total Semaine | E12: =WEEKNUM(B5,21) -> 49 | F12: =SUM($F5:$F11) -> 0.1770833333 | G12: =G5+G6+G7+G8+G9+G10+G11 -> 0 | J12: =SUM(J5:J11) -> 0.21875 | K12: =K5+K6+K7+K8+K9+K10+K11 -> 0 | L12: =SUM(L5:L11) -> 0.3958333333 | M12: =SUM(M5:M11) -> 0 | O12: =SUM(O6:O11) -> 0 | S12: Nombre de jfg : | U12: =D$78 -> 0
B13: =B11+1 -> 2014-12-08 | D13: 0.4895833333 | E13: 0.625 | F13: =$E13-$D13+IF($D13>$E13,1) -> 0.1354166667 | G13: =IF($D13<>"",IF($D13<Données!$C$2,1,0),0) -> 0 | H13: 0.78125 | I13: 0.9895833333 | J13: =$I13-$H13+IF($H13>$I13,1) -> 0.2083333333 | K13: =IF($H13<>"",IF($H13<Données!$C$3,1,0),0) -> 0 | L13: =$F13+$J13-($G13+$K13)*("00:30") -> 0.34375 | M13: =$G13+$K13 -> 0 | N13: =$D13-$I11+IF($I11>$D13,1) -> 0.5 | O13: =IF($N13=Données!$F$12,0,IF($N13<Données!$F$11,1,0)) -> 0 | S13: Nombre de jours de vacances : | U13: =E$78 -> 0
B14: =B13+1 -> 2014-12-09 | D14: 0.4895833333 | E14: 0.6458333333 | F14: =$E14-$D14+IF($D14>$E14,1) -> 0.15625 | G14: =IF($D14<>"",IF($D14<Données!$C$2,1,0),0) -> 0 | J14: =$I14-$H14+IF($H14>$I14,1) -> 0 | K14: =IF($H14<>"",IF($H14<Données!$C$3,1,0),0) -> 0 | L14: =$F14+$J14-($G14+$K14)*("00:30") -> 0.15625 | M14: =$G14+$K14 -> 0 | N14: =$D14-$I13+IF($I13>$D14,1) -> 0.5 | O14: =IF($N14=Données!$F$12,0,IF($N14<Données!$F$11,1,0)) -> 0 | S14: Nombre de jours de maladie : | U14: =F$78 -> 0
B15: =B14+1 -> 2014-12-10 | F15: 0 | G15: =IF($D15<>"",IF($D15<Données!$C$2,1,0),0) -> 0 | J15: 0 | K15: =IF($H15<>"",IF($H15<Données!$C$3,1,0),0) -> 0 | L15: 0 | M15: 0 | N15: =$D15-$I14+IF($I14>$D15,1) -> 0 | O15: =IF($N15=Données!$F$12,0,IF($N15<Données!$F$11,1,0)) -> 0 | S15: Nombre jours fériées travaillés : | U15: =I78 -> 1 | AE15: Adresse lieu de travail: | AF15: -
B16: 2014-12-11 | F16: 0 | G16: =IF($D16<>"",IF($D16<Données!$C$2,1,0),0) -> 0 | H16: 0.78125 | I16: 0.04166666667 | J16: 0.2604166667 | K16: =IF($H16<>"",IF($H16<Données!$C$3,1,0),0) -> 0 | L16: 0.2604166667 | M16: 0 | N16: 0 | O16: =IF($N16=Données!$F$12,0,IF($N16<Données!$F$11,1,0)) -> 0 | S16: Nombre de fois 11h de batement non respecté : | U16: =J78 -> 4
B17: 2014-12-12 | D17: 0.4895833333 | E17: 0.59375 | F17: 0.1041666667 | G17: =IF($D17<>"",IF($D17<Données!$C$2,1,0),0) -> 0 | H17: 0.78125 | I17: 0.9895833333 | J17: 0.2083333333 | K17: =IF($H17<>"",IF($H17<Données!$C$3,1,0),0) -> 0 | L17: 0.3125 | M17: 0 | N17: 0.4479166667 | O17: =IF($N17=Données!$F$12,0,IF($N17<Données!$F$11,1,0)) -> 1
B18: 2014-12-13 | D18: 0.4895833333 | E18: 0.6354166667 | F18: 0.1458333333 | G18: =IF($D18<>"",IF($D18<Données!$C$2,1,0),0) -> 0 | H18: 0.78125 | I18: 0 | J18: 0.21875 | K18: =IF($H18<>"",IF($H18<Données!$C$3,1,0),0) -> 0 | L18: 0.3645833333 | M18: 0 | N18: 0.5 | O18: =IF($N18=Données!$F$12,0,IF($N18<Données!$F$11,1,0)) -> 0 | AE18: Distance ( Source Mappy) : | AF18: - | AG18: 7,4 KM
B19: 2014-12-14 | D19: 0.4895833333 | E19: 0.6666666667 | F19: 0.1770833333 | G19: =IF($D19<>"",IF($D19<Données!$C$2,1,0),0) -> 0 | H19: 0.78125 | I19: 0.05208333333 | J19: 0.2708333333 | K19: =IF($H19<>"",IF($H19<Données!$C$3,1,0),0) -> 0 | L19: 0.4479166667 | M19: 0 | N19: 0.4895833333 | O19: =IF($N19=Données!$F$12,0,IF($N19<Données!$F$11,1,0)) -> 0 | U19: =SUM(L12+L20+L28+L36+L44+L52) -> 8.083333333 | V19: Heures effectués
B20: Total Semaine | E20: =WEEKNUM(B13,21) -> 50 | F20: =SUM($F13:$F19) -> 0.71875 | G20: =G13+G14+G15+G16+G17+G18+G19 -> 0 | J20: =SUM(J13:J19) -> 1.166666667 | K20: =K13+K14+K15+K16+K17+K18+K19 -> 0 | L20: =SUM(L13:L19) -> 1.885416667 | M20: =SUM(M13:M19) -> 0 | O20: =SUM(O13:O19) -> 1 | U20: =IF(U19<N53,"- "&TEXT(ABS(N53-U19),"[hh]:mm"),U19-N53) -> 1.041666667 | V20: Heures dues/supp | AE20: Nombre Aller-Retour : | AF20: - | AG20: =COUNT(E5:E11,I5:I11,E13:E19,I13:I19,E21:E27,I21:I27,E29:E35,I29:I35,E37:E43,I37:I43,E45:E51,I45:I51) -> 44
B21: =B19+1 -> 2014-12-15 | D21: 0.4895833333 | E21: 0.6666666667 | F21: =$E21-$D21+IF($D21>$E21,1) -> 0.1770833333 | G21: =IF($D21<>"",IF($D21<Données!$C$2,1,0),0) -> 0 | H21: 0.78125 | I21: 0.01041666667 | J21: =$I21-$H21+IF($H21>$I21,1) -> 0.2291666667 | K21: =IF($H21<>"",IF($H21<Données!$C$3,1,0),0) -> 0 | L21: =$F21+$J21-($G21+$K21)*("00:30") -> 0.40625 | M21: =$G21+$K21 -> 0 | N21: =$D21-$I19+IF($I19>$D21,1) -> 0.4375 | O21: =IF($N21=Données!$F$12,0,IF($N21<Données!$F$11,1,0)) -> 1 | AE21: Km Parcourue : | AF21: - | AG21: =SUM(AG20*14.8) -> 651.2 | AH21: Km
B22: =B21+1 -> 2014-12-16 | D22: 0.4895833333 | E22: 0.6458333333 | F22: =$E22-$D22+IF($D22>$E22,1) -> 0.15625 | G22: =IF($D22<>"",IF($D22<Données!$C$2,1,0),0) -> 0 | J22: =$I22-$H22+IF($H22>$I22,1) -> 0 | K22: =IF($H22<>"",IF($H22<Données!$C$3,1,0),0) -> 0 | L22: =$F22+$J22-($G22+$K22)*("00:30") -> 0.15625 | M22: =$G22+$K22 -> 0 | N22: =$D22-$I21+IF($I21>$D22,1) -> 0.4791666667 | O22: =IF($N22=Données!$F$12,0,IF($N22<Données!$F$11,1,0)) -> 0 | AE22: Horodateur Payé : | AF22: - | AG22: 27.4
B23: =B22+1 -> 2014-12-17 | F23: 0 | G23: =IF($D23<>"",IF($D23<Données!$C$2,1,0),0) -> 0 | J23: 0 | K23: =IF($H23<>"",IF($H23<Données!$C$3,1,0),0) -> 0 | L23: 0 | M23: 0 | N23: =$D23-$I22+IF($I22>$D23,1) -> 0 | O23: =IF($N23=Données!$F$12,0,IF($N23<Données!$F$11,1,0)) -> 0 | S23: Dont : | T23: - | U23: =$B$68 -> 6.645833333 | V23: Heures à taux normal ( 35h ) | AE23: Achat divers pour le travail : | AF23: -
B24: 2014-12-18 | F24: 0 | G24: =IF($D24<>"",IF($D24<Données!$C$2,1,0),0) -> 0 | H24: 0.78125 | I24: 0.9895833333 | J24: 0.2083333333 | K24: =IF($H24<>"",IF($H24<Données!$C$3,1,0),0) -> 0 | L24: 0.2083333333 | M24: 0 | N24: 0 | O24: =IF($N24=Données!$F$12,0,IF($N24<Données!$F$11,1,0)) -> 0 | T24: - | U24: =$C$68 -> 0.6666666667 | V24: Heures en HS 10% ( 35h à 39h ) | AF24: - | AK24: =NbCellsCoul($D$5:$I$11,50)*0.25 -> 0
B25: 2014-12-19 | D25: 0.4895833333 | E25: 0.6666666667 | F25: 0.1770833333 | G25: =IF($D25<>"",IF($D25<Données!$C$2,1,0),0) -> 0 | H25: 0.78125 | I25: 0.9895833333 | J25: 0.2083333333 | K25: =IF($H25<>"",IF($H25<Données!$C$3,1,0),0) -> 0 | L25: 0.3854166667 | M25: 0 | N25: 0.5 | O25: =IF($N25=Données!$F$12,0,IF($N25<Données!$F$11,1,0)) -> 0 | T25: - | U25: =$D$68 -> 0.53125 | V25: Heures en HS 20% (39h à 43h ) | AF25: -
B26: 2014-12-20 | D26: 0.4895833333 | E26: 0.6770833333 | F26: 0.1875 | G26: =IF($D26<>"",IF($D26<Données!$C$2,1,0),0) -> 0 | H26: 0.78125 | I26: 0 | J26: 0.21875 | K26: =IF($H26<>"",IF($H26<Données!$C$3,1,0),0) -> 0 | L26: 0.40625 | M26: 0 | N26: 0.5 | O26: =IF($N26=Données!$F$12,0,IF($N26<Données!$F$11,1,0)) -> 0 | T26: - | U26: =$E$68 -> 0.2395833333 | V26: Heures en HS 40% ( 43h et plus ) | AF26: -
B27: 2014-12-21 | D27: 0.4895833333 | E27: 0.6666666667 | F27: 0.1770833333 | G27: =IF($D27<>"",IF($D27<Données!$C$2,1,0),0) -> 0 | H27: 0.78125 | I27: 0.9791666667 | J27: 0.1979166667 | K27: =IF($H27<>"",IF($H27<Données!$C$3,1,0),0) -> 0 | L27: 0.375 | M27: 0 | N27: 0.4895833333 | O27: =IF($N27=Données!$F$12,0,IF($N27<Données!$F$11,1,0)) -> 0 | T27: - | U27: =SUM(M12+M20+M28+M36+M44+M52) -> 0 | V27: Nombre de repas | AF27: -
B28: Total Semaine | E28: =WEEKNUM(B21,21) -> 51 | F28: =SUM($F21:$F27) -> 0.875 | G28: =G21+G22+G23+G24+G25+G26+G27 -> 0 | J28: =SUM(J21:J27) -> 1.0625 | K28: =K21+K22+K23+K24+K25+K26+K27 -> 0 | L28: =SUM(L21:L27) -> 1.9375 | M28: =SUM(M21:M27) -> 0 | O28: =SUM(O21:O27) -> 1 | AF28: -
B29: =B27+1 -> 2014-12-22 | D29: 0.4895833333 | E29: 0.6458333333 | F29: =$E29-$D29+IF($D29>$E29,1) -> 0.15625 | G29: =IF($D29<>"",IF($D29<Données!$C$2,1,0),0) -> 0 | H29: 0.78125 | I29: 0.9791666667 | J29: =$I29-$H29+IF($H29>$I29,1) -> 0.1979166667 | K29: =IF($H29<>"",IF($H29<Données!$C$3,1,0),0) -> 0 | L29: =$F29+$J29-($G29+$K29)*("00:30") -> 0.3541666667 | M29: =$G29+$K29 -> 0 | N29: =$D29-$I27+IF($I27>$D29,1) -> 0.5104166667 | O29: =IF($N29=Données!$F$12,0,IF($N29<Données!$F$11,1,0)) -> 0 | S29: Heure fiche de paie: | AF29: -
B30: =B29+1 -> 2014-12-23 | D30: 0.4895833333 | E30: 0.625 | F30: =$E30-$D30+IF($D30>$E30,1) -> 0.1354166667 | G30: =IF($D30<>"",IF($D30<Données!$C$2,1,0),0) -> 0 | J30: =$I30-$H30+IF($H30>$I30,1) -> 0 | K30: =IF($H30<>"",IF($H30<Données!$C$3,1,0),0) -> 0 | L30: =$F30+$J30-($G30+$K30)*("00:30") -> 0.1354166667 | M30: =$G30+$K30 -> 0 | N30: =$D30-$I29+IF($I29>$D30,1) -> 0.5104166667 | O30: =IF($N30=Données!$F$12,0,IF($N30<Données!$F$11,1,0)) -> 0 | AF30: -
B31: =B30+1 -> 2014-12-24 | F31: 0 | G31: =IF($D31<>"",IF($D31<Données!$C$2,1,0),0) -> 0 | J31: 0 | K31: =IF($H31<>"",IF($H31<Données!$C$3,1,0),0) -> 0 | L31: 0 | M31: 0 | N31: =$D31-$I30+IF($I30>$D31,1) -> 0 | O31: =IF($N31=Données!$F$12,0,IF($N31<Données!$F$11,1,0)) -> 0 | S31: Dont : | T31: - | U31: 6.319444444 | V31: Heures à taux normal | AF31: -
B32: 2014-12-25 | F32: 0 | G32: =IF($D32<>"",IF($D32<Données!$C$2,1,0),0) -> 0 | H32: 0.78125 | I32: 0 | J32: 0.21875 | K32: =IF($H32<>"",IF($H32<Données!$C$3,1,0),0) -> 0 | L32: 0.21875 | M32: 0 | N32: 0 | O32: =IF($N32=Données!$F$12,0,IF($N32<Données!$F$11,1,0)) -> 0 | T32: - | U32: 0.73125 | V32: Heures en HS 10% | AF32: -
B33: 2014-12-26 | D33: 0.4895833333 | E33: 0.5625 | F33: 0.07291666667 | G33: =IF($D33<>"",IF($D33<Données!$C$2,1,0),0) -> 0 | H33: 0.78125 | I33: 0.04166666667 | J33: 0.2604166667 | K33: =IF($H33<>"",IF($H33<Données!$C$3,1,0),0) -> 0 | L33: 0.3333333333 | M33: 0 | N33: 0.4895833333 | O33: =IF($N33=Données!$F$12,0,IF($N33<Données!$F$11,1,0)) -> 0 | T33: - | U33: 0 | V33: Heures en HS 20%
B34: 2014-12-27 | D34: 0.4895833333 | E34: 0.6145833333 | F34: 0.125 | G34: =IF($D34<>"",IF($D34<Données!$C$2,1,0),0) -> 0 | H34: 0.78125 | I34: 0.9479166667 | J34: 0.1666666667 | K34: =IF($H34<>"",IF($H34<Données!$C$3,1,0),0) -> 0 | L34: 0.2916666667 | M34: 0 | N34: 0.4479166667 | O34: =IF($N34=Données!$F$12,0,IF($N34<Données!$F$11,1,0)) -> 1 | T34: - | U34: 0 | V34: Heures en HS 40% | AE34: Total dépenses: | AF34: - | AG34: =SUM(AG22:AG32) -> 27.4
B35: 2014-12-28 | D35: 0.5 | E35: 0.6458333333 | F35: 0.1458333333 | G35: =IF($D35<>"",IF($D35<Données!$C$2,1,0),0) -> 0 | H35: 0.78125 | I35: 0.9791666667 | J35: 0.1979166667 | K35: =IF($H35<>"",IF($H35<Données!$C$3,1,0),0) -> 0 | L35: 0.34375 | M35: 0 | N35: 0.5520833333 | O35: =IF($N35=Données!$F$12,0,IF($N35<Données!$F$11,1,0)) -> 0 | T35: - | U35: 0 | V35: Nombre de repas
B36: Total Semaine | E36: =WEEKNUM(B29,21) -> 52 | F36: =SUM($F29:$F35) -> 0.6354166667 | G36: =G29+G30+G31+G32+G33+G34+G35 -> 0 | J36: =SUM(J29:J35) -> 1.041666667 | K36: =K29+K30+K31+K32+K33+K34+K35 -> 0 | L36: =SUM(L29:L35) -> 1.677083333 | M36: =SUM(M29:M35) -> 0 | O36: =SUM(O29:O35) -> 1
B37: =B35+1 -> 2014-12-29 | D37: 0.4895833333 | E37: 0.6770833333 | F37: =$E37-$D37+IF($D37>$E37,1) -> 0.1875 | G37: =IF($D37<>"",IF($D37<Données!$C$2,1,0),0) -> 0 | H37: 0.78125 | I37: 0.9895833333 | J37: =$I37-$H37+IF($H37>$I37,1) -> 0.2083333333 | K37: =IF($H37<>"",IF($H37<Données!$C$3,1,0),0) -> 0 | L37: =$F37+$J37-($G37+$K37)*("00:30") -> 0.3958333333 | M37: =$G37+$K37 -> 0 | N37: =$D37-$I35+IF($I35>$D37,1) -> 0.5104166667 | O37: =IF($N37=Données!$F$12,0,IF($N37<Données!$F$11,1,0)) -> 0 | S37: Différence:
B38: =B37+1 -> 2014-12-30 | D38: 0.4895833333 | E38: 0.6458333333 | F38: =$E38-$D38+IF($D38>$E38,1) -> 0.15625 | G38: =IF($D38<>"",IF($D38<Données!$C$2,1,0),0) -> 0 | J38: =$I38-$H38+IF($H38>$I38,1) -> 0 | K38: =IF($H38<>"",IF($H38<Données!$C$3,1,0),0) -> 0 | L38: =$F38+$J38-($G38+$K38)*("00:30") -> 0.15625 | M38: =$G38+$K38 -> 0 | N38: =$D38-$I37+IF($I37>$D38,1) -> 0.5 | O38: =IF($N38=Données!$F$12,0,IF($N38<Données!$F$11,1,0)) -> 0
B39: =B38+1 -> 2014-12-31 | F39: 0 | G39: =IF($D39<>"",IF($D39<Données!$C$2,1,0),0) -> 0 | J39: 0 | K39: =IF($H39<>"",IF($H39<Données!$C$3,1,0),0) -> 0 | L39: 0 | M39: 0 | N39: =$D39-$I38+IF($I38>$D39,1) -> 0 | O39: =IF($N39=Données!$F$12,0,IF($N39<Données!$F$11,1,0)) -> 0 | S39: Dont : | T39: - | U39: =$U31-$U23+IF($U23>$U31,1) -> 0.6736111111 | V39: Heures à taux normal
B40: 2015-01-01 | F40: 0 | G40: =IF($D40<>"",IF($D40<Données!$C$2,1,0),0) -> 0 | H40: 0.78125 | I40: 0.9583333333 | J40: 0.1770833333 | K40: =IF($H40<>"",IF($H40<Données!$C$3,1,0),0) -> 0 | L40: 0.1770833333 | M40: 0 | N40: 0 | O40: =IF($N40=Données!$F$12,0,IF($N40<Données!$F$11,1,0)) -> 0 | T40: - | U40: =$U32-$U24+IF($U24>$U32,1) -> 0.06458333333 | V40: Heures en HS 10%
B41: 2015-01-02 | D41: 0.4895833333 | E41: 0.625 | F41: 0.1354166667 | G41: =IF($D41<>"",IF($D41<Données!$C$2,1,0),0) -> 0 | H41: 0.8333333333 | I41: 0 | J41: 0.1666666667 | K41: =IF($H41<>"",IF($H41<Données!$C$3,1,0),0) -> 0 | L41: 0.3020833333 | M41: 0 | N41: 0.53125 | O41: =IF($N41=Données!$F$12,0,IF($N41<Données!$F$11,1,0)) -> 0 | T41: - | U41: =$U33-$U25+IF($U25>$U33,1) -> 0.46875 | V41: Heures en HS 20%
B42: 2015-01-03 | D42: 0.4895833333 | E42: 0.6458333333 | F42: 0.15625 | G42: =IF($D42<>"",IF($D42<Données!$C$2,1,0),0) -> 0 | H42: 0.78125 | I42: 0.9791666667 | J42: 0.1979166667 | K42: =IF($H42<>"",IF($H42<Données!$C$3,1,0),0) -> 0 | L42: 0.3541666667 | M42: 0 | N42: 0.4895833333 | O42: =IF($N42=Données!$F$12,0,IF($N42<Données!$F$11,1,0)) -> 0 | T42: - | U42: =$U34-$U26+IF($U26>$U34,1) -> 0.7604166667 | V42: Heures en HS 40%
B43: 2015-01-04 | D43: 0.4895833333 | E43: 0.6666666667 | F43: 0.1770833333 | G43: =IF($D43<>"",IF($D43<Données!$C$2,1,0),0) -> 0 | H43: 0.78125 | I43: 0.9895833333 | J43: 0.2083333333 | K43: =IF($H43<>"",IF($H43<Données!$C$3,1,0),0) -> 0 | L43: 0.3854166667 | M43: 0 | N43: 0.5104166667 | O43: =IF($N43=Données!$F$12,0,IF($N43<Données!$F$11,1,0)) -> 0 | T43: - | U43: =SUM(U35-U27) -> 0 | V43: Nombre de repas
B44: Total Semaine | E44: =WEEKNUM(B37,21) -> 1 | F44: =SUM($F37:$F43) -> 0.8125 | G44: =G37+G38+G39+G40+G41+G42+G43 -> 0 | J44: =SUM(J37:J43) -> 0.9583333333 | K44: =K37+K38+K39+K40+K41+K42+K43 -> 0 | L44: =SUM(L37:L43) -> 1.770833333 | M44: =SUM(M37:M43) -> 0 | O44: =SUM(O37:O43) -> 0
B45: =B43+1 -> 2015-01-05 | D45: 0.4895833333 | E45: 0.625 | F45: =$E45-$D45+IF($D45>$E45,1) -> 0.1354166667 | G45: =IF($D45<>"",IF($D45<Données!$C$2,1,0),0) -> 0 | H45: 0.78125 | I45: 0.0625 | J45: =$I45-$H45+IF($H45>$I45,1) -> 0.28125 | K45: =IF($H45<>"",IF($H45<Données!$C$3,1,0),0) -> 0 | L45: =$F45+$J45-($G45+$K45)*("00:30") -> 0.4166666667 | M45: =$G45+$K45 -> 0 | N45: =$D45-$I43+IF($I43>$D45,1) -> 0.5 | O45: =IF($N45=Données!$F$12,0,IF($N45<Données!$F$11,1,0)) -> 0
B46: =B45+1 -> 2015-01-06 | F46: 0 | G46: =IF($D46<>"",IF($D46<Données!$C$2,1,0),0) -> 0 | J46: =$I46-$H46+IF($H46>$I46,1) -> 0 | K46: =IF($H46<>"",IF($H46<Données!$C$3,1,0),0) -> 0 | L46: =$F46+$J46-($G46+$K46)*("00:30") -> 0 | M46: =$G46+$K46 -> 0 | N46: =$D46-$I45+IF($I45>$D46,1) -> 0.9375 | O46: =IF($N46=Données!$F$12,0,IF($N46<Données!$F$11,1,0)) -> 0
B47: =B46+1 -> 2015-01-07 | F47: 0 | G47: =IF($D47<>"",IF($D47<Données!$C$2,1,0),0) -> 0 | J47: 0 | K47: =IF($H47<>"",IF($H47<Données!$C$3,1,0),0) -> 0 | L47: 0 | M47: 0 | N47: =$D47-$I46+IF($I46>$D47,1) -> 0 | O47: =IF($N47=Données!$F$12,0,IF($N47<Données!$F$11,1,0)) -> 0
B48: 2015-01-08 | F48: 0 | G48: =IF($D48<>"",IF($D48<Données!$C$2,1,0),0) -> 0 | J48: 0 | K48: =IF($H48<>"",IF($H48<Données!$C$3,1,0),0) -> 0 | L48: 0 | M48: 0 | N48: 0 | O48: =IF($N48=Données!$F$12,0,IF($N48<Données!$F$11,1,0)) -> 0
B49: 2015-01-09 | F49: 0 | G49: =IF($D49<>"",IF($D49<Données!$C$2,1,0),0) -> 0 | J49: 0 | K49: =IF($H49<>"",IF($H49<Données!$C$3,1,0),0) -> 0 | L49: 0 | M49: 0 | N49: 0 | O49: =IF($N49=Données!$F$12,0,IF($N49<Données!$F$11,1,0)) -> 0
B50: 2015-01-10 | F50: 0 | G50: =IF($D50<>"",IF($D50<Données!$C$2,1,0),0) -> 0 | J50: 0 | K50: =IF($H50<>"",IF($H50<Données!$C$3,1,0),0) -> 0 | L50: 0 | M50: 0 | N50: 0 | O50: =IF($N50=Données!$F$12,0,IF($N50<Données!$F$11,1,0)) -> 0
B51: 2015-01-11 | F51: 0 | G51: =IF($D51<>"",IF($D51<Données!$C$2,1,0),0) -> 0 | J51: 0 | K51: =IF($H51<>"",IF($H51<Données!$C$3,1,0),0) -> 0 | L51: 0 | M51: 0 | N51: 0 | O51: 1
B52: Total semaine | E52: =WEEKNUM(B45,21) -> 2 | F52: =SUM($F45:$F51) -> 0.1354166667 | G52: =G45+G46+G47+G48+G49+G50+G51 -> 0 | J52: =SUM(J45:J51) -> 0.28125 | K52: =K45+K46+K47+K48+K49+K50+K51 -> 0 | L52: =SUM(L45:L51) -> 0.4166666667 | M52: =SUM(M45:M51) -> 0 | O52: =SUM(O45:O51) -> 1
N53: 7.041666667
L54: =CodeCouleur(M54) -> 50 | N54: REPOS
L55: =CodeCouleur(M55) -> 42 | N55: Récup
L56: 48 | N56: JFG
L57: 44 | N57: VAC
L58: 3 | N58: MAL
L59: =CodeCouleur(M59) -> 40 | N59: Jf Taf
A60: Heures | C60: 1.458333333 | D60: 1.625 | E60: 1.791666667 | F60: Total
A61: Taux | B61: 1 | C61: 1.1 | D61: 1.2 | E61: 1.4
A62: S 1 | B62: =IF($L$12<=$C$60,$L$12,$C$60) -> 0.3958333333 | C62: =IF($L$12<=$C$60,0,IF($L$12<=$D$60,$L$12,$D$60)-$C$60) -> 0 | D62: =IF($L$12<=$D$60,0,IF($L$12<=$E$60,$L$12,$D$60)-$C$60) -> 0 | E62: =IF($L$12<=$E$60,0,IF($L$12>$E$60,$L$12,$E$60)-$E$60) -> 0 | F62: =B62+C62+D62+E62 -> 0.3958333333
A63: S 2 | B63: =IF($L$20<=$C$60,$L$20,$C$60) -> 1.458333333 | C63: =IF($L$20<=$C$60,0,IF($L$20<=$D$60,$L$20,$D$60)-$C$60) -> 0.1666666667 | D63: =IF($L$20<=$D$60,0,IF($L$20<=$E$60,$L$20,$D$60)-$C$60) -> 0.1666666667 | E63: =IF($L$20<=$E$60,0,IF($L$20>$E$60,$L$20,$E$60)-$E$60) -> 0.09375 | F63: 1.885416667
A64: S 3 | B64: =IF($L$28<=$C$60,$L$28,$C$60) -> 1.458333333 | C64: =IF($L$28<=$C$60,0,IF($L$28<=$D$60,$L$28,$D$60)-$C$60) -> 0.1666666667 | D64: =IF($L$28<=$D$60,0,IF($L$28<=$E$60,$L$28,$D$60)-$C$60) -> 0.1666666667 | E64: =IF($L$28<=$E$60,0,IF($L$28>$E$60,$L$28,$E$60)-$E$60) -> 0.1458333333 | F64: 1.9375
A65: S 4 | B65: =IF($L$36<=$C$60,$L$36,$C$60) -> 1.458333333 | C65: =IF($L$36<=$C$60,0,IF($L$36<=$D$60,$L$36,$D$60)-$C$60) -> 0.1666666667 | D65: 0.05208333333 | E65: =IF($L$36<=$E$60,0,IF($L$36>$E$60,$L$36,$E$60)-$E$60) -> 0 | F65: 1.677083333
A66: S 5 | B66: =IF($L$44<=$C$60,$L$44,$C$60) -> 1.458333333 | C66: =IF($L$44<=$C$60,0,IF($L$44<=$D$60,$L$44,$D$60)-$C$60) -> 0.1666666667 | D66: 0.1458333333 | E66: =IF($L$44<=$E$60,0,IF($L$44>$E$60,$L$44,$E$60)-$E$60) -> 0 | F66: 1.770833333
A67: S 6 | B67: =IF($L$52<=$C$60,$L$52,$C$60) -> 0.4166666667 | C67: =IF($L$52<=$C$60,0,IF($L$52<=$D$60,$L$52,$D$60)-$C$60) -> 0 | D67: =IF($L$52<=$D$60,0,IF($L$52<=$E$60,$L$52,$D$60)-$C$60) -> 0 | E67: =IF($L$52<=$E$60,0,IF($L$52>$E$60,$L$52,$E$60)-$E$60) -> 0 | F67: 0.4166666667
A68: Total | B68: =SUM(B62:B67) -> 6.645833333 | C68: =SUM(C62:C67) -> 0.6666666667 | D68: =SUM(D62:D67) -> 0.53125 | E68: =SUM(E62:E67) -> 0.2395833333 | F68: 8.083333333
A71: Jours | B71: Repos | C71: Récup | D71: Jfg | E71: Vac | F71: Mal | G71: Vides | H71: Taf | I71: Jf Taf | J71: <11h
A72: S 1 | B72: =NbCellsCoul($D$5:$I$11,50)*0.25 -> 0 | C72: =NbCellsCoul($D$5:$I$11,42)*0.25 -> 0 | D72: =NbCellsCoul($D$5:$I$11,48)*0.25 -> 0 | E72: =NbCellsCoul($D$5:$I$11,44)*0.25 -> 0 | F72: =NbCellsCoul($D$5:$I$11,3)*0.25 -> 0 | G72: =+COUNTBLANK(E5:H11)/2 -> 6 | H72: =7-$G72 -> 1 | I72: =NbCellsCoul($D$5:$I$11,40)*0.25 -> 0 | J72: =SUM($O$6:$O$11) -> 0
A73: S 2 | B73: =NbCellsCoul($D$13:$I$19,50)*0.25 -> 2 | C73: =NbCellsCoul($D$13:$I$19,42)*0.25 -> 0 | D73: =NbCellsCoul($D$13:$I$19,48)*0.25 -> 0 | E73: =NbCellsCoul($D$13:$I$19,44)*0.25 -> 0 | F73: =NbCellsCoul($D$13:$I$19,3)*0.25 -> 0 | G73: =+COUNTBLANK(E13:H19)/2 -> 2 | H73: 5 | I73: =NbCellsCoul($D$13:$I$19,40)*0.25 -> 0 | J73: =SUM($O$13:$O$19) -> 1
A74: S 3 | B74: =NbCellsCoul($D$21:$I$27,50)*0.25 -> 2 | C74: =NbCellsCoul($D$21:$I$27,42)*0.25 -> 0 | D74: =NbCellsCoul($D$21:$I$27,48)*0.25 -> 0 | E74: =NbCellsCoul($D$21:$I$27,44)*0.25 -> 0 | F74: =NbCellsCoul($D$21:$I$27,3)*0.25 -> 0 | G74: =+COUNTBLANK(E21:H27)/2 -> 2 | H74: 5 | I74: =NbCellsCoul($D$21:$I$27,40)*0.25 -> 1 | J74: =SUM($O$21:$O$27) -> 1
A75: S 4 | B75: =NbCellsCoul($D$29:$I$35,50)*0.25 -> 2 | C75: =NbCellsCoul($D$29:$I$35,42)*0.25 -> 0 | D75: =NbCellsCoul($D$29:$I$35,48)*0.25 -> 0 | E75: =NbCellsCoul($D$29:$I$35,44)*0.25 -> 0 | F75: =NbCellsCoul($D$29:$I$35,3)*0.25 -> 0 | G75: =+COUNTBLANK(E29:H35)/2 -> 2 | H75: 5 | I75: =NbCellsCoul($D$29:$I$35,40)*0.25 -> 0 | J75: =SUM($O$29:$O$35) -> 1
A76: S 5 | B76: =NbCellsCoul($D$37:$I$43,50)*0.25 -> 2 | C76: =NbCellsCoul($D$37:$I$43,42)*0.25 -> 0 | D76: =NbCellsCoul($D$37:$I$43,48)*0.25 -> 0 | E76: =NbCellsCoul($D$37:$I$43,44)*0.25 -> 0 | F76: =NbCellsCoul($D$37:$I$43,3)*0.25 -> 0 | G76: =+COUNTBLANK(E37:H43)/2 -> 2 | H76: 5 | I76: =NbCellsCoul($D$37:$I$43,40)*0.25 -> 0 | J76: =SUM($O$37:$O$43) -> 0
A77: S 6 | B77: =NbCellsCoul($D$45:$I$51,50)*0.25 -> 0 | C77: =NbCellsCoul($D$45:$I$51,42)*0.25 -> 0 | D77: =NbCellsCoul($D$45:$I$51,48)*0.25 -> 0 | E77: =NbCellsCoul($D$45:$I$51,44)*0.25 -> 0 | F77: =NbCellsCoul($D$45:$I$51,3)*0.25 -> 0 | G77: =+COUNTBLANK(E45:H51)/2 -> 6 | H77: 1 | I77: =NbCellsCoul($D$45:$I$51,40)*0.25 -> 0 | J77: =SUM($O$45:$O$51) -> 1
A78: Total | B78: =SUM(B$72:B$77) -> 8 | C78: 0 | D78: 0 | E78: 0 | F78: =SUM(F$72:F$77) -> 0 | G78: =SUM(G$72:G$77) -> 20 | H78: =SUM(H$72:H$77) -> 22 | I78: =SUM(I$72:I$77) -> 1 | J78: =SUM(J$72:J$77) -> 4

Sheet Juill 14
D1: TEMPS DE TRAVAIL | S1: RÉCAPITULATIF | AE1: IMPÔTS
F2: =Données!G14 -> 12 | J2: =Données!C15 -> 2014
B3: Jour | D3: Midi | F3: Cumul Midi | G3: Repas | H3: Soir | J3: Cumul Soir | K3: Repas | L3: Totaux | M3: Total Repas
D4: Début | E4: Fin | H4: Début | I4: Fin | AF4: =VLOOKUP(F2,Données!E15:F26,2) -> Décembre | AG4: =J2 -> 2014
B5: =Données!I15-WEEKDAY(Données!I15-1)+1 -> 2014-12-01 | F5: =$E5-$D5+IF($D5>$E5,1) -> 0 | G5: =IF($D5<>"",IF($D5<Données!$C$2,1,0),0) -> 0 | J5: =$I5-$H5+IF($H5>$I5,1) -> 0 | K5: =IF($H5<>"",IF($H5<Données!$C$3,1,0),0) -> 0 | L5: =$F5+$J5-($G5+$K5)*("00:30") -> 0 | M5: =$G5+$K5 -> 0
B6: =B5+1 -> 2014-12-02 | D6: 0.4895833333 | E6: 0.6354166667 | F6: =$E6-$D6+IF($D6>$E6,1) -> 0.1458333333 | G6: =IF($D6<>"",IF($D6<Données!$C$2,1,0),0) -> 0 | J6: =$I6-$H6+IF($H6>$I6,1) -> 0 | K6: =IF($H6<>"",IF($H6<Données!$C$3,1,0),0) -> 0 | L6: =$F6+$J6-($G6+$K6)*("00:30") -> 0.1458333333 | M6: =$G6+$K6 -> 0 | N6: =$D6-$I5+IF($I5>$D6,1) -> 0.4895833333 | O6: =IF($N6=Données!$F$12,0,IF($N6<Données!$F$11,1,0)) -> 0 | S6: Soit au total pour le mois de : | U6: =VLOOKUP(F2,Données!E15:F26,2) -> Décembre | V6: =J2 -> 2014
B7: =B6+1 -> 2014-12-03 | F7: 0 | G7: =IF($D7<>"",IF($D7<Données!$C$2,1,0),0) -> 0 | J7: 0 | K7: =IF($H7<>"",IF($H7<Données!$C$3,1,0),0) -> 0 | L7: 0 | M7: 0 | N7: =$D7-$I6+IF($I6>$D7,1) -> 0 | O7: =IF($N7=Données!$F$12,0,IF($N7<Données!$F$11,1,0)) -> 0
B8: 2014-12-04 | F8: 0 | G8: =IF($D8<>"",IF($D8<Données!$C$2,1,0),0) -> 0 | H8: 0.78125 | I8: 0.01041666667 | J8: 0.2291666667 | K8: =IF($H8<>"",IF($H8<Données!$C$3,1,0),0) -> 0 | L8: 0.2291666667 | M8: 0 | N8: =$D8-$I7+IF($I7>$D8,1) -> 0 | O8: =IF($N8=Données!$F$12,0,IF($N8<Données!$F$11,1,0)) -> 0 | AE8: Numéro Fiscal :
B9: 2014-12-05 | D9: 0.4895833333 | E9: 0.65625 | F9: 0.1666666667 | G9: =IF($D9<>"",IF($D9<Données!$C$2,1,0),0) -> 0 | H9: 0.78125 | I9: 0.9895833333 | J9: 0.2083333333 | K9: =IF($H9<>"",IF($H9<Données!$C$3,1,0),0) -> 0 | L9: 0.375 | M9: 0 | N9: 0.4791666667 | O9: =IF($N9=Données!$F$12,0,IF($N9<Données!$F$11,1,0)) -> 0 | S9: Nombre de jours travaillés : | U9: =H78 -> 21 | AE9: MDP:
B10: 2014-12-06 | D10: 0.4895833333 | E10: 0.6354166667 | F10: 0.1458333333 | G10: =IF($D10<>"",IF($D10<Données!$C$2,1,0),0) -> 0 | H10: 0.8333333333 | I10: 0.9479166667 | J10: 0.1145833333 | K10: =IF($H10<>"",IF($H10<Données!$C$3,1,0),0) -> 0 | L10: 0.2604166667 | M10: 0 | N10: =$D10-$I9+IF($I9>$D10,1) -> 0.5 | O10: =IF($N10=Données!$F$12,0,IF($N10<Données!$F$11,1,0)) -> 0 | S10: Nombre de jours repos : | U10: =B78 -> 10
B11: 2014-12-07 | D11: 0.4895833333 | E11: 0.6458333333 | F11: 0.15625 | G11: =IF($D11<>"",IF($D11<Données!$C$2,1,0),0) -> 0 | H11: 0.78125 | I11: 0.01041666667 | J11: 0.2291666667 | K11: =IF($H11<>"",IF($H11<Données!$C$3,1,0),0) -> 0 | L11: 0.3854166667 | M11: 0 | N11: =$D11-$I10+IF($I10>$D11,1) -> 0.5416666667 | O11: =IF($N11=Données!$F$12,0,IF($N11<Données!$F$11,1,0)) -> 0 | S11: Nombre de jours récup : | U11: =C$78 -> 0 | AE11: Adresse domicile: | AF11: -
B12: Total Semaine | E12: =WEEKNUM(B5,21) -> 49 | F12: =SUM($F5:$F11) -> 0.6145833333 | G12: =G5+G6+G7+G8+G9+G10+G11 -> 0 | J12: =SUM(J5:J11) -> 0.78125 | K12: =K5+K6+K7+K8+K9+K10+K11 -> 0 | L12: =SUM(L5:L11) -> 1.395833333 | M12: =SUM(M5:M11) -> 0 | O12: =SUM(O6:O11) -> 0 | S12: Nombre de jfg : | U12: =D$78 -> 0
B13: =B11+1 -> 2014-12-08 | D13: 0.4895833333 | E13: 0.6666666667 | F13: =$E13-$D13+IF($D13>$E13,1) -> 0.1770833333 | G13: =IF($D13<>"",IF($D13<Données!$C$2,1,0),0) -> 0 | H13: 0.78125 | I13: 0.04166666667 | J13: =$I13-$H13+IF($H13>$I13,1) -> 0.2604166667 | K13: =IF($H13<>"",IF($H13<Données!$C$3,1,0),0) -> 0 | L13: =$F13+$J13-($G13+$K13)*("00:30") -> 0.4375 | M13: =$G13+$K13 -> 0 | N13: =$D13-$I11+IF($I11>$D13,1) -> 0.4791666667 | O13: =IF($N13=Données!$F$12,0,IF($N13<Données!$F$11,1,0)) -> 0 | S13: Nombre de jours de vacances : | U13: =E$78 -> 0
B14: =B13+1 -> 2014-12-09 | D14: 0.4895833333 | E14: 0.6145833333 | F14: =$E14-$D14+IF($D14>$E14,1) -> 0.125 | G14: =IF($D14<>"",IF($D14<Données!$C$2,1,0),0) -> 0 | J14: =$I14-$H14+IF($H14>$I14,1) -> 0 | K14: =IF($H14<>"",IF($H14<Données!$C$3,1,0),0) -> 0 | L14: =$F14+$J14-($G14+$K14)*("00:30") -> 0.125 | M14: =$G14+$K14 -> 0 | N14: =$D14-$I13+IF($I13>$D14,1) -> 0.4479166667 | O14: =IF($N14=Données!$F$12,0,IF($N14<Données!$F$11,1,0)) -> 1 | S14: Nombre de jours de maladie : | U14: =F$78 -> 0
B15: =B14+1 -> 2014-12-10 | F15: 0 | G15: =IF($D15<>"",IF($D15<Données!$C$2,1,0),0) -> 0 | J15: 0 | K15: =IF($H15<>"",IF($H15<Données!$C$3,1,0),0) -> 0 | L15: 0 | M15: 0 | N15: =$D15-$I14+IF($I14>$D15,1) -> 0 | O15: =IF($N15=Données!$F$12,0,IF($N15<Données!$F$11,1,0)) -> 0 | S15: Nombre jours fériées travaillés : | U15: =I78 -> 1 | AE15: Adresse lieu de travail: | AF15: -
B16: 2014-12-11 | F16: 0 | G16: =IF($D16<>"",IF($D16<Données!$C$2,1,0),0) -> 0 | H16: 0.78125 | I16: 0.9166666667 | J16: 0.1354166667 | K16: =IF($H16<>"",IF($H16<Données!$C$3,1,0),0) -> 0 | L16: 0.1354166667 | M16: 0 | N16: 0 | O16: =IF($N16=Données!$F$12,0,IF($N16<Données!$F$11,1,0)) -> 0 | S16: Nombre de fois 11h de batement non respecté : | U16: =J78 -> 4
B17: 2014-12-12 | D17: 0.4895833333 | E17: 0.6041666667 | F17: 0.1145833333 | G17: =IF($D17<>"",IF($D17<Données!$C$2,1,0),0) -> 0 | H17: 0.78125 | I17: 0.9583333333 | J17: 0.1770833333 | K17: =IF($H17<>"",IF($H17<Données!$C$3,1,0),0) -> 0 | L17: 0.2916666667 | M17: 0 | N17: 0.5729166667 | O17: =IF($N17=Données!$F$12,0,IF($N17<Données!$F$11,1,0)) -> 0
B18: 2014-12-13 | D18: 0.4895833333 | E18: 0.625 | F18: 0.1354166667 | G18: =IF($D18<>"",IF($D18<Données!$C$2,1,0),0) -> 0 | H18: 0.78125 | I18: 0.02083333333 | J18: 0.2395833333 | K18: =IF($H18<>"",IF($H18<Données!$C$3,1,0),0) -> 0 | L18: 0.375 | M18: 0 | N18: 0.53125 | O18: =IF($N18=Données!$F$12,0,IF($N18<Données!$F$11,1,0)) -> 0 | AE18: Distance ( Source Mappy) : | AF18: - | AG18: 7,4 KM
B19: 2014-12-14 | D19: 0.4895833333 | E19: 0.6145833333 | F19: 0.125 | G19: =IF($D19<>"",IF($D19<Données!$C$2,1,0),0) -> 0 | H19: 0.78125 | I19: 0.9791666667 | J19: 0.1979166667 | K19: =IF($H19<>"",IF($H19<Données!$C$3,1,0),0) -> 0 | L19: 0.3229166667 | M19: 0 | N19: 0.46875 | O19: =IF($N19=Données!$F$12,0,IF($N19<Données!$F$11,1,0)) -> 0 | U19: =SUM(L12+L20+L28+L36+L44+L52) -> 7.791666667 | V19: Heures effectués
B20: Total Semaine | E20: =WEEKNUM(B13,21) -> 50 | F20: =SUM($F13:$F19) -> 0.6770833333 | G20: =G13+G14+G15+G16+G17+G18+G19 -> 0 | J20: =SUM(J13:J19) -> 1.010416667 | K20: =K13+K14+K15+K16+K17+K18+K19 -> 0 | L20: =SUM(L13:L19) -> 1.6875 | M20: =SUM(M13:M19) -> 0 | O20: =SUM(O13:O19) -> 1 | U20: =IF(U19<N53,"- "&TEXT(ABS(N53-U19),"[hh]:mm"),U19-N53) -> 0.75 | V20: Heures dues/supp | AE20: Nombre Aller-Retour : | AF20: - | AG20: =COUNT(E5:E11,I5:I11,E13:E19,I13:I19,E21:E27,I21:I27,E29:E35,I29:I35,E37:E43,I37:I43,E45:E51,I45:I51) -> 42
B21: =B19+1 -> 2014-12-15 | D21: 0.4895833333 | E21: 0.6458333333 | F21: =$E21-$D21+IF($D21>$E21,1) -> 0.15625 | G21: =IF($D21<>"",IF($D21<Données!$C$2,1,0),0) -> 0 | H21: 0.78125 | I21: 0.02083333333 | J21: =$I21-$H21+IF($H21>$I21,1) -> 0.2395833333 | K21: =IF($H21<>"",IF($H21<Données!$C$3,1,0),0) -> 0 | L21: =$F21+$J21-($G21+$K21)*("00:30") -> 0.3958333333 | M21: =$G21+$K21 -> 0 | N21: =$D21-$I19+IF($I19>$D21,1) -> 0.5104166667 | O21: =IF($N21=Données!$F$12,0,IF($N21<Données!$F$11,1,0)) -> 0 | AE21: Km Parcourue : | AF21: - | AG21: =SUM(AG20*14.8) -> 621.6 | AH21: Km
B22: =B21+1 -> 2014-12-16 | D22: 0.4895833333 | E22: 0.6145833333 | F22: =$E22-$D22+IF($D22>$E22,1) -> 0.125 | G22: =IF($D22<>"",IF($D22<Données!$C$2,1,0),0) -> 0 | H22: 0.78125 | I22: 0.03125 | J22: =$I22-$H22+IF($H22>$I22,1) -> 0.25 | K22: =IF($H22<>"",IF($H22<Données!$C$3,1,0),0) -> 0 | L22: =$F22+$J22-($G22+$K22)*("00:30") -> 0.375 | M22: =$G22+$K22 -> 0 | N22: =$D22-$I21+IF($I21>$D22,1) -> 0.46875 | O22: =IF($N22=Données!$F$12,0,IF($N22<Données!$F$11,1,0)) -> 0 | AE22: Horodateur Payé : | AF22: - | AG22: 32.9
B23: =B22+1 -> 2014-12-17 | F23: 0 | G23: =IF($D23<>"",IF($D23<Données!$C$2,1,0),0) -> 0 | J23: 0 | K23: =IF($H23<>"",IF($H23<Données!$C$3,1,0),0) -> 0 | L23: 0 | M23: 0 | N23: =$D23-$I22+IF($I22>$D23,1) -> 0.96875 | O23: =IF($N23=Données!$F$12,0,IF($N23<Données!$F$11,1,0)) -> 0 | S23: Dont : | T23: - | U23: =$B$68 -> 6.541666667 | V23: Heures à taux normal ( 35h ) | AE23: Achat divers pour le travail : | AF23: -
B24: 2014-12-18 | F24: 0 | G24: =IF($D24<>"",IF($D24<Données!$C$2,1,0),0) -> 0 | J24: 0 | K24: =IF($H24<>"",IF($H24<Données!$C$3,1,0),0) -> 0 | L24: 0 | M24: 0 | N24: 0 | O24: =IF($N24=Données!$F$12,0,IF($N24<Données!$F$11,1,0)) -> 0 | T24: - | U24: =$C$68 -> 0.5 | V24: Heures en HS 10% ( 35h à 39h ) | AF24: -
B25: 2014-12-19 | D25: 0.4895833333 | E25: 0.6354166667 | F25: 0.1458333333 | G25: =IF($D25<>"",IF($D25<Données!$C$2,1,0),0) -> 0 | H25: 0.78125 | I25: 0.02083333333 | J25: 0.2395833333 | K25: =IF($H25<>"",IF($H25<Données!$C$3,1,0),0) -> 0 | L25: 0.3854166667 | M25: 0 | N25: 0.4895833333 | O25: =IF($N25=Données!$F$12,0,IF($N25<Données!$F$11,1,0)) -> 0 | T25: - | U25: =$D$68 -> 0.3958333333 | V25: Heures en HS 20% (39h à 43h ) | AF25: -
B26: 2014-12-20 | D26: 0.4895833333 | E26: 0.6458333333 | F26: 0.15625 | G26: =IF($D26<>"",IF($D26<Données!$C$2,1,0),0) -> 0 | H26: 0.78125 | I26: 0.04166666667 | J26: 0.2604166667 | K26: =IF($H26<>"",IF($H26<Données!$C$3,1,0),0) -> 0 | L26: 0.4166666667 | M26: 0 | N26: 0.46875 | O26: =IF($N26=Données!$F$12,0,IF($N26<Données!$F$11,1,0)) -> 0 | T26: - | U26: =$E$68 -> 0.3541666667 | V26: Heures en HS 40% ( 43h et plus ) | AF26: -
B27: 2014-12-21 | D27: 0.4895833333 | E27: 0.625 | F27: 0.1354166667 | G27: =IF($D27<>"",IF($D27<Données!$C$2,1,0),0) -> 0 | H27: 0.78125 | I27: 0 | J27: 0.21875 | K27: =IF($H27<>"",IF($H27<Données!$C$3,1,0),0) -> 0 | L27: 0.3541666667 | M27: 0 | N27: 0.4479166667 | O27: =IF($N27=Données!$F$12,0,IF($N27<Données!$F$11,1,0)) -> 1 | T27: - | U27: =SUM(M12+M20+M28+M36+M44+M52) -> 0 | V27: Nombre de repas | AF27: -
B28: Total Semaine | E28: =WEEKNUM(B21,21) -> 51 | F28: =SUM($F21:$F27) -> 0.71875 | G28: =G21+G22+G23+G24+G25+G26+G27 -> 0 | J28: =SUM(J21:J27) -> 1.208333333 | K28: =K21+K22+K23+K24+K25+K26+K27 -> 0 | L28: =SUM(L21:L27) -> 1.927083333 | M28: =SUM(M21:M27) -> 0 | O28: =SUM(O21:O27) -> 1 | AF28: -
B29: =B27+1 -> 2014-12-22 | D29: 0.4895833333 | E29: 0.6354166667 | F29: =$E29-$D29+IF($D29>$E29,1) -> 0.1458333333 | G29: =IF($D29<>"",IF($D29<Données!$C$2,1,0),0) -> 0 | H29: 0.78125 | I29: 0 | J29: =$I29-$H29+IF($H29>$I29,1) -> 0.21875 | K29: =IF($H29<>"",IF($H29<Données!$C$3,1,0),0) -> 0 | L29: =$F29+$J29-($G29+$K29)*("00:30") -> 0.3645833333 | M29: =$G29+$K29 -> 0 | N29: =$D29-$I27+IF($I27>$D29,1) -> 0.4895833333 | O29: =IF($N29=Données!$F$12,0,IF($N29<Données!$F$11,1,0)) -> 0 | S29: Heure fiche de paie: | AF29: -
B30: =B29+1 -> 2014-12-23 | D30: 0.4895833333 | E30: 0.625 | F30: =$E30-$D30+IF($D30>$E30,1) -> 0.1354166667 | G30: =IF($D30<>"",IF($D30<Données!$C$2,1,0),0) -> 0 | H30: 0.78125 | I30: 0 | J30: =$I30-$H30+IF($H30>$I30,1) -> 0.21875 | K30: =IF($H30<>"",IF($H30<Données!$C$3,1,0),0) -> 0 | L30: =$F30+$J30-($G30+$K30)*("00:30") -> 0.3541666667 | M30: =$G30+$K30 -> 0 | N30: =$D30-$I29+IF($I29>$D30,1) -> 0.4895833333 | O30: =IF($N30=Données!$F$12,0,IF($N30<Données!$F$11,1,0)) -> 0 | AF30: -
B31: =B30+1 -> 2014-12-24 | F31: 0 | G31: =IF($D31<>"",IF($D31<Données!$C$2,1,0),0) -> 0 | J31: 0 | K31: =IF($H31<>"",IF($H31<Données!$C$3,1,0),0) -> 0 | L31: 0 | M31: 0 | N31: =$D31-$I30+IF($I30>$D31,1) -> 0 | O31: =IF($N31=Données!$F$12,0,IF($N31<Données!$F$11,1,0)) -> 0 | S31: Dont : | T31: - | U31: 6.319444444 | V31: Heures à taux normal | AF31: -
B32: 2014-12-25 | F32: 0 | G32: =IF($D32<>"",IF($D32<Données!$C$2,1,0),0) -> 0 | J32: 0 | K32: =IF($H32<>"",IF($H32<Données!$C$3,1,0),0) -> 0 | L32: 0 | M32: 0 | N32: 0 | O32: =IF($N32=Données!$F$12,0,IF($N32<Données!$F$11,1,0)) -> 0 | T32: - | U32: 0.73125 | V32: Heures en HS 10% | AF32: -
B33: 2014-12-26 | D33: 0.4895833333 | E33: 0.6354166667 | F33: 0.1458333333 | G33: =IF($D33<>"",IF($D33<Données!$C$2,1,0),0) -> 0 | H33: 0.78125 | I33: 0.05208333333 | J33: 0.2708333333 | K33: =IF($H33<>"",IF($H33<Données!$C$3,1,0),0) -> 0 | L33: 0.4166666667 | M33: 0 | N33: 0.4895833333 | O33: =IF($N33=Données!$F$12,0,IF($N33<Données!$F$11,1,0)) -> 0 | T33: - | U33: 0 | V33: Heures en HS 20%
B34: 2014-12-27 | D34: 0.4895833333 | E34: 0.6666666667 | F34: 0.1770833333 | G34: =IF($D34<>"",IF($D34<Données!$C$2,1,0),0) -> 0 | H34: 0.78125 | I34: 0.02083333333 | J34: 0.2395833333 | K34: =IF($H34<>"",IF($H34<Données!$C$3,1,0),0) -> 0 | L34: 0.4166666667 | M34: 0 | N34: 0.4375 | O34: =IF($N34=Données!$F$12,0,IF($N34<Données!$F$11,1,0)) -> 1 | T34: - | U34: 0 | V34: Heures en HS 40% | AE34: Total dépenses: | AF34: - | AG34: =SUM(AG22:AG32) -> 32.9
B35: 2014-12-28 | D35: 0.4895833333 | E35: 0.6666666667 | F35: 0.1770833333 | G35: =IF($D35<>"",IF($D35<Données!$C$2,1,0),0) -> 0 | H35: 0.78125 | I35: 0.0625 | J35: 0.28125 | K35: =IF($H35<>"",IF($H35<Données!$C$3,1,0),0) -> 0 | L35: 0.4583333333 | M35: 0 | N35: 0.46875 | O35: =IF($N35=Données!$F$12,0,IF($N35<Données!$F$11,1,0)) -> 0 | T35: - | U35: 0 | V35: Nombre de repas
B36: Total Semaine | E36: =WEEKNUM(B29,21) -> 52 | F36: =SUM($F29:$F35) -> 0.78125 | G36: =G29+G30+G31+G32+G33+G34+G35 -> 0 | J36: =SUM(J29:J35) -> 1.229166667 | K36: =K29+K30+K31+K32+K33+K34+K35 -> 0 | L36: =SUM(L29:L35) -> 2.010416667 | M36: =SUM(M29:M35) -> 0 | O36: =SUM(O29:O35) -> 1
B37: =B35+1 -> 2014-12-29 | D37: 0.4895833333 | E37: 0.6354166667 | F37: =$E37-$D37+IF($D37>$E37,1) -> 0.1458333333 | G37: =IF($D37<>"",IF($D37<Données!$C$2,1,0),0) -> 0 | H37: 0.78125 | I37: 0.9791666667 | J37: =$I37-$H37+IF($H37>$I37,1) -> 0.1979166667 | K37: =IF($H37<>"",IF($H37<Données!$C$3,1,0),0) -> 0 | L37: =$F37+$J37-($G37+$K37)*("00:30") -> 0.34375 | M37: =$G37+$K37 -> 0 | N37: =$D37-$I35+IF($I35>$D37,1) -> 0.4270833333 | O37: =IF($N37=Données!$F$12,0,IF($N37<Données!$F$11,1,0)) -> 1 | S37: Différence:
B38: =B37+1 -> 2014-12-30 | D38: 0.4895833333 | E38: 0.6666666667 | F38: =$E38-$D38+IF($D38>$E38,1) -> 0.1770833333 | G38: =IF($D38<>"",IF($D38<Données!$C$2,1,0),0) -> 0 | H38: 0.78125 | I38: 0.03125 | J38: =$I38-$H38+IF($H38>$I38,1) -> 0.25 | K38: =IF($H38<>"",IF($H38<Données!$C$3,1,0),0) -> 0 | L38: =$F38+$J38-($G38+$K38)*("00:30") -> 0.4270833333 | M38: =$G38+$K38 -> 0 | N38: =$D38-$I37+IF($I37>$D38,1) -> 0.5104166667 | O38: =IF($N38=Données!$F$12,0,IF($N38<Données!$F$11,1,0)) -> 0
B39: =B38+1 -> 2014-12-31 | F39: 0 | G39: =IF($D39<>"",IF($D39<Données!$C$2,1,0),0) -> 0 | J39: 0 | K39: =IF($H39<>"",IF($H39<Données!$C$3,1,0),0) -> 0 | L39: 0 | M39: 0 | N39: =$D39-$I38+IF($I38>$D39,1) -> 0.96875 | O39: =IF($N39=Données!$F$12,0,IF($N39<Données!$F$11,1,0)) -> 0 | S39: Dont : | T39: - | U39: =$U31-$U23+IF($U23>$U31,1) -> 0.7777777778 | V39: Heures à taux normal
B40: 2015-01-01 | F40: 0 | G40: =IF($D40<>"",IF($D40<Données!$C$2,1,0),0) -> 0 | J40: 0 | K40: =IF($H40<>"",IF($H40<Données!$C$3,1,0),0) -> 0 | L40: 0 | M40: 0 | N40: 0 | O40: =IF($N40=Données!$F$12,0,IF($N40<Données!$F$11,1,0)) -> 0 | T40: - | U40: =$U32-$U24+IF($U24>$U32,1) -> 0.23125 | V40: Heures en HS 10%
B41: 2015-01-02 | F41: 0 | G41: =IF($D41<>"",IF($D41<Données!$C$2,1,0),0) -> 0 | J41: 0 | K41: =IF($H41<>"",IF($H41<Données!$C$3,1,0),0) -> 0 | L41: 0 | M41: 0 | N41: 0 | O41: =IF($N41=Données!$F$12,0,IF($N41<Données!$F$11,1,0)) -> 0 | T41: - | U41: =$U33-$U25+IF($U25>$U33,1) -> 0.6041666667 | V41: Heures en HS 20%
B42: 2015-01-03 | F42: 0 | G42: =IF($D42<>"",IF($D42<Données!$C$2,1,0),0) -> 0 | J42: 0 | K42: =IF($H42<>"",IF($H42<Données!$C$3,1,0),0) -> 0 | L42: 0 | M42: 0 | N42: 0 | O42: =IF($N42=Données!$F$12,0,IF($N42<Données!$F$11,1,0)) -> 0 | T42: - | U42: =$U34-$U26+IF($U26>$U34,1) -> 0.6458333333 | V42: Heures en HS 40%
B43: 2015-01-04 | F43: 0 | G43: =IF($D43<>"",IF($D43<Données!$C$2,1,0),0) -> 0 | J43: 0 | K43: =IF($H43<>"",IF($H43<Données!$C$3,1,0),0) -> 0 | L43: 0 | M43: 0 | N43: 0 | O43: =IF($N43=Données!$F$12,0,IF($N43<Données!$F$11,1,0)) -> 0 | T43: - | U43: =SUM(U35-U27) -> 0 | V43: Nombre de repas
B44: Total Semaine | E44: =WEEKNUM(B37,21) -> 1 | F44: =SUM($F37:$F43) -> 0.3229166667 | G44: =G37+G38+G39+G40+G41+G42+G43 -> 0 | J44: =SUM(J37:J43) -> 0.4479166667 | K44: =K37+K38+K39+K40+K41+K42+K43 -> 0 | L44: =SUM(L37:L43) -> 0.7708333333 | M44: =SUM(M37:M43) -> 0 | O44: =SUM(O37:O43) -> 1 | P44: =NbCellsCoul($D$5:$I$11,50)*0.25 -> 2
B45: =B43+1 -> 2015-01-05 | F45: =$E45-$D45+IF($D45>$E45,1) -> 0 | G45: =IF($D45<>"",IF($D45<Données!$C$2,1,0),0) -> 0 | J45: =$I45-$H45+IF($H45>$I45,1) -> 0 | K45: =IF($H45<>"",IF($H45<Données!$C$3,1,0),0) -> 0 | L45: =$F45+$J45-($G45+$K45)*("00:30") -> 0 | M45: =$G45+$K45 -> 0 | N45: =$D45-$I43+IF($I43>$D45,1) -> 0 | O45: =IF($N45=Données!$F$12,0,IF($N45<Données!$F$11,1,0)) -> 0
B46: =B45+1 -> 2015-01-06 | F46: 0 | G46: =IF($D46<>"",IF($D46<Données!$C$2,1,0),0) -> 0 | J46: =$I46-$H46+IF($H46>$I46,1) -> 0 | K46: =IF($H46<>"",IF($H46<Données!$C$3,1,0),0) -> 0 | L46: =$F46+$J46-($G46+$K46)*("00:30") -> 0 | M46: =$G46+$K46 -> 0 | N46: =$D46-$I45+IF($I45>$D46,1) -> 0 | O46: =IF($N46=Données!$F$12,0,IF($N46<Données!$F$11,1,0)) -> 0
B47: =B46+1 -> 2015-01-07 | F47: 0 | G47: =IF($D47<>"",IF($D47<Données!$C$2,1,0),0) -> 0 | J47: 0 | K47: =IF($H47<>"",IF($H47<Données!$C$3,1,0),0) -> 0 | L47: 0 | M47: 0 | N47: =$D47-$I46+IF($I46>$D47,1) -> 0 | O47: =IF($N47=Données!$F$12,0,IF($N47<Données!$F$11,1,0)) -> 0
B48: 2015-01-08 | F48: 0 | G48: =IF($D48<>"",IF($D48<Données!$C$2,1,0),0) -> 0 | J48: 0 | K48: =IF($H48<>"",IF($H48<Données!$C$3,1,0),0) -> 0 | L48: 0 | M48: 0 | N48: 0 | O48: =IF($N48=Données!$F$12,0,IF($N48<Données!$F$11,1,0)) -> 0
B49: 2015-01-09 | F49: 0 | G49: =IF($D49<>"",IF($D49<Données!$C$2,1,0),0) -> 0 | J49: 0 | K49: =IF($H49<>"",IF($H49<Données!$C$3,1,0),0) -> 0 | L49: 0 | M49: 0 | N49: 0 | O49: =IF($N49=Données!$F$12,0,IF($N49<Données!$F$11,1,0)) -> 0
B50: 2015-01-10 | F50: 0 | G50: =IF($D50<>"",IF($D50<Données!$C$2,1,0),0) -> 0 | J50: 0 | K50: =IF($H50<>"",IF($H50<Données!$C$3,1,0),0) -> 0 | L50: 0 | M50: 0 | N50: 0 | O50: =IF($N50=Données!$F$12,0,IF($N50<Données!$F$11,1,0)) -> 0
B51: 2015-01-11 | F51: 0 | G51: =IF($D51<>"",IF($D51<Données!$C$2,1,0),0) -> 0 | J51: 0 | K51: =IF($H51<>"",IF($H51<Données!$C$3,1,0),0) -> 0 | L51: 0 | M51: 0 | N51: 0 | O51: =IF($N51=Données!$F$12,0,IF($N51<Données!$F$11,1,0)) -> 0
B52: Total semaine | E52: =WEEKNUM(B45,21) -> 2 | F52: =SUM($F45:$F51) -> 0 | G52: =G45+G46+G47+G48+G49+G50+G51 -> 0 | J52: =SUM(J45:J51) -> 0 | K52: =K45+K46+K47+K48+K49+K50+K51 -> 0 | L52: =SUM(L45:L51) -> 0 | M52: =SUM(M45:M51) -> 0 | O52: =SUM(O45:O51) -> 0
N53: 7.041666667
L54: =CodeCouleur(M54) -> 50 | N54: REPOS
L55: =CodeCouleur(M55) -> 42 | N55: Récup
L56: 48 | N56: JFG
L57: 44 | N57: VAC
L58: 3 | N58: MAL
L59: =CodeCouleur(M59) -> 40 | N59: Jf Taf
A60: Heures | C60: 1.458333333 | D60: 1.625 | E60: 1.791666667 | F60: Total
A61: Taux | B61: 1 | C61: 1.1 | D61: 1.2 | E61: 1.4
A62: S 1 | B62: =IF($L$12<=$C$60,$L$12,$C$60) -> 1.395833333 | C62: =IF($L$12<=$C$60,0,IF($L$12<=$D$60,$L$12,$D$60)-$C$60) -> 0 | D62: =IF($L$12<=$D$60,0,IF($L$12<=$E$60,$L$12,$D$60)-$C$60) -> 0 | E62: =IF($L$12<=$E$60,0,IF($L$12>$E$60,$L$12,$E$60)-$E$60) -> 0 | F62: =B62+C62+D62+E62 -> 1.395833333
A63: S 2 | B63: =IF($L$20<=$C$60,$L$20,$C$60) -> 1.458333333 | C63: =IF($L$20<=$C$60,0,IF($L$20<=$D$60,$L$20,$D$60)-$C$60) -> 0.1666666667 | D63: 0.0625 | E63: =IF($L$20<=$E$60,0,IF($L$20>$E$60,$L$20,$E$60)-$E$60) -> 0 | F63: 1.6875
A64: S 3 | B64: =IF($L$28<=$C$60,$L$28,$C$60) -> 1.458333333 | C64: =IF($L$28<=$C$60,0,IF($L$28<=$D$60,$L$28,$D$60)-$C$60) -> 0.1666666667 | D64: =IF($L$28<=$D$60,0,IF($L$28<=$E$60,$L$28,$D$60)-$C$60) -> 0.1666666667 | E64: =IF($L$28<=$E$60,0,IF($L$28>$E$60,$L$28,$E$60)-$E$60) -> 0.1354166667 | F64: 1.927083333
A65: S 4 | B65: =IF($L$36<=$C$60,$L$36,$C$60) -> 1.458333333 | C65: =IF($L$36<=$C$60,0,IF($L$36<=$D$60,$L$36,$D$60)-$C$60) -> 0.1666666667 | D65: =IF($L$36<=$D$60,0,IF($L$36<=$E$60,$L$36,$D$60)-$C$60) -> 0.1666666667 | E65: =IF($L$36<=$E$60,0,IF($L$36>$E$60,$L$36,$E$60)-$E$60) -> 0.21875 | F65: 2.010416667
A66: S 5 | B66: =IF($L$44<=$C$60,$L$44,$C$60) -> 0.7708333333 | C66: =IF($L$44<=$C$60,0,IF($L$44<=$D$60,$L$44,$D$60)-$C$60) -> 0 | D66: =IF($L$44<=$D$60,0,IF($L$44<=$E$60,$L$44,$D$60)-$C$60) -> 0 | E66: =IF($L$44<=$E$60,0,IF($L$44>$E$60,$L$44,$E$60)-$E$60) -> 0 | F66: 0.7708333333
A67: S 6 | B67: =IF($L$52<=$C$60,$L$52,$C$60) -> 0 | C67: =IF($L$52<=$C$60,0,IF($L$52<=$D$60,$L$52,$D$60)-$C$60) -> 0 | D67: =IF($L$52<=$D$60,0,IF($L$52<=$E$60,$L$52,$D$60)-$C$60) -> 0 | E67: =IF($L$52<=$E$60,0,IF($L$52>$E$60,$L$52,$E$60)-$E$60) -> 0 | F67: 0
A68: Total | B68: =SUM(B62:B67) -> 6.541666667 | C68: =SUM(C62:C67) -> 0.5 | D68: =SUM(D62:D67) -> 0.3958333333 | E68: =SUM(E62:E67) -> 0.3541666667 | F68: 7.791666667
A71: Jours | B71: Repos | C71: Récup | D71: Jfg | E71: Vac | F71: Mal | G71: Vides | H71: Taf | I71: Jf Taf | J71: <11h
A72: S 1 | B72: =NbCellsCoul($D$5:$I$11,50)*0.25 -> 2 | C72: =NbCellsCoul($D$5:$I$11,42)*0.25 -> 0 | D72: =NbCellsCoul($D$5:$I$11,48)*0.25 -> 0 | E72: =NbCellsCoul($D$5:$I$11,44)*0.25 -> 0 | F72: =NbCellsCoul($D$5:$I$11,3)*0.25 -> 0 | G72: =+COUNTBLANK(E5:H11)/2 -> 3 | H72: =7-$G72 -> 4 | I72: =NbCellsCoul($D$5:$I$11,40)*0.25 -> 0 | J72: =SUM($O$6:$O$11) -> 0
A73: S 2 | B73: =NbCellsCoul($D$13:$I$19,50)*0.25 -> 2 | C73: =NbCellsCoul($D$13:$I$19,42)*0.25 -> 0 | D73: =NbCellsCoul($D$13:$I$19,48)*0.25 -> 0 | E73: =NbCellsCoul($D$13:$I$19,44)*0.25 -> 0 | F73: =NbCellsCoul($D$13:$I$19,3)*0.25 -> 0 | G73: =+COUNTBLANK(E13:H19)/2 -> 2 | H73: 5 | I73: =NbCellsCoul($D$13:$I$19,40)*0.25 -> 0 | J73: =SUM($O$13:$O$19) -> 1
A74: S 3 | B74: =NbCellsCoul($D$21:$I$27,50)*0.25 -> 2 | C74: =NbCellsCoul($D$21:$I$27,42)*0.25 -> 0 | D74: =NbCellsCoul($D$21:$I$27,48)*0.25 -> 0 | E74: =NbCellsCoul($D$21:$I$27,44)*0.25 -> 0 | F74: =NbCellsCoul($D$21:$I$27,3)*0.25 -> 0 | G74: =+COUNTBLANK(E21:H27)/2 -> 2 | H74: 5 | I74: =NbCellsCoul($D$21:$I$27,40)*0.25 -> 1 | J74: =SUM($O$21:$O$27) -> 1
A75: S 4 | B75: =NbCellsCoul($D$29:$I$35,50)*0.25 -> 2 | C75: =NbCellsCoul($D$29:$I$35,42)*0.25 -> 0 | D75: =NbCellsCoul($D$29:$I$35,48)*0.25 -> 0 | E75: =NbCellsCoul($D$29:$I$35,44)*0.25 -> 0 | F75: =NbCellsCoul($D$29:$I$35,3)*0.25 -> 0 | G75: =+COUNTBLANK(E29:H35)/2 -> 2 | H75: 5 | I75: =NbCellsCoul($D$29:$I$35,40)*0.25 -> 0 | J75: =SUM($O$29:$O$35) -> 1
A76: S 5 | B76: =NbCellsCoul($D$37:$I$43,50)*0.25 -> 2 | C76: =NbCellsCoul($D$37:$I$43,42)*0.25 -> 0 | D76: =NbCellsCoul($D$37:$I$43,48)*0.25 -> 0 | E76: =NbCellsCoul($D$37:$I$43,44)*0.25 -> 0 | F76: =NbCellsCoul($D$37:$I$43,3)*0.25 -> 0 | G76: =+COUNTBLANK(E37:H43)/2 -> 5 | H76: 2 | I76: =NbCellsCoul($D$37:$I$43,40)*0.25 -> 0 | J76: =SUM($O$37:$O$43) -> 1
A77: S 6 | B77: =NbCellsCoul($D$45:$I$51,50)*0.25 -> 0 | C77: =NbCellsCoul($D$45:$I$51,42)*0.25 -> 0 | D77: =NbCellsCoul($D$45:$I$51,48)*0.25 -> 0 | E77: =NbCellsCoul($D$45:$I$51,44)*0.25 -> 0 | F77: =NbCellsCoul($D$45:$I$51,3)*0.25 -> 0 | G77: =+COUNTBLANK(E45:H51)/2 -> 7 | H77: 0 | I77: =NbCellsCoul($D$45:$I$51,40)*0.25 -> 0 | J77: =SUM($O$45:$O$51) -> 0
A78: Total | B78: =SUM(B$72:B$77) -> 10 | C78: 0 | D78: 0 | E78: 0 | F78: =SUM(F$72:F$77) -> 0 | G78: =SUM(G$72:G$77) -> 21 | H78: =SUM(H$72:H$77) -> 21 | I78: =SUM(I$72:I$77) -> 1 | J78: =SUM(J$72:J$77) -> 4

Sheet Août 14
D1: TEMPS DE TRAVAIL | S1: RÉCAPITULATIF | AE1: IMPÔTS
F2: =Données!G14 -> 12 | J2: =Données!C15 -> 2014
B3: Jour | D3: Midi | F3: Cumul Midi | G3: Repas | H3: Soir | J3: Cumul Soir | K3: Repas | L3: Totaux | M3: Total Repas
D4: Début | E4: Fin | H4: Début | I4: Fin | AF4: =VLOOKUP(F2,Données!E15:F26,2) -> Décembre | AG4: =J2 -> 2014
B5: =Données!I15-WEEKDAY(Données!I15-1)+1 -> 2014-12-01 | F5: =$E5-$D5+IF($D5>$E5,1) -> 0 | G5: =IF($D5<>"",IF($D5<Données!$C$2,1,0),0) -> 0 | J5: =$I5-$H5+IF($H5>$I5,1) -> 0 | K5: =IF($H5<>"",IF($H5<Données!$C$3,1,0),0) -> 0 | L5: =$F5+$J5-($G5+$K5)*("00:30") -> 0 | M5: =$G5+$K5 -> 0
B6: =B5+1 -> 2014-12-02 | F6: =$E6-$D6+IF($D6>$E6,1) -> 0 | G6: =IF($D6<>"",IF($D6<Données!$C$2,1,0),0) -> 0 | J6: =$I6-$H6+IF($H6>$I6,1) -> 0 | K6: =IF($H6<>"",IF($H6<Données!$C$3,1,0),0) -> 0 | L6: =$F6+$J6-($G6+$K6)*("00:30") -> 0 | M6: =$G6+$K6 -> 0 | N6: =$D6-$I5+IF($I5>$D6,1) -> 0 | O6: =IF($N6=Données!$F$12,0,IF($N6<Données!$F$11,1,0)) -> 0 | S6: Soit au total pour le mois de : | U6: =VLOOKUP(F2,Données!E15:F26,2) -> Décembre | V6: =J2 -> 2014
B7: =B6+1 -> 2014-12-03 | F7: 0 | G7: =IF($D7<>"",IF($D7<Données!$C$2,1,0),0) -> 0 | J7: 0 | K7: =IF($H7<>"",IF($H7<Données!$C$3,1,0),0) -> 0 | L7: 0 | M7: 0 | N7: =$D7-$I6+IF($I6>$D7,1) -> 0 | O7: =IF($N7=Données!$F$12,0,IF($N7<Données!$F$11,1,0)) -> 0
B8: 2014-12-04 | F8: 0 | G8: =IF($D8<>"",IF($D8<Données!$C$2,1,0),0) -> 0 | J8: 0 | K8: =IF($H8<>"",IF($H8<Données!$C$3,1,0),0) -> 0 | L8: 0 | M8: 0 | N8: =$D8-$I7+IF($I7>$D8,1) -> 0 | O8: =IF($N8=Données!$F$12,0,IF($N8<Données!$F$11,1,0)) -> 0 | AE8: Numéro Fiscal :
B9: 2014-12-05 | D9: 0.4895833333 | E9: 0.5833333333 | F9: 0.09375 | G9: =IF($D9<>"",IF($D9<Données!$C$2,1,0),0) -> 0 | H9: 0.78125 | I9: 0.05208333333 | J9: 0.2708333333 | K9: =IF($H9<>"",IF($H9<Données!$C$3,1,0),0) -> 0 | L9: 0.3645833333 | M9: 0 | N9: 0.4895833333 | O9: =IF($N9=Données!$F$12,0,IF($N9<Données!$F$11,1,0)) -> 0 | S9: Nombre de jours travaillés : | U9: =H78 -> 22.5 | AE9: MDP:
B10: 2014-12-06 | D10: 0.4895833333 | E10: 0.625 | F10: 0.1354166667 | G10: =IF($D10<>"",IF($D10<Données!$C$2,1,0),0) -> 0 | H10: 0.78125 | I10: 0.02083333333 | J10: 0.2395833333 | K10: =IF($H10<>"",IF($H10<Données!$C$3,1,0),0) -> 0 | L10: 0.375 | M10: 0 | N10: =$D10-$I9+IF($I9>$D10,1) -> 0.4375 | O10: =IF($N10=Données!$F$12,0,IF($N10<Données!$F$11,1,0)) -> 1 | S10: Nombre de jours repos : | U10: =B78 -> 8
B11: 2014-12-07 | D11: 0.4895833333 | E11: 0.6875 | F11: 0.1979166667 | G11: =IF($D11<>"",IF($D11<Données!$C$2,1,0),0) -> 0 | H11: 0.78125 | I11: 0.02083333333 | J11: 0.2395833333 | K11: =IF($H11<>"",IF($H11<Données!$C$3,1,0),0) -> 0 | L11: 0.4375 | M11: 0 | N11: =$D11-$I10+IF($I10>$D11,1) -> 0.46875 | O11: =IF($N11=Données!$F$12,0,IF($N11<Données!$F$11,1,0)) -> 0 | S11: Nombre de jours récup : | U11: =C$78 -> 0.5 | AE11: Adresse domicile: | AF11: -
B12: Total Semaine | E12: =WEEKNUM(B5,21) -> 49 | F12: =SUM($F5:$F11) -> 0.4270833333 | G12: =G5+G6+G7+G8+G9+G10+G11 -> 0 | J12: =SUM(J5:J11) -> 0.75 | K12: =K5+K6+K7+K8+K9+K10+K11 -> 0 | L12: =SUM(L5:L11) -> 1.177083333 | M12: =SUM(M5:M11) -> 0 | O12: =SUM(O6:O11) -> 1 | S12: Nombre de jfg : | U12: =D$78 -> 0
B13: =B11+1 -> 2014-12-08 | D13: 0.4895833333 | E13: 0.6354166667 | F13: =$E13-$D13+IF($D13>$E13,1) -> 0.1458333333 | G13: =IF($D13<>"",IF($D13<Données!$C$2,1,0),0) -> 0 | H13: 0.78125 | I13: 0.01041666667 | J13: =$I13-$H13+IF($H13>$I13,1) -> 0.2291666667 | K13: =IF($H13<>"",IF($H13<Données!$C$3,1,0),0) -> 0 | L13: =$F13+$J13-($G13+$K13)*("00:30") -> 0.375 | M13: =$G13+$K13 -> 0 | N13: =$D13-$I11+IF($I11>$D13,1) -> 0.46875 | O13: =IF($N13=Données!$F$12,0,IF($N13<Données!$F$11,1,0)) -> 0 | S13: Nombre de jours de vacances : | U13: =E$78 -> 0
B14: =B13+1 -> 2014-12-09 | D14: 0.4895833333 | E14: 0.5833333333 | F14: =$E14-$D14+IF($D14>$E14,1) -> 0.09375 | G14: =IF($D14<>"",IF($D14<Données!$C$2,1,0),0) -> 0 | H14: 0.78125 | I14: 0.9895833333 | J14: =$I14-$H14+IF($H14>$I14,1) -> 0.2083333333 | K14: =IF($H14<>"",IF($H14<Données!$C$3,1,0),0) -> 0 | L14: =$F14+$J14-($G14+$K14)*("00:30") -> 0.3020833333 | M14: =$G14+$K14 -> 0 | N14: =$D14-$I13+IF($I13>$D14,1) -> 0.4791666667 | O14: =IF($N14=Données!$F$12,0,IF($N14<Données!$F$11,1,0)) -> 0 | S14: Nombre de jours de maladie : | U14: =F$78 -> 0
B15: =B14+1 -> 2014-12-10 | F15: 0 | G15: =IF($D15<>"",IF($D15<Données!$C$2,1,0),0) -> 0 | J15: 0 | K15: =IF($H15<>"",IF($H15<Données!$C$3,1,0),0) -> 0 | L15: 0 | M15: 0 | N15: 0 | O15: =IF($N15=Données!$F$12,0,IF($N15<Données!$F$11,1,0)) -> 0 | S15: Nombre jours fériées travaillés : | U15: =I78 -> 1 | AE15: Adresse lieu de travail: | AF15: -
B16: 2014-12-11 | F16: 0 | G16: =IF($D16<>"",IF($D16<Données!$C$2,1,0),0) -> 0 | J16: 0 | K16: =IF($H16<>"",IF($H16<Données!$C$3,1,0),0) -> 0 | L16: 0 | M16: 0 | N16: =$D16-$I15+IF($I15>$D16,1) -> 0 | O16: =IF($N16=Données!$F$12,0,IF($N16<Données!$F$11,1,0)) -> 0 | S16: Nombre de fois 11h de batement non respecté : | U16: =J78 -> 6
B17: 2014-12-12 | F17: 0 | G17: =IF($D17<>"",IF($D17<Données!$C$2,1,0),0) -> 0 | H17: 0.78125 | I17: 0.04166666667 | J17: 0.2604166667 | K17: =IF($H17<>"",IF($H17<Données!$C$3,1,0),0) -> 0 | L17: 0.2604166667 | M17: 0 | N17: 0 | O17: =IF($N17=Données!$F$12,0,IF($N17<Données!$F$11,1,0)) -> 0
B18: 2014-12-13 | D18: 0.4895833333 | E18: 0.6041666667 | F18: 0.1145833333 | G18: =IF($D18<>"",IF($D18<Données!$C$2,1,0),0) -> 0 | H18: 0.78125 | I18: 0.9895833333 | J18: 0.2083333333 | K18: =IF($H18<>"",IF($H18<Données!$C$3,1,0),0) -> 0 | L18: 0.3229166667 | M18: 0 | N18: 0.4479166667 | O18: =IF($N18=Données!$F$12,0,IF($N18<Données!$F$11,1,0)) -> 1 | AE18: Distance ( Source Mappy) : | AF18: - | AG18: 7,4 KM
B19: 2014-12-14 | D19: 0.4895833333 | E19: 0.6875 | F19: 0.1979166667 | G19: =IF($D19<>"",IF($D19<Données!$C$2,1,0),0) -> 0 | H19: 0.78125 | I19: 0.9791666667 | J19: 0.1979166667 | K19: =IF($H19<>"",IF($H19<Données!$C$3,1,0),0) -> 0 | L19: 0.3958333333 | M19: 0 | N19: 0.5 | O19: =IF($N19=Données!$F$12,0,IF($N19<Données!$F$11,1,0)) -> 0 | U19: =SUM(L12+L20+L28+L36+L44+L52) -> 8.072916667 | V19: Heures effectués
B20: Total Semaine | E20: =WEEKNUM(B13,21) -> 50 | F20: =SUM($F13:$F19) -> 0.5520833333 | G20: =G13+G14+G15+G16+G17+G18+G19 -> 0 | J20: =SUM(J13:J19) -> 1.104166667 | K20: =K13+K14+K15+K16+K17+K18+K19 -> 0 | L20: =SUM(L13:L19) -> 1.65625 | M20: =SUM(M13:M19) -> 0 | O20: =SUM(O13:O19) -> 1 | U20: =IF(U19<N53,"- "&TEXT(ABS(N53-U19),"[hh]:mm"),U19-N53) -> 1.03125 | V20: Heures dues/supp | AE20: Nombre Aller-Retour : | AF20: - | AG20: =COUNT(E5:E11,I5:I11,E13:E19,I13:I19,E21:E27,I21:I27,E29:E35,I29:I35,E37:E43,I37:I43,E45:E51,I45:I51) -> 45
B21: =B19+1 -> 2014-12-15 | D21: 0.4895833333 | E21: 0.6354166667 | F21: =$E21-$D21+IF($D21>$E21,1) -> 0.1458333333 | G21: =IF($D21<>"",IF($D21<Données!$C$2,1,0),0) -> 0 | H21: 0.78125 | I21: 0.02083333333 | J21: =$I21-$H21+IF($H21>$I21,1) -> 0.2395833333 | K21: =IF($H21<>"",IF($H21<Données!$C$3,1,0),0) -> 0 | L21: =$F21+$J21-($G21+$K21)*("00:30") -> 0.3854166667 | M21: =$G21+$K21 -> 0 | N21: =$D21-$I19+IF($I19>$D21,1) -> 0.5104166667 | O21: =IF($N21=Données!$F$12,0,IF($N21<Données!$F$11,1,0)) -> 0 | AE21: Km Parcourue : | AF21: - | AG21: =SUM(AG20*14.8) -> 666 | AH21: Km
B22: =B21+1 -> 2014-12-16 | D22: 0.4895833333 | E22: 0.6354166667 | F22: =$E22-$D22+IF($D22>$E22,1) -> 0.1458333333 | G22: =IF($D22<>"",IF($D22<Données!$C$2,1,0),0) -> 0 | J22: =$I22-$H22+IF($H22>$I22,1) -> 0 | K22: =IF($H22<>"",IF($H22<Données!$C$3,1,0),0) -> 0 | L22: =$F22+$J22-($G22+$K22)*("00:30") -> 0.1458333333 | M22: =$G22+$K22 -> 0 | N22: =$D22-$I21+IF($I21>$D22,1) -> 0.46875 | O22: =IF($N22=Données!$F$12,0,IF($N22<Données!$F$11,1,0)) -> 0 | AE22: Horodateur Payé : | AF22: - | AG22: 26.2
B23: =B22+1 -> 2014-12-17 | F23: 0 | G23: =IF($D23<>"",IF($D23<Données!$C$2,1,0),0) -> 0 | J23: 0 | K23: =IF($H23<>"",IF($H23<Données!$C$3,1,0),0) -> 0 | L23: 0 | M23: 0 | N23: =$D23-$I22+IF($I22>$D23,1) -> 0 | O23: =IF($N23=Données!$F$12,0,IF($N23<Données!$F$11,1,0)) -> 0 | S23: Dont : | T23: - | U23: =$B$68 -> 7.010416667 | V23: Heures à taux normal ( 35h ) | AE23: Achat divers pour le travail : | AF23: -
B24: 2014-12-18 | F24: 0 | G24: =IF($D24<>"",IF($D24<Données!$C$2,1,0),0) -> 0 | H24: 0.78125 | I24: 0.03125 | J24: 0.25 | K24: =IF($H24<>"",IF($H24<Données!$C$3,1,0),0) -> 0 | L24: 0.25 | M24: 0 | N24: 0 | O24: =IF($N24=Données!$F$12,0,IF($N24<Données!$F$11,1,0)) -> 0 | T24: - | U24: =$C$68 -> 0.6666666667 | V24: Heures en HS 10% ( 35h à 39h ) | AF24: -
B25: 2014-12-19 | D25: 0.4895833333 | E25: 0.6666666667 | F25: 0.1770833333 | G25: =IF($D25<>"",IF($D25<Données!$C$2,1,0),0) -> 0 | H25: 0.78125 | I25: 0.9375 | J25: 0.15625 | K25: =IF($H25<>"",IF($H25<Données!$C$3,1,0),0) -> 0 | L25: 0.3333333333 | M25: 0 | N25: 0.4583333333 | O25: =IF($N25=Données!$F$12,0,IF($N25<Données!$F$11,1,0)) -> 0 | T25: - | U25: =$D$68 -> 0.3541666667 | V25: Heures en HS 20% (39h à 43h ) | AF25: -
B26: 2014-12-20 | D26: 0.4895833333 | E26: 0.625 | F26: 0.1354166667 | G26: =IF($D26<>"",IF($D26<Données!$C$2,1,0),0) -> 0 | H26: 0.78125 | I26: 0.08333333333 | J26: 0.3020833333 | K26: =IF($H26<>"",IF($H26<Données!$C$3,1,0),0) -> 0 | L26: 0.4375 | M26: 0 | N26: 0.5520833333 | O26: =IF($N26=Données!$F$12,0,IF($N26<Données!$F$11,1,0)) -> 0 | Q26: =NbCellsCoul($D$5:$I$11,50)*0.25 -> 0 | T26: - | U26: =$E$68 -> 0.04166666667 | V26: Heures en HS 40% ( 43h et plus ) | AF26: -
B27: 2014-12-21 | D27: 0.4895833333 | E27: 0.625 | F27: 0.1354166667 | G27: =IF($D27<>"",IF($D27<Données!$C$2,1,0),0) -> 0 | H27: 0.8333333333 | I27: 0.9791666667 | J27: 0.1458333333 | K27: =IF($H27<>"",IF($H27<Données!$C$3,1,0),0) -> 0 | L27: 0.28125 | M27: 0 | N27: 0.40625 | O27: =IF($N27=Données!$F$12,0,IF($N27<Données!$F$11,1,0)) -> 1 | T27: - | U27: =SUM(M12+M20+M28+M36+M44+M52) -> 0 | V27: Nombre de repas | AF27: -
B28: Total Semaine | E28: =WEEKNUM(B21,21) -> 51 | F28: =SUM($F21:$F27) -> 0.7395833333 | G28: =G21+G22+G23+G24+G25+G26+G27 -> 0 | J28: =SUM(J21:J27) -> 1.09375 | K28: =K21+K22+K23+K24+K25+K26+K27 -> 0 | L28: =SUM(L21:L27) -> 1.833333333 | M28: =SUM(M21:M27) -> 0 | O28: =SUM(O21:O27) -> 1 | AF28: -
B29: =B27+1 -> 2014-12-22 | D29: 0.4895833333 | E29: 0.6145833333 | F29: =$E29-$D29+IF($D29>$E29,1) -> 0.125 | G29: =IF($D29<>"",IF($D29<Données!$C$2,1,0),0) -> 0 | H29: 0.78125 | I29: 0.9583333333 | J29: =$I29-$H29+IF($H29>$I29,1) -> 0.1770833333 | K29: =IF($H29<>"",IF($H29<Données!$C$3,1,0),0) -> 0 | L29: =$F29+$J29-($G29+$K29)*("00:30") -> 0.3020833333 | M29: =$G29+$K29 -> 0 | N29: =$D29-$I27+IF($I27>$D29,1) -> 0.5104166667 | O29: =IF($N29=Données!$F$12,0,IF($N29<Données!$F$11,1,0)) -> 0 | S29: Heure fiche de paie: | AF29: -
B30: =B29+1 -> 2014-12-23 | D30: 0.4895833333 | E30: 0.5833333333 | F30: =$E30-$D30+IF($D30>$E30,1) -> 0.09375 | G30: =IF($D30<>"",IF($D30<Données!$C$2,1,0),0) -> 0 | J30: =$I30-$H30+IF($H30>$I30,1) -> 0 | K30: =IF($H30<>"",IF($H30<Données!$C$3,1,0),0) -> 0 | L30: =$F30+$J30-($G30+$K30)*("00:30") -> 0.09375 | M30: =$G30+$K30 -> 0 | N30: =$D30-$I29+IF($I29>$D30,1) -> 0.53125 | O30: =IF($N30=Données!$F$12,0,IF($N30<Données!$F$11,1,0)) -> 0 | AF30: -
B31: =B30+1 -> 2014-12-24 | F31: 0 | G31: =IF($D31<>"",IF($D31<Données!$C$2,1,0),0) -> 0 | J31: 0 | K31: =IF($H31<>"",IF($H31<Données!$C$3,1,0),0) -> 0 | L31: 0 | M31: 0 | N31: =$D31-$I30+IF($I30>$D31,1) -> 0 | O31: =IF($N31=Données!$F$12,0,IF($N31<Données!$F$11,1,0)) -> 0 | S31: Dont : | T31: - | U31: 6.319444444 | V31: Heures à taux normal | AF31: -
B32: 2014-12-25 | F32: 0 | G32: =IF($D32<>"",IF($D32<Données!$C$2,1,0),0) -> 0 | H32: 0.8333333333 | I32: 0.9895833333 | J32: 0.15625 | K32: =IF($H32<>"",IF($H32<Données!$C$3,1,0),0) -> 0 | L32: 0.15625 | M32: 0 | N32: 0 | O32: =IF($N32=Données!$F$12,0,IF($N32<Données!$F$11,1,0)) -> 0 | T32: - | U32: 0.73125 | V32: Heures en HS 10% | AF32: -
B33: 2014-12-26 | D33: 0.4895833333 | E33: 0.6145833333 | F33: 0.125 | G33: =IF($D33<>"",IF($D33<Données!$C$2,1,0),0) -> 0 | H33: 0.78125 | I33: 0.9479166667 | J33: 0.1666666667 | K33: =IF($H33<>"",IF($H33<Données!$C$3,1,0),0) -> 0 | L33: 0.2916666667 | M33: 0 | N33: 0.5 | O33: =IF($N33=Données!$F$12,0,IF($N33<Données!$F$11,1,0)) -> 0 | T33: - | U33: 0 | V33: Heures en HS 20%
B34: 2014-12-27 | D34: 0.4895833333 | E34: 0.625 | F34: 0.1354166667 | G34: =IF($D34<>"",IF($D34<Données!$C$2,1,0),0) -> 0 | H34: 0.78125 | I34: 0.04166666667 | J34: 0.2604166667 | K34: =IF($H34<>"",IF($H34<Données!$C$3,1,0),0) -> 0 | L34: 0.3958333333 | M34: 0 | N34: 0.5416666667 | O34: =IF($N34=Données!$F$12,0,IF($N34<Données!$F$11,1,0)) -> 0 | T34: - | U34: 0 | V34: Heures en HS 40% | AE34: Total dépenses: | AF34: - | AG34: =SUM(AG22:AG32) -> 26.2
B35: 2014-12-28 | D35: 0.4895833333 | E35: 0.6666666667 | F35: 0.1770833333 | G35: =IF($D35<>"",IF($D35<Données!$C$2,1,0),0) -> 0 | H35: 0.8333333333 | I35: 0.04166666667 | J35: 0.2083333333 | K35: =IF($H35<>"",IF($H35<Données!$C$3,1,0),0) -> 0 | L35: 0.3854166667 | M35: 0 | N35: 0.4479166667 | O35: =IF($N35=Données!$F$12,0,IF($N35<Données!$F$11,1,0)) -> 1 | T35: - | U35: 0 | V35: Nombre de repas
B36: Total Semaine | E36: =WEEKNUM(B29,21) -> 52 | F36: =SUM($F29:$F35) -> 0.65625 | G36: =G29+G30+G31+G32+G33+G34+G35 -> 0 | J36: =SUM(J29:J35) -> 0.96875 | K36: =K29+K30+K31+K32+K33+K34+K35 -> 0 | L36: =SUM(L29:L35) -> 1.625 | M36: =SUM(M29:M35) -> 0 | O36: =SUM(O29:O35) -> 1
B37: =B35+1 -> 2014-12-29 | D37: 0.4895833333 | E37: 0.6458333333 | F37: =$E37-$D37+IF($D37>$E37,1) -> 0.15625 | G37: =IF($D37<>"",IF($D37<Données!$C$2,1,0),0) -> 0 | H37: 0.78125 | I37: 0.9895833333 | J37: =$I37-$H37+IF($H37>$I37,1) -> 0.2083333333 | K37: =IF($H37<>"",IF($H37<Données!$C$3,1,0),0) -> 0 | L37: =$F37+$J37-($G37+$K37)*("00:30") -> 0.3645833333 | M37: =$G37+$K37 -> 0 | N37: =$D37-$I35+IF($I35>$D37,1) -> 0.4479166667 | O37: =IF($N37=Données!$F$12,0,IF($N37<Données!$F$11,1,0)) -> 1 | S37: Différence:
B38: =B37+1 -> 2014-12-30 | D38: 0.4895833333 | E38: 0.625 | F38: =$E38-$D38+IF($D38>$E38,1) -> 0.1354166667 | G38: =IF($D38<>"",IF($D38<Données!$C$2,1,0),0) -> 0 | H38: 0.78125 | I38: 0.9895833333 | J38: =$I38-$H38+IF($H38>$I38,1) -> 0.2083333333 | K38: =IF($H38<>"",IF($H38<Données!$C$3,1,0),0) -> 0 | L38: =$F38+$J38-($G38+$K38)*("00:30") -> 0.34375 | M38: =$G38+$K38 -> 0 | N38: =$D38-$I37+IF($I37>$D38,1) -> 0.5 | O38: =IF($N38=Données!$F$12,0,IF($N38<Données!$F$11,1,0)) -> 0
B39: =B38+1 -> 2014-12-31 | F39: 0 | G39: =IF($D39<>"",IF($D39<Données!$C$2,1,0),0) -> 0 | J39: 0 | K39: =IF($H39<>"",IF($H39<Données!$C$3,1,0),0) -> 0 | L39: 0 | M39: 0 | N39: 0 | O39: =IF($N39=Données!$F$12,0,IF($N39<Données!$F$11,1,0)) -> 0 | S39: Dont : | T39: - | U39: =$U31-$U23+IF($U23>$U31,1) -> 0.3090277778 | V39: Heures à taux normal
B40: 2015-01-01 | F40: 0 | G40: =IF($D40<>"",IF($D40<Données!$C$2,1,0),0) -> 0 | J40: 0 | K40: =IF($H40<>"",IF($H40<Données!$C$3,1,0),0) -> 0 | L40: 0 | M40: 0 | N40: =$D40-$I39+IF($I39>$D40,1) -> 0 | O40: =IF($N40=Données!$F$12,0,IF($N40<Données!$F$11,1,0)) -> 0 | T40: - | U40: =$U32-$U24+IF($U24>$U32,1) -> 0.06458333333 | V40: Heures en HS 10%
B41: 2015-01-02 | D41: 0.4895833333 | E41: 0.6458333333 | F41: 0.15625 | G41: =IF($D41<>"",IF($D41<Données!$C$2,1,0),0) -> 0 | H41: 0.8333333333 | I41: 0.0625 | J41: 0.2291666667 | K41: =IF($H41<>"",IF($H41<Données!$C$3,1,0),0) -> 0 | L41: 0.3854166667 | M41: 0 | N41: 0.4895833333 | O41: =IF($N41=Données!$F$12,0,IF($N41<Données!$F$11,1,0)) -> 0 | T41: - | U41: =$U33-$U25+IF($U25>$U33,1) -> 0.6458333333 | V41: Heures en HS 20%
B42: 2015-01-03 | D42: 0.4895833333 | E42: 0.6666666667 | F42: 0.1770833333 | G42: =IF($D42<>"",IF($D42<Données!$C$2,1,0),0) -> 0 | H42: 0.8333333333 | I42: 0.9479166667 | J42: 0.1145833333 | K42: =IF($H42<>"",IF($H42<Données!$C$3,1,0),0) -> 0 | L42: 0.2916666667 | M42: 0 | N42: 0.4270833333 | O42: =IF($N42=Données!$F$12,0,IF($N42<Données!$F$11,1,0)) -> 1 | T42: - | U42: =$U34-$U26+IF($U26>$U34,1) -> 0.9583333333 | V42: Heures en HS 40%
B43: 2015-01-04 | D43: 0.4895833333 | E43: 0.6458333333 | F43: 0.15625 | G43: =IF($D43<>"",IF($D43<Données!$C$2,1,0),0) -> 0 | H43: 0.78125 | I43: 0.02083333333 | J43: 0.2395833333 | K43: =IF($H43<>"",IF($H43<Données!$C$3,1,0),0) -> 0 | L43: 0.3958333333 | M43: 0 | N43: 0.5416666667 | O43: =IF($N43=Données!$F$12,0,IF($N43<Données!$F$11,1,0)) -> 0 | T43: - | U43: =SUM(U35-U27) -> 0 | V43: Nombre de repas
B44: Total Semaine | E44: =WEEKNUM(B37,21) -> 1 | F44: =SUM($F37:$F43) -> 0.78125 | G44: =G37+G38+G39+G40+G41+G42+G43 -> 0 | J44: =SUM(J37:J43) -> 1 | K44: =K37+K38+K39+K40+K41+K42+K43 -> 0 | L44: =SUM(L37:L43) -> 1.78125 | M44: =SUM(M37:M43) -> 0 | O44: =SUM(O37:O43) -> 2
B45: =B43+1 -> 2015-01-05 | F45: =$E45-$D45+IF($D45>$E45,1) -> 0 | G45: =IF($D45<>"",IF($D45<Données!$C$2,1,0),0) -> 0 | J45: =$I45-$H45+IF($H45>$I45,1) -> 0 | K45: =IF($H45<>"",IF($H45<Données!$C$3,1,0),0) -> 0 | L45: =$F45+$J45-($G45+$K45)*("00:30") -> 0 | M45: =$G45+$K45 -> 0 | N45: =$D45-$I43+IF($I43>$D45,1) -> 0.9791666667 | O45: =IF($N45=Données!$F$12,0,IF($N45<Données!$F$11,1,0)) -> 0
B46: =B45+1 -> 2015-01-06 | F46: 0 | G46: =IF($D46<>"",IF($D46<Données!$C$2,1,0),0) -> 0 | J46: =$I46-$H46+IF($H46>$I46,1) -> 0 | K46: =IF($H46<>"",IF($H46<Données!$C$3,1,0),0) -> 0 | L46: =$F46+$J46-($G46+$K46)*("00:30") -> 0 | M46: =$G46+$K46 -> 0 | N46: =$D46-$I45+IF($I45>$D46,1) -> 0 | O46: =IF($N46=Données!$F$12,0,IF($N46<Données!$F$11,1,0)) -> 0
B47: =B46+1 -> 2015-01-07 | F47: 0 | G47: =IF($D47<>"",IF($D47<Données!$C$2,1,0),0) -> 0 | J47: 0 | K47: =IF($H47<>"",IF($H47<Données!$C$3,1,0),0) -> 0 | L47: 0 | M47: 0 | N47: =$D47-$I46+IF($I46>$D47,1) -> 0 | O47: =IF($N47=Données!$F$12,0,IF($N47<Données!$F$11,1,0)) -> 0
B48: 2015-01-08 | F48: 0 | G48: =IF($D48<>"",IF($D48<Données!$C$2,1,0),0) -> 0 | J48: 0 | K48: =IF($H48<>"",IF($H48<Données!$C$3,1,0),0) -> 0 | L48: 0 | M48: 0 | N48: 0 | O48: =IF($N48=Données!$F$12,0,IF($N48<Données!$F$11,1,0)) -> 0
B49: 2015-01-09 | F49: 0 | G49: =IF($D49<>"",IF($D49<Données!$C$2,1,0),0) -> 0 | J49: 0 | K49: =IF($H49<>"",IF($H49<Données!$C$3,1,0),0) -> 0 | L49: 0 | M49: 0 | N49: 0 | O49: =IF($N49=Données!$F$12,0,IF($N49<Données!$F$11,1,0)) -> 0
B50: 2015-01-10 | F50: 0 | G50: =IF($D50<>"",IF($D50<Données!$C$2,1,0),0) -> 0 | J50: 0 | K50: =IF($H50<>"",IF($H50<Données!$C$3,1,0),0) -> 0 | L50: 0 | M50: 0 | N50: 0 | O50: =IF($N50=Données!$F$12,0,IF($N50<Données!$F$11,1,0)) -> 0
B51: 2015-01-11 | F51: 0 | G51: =IF($D51<>"",IF($D51<Données!$C$2,1,0),0) -> 0 | J51: 0 | K51: =IF($H51<>"",IF($H51<Données!$C$3,1,0),0) -> 0 | L51: 0 | M51: 0 | N51: 0 | O51: =IF($N51=Données!$F$12,0,IF($N51<Données!$F$11,1,0)) -> 0
B52: Total semaine | E52: =WEEKNUM(B45,21) -> 2 | F52: =SUM($F45:$F51) -> 0 | G52: =G45+G46+G47+G48+G49+G50+G51 -> 0 | J52: =SUM(J45:J51) -> 0 | K52: =K45+K46+K47+K48+K49+K50+K51 -> 0 | L52: =SUM(L45:L51) -> 0 | M52: =SUM(M45:M51) -> 0 | O52: =SUM(O45:O51) -> 0
N53: 7.041666667
L54: =CodeCouleur(M54) -> 50 | N54: REPOS
L55: =CodeCouleur(M55) -> 42 | N55: Récup
L56: 48 | N56: JFG
L57: 44 | N57: VAC
L58: 3 | N58: MAL
L59: =CodeCouleur(M59) -> 40 | N59: Jf Taf
A60: Heures | C60: 1.458333333 | D60: 1.625 | E60: 1.791666667 | F60: Total
A61: Taux | B61: 1 | C61: 1.1 | D61: 1.2 | E61: 1.4
A62: S 1 | B62: =IF($L$12<=$C$60,$L$12,$C$60) -> 1.177083333 | C62: =IF($L$12<=$C$60,0,IF($L$12<=$D$60,$L$12,$D$60)-$C$60) -> 0 | D62: =IF($L$12<=$D$60,0,IF($L$12<=$E$60,$L$12,$D$60)-$C$60) -> 0 | E62: =IF($L$12<=$E$60,0,IF($L$12>$E$60,$L$12,$E$60)-$E$60) -> 0 | F62: =B62+C62+D62+E62 -> 1.177083333
A63: S 2 | B63: =IF($L$20<=$C$60,$L$20,$C$60) -> 1.458333333 | C63: =IF($L$20<=$C$60,0,IF($L$20<=$D$60,$L$20,$D$60)-$C$60) -> 0.1666666667 | D63: 0.03125 | E63: =IF($L$20<=$E$60,0,IF($L$20>$E$60,$L$20,$E$60)-$E$60) -> 0 | F63: 1.65625
A64: S 3 | B64: =IF($L$28<=$C$60,$L$28,$C$60) -> 1.458333333 | C64: =IF($L$28<=$C$60,0,IF($L$28<=$D$60,$L$28,$D$60)-$C$60) -> 0.1666666667 | D64: =IF($L$28<=$D$60,0,IF($L$28<=$E$60,$L$28,$D$60)-$C$60) -> 0.1666666667 | E64: =IF($L$28<=$E$60,0,IF($L$28>$E$60,$L$28,$E$60)-$E$60) -> 0.04166666667 | F64: 1.833333333
A65: S 4 | B65: =IF($L$36<=$C$60,$L$36,$C$60) -> 1.458333333 | C65: =IF($L$36<=$C$60,0,IF($L$36<=$D$60,$L$36,$D$60)-$C$60) -> 0.1666666667 | D65: =IF($L$36<=$D$60,0,IF($L$36<=$E$60,$L$36,$D$60)-$C$60) -> 0 | E65: =IF($L$36<=$E$60,0,IF($L$36>$E$60,$L$36,$E$60)-$E$60) -> 0 | F65: 1.625
A66: S 5 | B66: =IF($L$44<=$C$60,$L$44,$C$60) -> 1.458333333 | C66: =IF($L$44<=$C$60,0,IF($L$44<=$D$60,$L$44,$D$60)-$C$60) -> 0.1666666667 | D66: 0.15625 | E66: =IF($L$44<=$E$60,0,IF($L$44>$E$60,$L$44,$E$60)-$E$60) -> 0 | F66: 1.78125
A67: S 6 | B67: =IF($L$52<=$C$60,$L$52,$C$60) -> 0 | C67: =IF($L$52<=$C$60,0,IF($L$52<=$D$60,$L$52,$D$60)-$C$60) -> 0 | D67: =IF($L$52<=$D$60,0,IF($L$52<=$E$60,$L$52,$D$60)-$C$60) -> 0 | E67: =IF($L$52<=$E$60,0,IF($L$52>$E$60,$L$52,$E$60)-$E$60) -> 0 | F67: 0
A68: Total | B68: =SUM(B62:B67) -> 7.010416667 | C68: =SUM(C62:C67) -> 0.6666666667 | D68: =SUM(D62:D67) -> 0.3541666667 | E68: =SUM(E62:E67) -> 0.04166666667 | F68: 8.072916667
A71: Jours | B71: Repos | C71: Récup | D71: Jfg | E71: Vac | F71: Mal | G71: Vides | H71: Taf | I71: Jf Taf | J71: <11h
A72: S 1 | B72: =NbCellsCoul($D$5:$I$11,50)*0.25 -> 0 | C72: =NbCellsCoul($D$5:$I$11,42)*0.25 -> 0 | D72: =NbCellsCoul($D$5:$I$11,48)*0.25 -> 0 | E72: =NbCellsCoul($D$5:$I$11,44)*0.25 -> 0 | F72: =NbCellsCoul($D$5:$I$11,3)*0.25 -> 0 | G72: =+COUNTBLANK(E5:H11)/2 -> 4 | H72: =7-$G72 -> 3 | I72: =NbCellsCoul($D$5:$I$11,40)*0.25 -> 0 | J72: =SUM($O$6:$O$11) -> 1
A73: S 2 | B73: =NbCellsCoul($D$13:$I$19,50)*0.25 -> 2 | C73: =NbCellsCoul($D$13:$I$19,42)*0.25 -> 0.5 | D73: =NbCellsCoul($D$13:$I$19,48)*0.25 -> 0 | E73: =NbCellsCoul($D$13:$I$19,44)*0.25 -> 0 | F73: =NbCellsCoul($D$13:$I$19,3)*0.25 -> 0 | G73: =+COUNTBLANK(E13:H19)/2 -> 2.5 | H73: 4.5 | I73: =NbCellsCoul($D$13:$I$19,40)*0.25 -> 0 | J73: =SUM($O$13:$O$19) -> 1
A74: S 3 | B74: =NbCellsCoul($D$21:$I$27,50)*0.25 -> 2 | C74: =NbCellsCoul($D$21:$I$27,42)*0.25 -> 0 | D74: =NbCellsCoul($D$21:$I$27,48)*0.25 -> 0 | E74: =NbCellsCoul($D$21:$I$27,44)*0.25 -> 0 | F74: =NbCellsCoul($D$21:$I$27,3)*0.25 -> 0 | G74: =+COUNTBLANK(E21:H27)/2 -> 2 | H74: 5 | I74: =NbCellsCoul($D$21:$I$27,40)*0.25 -> 1 | J74: =SUM($O$21:$O$27) -> 1
A75: S 4 | B75: =NbCellsCoul($D$29:$I$35,50)*0.25 -> 2 | C75: =NbCellsCoul($D$29:$I$35,42)*0.25 -> 0 | D75: =NbCellsCoul($D$29:$I$35,48)*0.25 -> 0 | E75: =NbCellsCoul($D$29:$I$35,44)*0.25 -> 0 | F75: =NbCellsCoul($D$29:$I$35,3)*0.25 -> 0 | G75: =+COUNTBLANK(E29:H35)/2 -> 2 | H75: 5 | I75: =NbCellsCoul($D$29:$I$35,40)*0.25 -> 0 | J75: =SUM($O$29:$O$35) -> 1
A76: S 5 | B76: =NbCellsCoul($D$37:$I$43,50)*0.25 -> 2 | C76: =NbCellsCoul($D$37:$I$43,42)*0.25 -> 0 | D76: =NbCellsCoul($D$37:$I$43,48)*0.25 -> 0 | E76: =NbCellsCoul($D$37:$I$43,44)*0.25 -> 0 | F76: =NbCellsCoul($D$37:$I$43,3)*0.25 -> 0 | G76: =+COUNTBLANK(E37:H43)/2 -> 2 | H76: 5 | I76: =NbCellsCoul($D$37:$I$43,40)*0.25 -> 0 | J76: =SUM($O$37:$O$43) -> 2
A77: S 6 | B77: =NbCellsCoul($D$45:$I$51,50)*0.25 -> 0 | C77: =NbCellsCoul($D$45:$I$51,42)*0.25 -> 0 | D77: =NbCellsCoul($D$45:$I$51,48)*0.25 -> 0 | E77: =NbCellsCoul($D$45:$I$51,44)*0.25 -> 0 | F77: =NbCellsCoul($D$45:$I$51,3)*0.25 -> 0 | G77: =+COUNTBLANK(E45:H51)/2 -> 7 | H77: 0 | I77: =NbCellsCoul($D$45:$I$51,40)*0.25 -> 0 | J77: =SUM($O$45:$O$51) -> 0
A78: Total | B78: =SUM(B$72:B$77) -> 8 | C78: 0.5 | D78: 0 | E78: 0 | F78: =SUM(F$72:F$77) -> 0 | G78: =SUM(G$72:G$77) -> 19.5 | H78: =SUM(H$72:H$77) -> 22.5 | I78: =SUM(I$72:I$77) -> 1 | J78: =SUM(J$72:J$77) -> 6

Sheet Sept 14
D1: TEMPS DE TRAVAIL | S1: RÉCAPITULATIF | AE1: IMPÔTS
F2: =Données!G14 -> 12 | J2: =Données!C15 -> 2014
B3: Jour | D3: Midi | F3: Cumul Midi | G3: Repas | H3: Soir | J3: Cumul Soir | K3: Repas | L3: Totaux | M3: Total Repas
D4: Début | E4: Fin | H4: Début | I4: Fin | AF4: =VLOOKUP(F2,Données!E15:F26,2) -> Décembre | AG4: =J2 -> 2014
B5: =Données!I15-WEEKDAY(Données!I15-1)+1 -> 2014-12-01 | F5: =$E5-$D5+IF($D5>$E5,1) -> 0 | G5: =IF($D5<>"",IF($D5<Données!$C$2,1,0),0) -> 0 | J5: =$I5-$H5+IF($H5>$I5,1) -> 0 | K5: =IF($H5<>"",IF($H5<Données!$C$3,1,0),0) -> 0 | L5: 0.3229166667 | M5: =$G5+$K5 -> 0
B6: =B5+1 -> 2014-12-02 | F6: =$E6-$D6+IF($D6>$E6,1) -> 0 | G6: =IF($D6<>"",IF($D6<Données!$C$2,1,0),0) -> 0 | J6: =$I6-$H6+IF($H6>$I6,1) -> 0 | K6: =IF($H6<>"",IF($H6<Données!$C$3,1,0),0) -> 0 | L6: =$F6+$J6-($G6+$K6)*("00:30") -> 0 | M6: =$G6+$K6 -> 0 | N6: =$D6-$I5+IF($I5>$D6,1) -> 0 | O6: =IF($N6=Données!$F$12,0,IF($N6<Données!$F$11,1,0)) -> 0 | S6: Soit au total pour le mois de : | U6: =VLOOKUP(F2,Données!E15:F26,2) -> Décembre | V6: =J2 -> 2014
B7: =B6+1 -> 2014-12-03 | F7: 0 | G7: =IF($D7<>"",IF($D7<Données!$C$2,1,0),0) -> 0 | J7: 0 | K7: =IF($H7<>"",IF($H7<Données!$C$3,1,0),0) -> 0 | L7: 0 | M7: 0 | N7: =$D7-$I6+IF($I6>$D7,1) -> 0 | O7: =IF($N7=Données!$F$12,0,IF($N7<Données!$F$11,1,0)) -> 0
B8: 2014-12-04 | F8: 0 | G8: =IF($D8<>"",IF($D8<Données!$C$2,1,0),0) -> 0 | J8: 0 | K8: =IF($H8<>"",IF($H8<Données!$C$3,1,0),0) -> 0 | L8: 0.3229166667 | M8: 0 | N8: =$D8-$I7+IF($I7>$D8,1) -> 0 | O8: =IF($N8=Données!$F$12,0,IF($N8<Données!$F$11,1,0)) -> 0 | AE8: Numéro Fiscal :
B9: 2014-12-05 | F9: 0 | G9: =IF($D9<>"",IF($D9<Données!$C$2,1,0),0) -> 0 | J9: 0 | K9: =IF($H9<>"",IF($H9<Données!$C$3,1,0),0) -> 0 | L9: 0.3229166667 | M9: 0 | N9: 0 | O9: =IF($N9=Données!$F$12,0,IF($N9<Données!$F$11,1,0)) -> 0 | S9: Nombre de jours travaillés : | U9: =H78 -> 7 | AE9: MDP:
B10: 2014-12-06 | F10: 0 | G10: =IF($D10<>"",IF($D10<Données!$C$2,1,0),0) -> 0 | J10: 0 | K10: =IF($H10<>"",IF($H10<Données!$C$3,1,0),0) -> 0 | L10: 0.3229166667 | M10: 0 | N10: =$D10-$I9+IF($I9>$D10,1) -> 0 | O10: =IF($N10=Données!$F$12,0,IF($N10<Données!$F$11,1,0)) -> 0 | S10: Nombre de jours repos : | U10: =B78 -> 8
B11: 2014-12-07 | F11: 0 | G11: =IF($D11<>"",IF($D11<Données!$C$2,1,0),0) -> 0 | J11: 0 | K11: =IF($H11<>"",IF($H11<Données!$C$3,1,0),0) -> 0 | L11: 0.3229166667 | M11: 0 | N11: =$D11-$I10+IF($I10>$D11,1) -> 0 | O11: =IF($N11=Données!$F$12,0,IF($N11<Données!$F$11,1,0)) -> 0 | S11: Nombre de jours récup : | U11: =C$78 -> 0 | AE11: Adresse domicile: | AF11: -
B12: Total Semaine | E12: =WEEKNUM(B5,21) -> 49 | F12: =SUM($F5:$F11) -> 0 | G12: =G5+G6+G7+G8+G9+G10+G11 -> 0 | J12: =SUM(J5:J11) -> 0 | K12: =K5+K6+K7+K8+K9+K10+K11 -> 0 | L12: =SUM(L5:L11) -> 1.614583333 | M12: =SUM(M5:M11) -> 0 | O12: =SUM(O6:O11) -> 0 | S12: Nombre de jfg : | U12: =D$78 -> 0
B13: =B11+1 -> 2014-12-08 | F13: =$E13-$D13+IF($D13>$E13,1) -> 0 | G13: =IF($D13<>"",IF($D13<Données!$C$2,1,0),0) -> 0 | J13: =$I13-$H13+IF($H13>$I13,1) -> 0 | K13: =IF($H13<>"",IF($H13<Données!$C$3,1,0),0) -> 0 | L13: 0.3229166667 | M13: =$G13+$K13 -> 0 | N13: =$D13-$I11+IF($I11>$D13,1) -> 0 | O13: =IF($N13=Données!$F$12,0,IF($N13<Données!$F$11,1,0)) -> 0 | S13: Nombre de jours de vacances : | U13: =E$78 -> 15
B14: =B13+1 -> 2014-12-09 | F14: =$E14-$D14+IF($D14>$E14,1) -> 0 | G14: =IF($D14<>"",IF($D14<Données!$C$2,1,0),0) -> 0 | J14: =$I14-$H14+IF($H14>$I14,1) -> 0 | K14: =IF($H14<>"",IF($H14<Données!$C$3,1,0),0) -> 0 | L14: =$F14+$J14-($G14+$K14)*("00:30") -> 0 | M14: =$G14+$K14 -> 0 | N14: =$D14-$I13+IF($I13>$D14,1) -> 0 | O14: =IF($N14=Données!$F$12,0,IF($N14<Données!$F$11,1,0)) -> 0 | S14: Nombre de jours de maladie : | U14: =F$78 -> 0
B15: =B14+1 -> 2014-12-10 | F15: 0 | G15: =IF($D15<>"",IF($D15<Données!$C$2,1,0),0) -> 0 | J15: 0 | K15: =IF($H15<>"",IF($H15<Données!$C$3,1,0),0) -> 0 | L15: 0 | M15: 0 | N15: =$D15-$I14+IF($I14>$D15,1) -> 0 | O15: =IF($N15=Données!$F$12,0,IF($N15<Données!$F$11,1,0)) -> 0 | S15: Nombre jours fériées travaillés : | U15: =I78 -> 0 | AE15: Adresse lieu de travail: | AF15: -
B16: 2014-12-11 | F16: 0 | G16: =IF($D16<>"",IF($D16<Données!$C$2,1,0),0) -> 0 | J16: 0 | K16: =IF($H16<>"",IF($H16<Données!$C$3,1,0),0) -> 0 | L16: 0.3229166667 | M16: 0 | N16: 0 | O16: =IF($N16=Données!$F$12,0,IF($N16<Données!$F$11,1,0)) -> 0 | S16: Nombre de fois 11h de batement non respecté : | U16: =J78 -> 1
B17: 2014-12-12 | F17: 0 | G17: =IF($D17<>"",IF($D17<Données!$C$2,1,0),0) -> 0 | J17: 0 | K17: =IF($H17<>"",IF($H17<Données!$C$3,1,0),0) -> 0 | L17: 0.3229166667 | M17: 0 | N17: 0 | O17: =IF($N17=Données!$F$12,0,IF($N17<Données!$F$11,1,0)) -> 0
B18: 2014-12-13 | F18: 0 | G18: =IF($D18<>"",IF($D18<Données!$C$2,1,0),0) -> 0 | J18: 0 | K18: =IF($H18<>"",IF($H18<Données!$C$3,1,0),0) -> 0 | L18: 0.3229166667 | M18: 0 | N18: 0 | O18: =IF($N18=Données!$F$12,0,IF($N18<Données!$F$11,1,0)) -> 0 | AE18: Distance ( Source Mappy) : | AF18: - | AG18: 7,4 KM
B19: 2014-12-14 | F19: 0 | G19: =IF($D19<>"",IF($D19<Données!$C$2,1,0),0) -> 0 | J19: 0 | K19: =IF($H19<>"",IF($H19<Données!$C$3,1,0),0) -> 0 | L19: 0.3229166667 | M19: 0 | N19: 0 | O19: =IF($N19=Données!$F$12,0,IF($N19<Données!$F$11,1,0)) -> 0 | U19: =SUM(L12+L20+L28+L36+L44+L52) -> 7.541666667 | V19: Heures effectués
B20: Total Semaine | E20: =WEEKNUM(B13,21) -> 50 | F20: =SUM($F13:$F19) -> 0 | G20: =G13+G14+G15+G16+G17+G18+G19 -> 0 | J20: =SUM(J13:J19) -> 0 | K20: =K13+K14+K15+K16+K17+K18+K19 -> 0 | L20: =SUM(L13:L19) -> 1.614583333 | M20: =SUM(M13:M19) -> 0 | O20: =SUM(O13:O19) -> 0 | U20: =IF(U19<N53,"- "&TEXT(ABS(N53-U19),"[hh]:mm"),U19-N53) -> 0.5 | V20: Heures dues/supp | AE20: Nombre Aller-Retour : | AF20: - | AG20: =COUNT(E5:E11,I5:I11,E13:E19,I13:I19,E21:E27,I21:I27,E29:E35,I29:I35,E37:E43,I37:I43,E45:E51,I45:I51) -> 14
B21: =B19+1 -> 2014-12-15 | F21: =$E21-$D21+IF($D21>$E21,1) -> 0 | G21: =IF($D21<>"",IF($D21<Données!$C$2,1,0),0) -> 0 | J21: =$I21-$H21+IF($H21>$I21,1) -> 0 | K21: =IF($H21<>"",IF($H21<Données!$C$3,1,0),0) -> 0 | L21: 0.3229166667 | M21: =$G21+$K21 -> 0 | N21: =$D21-$I19+IF($I19>$D21,1) -> 0 | O21: =IF($N21=Données!$F$12,0,IF($N21<Données!$F$11,1,0)) -> 0 | AE21: Km Parcourue : | AF21: - | AG21: =SUM(AG20*14.8) -> 207.2 | AH21: Km
B22: =B21+1 -> 2014-12-16 | F22: =$E22-$D22+IF($D22>$E22,1) -> 0 | G22: =IF($D22<>"",IF($D22<Données!$C$2,1,0),0) -> 0 | J22: =$I22-$H22+IF($H22>$I22,1) -> 0 | K22: =IF($H22<>"",IF($H22<Données!$C$3,1,0),0) -> 0 | L22: =$F22+$J22-($G22+$K22)*("00:30") -> 0 | M22: =$G22+$K22 -> 0 | N22: =$D22-$I21+IF($I21>$D22,1) -> 0 | O22: =IF($N22=Données!$F$12,0,IF($N22<Données!$F$11,1,0)) -> 0 | AE22: Horodateur Payé : | AF22: - | AG22: 10.4
B23: =B22+1 -> 2014-12-17 | F23: 0 | G23: =IF($D23<>"",IF($D23<Données!$C$2,1,0),0) -> 0 | J23: 0 | K23: =IF($H23<>"",IF($H23<Données!$C$3,1,0),0) -> 0 | L23: 0 | M23: 0 | N23: =$D23-$I22+IF($I22>$D23,1) -> 0 | O23: =IF($N23=Données!$F$12,0,IF($N23<Données!$F$11,1,0)) -> 0 | S23: Dont : | T23: - | U23: =$B$68 -> 6.5625 | V23: Heures à taux normal ( 35h ) | AE23: Achat divers pour le travail : | AF23: - | AG23: =NbCellsCoul($D$5:$I$11,50)*0.25 -> 2
B24: 2014-12-18 | F24: 0 | G24: =IF($D24<>"",IF($D24<Données!$C$2,1,0),0) -> 0 | J24: 0 | K24: =IF($H24<>"",IF($H24<Données!$C$3,1,0),0) -> 0 | L24: 0.3229166667 | M24: 0 | N24: 0 | O24: =IF($N24=Données!$F$12,0,IF($N24<Données!$F$11,1,0)) -> 0 | T24: - | U24: =$C$68 -> 0.6354166667 | V24: Heures en HS 10% ( 35h à 39h ) | AF24: -
B25: 2014-12-19 | F25: 0 | G25: =IF($D25<>"",IF($D25<Données!$C$2,1,0),0) -> 0 | J25: 0 | K25: =IF($H25<>"",IF($H25<Données!$C$3,1,0),0) -> 0 | L25: 0.3229166667 | M25: 0 | N25: 0 | O25: =IF($N25=Données!$F$12,0,IF($N25<Données!$F$11,1,0)) -> 0 | T25: - | U25: =$D$68 -> 0.1666666667 | V25: Heures en HS 20% (39h à 43h ) | AF25: -
B26: 2014-12-20 | F26: 0 | G26: =IF($D26<>"",IF($D26<Données!$C$2,1,0),0) -> 0 | J26: 0 | K26: =IF($H26<>"",IF($H26<Données!$C$3,1,0),0) -> 0 | L26: 0.3229166667 | M26: 0 | N26: 0 | O26: =IF($N26=Données!$F$12,0,IF($N26<Données!$F$11,1,0)) -> 0 | T26: - | U26: =$E$68 -> 0.1770833333 | V26: Heures en HS 40% ( 43h et plus ) | AF26: -
B27: 2014-12-21 | F27: 0 | G27: =IF($D27<>"",IF($D27<Données!$C$2,1,0),0) -> 0 | J27: 0 | K27: =IF($H27<>"",IF($H27<Données!$C$3,1,0),0) -> 0 | L27: 0.3229166667 | M27: 0 | N27: 0 | O27: =IF($N27=Données!$F$12,0,IF($N27<Données!$F$11,1,0)) -> 0 | T27: - | U27: =SUM(M12+M20+M28+M36+M44+M52) -> 0 | V27: Nombre de repas | AF27: -
B28: Total Semaine | E28: =WEEKNUM(B21,21) -> 51 | F28: =SUM($F21:$F27) -> 0 | G28: =G21+G22+G23+G24+G25+G26+G27 -> 0 | J28: =SUM(J21:J27) -> 0 | K28: =K21+K22+K23+K24+K25+K26+K27 -> 0 | L28: =SUM(L21:L27) -> 1.614583333 | M28: =SUM(M21:M27) -> 0 | O28: =SUM(O21:O27) -> 0 | AF28: -
B29: =B27+1 -> 2014-12-22 | D29: 0.5 | E29: 0.65625 | F29: =$E29-$D29+IF($D29>$E29,1) -> 0.15625 | G29: =IF($D29<>"",IF($D29<Données!$C$2,1,0),0) -> 0 | H29: 0.78125 | I29: 0.01041666667 | J29: =$I29-$H29+IF($H29>$I29,1) -> 0.2291666667 | K29: =IF($H29<>"",IF($H29<Données!$C$3,1,0),0) -> 0 | L29: =$F29+$J29-($G29+$K29)*("00:30") -> 0.3854166667 | M29: =$G29+$K29 -> 0 | N29: =$D29-$I27+IF($I27>$D29,1) -> 0.5 | O29: =IF($N29=Données!$F$12,0,IF($N29<Données!$F$11,1,0)) -> 0 | S29: Heure fiche de paie: | AF29: -
B30: =B29+1 -> 2014-12-23 | D30: 0.4895833333 | E30: 0.6354166667 | F30: =$E30-$D30+IF($D30>$E30,1) -> 0.1458333333 | G30: =IF($D30<>"",IF($D30<Données!$C$2,1,0),0) -> 0 | H30: 0.78125 | I30: 0.96875 | J30: =$I30-$H30+IF($H30>$I30,1) -> 0.1875 | K30: =IF($H30<>"",IF($H30<Données!$C$3,1,0),0) -> 0 | L30: =$F30+$J30-($G30+$K30)*("00:30") -> 0.3333333333 | M30: =$G30+$K30 -> 0 | N30: =$D30-$I29+IF($I29>$D30,1) -> 0.4791666667 | O30: =IF($N30=Données!$F$12,0,IF($N30<Données!$F$11,1,0)) -> 0 | AF30: -
B31: =B30+1 -> 2014-12-24 | F31: 0 | G31: =IF($D31<>"",IF($D31<Données!$C$2,1,0),0) -> 0 | J31: 0 | K31: =IF($H31<>"",IF($H31<Données!$C$3,1,0),0) -> 0 | L31: 0 | M31: 0 | N31: 0 | O31: =IF($N31=Données!$F$12,0,IF($N31<Données!$F$11,1,0)) -> 0 | S31: Dont : | T31: - | U31: 6.319444444 | V31: Heures à taux normal | AF31: -
B32: 2014-12-25 | F32: 0 | G32: =IF($D32<>"",IF($D32<Données!$C$2,1,0),0) -> 0 | H32: 0.7604166667 | I32: 0.96875 | J32: 0.2083333333 | K32: 0 | L32: 0.2083333333 | M32: 0 | N32: =$D32-$I31+IF($I31>$D32,1) -> 0 | O32: =IF($N32=Données!$F$12,0,IF($N32<Données!$F$11,1,0)) -> 0 | T32: - | U32: 0.73125 | V32: Heures en HS 10% | AF32: -
B33: 2014-12-26 | D33: 0.4895833333 | E33: 0.6145833333 | F33: 0.125 | G33: =IF($D33<>"",IF($D33<Données!$C$2,1,0),0) -> 0 | H33: 0.78125 | I33: 0.02083333333 | J33: 0.2395833333 | K33: =IF($H33<>"",IF($H33<Données!$C$3,1,0),0) -> 0 | L33: 0.3645833333 | M33: 0 | N33: 0.5208333333 | O33: =IF($N33=Données!$F$12,0,IF($N33<Données!$F$11,1,0)) -> 0 | T33: - | U33: 0 | V33: Heures en HS 20%
B34: 2014-12-27 | F34: 0 | G34: =IF($D34<>"",IF($D34<Données!$C$2,1,0),0) -> 0 | H34: 0.78125 | I34: 0.04166666667 | J34: 0.2604166667 | K34: =IF($H34<>"",IF($H34<Données!$C$3,1,0),0) -> 0 | L34: 0.2604166667 | M34: 0 | N34: 0.9791666667 | O34: =IF($N34=Données!$F$12,0,IF($N34<Données!$F$11,1,0)) -> 0 | T34: - | U34: 0 | V34: Heures en HS 40% | AE34: Total dépenses: | AF34: - | AG34: =SUM(AG22:AG32) -> 12.4
B35: 2014-12-28 | D35: 0.4895833333 | E35: 0.6666666667 | F35: 0.1770833333 | G35: =IF($D35<>"",IF($D35<Données!$C$2,1,0),0) -> 0 | H35: 0.78125 | I35: 0.02083333333 | J35: 0.2395833333 | K35: =IF($H35<>"",IF($H35<Données!$C$3,1,0),0) -> 0 | L35: 0.4166666667 | M35: 0 | N35: 0.4479166667 | O35: =IF($N35=Données!$F$12,0,IF($N35<Données!$F$11,1,0)) -> 1 | T35: - | U35: 0 | V35: Nombre de repas
B36: Total Semaine | E36: =WEEKNUM(B29,21) -> 52 | F36: =SUM($F29:$F35) -> 0.6041666667 | G36: =G29+G30+G31+G32+G33+G34+G35 -> 0 | J36: =SUM(J29:J35) -> 1.364583333 | K36: =K29+K30+K31+K32+K33+K34+K35 -> 0 | L36: =SUM(L29:L35) -> 1.96875 | M36: =SUM(M29:M35) -> 0 | O36: =SUM(O29:O35) -> 1
B37: =B35+1 -> 2014-12-29 | D37: 0.4895833333 | E37: 0.625 | F37: =$E37-$D37+IF($D37>$E37,1) -> 0.1354166667 | G37: =IF($D37<>"",IF($D37<Données!$C$2,1,0),0) -> 0 | H37: 0.78125 | I37: 0 | J37: =$I37-$H37+IF($H37>$I37,1) -> 0.21875 | K37: =IF($H37<>"",IF($H37<Données!$C$3,1,0),0) -> 0 | L37: =$F37+$J37-($G37+$K37)*("00:30") -> 0.3541666667 | M37: =$G37+$K37 -> 0 | N37: =$D37-$I35+IF($I35>$D37,1) -> 0.46875 | O37: =IF($N37=Données!$F$12,0,IF($N37<Données!$F$11,1,0)) -> 0 | S37: Différence:
B38: =B37+1 -> 2014-12-30 | D38: 0.4895833333 | E38: 0.6458333333 | F38: =$E38-$D38+IF($D38>$E38,1) -> 0.15625 | G38: =IF($D38<>"",IF($D38<Données!$C$2,1,0),0) -> 0 | H38: 0.78125 | I38: 0 | J38: =$I38-$H38+IF($H38>$I38,1) -> 0.21875 | K38: =IF($H38<>"",IF($H38<Données!$C$3,1,0),0) -> 0 | L38: =$F38+$J38-($G38+$K38)*("00:30") -> 0.375 | M38: =$G38+$K38 -> 0 | N38: =$D38-$I37+IF($I37>$D38,1) -> 0.4895833333 | O38: =IF($N38=Données!$F$12,0,IF($N38<Données!$F$11,1,0)) -> 0
B39: =B38+1 -> 2014-12-31 | F39: 0 | G39: =IF($D39<>"",IF($D39<Données!$C$2,1,0),0) -> 0 | J39: 0 | K39: =IF($H39<>"",IF($H39<Données!$C$3,1,0),0) -> 0 | L39: 0 | M39: 0 | N39: =$D39-$I38+IF($I38>$D39,1) -> 0 | O39: =IF($N39=Données!$F$12,0,IF($N39<Données!$F$11,1,0)) -> 0 | S39: Dont : | T39: - | U39: =$U31-$U23+IF($U23>$U31,1) -> 0.7569444444 | V39: Heures à taux normal
B40: 2015-01-01 | F40: 0 | G40: =IF($D40<>"",IF($D40<Données!$C$2,1,0),0) -> 0 | J40: 0 | K40: =IF($H40<>"",IF($H40<Données!$C$3,1,0),0) -> 0 | L40: 0 | M40: 0 | N40: 0 | O40: =IF($N40=Données!$F$12,0,IF($N40<Données!$F$11,1,0)) -> 0 | T40: - | U40: =$U32-$U24+IF($U24>$U32,1) -> 0.09583333333 | V40: Heures en HS 10%
B41: 2015-01-02 | F41: 0 | G41: =IF($D41<>"",IF($D41<Données!$C$2,1,0),0) -> 0 | J41: 0 | K41: =IF($H41<>"",IF($H41<Données!$C$3,1,0),0) -> 0 | L41: 0 | M41: 0 | N41: 0 | O41: =IF($N41=Données!$F$12,0,IF($N41<Données!$F$11,1,0)) -> 0 | T41: - | U41: =$U33-$U25+IF($U25>$U33,1) -> 0.8333333333 | V41: Heures en HS 20%
B42: 2015-01-03 | F42: 0 | G42: =IF($D42<>"",IF($D42<Données!$C$2,1,0),0) -> 0 | J42: 0 | K42: =IF($H42<>"",IF($H42<Données!$C$3,1,0),0) -> 0 | L42: 0 | M42: 0 | N42: 0 | O42: =IF($N42=Données!$F$12,0,IF($N42<Données!$F$11,1,0)) -> 0 | T42: - | U42: =$U34-$U26+IF($U26>$U34,1) -> 0.8229166667 | V42: Heures en HS 40%
B43: 2015-01-04 | F43: 0 | G43: =IF($D43<>"",IF($D43<Données!$C$2,1,0),0) -> 0 | J43: 0 | K43: =IF($H43<>"",IF($H43<Données!$C$3,1,0),0) -> 0 | L43: 0 | M43: 0 | N43: 0 | O43: =IF($N43=Données!$F$12,0,IF($N43<Données!$F$11,1,0)) -> 0 | T43: - | U43: =SUM(U35-U27) -> 0 | V43: Nombre de repas
B44: Total Semaine | E44: =WEEKNUM(B37,21) -> 1 | F44: =SUM($F37:$F43) -> 0.2916666667 | G44: =G37+G38+G39+G40+G41+G42+G43 -> 0 | J44: =SUM(J37:J43) -> 0.4375 | K44: =K37+K38+K39+K40+K41+K42+K43 -> 0 | L44: =SUM(L37:L43) -> 0.7291666667 | M44: =SUM(M37:M43) -> 0 | O44: =SUM(O37:O43) -> 0
B45: =B43+1 -> 2015-01-05 | F45: =$E45-$D45+IF($D45>$E45,1) -> 0 | G45: =IF($D45<>"",IF($D45<Données!$C$2,1,0),0) -> 0 | J45: =$I45-$H45+IF($H45>$I45,1) -> 0 | K45: =IF($H45<>"",IF($H45<Données!$C$3,1,0),0) -> 0 | L45: =$F45+$J45-($G45+$K45)*("00:30") -> 0 | M45: =$G45+$K45 -> 0 | N45: =$D45-$I43+IF($I43>$D45,1) -> 0 | O45: =IF($N45=Données!$F$12,0,IF($N45<Données!$F$11,1,0)) -> 0
B46: =B45+1 -> 2015-01-06 | F46: 0 | G46: =IF($D46<>"",IF($D46<Données!$C$2,1,0),0) -> 0 | J46: =$I46-$H46+IF($H46>$I46,1) -> 0 | K46: =IF($H46<>"",IF($H46<Données!$C$3,1,0),0) -> 0 | L46: =$F46+$J46-($G46+$K46)*("00:30") -> 0 | M46: =$G46+$K46 -> 0 | N46: =$D46-$I45+IF($I45>$D46,1) -> 0 | O46: =IF($N46=Données!$F$12,0,IF($N46<Données!$F$11,1,0)) -> 0
B47: =B46+1 -> 2015-01-07 | F47: 0 | G47: =IF($D47<>"",IF($D47<Données!$C$2,1,0),0) -> 0 | J47: 0 | K47: =IF($H47<>"",IF($H47<Données!$C$3,1,0),0) -> 0 | L47: 0 | M47: 0 | N47: =$D47-$I46+IF($I46>$D47,1) -> 0 | O47: =IF($N47=Données!$F$12,0,IF($N47<Données!$F$11,1,0)) -> 0
B48: 2015-01-08 | F48: 0 | G48: =IF($D48<>"",IF($D48<Données!$C$2,1,0),0) -> 0 | J48: 0 | K48: =IF($H48<>"",IF($H48<Données!$C$3,1,0),0) -> 0 | L48: 0 | M48: 0 | N48: 0 | O48: =IF($N48=Données!$F$12,0,IF($N48<Données!$F$11,1,0)) -> 0
B49: 2015-01-09 | F49: 0 | G49: =IF($D49<>"",IF($D49<Données!$C$2,1,0),0) -> 0 | J49: 0 | K49: =IF($H49<>"",IF($H49<Données!$C$3,1,0),0) -> 0 | L49: 0 | M49: 0 | N49: 0 | O49: =IF($N49=Données!$F$12,0,IF($N49<Données!$F$11,1,0)) -> 0
B50: 2015-01-10 | F50: 0 | G50: =IF($D50<>"",IF($D50<Données!$C$2,1,0),0) -> 0 | J50: 0 | K50: =IF($H50<>"",IF($H50<Données!$C$3,1,0),0) -> 0 | L50: 0 | M50: 0 | N50: 0 | O50: =IF($N50=Données!$F$12,0,IF($N50<Données!$F$11,1,0)) -> 0
B51: 2015-01-11 | F51: 0 | G51: =IF($D51<>"",IF($D51<Données!$C$2,1,0),0) -> 0 | J51: 0 | K51: =IF($H51<>"",IF($H51<Données!$C$3,1,0),0) -> 0 | L51: 0 | M51: 0 | N51: 0 | O51: =IF($N51=Données!$F$12,0,IF($N51<Données!$F$11,1,0)) -> 0
B52: Total semaine | E52: =WEEKNUM(B45,21) -> 2 | F52: =SUM($F45:$F51) -> 0 | G52: =G45+G46+G47+G48+G49+G50+G51 -> 0 | J52: =SUM(J45:J51) -> 0 | K52: =K45+K46+K47+K48+K49+K50+K51 -> 0 | L52: =SUM(L45:L51) -> 0 | M52: =SUM(M45:M51) -> 0 | O52: =SUM(O45:O51) -> 0
N53: 7.041666667
L54: =CodeCouleur(M54) -> 50 | N54: REPOS
L55: =CodeCouleur(M55) -> 42 | N55: Récup
L56: 48 | N56: JFG
L57: 44 | N57: VAC
L58: 3 | N58: MAL
L59: =CodeCouleur(M59) -> 40 | N59: Jf Taf
A60: Heures | C60: 1.458333333 | D60: 1.625 | E60: 1.791666667 | F60: Total
A61: Taux | B61: 1 | C61: 1.1 | D61: 1.2 | E61: 1.4
A62: S 1 | B62: =IF($L$12<=$C$60,$L$12,$C$60) -> 1.458333333 | C62: =IF($L$12<=$C$60,0,IF($L$12<=$D$60,$L$12,$D$60)-$C$60) -> 0.15625 | D62: =IF($L$12<=$D$60,0,IF($L$12<=$E$60,$L$12,$D$60)-$C$60) -> 0 | E62: =IF($L$12<=$E$60,0,IF($L$12>$E$60,$L$12,$E$60)-$E$60) -> 0 | F62: =B62+C62+D62+E62 -> 1.614583333
A63: S 2 | B63: =IF($L$20<=$C$60,$L$20,$C$60) -> 1.458333333 | C63: =IF($L$20<=$C$60,0,IF($L$20<=$D$60,$L$20,$D$60)-$C$60) -> 0.15625 | D63: =IF($L$20<=$D$60,0,IF($L$20<=$E$60,$L$20,$D$60)-$C$60) -> 0 | E63: =IF($L$20<=$E$60,0,IF($L$20>$E$60,$L$20,$E$60)-$E$60) -> 0 | F63: 1.614583333
A64: S 3 | B64: =IF($L$28<=$C$60,$L$28,$C$60) -> 1.458333333 | C64: =IF($L$28<=$C$60,0,IF($L$28<=$D$60,$L$28,$D$60)-$C$60) -> 0.15625 | D64: =IF($L$28<=$D$60,0,IF($L$28<=$E$60,$L$28,$D$60)-$C$60) -> 0 | E64: =IF($L$28<=$E$60,0,IF($L$28>$E$60,$L$28,$E$60)-$E$60) -> 0 | F64: 1.614583333
A65: S 4 | B65: =IF($L$36<=$C$60,$L$36,$C$60) -> 1.458333333 | C65: =IF($L$36<=$C$60,0,IF($L$36<=$D$60,$L$36,$D$60)-$C$60) -> 0.1666666667 | D65: =IF($L$36<=$D$60,0,IF($L$36<=$E$60,$L$36,$D$60)-$C$60) -> 0.1666666667 | E65: =IF($L$36<=$E$60,0,IF($L$36>$E$60,$L$36,$E$60)-$E$60) -> 0.1770833333 | F65: 1.96875
A66: S 5 | B66: =IF($L$44<=$C$60,$L$44,$C$60) -> 0.7291666667 | C66: =IF($L$44<=$C$60,0,IF($L$44<=$D$60,$L$44,$D$60)-$C$60) -> 0 | D66: =IF($L$44<=$D$60,0,IF($L$44<=$E$60,$L$44,$D$60)-$C$60) -> 0 | E66: =IF($L$44<=$E$60,0,IF($L$44>$E$60,$L$44,$E$60)-$E$60) -> 0 | F66: 0.7291666667
A67: S 6 | B67: =IF($L$52<=$C$60,$L$52,$C$60) -> 0 | C67: =IF($L$52<=$C$60,0,IF($L$52<=$D$60,$L$52,$D$60)-$C$60) -> 0 | D67: =IF($L$52<=$D$60,0,IF($L$52<=$E$60,$L$52,$D$60)-$C$60) -> 0 | E67: =IF($L$52<=$E$60,0,IF($L$52>$E$60,$L$52,$E$60)-$E$60) -> 0 | F67: 0
A68: Total | B68: =SUM(B62:B67) -> 6.5625 | C68: =SUM(C62:C67) -> 0.6354166667 | D68: =SUM(D62:D67) -> 0.1666666667 | E68: =SUM(E62:E67) -> 0.1770833333 | F68: 7.541666667
A71: Jours | B71: Repos | C71: Récup | D71: Jfg | E71: Vac | F71: Mal | G71: Vides | H71: Taf | I71: Jf Taf | J71: <11h
A72: S 1 | B72: =NbCellsCoul($D$5:$I$11,50)*0.25 -> 2 | C72: =NbCellsCoul($D$5:$I$11,42)*0.25 -> 0 | D72: =NbCellsCoul($D$5:$I$11,48)*0.25 -> 0 | E72: =NbCellsCoul($D$5:$I$11,44)*0.25 -> 5 | F72: =NbCellsCoul($D$5:$I$11,3)*0.25 -> 0 | G72: =+COUNTBLANK(E5:H11)/2 -> 7 | H72: =7-$G72 -> 0 | I72: =NbCellsCoul($D$5:$I$11,40)*0.25 -> 0 | J72: =SUM($O$6:$O$11) -> 0
A73: S 2 | B73: =NbCellsCoul($D$13:$I$19,50)*0.25 -> 2 | C73: =NbCellsCoul($D$13:$I$19,42)*0.25 -> 0 | D73: =NbCellsCoul($D$13:$I$19,48)*0.25 -> 0 | E73: =NbCellsCoul($D$13:$I$19,44)*0.25 -> 5 | F73: =NbCellsCoul($D$13:$I$19,3)*0.25 -> 0 | G73: =+COUNTBLANK(E13:H19)/2 -> 7 | H73: 0 | I73: =NbCellsCoul($D$13:$I$19,40)*0.25 -> 0 | J73: =SUM($O$13:$O$19) -> 0
A74: S 3 | B74: =NbCellsCoul($D$21:$I$27,50)*0.25 -> 2 | C74: =NbCellsCoul($D$21:$I$27,42)*0.25 -> 0 | D74: =NbCellsCoul($D$21:$I$27,48)*0.25 -> 0 | E74: =NbCellsCoul($D$21:$I$27,44)*0.25 -> 5 | F74: =NbCellsCoul($D$21:$I$27,3)*0.25 -> 0 | G74: =+COUNTBLANK(E21:H27)/2 -> 7 | H74: 0 | I74: =NbCellsCoul($D$21:$I$27,40)*0.25 -> 0 | J74: =SUM($O$21:$O$27) -> 0
A75: S 4 | B75: =NbCellsCoul($D$29:$I$35,50)*0.25 -> 2 | C75: =NbCellsCoul($D$29:$I$35,42)*0.25 -> 0 | D75: =NbCellsCoul($D$29:$I$35,48)*0.25 -> 0 | E75: =NbCellsCoul($D$29:$I$35,44)*0.25 -> 0 | F75: =NbCellsCoul($D$29:$I$35,3)*0.25 -> 0 | G75: =+COUNTBLANK(E29:H35)/2 -> 2 | H75: 5 | I75: =NbCellsCoul($D$29:$I$35,40)*0.25 -> 0 | J75: =SUM($O$29:$O$35) -> 1
A76: S 5 | B76: =NbCellsCoul($D$37:$I$43,50)*0.25 -> 0 | C76: =NbCellsCoul($D$37:$I$43,42)*0.25 -> 0 | D76: =NbCellsCoul($D$37:$I$43,48)*0.25 -> 0 | E76: =NbCellsCoul($D$37:$I$43,44)*0.25 -> 0 | F76: =NbCellsCoul($D$37:$I$43,3)*0.25 -> 0 | G76: =+COUNTBLANK(E37:H43)/2 -> 5 | H76: 2 | I76: =NbCellsCoul($D$37:$I$43,40)*0.25 -> 0 | J76: =SUM($O$37:$O$43) -> 0
A77: S 6 | B77: =NbCellsCoul($D$45:$I$51,50)*0.25 -> 0 | C77: =NbCellsCoul($D$45:$I$51,42)*0.25 -> 0 | D77: =NbCellsCoul($D$45:$I$51,48)*0.25 -> 0 | E77: =NbCellsCoul($D$45:$I$51,44)*0.25 -> 0 | F77: =NbCellsCoul($D$45:$I$51,3)*0.25 -> 0 | G77: =+COUNTBLANK(E45:H51)/2 -> 7 | H77: 0 | I77: =NbCellsCoul($D$45:$I$51,40)*0.25 -> 0 | J77: =SUM($O$45:$O$51) -> 0
A78: Total | B78: =SUM(B$72:B$77) -> 8 | C78: 0 | D78: 0 | E78: 15 | F78: =SUM(F$72:F$77) -> 0 | G78: =SUM(G$72:G$77) -> 35 | H78: =SUM(H$72:H$77) -> 7 | I78: =SUM(I$72:I$77) -> 0 | J78: =SUM(J$72:J$77) -> 1

Sheet Oct 14
D1: TEMPS DE TRAVAIL | S1: RÉCAPITULATIF | AE1: IMPÔTS
F2: =Données!G14 -> 12 | J2: =Données!C15 -> 2014
B3: Jour | D3: Midi | F3: Cumul Midi | G3: Repas | H3: Soir | J3: Cumul Soir | K3: Repas | L3: Totaux | M3: Total Repas
D4: Début | E4: Fin | H4: Début | I4: Fin | AF4: =VLOOKUP(F2,Données!E15:F26,2) -> Décembre | AG4: =J2 -> 2014
B5: =Données!I15-WEEKDAY(Données!I15-1)+1 -> 2014-12-01 | F5: =$E5-$D5+IF($D5>$E5,1) -> 0 | G5: =IF($D5<>"",IF($D5<Données!$C$2,1,0),0) -> 0 | J5: =$I5-$H5+IF($H5>$I5,1) -> 0 | K5: =IF($H5<>"",IF($H5<Données!$C$3,1,0),0) -> 0 | L5: =$F5+$J5-($G5+$K5)*("00:30") -> 0 | M5: =$G5+$K5 -> 0
B6: =B5+1 -> 2014-12-02 | F6: =$E6-$D6+IF($D6>$E6,1) -> 0 | G6: =IF($D6<>"",IF($D6<Données!$C$2,1,0),0) -> 0 | J6: =$I6-$H6+IF($H6>$I6,1) -> 0 | K6: =IF($H6<>"",IF($H6<Données!$C$3,1,0),0) -> 0 | L6: =$F6+$J6-($G6+$K6)*("00:30") -> 0 | M6: =$G6+$K6 -> 0 | N6: =$D6-$I5+IF($I5>$D6,1) -> 0 | O6: =IF($N6=Données!$F$12,0,IF($N6<Données!$F$11,1,0)) -> 0 | S6: Soit au total pour le mois de : | U6: =VLOOKUP(F2,Données!E15:F26,2) -> Décembre | V6: =J2 -> 2014
B7: =B6+1 -> 2014-12-03 | F7: 0 | G7: =IF($D7<>"",IF($D7<Données!$C$2,1,0),0) -> 0 | J7: 0 | K7: =IF($H7<>"",IF($H7<Données!$C$3,1,0),0) -> 0 | L7: 0 | M7: 0 | N7: =$D7-$I6+IF($I6>$D7,1) -> 0 | O7: =IF($N7=Données!$F$12,0,IF($N7<Données!$F$11,1,0)) -> 0
B8: 2014-12-04 | F8: 0 | G8: =IF($D8<>"",IF($D8<Données!$C$2,1,0),0) -> 0 | J8: 0 | K8: =IF($H8<>"",IF($H8<Données!$C$3,1,0),0) -> 0 | L8: 0 | M8: 0 | N8: =$D8-$I7+IF($I7>$D8,1) -> 0 | O8: =IF($N8=Données!$F$12,0,IF($N8<Données!$F$11,1,0)) -> 0 | AE8: Numéro Fiscal :
B9: 2014-12-05 | D9: 0.4895833333 | E9: 0.6666666667 | F9: 0.1770833333 | G9: =IF($D9<>"",IF($D9<Données!$C$2,1,0),0) -> 0 | H9: 0.78125 | I9: 0.04166666667 | J9: 0.2604166667 | K9: =IF($H9<>"",IF($H9<Données!$C$3,1,0),0) -> 0 | L9: 0.4375 | M9: 0 | N9: 0.4895833333 | O9: =IF($N9=Données!$F$12,0,IF($N9<Données!$F$11,1,0)) -> 0 | S9: Nombre de jours travaillés : | U9: =H78 -> 21 | AE9: MDP:
B10: 2014-12-06 | D10: 0.4895833333 | E10: 0.6458333333 | F10: 0.15625 | G10: =IF($D10<>"",IF($D10<Données!$C$2,1,0),0) -> 0 | H10: 0.78125 | I10: 0.07291666667 | J10: 0.2916666667 | K10: =IF($H10<>"",IF($H10<Données!$C$3,1,0),0) -> 0 | L10: 0.4479166667 | M10: 0 | N10: =$D10-$I9+IF($I9>$D10,1) -> 0.4479166667 | O10: =IF($N10=Données!$F$12,0,IF($N10<Données!$F$11,1,0)) -> 1 | S10: Nombre de jours repos : | U10: =B78 -> 10
B11: 2014-12-07 | D11: 0.4895833333 | E11: 0.6666666667 | F11: 0.1770833333 | G11: =IF($D11<>"",IF($D11<Données!$C$2,1,0),0) -> 0 | H11: 0.78125 | I11: 0.02083333333 | J11: 0.2395833333 | K11: =IF($H11<>"",IF($H11<Données!$C$3,1,0),0) -> 0 | L11: 0.4166666667 | M11: 0 | N11: =$D11-$I10+IF($I10>$D11,1) -> 0.4166666667 | O11: =IF($N11=Données!$F$12,0,IF($N11<Données!$F$11,1,0)) -> 1 | S11: Nombre de jours récup : | U11: =C$78 -> 0 | AE11: Adresse domicile: | AF11: -
B12: Total Semaine | E12: =WEEKNUM(B5,21) -> 49 | F12: =SUM($F5:$F11) -> 0.5104166667 | G12: =G5+G6+G7+G8+G9+G10+G11 -> 0 | J12: =SUM(J5:J11) -> 0.7916666667 | K12: =K5+K6+K7+K8+K9+K10+K11 -> 0 | L12: =SUM(L5:L11) -> 1.302083333 | M12: =SUM(M5:M11) -> 0 | O12: =SUM(O6:O11) -> 2 | S12: Nombre de jfg : | U12: =D$78 -> 0
B13: =B11+1 -> 2014-12-08 | D13: 0.4895833333 | E13: 0.6458333333 | F13: =$E13-$D13+IF($D13>$E13,1) -> 0.15625 | G13: =IF($D13<>"",IF($D13<Données!$C$2,1,0),0) -> 0 | H13: 0.78125 | I13: 0.04166666667 | J13: =$I13-$H13+IF($H13>$I13,1) -> 0.2604166667 | K13: =IF($H13<>"",IF($H13<Données!$C$3,1,0),0) -> 0 | L13: =$F13+$J13-($G13+$K13)*("00:30") -> 0.4166666667 | M13: =$G13+$K13 -> 0 | N13: =$D13-$I11+IF($I11>$D13,1) -> 0.46875 | O13: =IF($N13=Données!$F$12,0,IF($N13<Données!$F$11,1,0)) -> 0 | S13: Nombre de jours de vacances : | U13: =E$78 -> 0
B14: =B13+1 -> 2014-12-09 | D14: 0.4895833333 | E14: 0.625 | F14: =$E14-$D14+IF($D14>$E14,1) -> 0.1354166667 | G14: =IF($D14<>"",IF($D14<Données!$C$2,1,0),0) -> 0 | H14: 0.78125 | I14: 0.9583333333 | J14: =$I14-$H14+IF($H14>$I14,1) -> 0.1770833333 | K14: =IF($H14<>"",IF($H14<Données!$C$3,1,0),0) -> 0 | L14: =$F14+$J14-($G14+$K14)*("00:30") -> 0.3125 | M14: =$G14+$K14 -> 0 | N14: =$D14-$I13+IF($I13>$D14,1) -> 0.4479166667 | O14: =IF($N14=Données!$F$12,0,IF($N14<Données!$F$11,1,0)) -> 1 | S14: Nombre de jours de maladie : | U14: =F$78 -> 0
B15: =B14+1 -> 2014-12-10 | F15: 0 | G15: =IF($D15<>"",IF($D15<Données!$C$2,1,0),0) -> 0 | J15: 0 | K15: =IF($H15<>"",IF($H15<Données!$C$3,1,0),0) -> 0 | L15: 0 | M15: 0 | N15: 0 | O15: =IF($N15=Données!$F$12,0,IF($N15<Données!$F$11,1,0)) -> 0 | S15: Nombre jours fériées travaillés : | U15: =I78 -> 0 | AE15: Adresse lieu de travail: | AF15: -
B16: 2014-12-11 | F16: 0 | G16: =IF($D16<>"",IF($D16<Données!$C$2,1,0),0) -> 0 | J16: 0 | K16: =IF($H16<>"",IF($H16<Données!$C$3,1,0),0) -> 0 | L16: 0 | M16: 0 | N16: =$D16-$I15+IF($I15>$D16,1) -> 0 | O16: =IF($N16=Données!$F$12,0,IF($N16<Données!$F$11,1,0)) -> 0 | S16: Nombre de fois 11h de batement non respecté : | U16: =J78 -> 5
B17: 2014-12-12 | D17: 0.4895833333 | E17: 0.625 | F17: 0.1354166667 | G17: =IF($D17<>"",IF($D17<Données!$C$2,1,0),0) -> 0 | H17: 0.78125 | I17: 0.04166666667 | J17: 0.2604166667 | K17: =IF($H17<>"",IF($H17<Données!$C$3,1,0),0) -> 0 | L17: 0.3958333333 | M17: 0 | N17: 0.4895833333 | O17: =IF($N17=Données!$F$12,0,IF($N17<Données!$F$11,1,0)) -> 0
B18: 2014-12-13 | D18: 0.4895833333 | E18: 0.6666666667 | F18: 0.1770833333 | G18: =IF($D18<>"",IF($D18<Données!$C$2,1,0),0) -> 0 | H18: 0.8333333333 | I18: 0.01041666667 | J18: 0.1770833333 | K18: =IF($H18<>"",IF($H18<Données!$C$3,1,0),0) -> 0 | L18: 0.3541666667 | M18: 0 | N18: 0.4479166667 | O18: =IF($N18=Données!$F$12,0,IF($N18<Données!$F$11,1,0)) -> 1 | AE18: Distance ( Source Mappy) : | AF18: - | AG18: 7,4 KM
B19: 2014-12-14 | D19: 0.4895833333 | E19: 0.6666666667 | F19: 0.1770833333 | G19: =IF($D19<>"",IF($D19<Données!$C$2,1,0),0) -> 0 | H19: 0.78125 | I19: 0.9895833333 | J19: 0.2083333333 | K19: =IF($H19<>"",IF($H19<Données!$C$3,1,0),0) -> 0 | L19: 0.3854166667 | M19: 0 | N19: 0.4791666667 | O19: =IF($N19=Données!$F$12,0,IF($N19<Données!$F$11,1,0)) -> 0 | U19: =SUM(L12+L20+L28+L36+L44+L52) -> 7.9375 | V19: Heures effectués
B20: Total Semaine | E20: =WEEKNUM(B13,21) -> 50 | F20: =SUM($F13:$F19) -> 0.78125 | G20: =G13+G14+G15+G16+G17+G18+G19 -> 0 | J20: =SUM(J13:J19) -> 1.083333333 | K20: =K13+K14+K15+K16+K17+K18+K19 -> 0 | L20: =SUM(L13:L19) -> 1.864583333 | M20: =SUM(M13:M19) -> 0 | O20: =SUM(O13:O19) -> 2 | U20: =IF(U19<N53,"- "&TEXT(ABS(N53-U19),"[hh]:mm"),U19-N53) -> 0.8958333333 | V20: Heures dues/supp | AE20: Nombre Aller-Retour : | AF20: - | AG20: =COUNT(E5:E11,I5:I11,E13:E19,I13:I19,E21:E27,I21:I27,E29:E35,I29:I35,E37:E43,I37:I43,E45:E51,I45:I51) -> 42
B21: =B19+1 -> 2014-12-15 | D21: 0.4895833333 | E21: 0.625 | F21: =$E21-$D21+IF($D21>$E21,1) -> 0.1354166667 | G21: =IF($D21<>"",IF($D21<Données!$C$2,1,0),0) -> 0 | H21: 0.78125 | I21: 0 | J21: =$I21-$H21+IF($H21>$I21,1) -> 0.21875 | K21: =IF($H21<>"",IF($H21<Données!$C$3,1,0),0) -> 0 | L21: =$F21+$J21-($G21+$K21)*("00:30") -> 0.3541666667 | M21: =$G21+$K21 -> 0 | N21: =$D21-$I19+IF($I19>$D21,1) -> 0.5 | O21: =IF($N21=Données!$F$12,0,IF($N21<Données!$F$11,1,0)) -> 0 | AE21: Km Parcourue : | AF21: - | AG21: =SUM(AG20*14.8) -> 621.6 | AH21: Km
B22: =B21+1 -> 2014-12-16 | D22: 0.4895833333 | E22: 0.625 | F22: =$E22-$D22+IF($D22>$E22,1) -> 0.1354166667 | G22: =IF($D22<>"",IF($D22<Données!$C$2,1,0),0) -> 0 | H22: 0.78125 | I22: 0.04166666667 | J22: =$I22-$H22+IF($H22>$I22,1) -> 0.2604166667 | K22: =IF($H22<>"",IF($H22<Données!$C$3,1,0),0) -> 0 | L22: =$F22+$J22-($G22+$K22)*("00:30") -> 0.3958333333 | M22: =$G22+$K22 -> 0 | N22: =$D22-$I21+IF($I21>$D22,1) -> 0.4895833333 | O22: =IF($N22=Données!$F$12,0,IF($N22<Données!$F$11,1,0)) -> 0 | AE22: Horodateur Payé : | AF22: - | AG22: 24.4
B23: =B22+1 -> 2014-12-17 | F23: 0 | G23: =IF($D23<>"",IF($D23<Données!$C$2,1,0),0) -> 0 | J23: 0 | K23: =IF($H23<>"",IF($H23<Données!$C$3,1,0),0) -> 0 | L23: 0 | M23: 0 | N23: =$D23-$I22+IF($I22>$D23,1) -> 0.9583333333 | O23: =IF($N23=Données!$F$12,0,IF($N23<Données!$F$11,1,0)) -> 0 | S23: Dont : | T23: - | U23: =$B$68 -> 6.78125 | V23: Heures à taux normal ( 35h ) | AE23: Achat divers pour le travail : | AF23: -
B24: 2014-12-18 | F24: 0 | G24: =IF($D24<>"",IF($D24<Données!$C$2,1,0),0) -> 0 | J24: 0 | K24: =IF($H24<>"",IF($H24<Données!$C$3,1,0),0) -> 0 | L24: 0 | M24: 0 | N24: 0 | O24: =IF($N24=Données!$F$12,0,IF($N24<Données!$F$11,1,0)) -> 0 | T24: - | U24: =$C$68 -> 0.5 | V24: Heures en HS 10% ( 35h à 39h ) | AF24: - | AJ24: =NbCellsCoul($D$5:$I$11,50)*0.25 -> 2
B25: 2014-12-19 | D25: 0.4895833333 | E25: 0.6458333333 | F25: 0.15625 | G25: =IF($D25<>"",IF($D25<Données!$C$2,1,0),0) -> 0 | H25: 0.78125 | I25: 0.0625 | J25: 0.28125 | K25: =IF($H25<>"",IF($H25<Données!$C$3,1,0),0) -> 0 | L25: 0.4375 | M25: 0 | N25: 0.4895833333 | O25: =IF($N25=Données!$F$12,0,IF($N25<Données!$F$11,1,0)) -> 0 | T25: - | U25: =$D$68 -> 0.4895833333 | V25: Heures en HS 20% (39h à 43h ) | AF25: -
B26: 2014-12-20 | D26: 0.4895833333 | E26: 0.6875 | F26: 0.1979166667 | G26: =IF($D26<>"",IF($D26<Données!$C$2,1,0),0) -> 0 | H26: 0.78125 | I26: 0.02083333333 | J26: 0.2395833333 | K26: =IF($H26<>"",IF($H26<Données!$C$3,1,0),0) -> 0 | L26: 0.4375 | M26: 0 | N26: 0.4270833333 | O26: =IF($N26=Données!$F$12,0,IF($N26<Données!$F$11,1,0)) -> 1 | T26: - | U26: =$E$68 -> 0.1666666667 | V26: Heures en HS 40% ( 43h et plus ) | AF26: -
B27: 2014-12-21 | D27: 0.4895833333 | E27: 0.6041666667 | F27: 0.1145833333 | G27: =IF($D27<>"",IF($D27<Données!$C$2,1,0),0) -> 0 | H27: 0.8333333333 | I27: 0.9791666667 | J27: 0.1458333333 | K27: =IF($H27<>"",IF($H27<Données!$C$3,1,0),0) -> 0 | L27: 0.2604166667 | M27: 0 | N27: 0.46875 | O27: =IF($N27=Données!$F$12,0,IF($N27<Données!$F$11,1,0)) -> 0 | T27: - | U27: =SUM(M12+M20+M28+M36+M44+M52) -> 0 | V27: Nombre de repas | AF27: -
B28: Total Semaine | E28: =WEEKNUM(B21,21) -> 51 | F28: =SUM($F21:$F27) -> 0.7395833333 | G28: =G21+G22+G23+G24+G25+G26+G27 -> 0 | J28: =SUM(J21:J27) -> 1.145833333 | K28: =K21+K22+K23+K24+K25+K26+K27 -> 0 | L28: =SUM(L21:L27) -> 1.885416667 | M28: =SUM(M21:M27) -> 0 | O28: =SUM(O21:O27) -> 1 | AF28: -
B29: =B27+1 -> 2014-12-22 | D29: 0.4895833333 | E29: 0.625 | F29: =$E29-$D29+IF($D29>$E29,1) -> 0.1354166667 | G29: =IF($D29<>"",IF($D29<Données!$C$2,1,0),0) -> 0 | H29: 0.78125 | I29: 0.01041666667 | J29: =$I29-$H29+IF($H29>$I29,1) -> 0.2291666667 | K29: =IF($H29<>"",IF($H29<Données!$C$3,1,0),0) -> 0 | L29: =$F29+$J29-($G29+$K29)*("00:30") -> 0.3645833333 | M29: =$G29+$K29 -> 0 | N29: =$D29-$I27+IF($I27>$D29,1) -> 0.5104166667 | O29: =IF($N29=Données!$F$12,0,IF($N29<Données!$F$11,1,0)) -> 0 | S29: Heure fiche de paie: | AF29: -
B30: =B29+1 -> 2014-12-23 | D30: 0.4895833333 | E30: 0.625 | F30: =$E30-$D30+IF($D30>$E30,1) -> 0.1354166667 | G30: =IF($D30<>"",IF($D30<Données!$C$2,1,0),0) -> 0 | H30: 0.78125 | I30: 0.9895833333 | J30: =$I30-$H30+IF($H30>$I30,1) -> 0.2083333333 | K30: =IF($H30<>"",IF($H30<Données!$C$3,1,0),0) -> 0 | L30: =$F30+$J30-($G30+$K30)*("00:30") -> 0.34375 | M30: =$G30+$K30 -> 0 | N30: =$D30-$I29+IF($I29>$D30,1) -> 0.4791666667 | O30: =IF($N30=Données!$F$12,0,IF($N30<Données!$F$11,1,0)) -> 0 | AF30: -
B31: =B30+1 -> 2014-12-24 | F31: 0 | G31: =IF($D31<>"",IF($D31<Données!$C$2,1,0),0) -> 0 | J31: 0 | K31: =IF($H31<>"",IF($H31<Données!$C$3,1,0),0) -> 0 | L31: 0 | M31: 0 | N31: 0 | O31: =IF($N31=Données!$F$12,0,IF($N31<Données!$F$11,1,0)) -> 0 | S31: Dont : | T31: - | U31: 6.319444444 | V31: Heures à taux normal | AF31: -
B32: 2014-12-25 | F32: 0 | G32: =IF($D32<>"",IF($D32<Données!$C$2,1,0),0) -> 0 | J32: 0 | K32: =IF($H32<>"",IF($H32<Données!$C$3,1,0),0) -> 0 | L32: 0 | M32: 0 | N32: =$D32-$I31+IF($I31>$D32,1) -> 0 | O32: =IF($N32=Données!$F$12,0,IF($N32<Données!$F$11,1,0)) -> 0 | T32: - | U32: 0.73125 | V32: Heures en HS 10% | AF32: -
B33: 2014-12-26 | D33: 0.4895833333 | E33: 0.6354166667 | F33: 0.1458333333 | G33: =IF($D33<>"",IF($D33<Données!$C$2,1,0),0) -> 0 | H33: 0.78125 | I33: 0.9791666667 | J33: 0.1979166667 | K33: =IF($H33<>"",IF($H33<Données!$C$3,1,0),0) -> 0 | L33: 0.34375 | M33: 0 | N33: 0.4895833333 | O33: =IF($N33=Données!$F$12,0,IF($N33<Données!$F$11,1,0)) -> 0 | T33: - | U33: 0 | V33: Heures en HS 20%
B34: 2014-12-27 | D34: 0.4895833333 | E34: 0.6666666667 | F34: 0.1770833333 | G34: =IF($D34<>"",IF($D34<Données!$C$2,1,0),0) -> 0 | H34: 0.78125 | I34: 0.9895833333 | J34: 0.2083333333 | K34: =IF($H34<>"",IF($H34<Données!$C$3,1,0),0) -> 0 | L34: 0.3854166667 | M34: 0 | N34: 0.5104166667 | O34: =IF($N34=Données!$F$12,0,IF($N34<Données!$F$11,1,0)) -> 0 | T34: - | U34: 0 | V34: Heures en HS 40% | AE34: Total dépenses: | AF34: - | AG34: =SUM(AG22:AG32) -> 24.4
B35: 2014-12-28 | D35: 0.4895833333 | E35: 0.6875 | F35: 0.1979166667 | G35: =IF($D35<>"",IF($D35<Données!$C$2,1,0),0) -> 0 | H35: 0.8333333333 | I35: 0.9791666667 | J35: 0.1458333333 | K35: =IF($H35<>"",IF($H35<Données!$C$3,1,0),0) -> 0 | L35: 0.34375 | M35: 0 | N35: 0.5 | O35: =IF($N35=Données!$F$12,0,IF($N35<Données!$F$11,1,0)) -> 0 | T35: - | U35: 0 | V35: Nombre de repas
B36: Total Semaine | E36: =WEEKNUM(B29,21) -> 52 | F36: =SUM($F29:$F35) -> 0.7916666667 | G36: =G29+G30+G31+G32+G33+G34+G35 -> 0 | J36: =SUM(J29:J35) -> 0.9895833333 | K36: =K29+K30+K31+K32+K33+K34+K35 -> 0 | L36: =SUM(L29:L35) -> 1.78125 | M36: =SUM(M29:M35) -> 0 | O36: =SUM(O29:O35) -> 0
B37: =B35+1 -> 2014-12-29 | D37: 0.4895833333 | E37: 0.625 | F37: =$E37-$D37+IF($D37>$E37,1) -> 0.1354166667 | G37: =IF($D37<>"",IF($D37<Données!$C$2,1,0),0) -> 0 | H37: 0.78125 | I37: 0 | J37: =$I37-$H37+IF($H37>$I37,1) -> 0.21875 | K37: =IF($H37<>"",IF($H37<Données!$C$3,1,0),0) -> 0 | L37: =$F37+$J37-($G37+$K37)*("00:30") -> 0.3541666667 | M37: =$G37+$K37 -> 0 | N37: =$D37-$I35+IF($I35>$D37,1) -> 0.5104166667 | O37: =IF($N37=Données!$F$12,0,IF($N37<Données!$F$11,1,0)) -> 0 | S37: Différence:
B38: =B37+1 -> 2014-12-30 | D38: 0.4895833333 | E38: 0.6354166667 | F38: =$E38-$D38+IF($D38>$E38,1) -> 0.1458333333 | G38: =IF($D38<>"",IF($D38<Données!$C$2,1,0),0) -> 0 | H38: 0.78125 | I38: 0.01041666667 | J38: =$I38-$H38+IF($H38>$I38,1) -> 0.2291666667 | K38: =IF($H38<>"",IF($H38<Données!$C$3,1,0),0) -> 0 | L38: =$F38+$J38-($G38+$K38)*("00:30") -> 0.375 | M38: =$G38+$K38 -> 0 | N38: =$D38-$I37+IF($I37>$D38,1) -> 0.4895833333 | O38: =IF($N38=Données!$F$12,0,IF($N38<Données!$F$11,1,0)) -> 0
B39: =B38+1 -> 2014-12-31 | F39: 0 | G39: =IF($D39<>"",IF($D39<Données!$C$2,1,0),0) -> 0 | J39: 0 | K39: =IF($H39<>"",IF($H39<Données!$C$3,1,0),0) -> 0 | L39: 0 | M39: 0 | N39: =$D39-$I38+IF($I38>$D39,1) -> 0.9895833333 | O39: =IF($N39=Données!$F$12,0,IF($N39<Données!$F$11,1,0)) -> 0 | S39: Dont : | T39: - | U39: =$U31-$U23+IF($U23>$U31,1) -> 0.5381944444 | V39: Heures à taux normal
B40: 2015-01-01 | F40: 0 | G40: =IF($D40<>"",IF($D40<Données!$C$2,1,0),0) -> 0 | J40: 0 | K40: =IF($H40<>"",IF($H40<Données!$C$3,1,0),0) -> 0 | L40: 0 | M40: 0 | N40: 0 | O40: =IF($N40=Données!$F$12,0,IF($N40<Données!$F$11,1,0)) -> 0 | T40: - | U40: =$U32-$U24+IF($U24>$U32,1) -> 0.23125 | V40: Heures en HS 10%
B41: 2015-01-02 | D41: 0.4895833333 | E41: 0.6145833333 | F41: 0.125 | G41: =IF($D41<>"",IF($D41<Données!$C$2,1,0),0) -> 0 | H41: 0.78125 | I41: 0.03125 | J41: 0.25 | K41: =IF($H41<>"",IF($H41<Données!$C$3,1,0),0) -> 0 | L41: 0.375 | M41: 0 | N41: 0.4895833333 | O41: =IF($N41=Données!$F$12,0,IF($N41<Données!$F$11,1,0)) -> 0 | T41: - | U41: =$U33-$U25+IF($U25>$U33,1) -> 0.5104166667 | V41: Heures en HS 20%
B42: 2015-01-03 | F42: 0 | G42: =IF($D42<>"",IF($D42<Données!$C$2,1,0),0) -> 0 | J42: 0 | K42: =IF($H42<>"",IF($H42<Données!$C$3,1,0),0) -> 0 | L42: 0 | M42: 0 | N42: 0.96875 | O42: =IF($N42=Données!$F$12,0,IF($N42<Données!$F$11,1,0)) -> 0 | T42: - | U42: =$U34-$U26+IF($U26>$U34,1) -> 0.8333333333 | V42: Heures en HS 40%
B43: 2015-01-04 | F43: 0 | G43: =IF($D43<>"",IF($D43<Données!$C$2,1,0),0) -> 0 | J43: 0 | K43: =IF($H43<>"",IF($H43<Données!$C$3,1,0),0) -> 0 | L43: 0 | M43: 0 | N43: 0 | O43: =IF($N43=Données!$F$12,0,IF($N43<Données!$F$11,1,0)) -> 0 | T43: - | U43: =SUM(U35-U27) -> 0 | V43: Nombre de repas
B44: Total Semaine | E44: =WEEKNUM(B37,21) -> 1 | F44: =SUM($F37:$F43) -> 0.40625 | G44: =G37+G38+G39+G40+G41+G42+G43 -> 0 | J44: =SUM(J37:J43) -> 0.6979166667 | K44: =K37+K38+K39+K40+K41+K42+K43 -> 0 | L44: =SUM(L37:L43) -> 1.104166667 | M44: =SUM(M37:M43) -> 0 | O44: =SUM(O37:O43) -> 0
B45: =B43+1 -> 2015-01-05 | F45: =$E45-$D45+IF($D45>$E45,1) -> 0 | G45: =IF($D45<>"",IF($D45<Données!$C$2,1,0),0) -> 0 | J45: =$I45-$H45+IF($H45>$I45,1) -> 0 | K45: =IF($H45<>"",IF($H45<Données!$C$3,1,0),0) -> 0 | L45: =$F45+$J45-($G45+$K45)*("00:30") -> 0 | M45: =$G45+$K45 -> 0 | N45: =$D45-$I43+IF($I43>$D45,1) -> 0 | O45: =IF($N45=Données!$F$12,0,IF($N45<Données!$F$11,1,0)) -> 0
B46: =B45+1 -> 2015-01-06 | F46: 0 | G46: =IF($D46<>"",IF($D46<Données!$C$2,1,0),0) -> 0 | J46: =$I46-$H46+IF($H46>$I46,1) -> 0 | K46: =IF($H46<>"",IF($H46<Données!$C$3,1,0),0) -> 0 | L46: =$F46+$J46-($G46+$K46)*("00:30") -> 0 | M46: =$G46+$K46 -> 0 | N46: =$D46-$I45+IF($I45>$D46,1) -> 0 | O46: =IF($N46=Données!$F$12,0,IF($N46<Données!$F$11,1,0)) -> 0
B47: =B46+1 -> 2015-01-07 | F47: 0 | G47: =IF($D47<>"",IF($D47<Données!$C$2,1,0),0) -> 0 | J47: 0 | K47: =IF($H47<>"",IF($H47<Données!$C$3,1,0),0) -> 0 | L47: 0 | M47: 0 | N47: =$D47-$I46+IF($I46>$D47,1) -> 0 | O47: =IF($N47=Données!$F$12,0,IF($N47<Données!$F$11,1,0)) -> 0
B48: 2015-01-08 | F48: 0 | G48: =IF($D48<>"",IF($D48<Données!$C$2,1,0),0) -> 0 | J48: 0 | K48: =IF($H48<>"",IF($H48<Données!$C$3,1,0),0) -> 0 | L48: 0 | M48: 0 | N48: 0 | O48: =IF($N48=Données!$F$12,0,IF($N48<Données!$F$11,1,0)) -> 0
B49: 2015-01-09 | F49: 0 | G49: =IF($D49<>"",IF($D49<Données!$C$2,1,0),0) -> 0 | J49: 0 | K49: =IF($H49<>"",IF($H49<Données!$C$3,1,0),0) -> 0 | L49: 0 | M49: 0 | N49: 0 | O49: =IF($N49=Données!$F$12,0,IF($N49<Données!$F$11,1,0)) -> 0
B50: 2015-01-10 | F50: 0 | G50: =IF($D50<>"",IF($D50<Données!$C$2,1,0),0) -> 0 | J50: 0 | K50: =IF($H50<>"",IF($H50<Données!$C$3,1,0),0) -> 0 | L50: 0 | M50: 0 | N50: 0 | O50: =IF($N50=Données!$F$12,0,IF($N50<Données!$F$11,1,0)) -> 0
B51: 2015-01-11 | F51: 0 | G51: =IF($D51<>"",IF($D51<Données!$C$2,1,0),0) -> 0 | J51: 0 | K51: =IF($H51<>"",IF($H51<Données!$C$3,1,0),0) -> 0 | L51: 0 | M51: 0 | N51: 0 | O51: =IF($N51=Données!$F$12,0,IF($N51<Données!$F$11,1,0)) -> 0
B52: Total semaine | E52: =WEEKNUM(B45,21) -> 2 | F52: =SUM($F45:$F51) -> 0 | G52: =G45+G46+G47+G48+G49+G50+G51 -> 0 | J52: =SUM(J45:J51) -> 0 | K52: =K45+K46+K47+K48+K49+K50+K51 -> 0 | L52: =SUM(L45:L51) -> 0 | M52: =SUM(M45:M51) -> 0 | O52: =SUM(O45:O51) -> 0
N53: 7.041666667
L54: =CodeCouleur(M54) -> 50 | N54: REPOS
L55: =CodeCouleur(M55) -> 42 | N55: Récup
L56: 48 | N56: JFG
L57: 44 | N57: VAC
L58: 3 | N58: MAL
L59: =CodeCouleur(M59) -> 40 | N59: Jf Taf
A60: Heures | C60: 1.458333333 | D60: 1.625 | E60: 1.791666667 | F60: Total
A61: Taux | B61: 1 | C61: 1.1 | D61: 1.2 | E61: 1.4
A62: S 1 | B62: =IF($L$12<=$C$60,$L$12,$C$60) -> 1.302083333 | C62: =IF($L$12<=$C$60,0,IF($L$12<=$D$60,$L$12,$D$60)-$C$60) -> 0 | D62: =IF($L$12<=$D$60,0,IF($L$12<=$E$60,$L$12,$D$60)-$C$60) -> 0 | E62: =IF($L$12<=$E$60,0,IF($L$12>$E$60,$L$12,$E$60)-$E$60) -> 0 | F62: =B62+C62+D62+E62 -> 1.302083333
A63: S 2 | B63: =IF($L$20<=$C$60,$L$20,$C$60) -> 1.458333333 | C63: =IF($L$20<=$C$60,0,IF($L$20<=$D$60,$L$20,$D$60)-$C$60) -> 0.1666666667 | D63: =IF($L$20<=$D$60,0,IF($L$20<=$E$60,$L$20,$D$60)-$C$60) -> 0.1666666667 | E63: =IF($L$20<=$E$60,0,IF($L$20>$E$60,$L$20,$E$60)-$E$60) -> 0.07291666667 | F63: 1.864583333
A64: S 3 | B64: =IF($L$28<=$C$60,$L$28,$C$60) -> 1.458333333 | C64: =IF($L$28<=$C$60,0,IF($L$28<=$D$60,$L$28,$D$60)-$C$60) -> 0.1666666667 | D64: =IF($L$28<=$D$60,0,IF($L$28<=$E$60,$L$28,$D$60)-$C$60) -> 0.1666666667 | E64: =IF($L$28<=$E$60,0,IF($L$28>$E$60,$L$28,$E$60)-$E$60) -> 0.09375 | F64: 1.885416667
A65: S 4 | B65: =IF($L$36<=$C$60,$L$36,$C$60) -> 1.458333333 | C65: =IF($L$36<=$C$60,0,IF($L$36<=$D$60,$L$36,$D$60)-$C$60) -> 0.1666666667 | D65: 0.15625 | E65: =IF($L$36<=$E$60,0,IF($L$36>$E$60,$L$36,$E$60)-$E$60) -> 0 | F65: 1.78125
A66: S 5 | B66: =IF($L$44<=$C$60,$L$44,$C$60) -> 1.104166667 | C66: =IF($L$44<=$C$60,0,IF($L$44<=$D$60,$L$44,$D$60)-$C$60) -> 0 | D66: =IF($L$44<=$D$60,0,IF($L$44<=$E$60,$L$44,$D$60)-$C$60) -> 0 | E66: =IF($L$44<=$E$60,0,IF($L$44>$E$60,$L$44,$E$60)-$E$60) -> 0 | F66: 1.104166667
A67: S 6 | B67: =IF($L$52<=$C$60,$L$52,$C$60) -> 0 | C67: =IF($L$52<=$C$60,0,IF($L$52<=$D$60,$L$52,$D$60)-$C$60) -> 0 | D67: =IF($L$52<=$D$60,0,IF($L$52<=$E$60,$L$52,$D$60)-$C$60) -> 0 | E67: =IF($L$52<=$E$60,0,IF($L$52>$E$60,$L$52,$E$60)-$E$60) -> 0 | F67: 0
A68: Total | B68: =SUM(B62:B67) -> 6.78125 | C68: =SUM(C62:C67) -> 0.5 | D68: =SUM(D62:D67) -> 0.4895833333 | E68: =SUM(E62:E67) -> 0.1666666667 | F68: 7.9375
A71: Jours | B71: Repos | C71: Récup | D71: Jfg | E71: Vac | F71: Mal | G71: Vides | H71: Taf | I71: Jf Taf | J71: <11h
A72: S 1 | B72: =NbCellsCoul($D$5:$I$11,50)*0.25 -> 2 | C72: =NbCellsCoul($D$5:$I$11,42)*0.25 -> 0 | D72: =NbCellsCoul($D$5:$I$11,48)*0.25 -> 0 | E72: =NbCellsCoul($D$5:$I$11,44)*0.25 -> 0 | F72: =NbCellsCoul($D$5:$I$11,3)*0.25 -> 0 | G72: =+COUNTBLANK(E5:H11)/2 -> 4 | H72: =7-$G72 -> 3 | I72: =NbCellsCoul($D$5:$I$11,40)*0.25 -> 0 | J72: =SUM($O$6:$O$11) -> 2
A73: S 2 | B73: =NbCellsCoul($D$13:$I$19,50)*0.25 -> 2 | C73: =NbCellsCoul($D$13:$I$19,42)*0.25 -> 0 | D73: =NbCellsCoul($D$13:$I$19,48)*0.25 -> 0 | E73: =NbCellsCoul($D$13:$I$19,44)*0.25 -> 0 | F73: =NbCellsCoul($D$13:$I$19,3)*0.25 -> 0 | G73: =+COUNTBLANK(E13:H19)/2 -> 2 | H73: 5 | I73: =NbCellsCoul($D$13:$I$19,40)*0.25 -> 0 | J73: =SUM($O$13:$O$19) -> 2
A74: S 3 | B74: =NbCellsCoul($D$21:$I$27,50)*0.25 -> 2 | C74: =NbCellsCoul($D$21:$I$27,42)*0.25 -> 0 | D74: =NbCellsCoul($D$21:$I$27,48)*0.25 -> 0 | E74: =NbCellsCoul($D$21:$I$27,44)*0.25 -> 0 | F74: =NbCellsCoul($D$21:$I$27,3)*0.25 -> 0 | G74: =+COUNTBLANK(E21:H27)/2 -> 2 | H74: 5 | I74: =NbCellsCoul($D$21:$I$27,40)*0.25 -> 0 | J74: =SUM($O$21:$O$27) -> 1
A75: S 4 | B75: =NbCellsCoul($D$29:$I$35,50)*0.25 -> 2 | C75: =NbCellsCoul($D$29:$I$35,42)*0.25 -> 0 | D75: =NbCellsCoul($D$29:$I$35,48)*0.25 -> 0 | E75: =NbCellsCoul($D$29:$I$35,44)*0.25 -> 0 | F75: =NbCellsCoul($D$29:$I$35,3)*0.25 -> 0 | G75: =+COUNTBLANK(E29:H35)/2 -> 2 | H75: 5 | I75: =NbCellsCoul($D$29:$I$35,40)*0.25 -> 0 | J75: =SUM($O$29:$O$35) -> 0
A76: S 5 | B76: =NbCellsCoul($D$37:$I$43,50)*0.25 -> 2 | C76: =NbCellsCoul($D$37:$I$43,42)*0.25 -> 0 | D76: =NbCellsCoul($D$37:$I$43,48)*0.25 -> 0 | E76: =NbCellsCoul($D$37:$I$43,44)*0.25 -> 0 | F76: =NbCellsCoul($D$37:$I$43,3)*0.25 -> 0 | G76: =+COUNTBLANK(E37:H43)/2 -> 4 | H76: 3 | I76: =NbCellsCoul($D$37:$I$43,40)*0.25 -> 0 | J76: =SUM($O$37:$O$43) -> 0
A77: S 6 | B77: =NbCellsCoul($D$45:$I$51,50)*0.25 -> 0 | C77: =NbCellsCoul($D$45:$I$51,42)*0.25 -> 0 | D77: =NbCellsCoul($D$45:$I$51,48)*0.25 -> 0 | E77: =NbCellsCoul($D$45:$I$51,44)*0.25 -> 0 | F77: =NbCellsCoul($D$45:$I$51,3)*0.25 -> 0 | G77: =+COUNTBLANK(E45:H51)/2 -> 7 | H77: 0 | I77: =NbCellsCoul($D$45:$I$51,40)*0.25 -> 0 | J77: =SUM($O$45:$O$51) -> 0
A78: Total | B78: =SUM(B$72:B$77) -> 10 | C78: 0 | D78: 0 | E78: 0 | F78: =SUM(F$72:F$77) -> 0 | G78: =SUM(G$72:G$77) -> 21 | H78: =SUM(H$72:H$77) -> 21 | I78: =SUM(I$72:I$77) -> 0 | J78: =SUM(J$72:J$77) -> 5

Sheet Nov 14
D1: TEMPS DE TRAVAIL | S1: RÉCAPITULATIF | AE1: IMPÔTS
F2: =Données!G14 -> 12 | J2: =Données!C15 -> 2014
B3: Jour | D3: Midi | F3: Cumul Midi | G3: Repas | H3: Soir | J3: Cumul Soir | K3: Repas | L3: Totaux | M3: Total Repas
D4: Début | E4: Fin | H4: Début | I4: Fin | AF4: =VLOOKUP(F2,Données!E15:F26,2) -> Décembre | AG4: =J2 -> 2014
B5: =Données!I15-WEEKDAY(Données!I15-1)+1 -> 2014-12-01 | F5: =$E5-$D5+IF($D5>$E5,1) -> 0 | G5: =IF($D5<>"",IF($D5<Données!$C$2,1,0),0) -> 0 | J5: =$I5-$H5+IF($H5>$I5,1) -> 0 | K5: =IF($H5<>"",IF($H5<Données!$C$3,1,0),0) -> 0 | L5: =$F5+$J5-($G5+$K5)*("00:30") -> 0 | M5: =$G5+$K5 -> 0
B6: =B5+1 -> 2014-12-02 | F6: =$E6-$D6+IF($D6>$E6,1) -> 0 | G6: =IF($D6<>"",IF($D6<Données!$C$2,1,0),0) -> 0 | J6: =$I6-$H6+IF($H6>$I6,1) -> 0 | K6: =IF($H6<>"",IF($H6<Données!$C$3,1,0),0) -> 0 | L6: =$F6+$J6-($G6+$K6)*("00:30") -> 0 | M6: =$G6+$K6 -> 0 | N6: =$D6-$I5+IF($I5>$D6,1) -> 0 | O6: =IF($N6=Données!$F$12,0,IF($N6<Données!$F$11,1,0)) -> 0 | S6: Soit au total pour le mois de : | U6: =VLOOKUP(F2,Données!E15:F26,2) -> Décembre | V6: =J2 -> 2014
B7: =B6+1 -> 2014-12-03 | F7: 0 | G7: =IF($D7<>"",IF($D7<Données!$C$2,1,0),0) -> 0 | J7: 0 | K7: =IF($H7<>"",IF($H7<Données!$C$3,1,0),0) -> 0 | L7: 0 | M7: 0 | N7: =$D7-$I6+IF($I6>$D7,1) -> 0 | O7: =IF($N7=Données!$F$12,0,IF($N7<Données!$F$11,1,0)) -> 0
B8: 2014-12-04 | F8: 0 | G8: =IF($D8<>"",IF($D8<Données!$C$2,1,0),0) -> 0 | J8: 0 | K8: =IF($H8<>"",IF($H8<Données!$C$3,1,0),0) -> 0 | L8: 0 | M8: 0 | N8: =$D8-$I7+IF($I7>$D8,1) -> 0 | O8: =IF($N8=Données!$F$12,0,IF($N8<Données!$F$11,1,0)) -> 0 | AE8: Numéro Fiscal :
B9: 2014-12-05 | F9: 0 | G9: =IF($D9<>"",IF($D9<Données!$C$2,1,0),0) -> 0 | J9: 0 | K9: =IF($H9<>"",IF($H9<Données!$C$3,1,0),0) -> 0 | L9: 0 | M9: 0 | N9: 0 | O9: =IF($N9=Données!$F$12,0,IF($N9<Données!$F$11,1,0)) -> 0 | S9: Nombre de jours travaillés : | U9: =H78 -> 19 | AE9: MDP:
B10: 2014-12-06 | D10: 0.4895833333 | E10: 0.6875 | F10: 0.1979166667 | G10: =IF($D10<>"",IF($D10<Données!$C$2,1,0),0) -> 0 | H10: 0.78125 | I10: 0.02083333333 | J10: 0.2395833333 | K10: =IF($H10<>"",IF($H10<Données!$C$3,1,0),0) -> 0 | L10: 0.4375 | M10: 0 | N10: =$D10-$I9+IF($I9>$D10,1) -> 0.4895833333 | O10: =IF($N10=Données!$F$12,0,IF($N10<Données!$F$11,1,0)) -> 0 | S10: Nombre de jours repos : | U10: =B78 -> 8
B11: 2014-12-07 | D11: 0.4895833333 | E11: 0.6666666667 | F11: 0.1770833333 | G11: =IF($D11<>"",IF($D11<Données!$C$2,1,0),0) -> 0 | H11: 0.8125 | I11: 0.96875 | J11: 0.15625 | K11: =IF($H11<>"",IF($H11<Données!$C$3,1,0),0) -> 0 | L11: 0.3333333333 | M11: 0 | N11: =$D11-$I10+IF($I10>$D11,1) -> 0.46875 | O11: =IF($N11=Données!$F$12,0,IF($N11<Données!$F$11,1,0)) -> 0 | S11: Nombre de jours récup : | U11: =C$78 -> 0 | AE11: Adresse domicile: | AF11: -
B12: Total Semaine | E12: =WEEKNUM(B5,21) -> 49 | F12: =SUM($F5:$F11) -> 0.375 | G12: =G5+G6+G7+G8+G9+G10+G11 -> 0 | J12: =SUM(J5:J11) -> 0.3958333333 | K12: =K5+K6+K7+K8+K9+K10+K11 -> 0 | L12: =SUM(L5:L11) -> 0.7708333333 | M12: =SUM(M5:M11) -> 0 | O12: =SUM(O6:O11) -> 0 | S12: Nombre de jfg : | U12: =D$78 -> 0
B13: =B11+1 -> 2014-12-08 | D13: 0.4895833333 | E13: 0.6458333333 | F13: =$E13-$D13+IF($D13>$E13,1) -> 0.15625 | G13: =IF($D13<>"",IF($D13<Données!$C$2,1,0),0) -> 0 | H13: 0.78125 | I13: 0.0625 | J13: =$I13-$H13+IF($H13>$I13,1) -> 0.28125 | K13: =IF($H13<>"",IF($H13<Données!$C$3,1,0),0) -> 0 | L13: =$F13+$J13-($G13+$K13)*("00:30") -> 0.4375 | M13: =$G13+$K13 -> 0 | N13: =$D13-$I11+IF($I11>$D13,1) -> 0.5208333333 | O13: =IF($N13=Données!$F$12,0,IF($N13<Données!$F$11,1,0)) -> 0 | S13: Nombre de jours de vacances : | U13: =E$78 -> 0
B14: =B13+1 -> 2014-12-09 | D14: 0.4895833333 | E14: 0.625 | F14: =$E14-$D14+IF($D14>$E14,1) -> 0.1354166667 | G14: =IF($D14<>"",IF($D14<Données!$C$2,1,0),0) -> 0 | H14: 0.78125 | I14: 0.96875 | J14: =$I14-$H14+IF($H14>$I14,1) -> 0.1875 | K14: =IF($H14<>"",IF($H14<Données!$C$3,1,0),0) -> 0 | L14: =$F14+$J14-($G14+$K14)*("00:30") -> 0.3229166667 | M14: =$G14+$K14 -> 0 | N14: =$D14-$I13+IF($I13>$D14,1) -> 0.4270833333 | O14: =IF($N14=Données!$F$12,0,IF($N14<Données!$F$11,1,0)) -> 1 | S14: Nombre de jours de maladie : | U14: =F$78 -> 3
B15: =B14+1 -> 2014-12-10 | F15: 0 | G15: =IF($D15<>"",IF($D15<Données!$C$2,1,0),0) -> 0 | J15: 0 | K15: =IF($H15<>"",IF($H15<Données!$C$3,1,0),0) -> 0 | L15: 0 | M15: 0 | N15: 0 | O15: =IF($N15=Données!$F$12,0,IF($N15<Données!$F$11,1,0)) -> 0 | S15: Nombre jours fériées travaillés : | U15: =I78 -> 0 | AE15: Adresse lieu de travail: | AF15: -
B16: 2014-12-11 | F16: 0 | G16: =IF($D16<>"",IF($D16<Données!$C$2,1,0),0) -> 0 | J16: 0 | K16: =IF($H16<>"",IF($H16<Données!$C$3,1,0),0) -> 0 | L16: 0 | M16: 0 | N16: =$D16-$I15+IF($I15>$D16,1) -> 0 | O16: =IF($N16=Données!$F$12,0,IF($N16<Données!$F$11,1,0)) -> 0 | S16: Nombre de fois 11h de batement non respecté : | U16: =J78 -> 6
B17: 2014-12-12 | D17: 0.4895833333 | E17: 0.625 | F17: 0.1354166667 | G17: =IF($D17<>"",IF($D17<Données!$C$2,1,0),0) -> 0 | H17: 0.78125 | I17: 0.9479166667 | J17: 0.1666666667 | K17: =IF($H17<>"",IF($H17<Données!$C$3,1,0),0) -> 0 | L17: 0.3020833333 | M17: 0 | N17: 0.4895833333 | O17: =IF($N17=Données!$F$12,0,IF($N17<Données!$F$11,1,0)) -> 0
B18: 2014-12-13 | D18: 0.4895833333 | E18: 0.6666666667 | F18: 0.1770833333 | G18: =IF($D18<>"",IF($D18<Données!$C$2,1,0),0) -> 0 | H18: 0.78125 | I18: 0.04166666667 | J18: 0.2604166667 | K18: =IF($H18<>"",IF($H18<Données!$C$3,1,0),0) -> 0 | L18: 0.4375 | M18: 0 | N18: 0.5416666667 | O18: =IF($N18=Données!$F$12,0,IF($N18<Données!$F$11,1,0)) -> 0 | AE18: Distance ( Source Mappy) : | AF18: - | AG18: 7,4 KM
B19: 2014-12-14 | D19: 0.4895833333 | E19: 0.6666666667 | F19: 0.1770833333 | G19: =IF($D19<>"",IF($D19<Données!$C$2,1,0),0) -> 0 | H19: 0.78125 | I19: 0.01041666667 | J19: 0.2291666667 | K19: =IF($H19<>"",IF($H19<Données!$C$3,1,0),0) -> 0 | L19: 0.40625 | M19: 0 | N19: 0.4479166667 | O19: =IF($N19=Données!$F$12,0,IF($N19<Données!$F$11,1,0)) -> 1 | U19: =SUM(L12+L20+L28+L36+L44+L52) -> 8.270833333 | V19: Heures effectués
B20: Total Semaine | E20: =WEEKNUM(B13,21) -> 50 | F20: =SUM($F13:$F19) -> 0.78125 | G20: =G13+G14+G15+G16+G17+G18+G19 -> 0 | J20: =SUM(J13:J19) -> 1.125 | K20: =K13+K14+K15+K16+K17+K18+K19 -> 0 | L20: =SUM(L13:L19) -> 1.90625 | M20: =SUM(M13:M19) -> 0 | O20: =SUM(O13:O19) -> 2 | U20: =IF(U19<N53,"- "&TEXT(ABS(N53-U19),"[hh]:mm"),U19-N53) -> 1.229166667 | V20: Heures dues/supp | AE20: Nombre Aller-Retour : | AF20: - | AG20: =COUNT(E5:E11,I5:I11,E13:E19,I13:I19,E21:E27,I21:I27,E29:E35,I29:I35,E37:E43,I37:I43,E45:E51,I45:I51) -> 38
B21: =B19+1 -> 2014-12-15 | D21: 0.4895833333 | E21: 0.6770833333 | F21: =$E21-$D21+IF($D21>$E21,1) -> 0.1875 | G21: =IF($D21<>"",IF($D21<Données!$C$2,1,0),0) -> 0 | H21: 0.78125 | I21: 0.02083333333 | J21: =$I21-$H21+IF($H21>$I21,1) -> 0.2395833333 | K21: =IF($H21<>"",IF($H21<Données!$C$3,1,0),0) -> 0 | L21: =$F21+$J21-($G21+$K21)*("00:30") -> 0.4270833333 | M21: =$G21+$K21 -> 0 | N21: =$D21-$I19+IF($I19>$D21,1) -> 0.4791666667 | O21: =IF($N21=Données!$F$12,0,IF($N21<Données!$F$11,1,0)) -> 0 | AE21: Km Parcourue : | AF21: - | AG21: =SUM(AG20*14.8) -> 562.4 | AH21: Km
B22: =B21+1 -> 2014-12-16 | D22: 0.4895833333 | E22: 0.6041666667 | F22: =$E22-$D22+IF($D22>$E22,1) -> 0.1145833333 | G22: =IF($D22<>"",IF($D22<Données!$C$2,1,0),0) -> 0 | H22: 0.78125 | I22: 0.02083333333 | J22: =$I22-$H22+IF($H22>$I22,1) -> 0.2395833333 | K22: =IF($H22<>"",IF($H22<Données!$C$3,1,0),0) -> 0 | L22: =$F22+$J22-($G22+$K22)*("00:30") -> 0.3541666667 | M22: =$G22+$K22 -> 0 | N22: =$D22-$I21+IF($I21>$D22,1) -> 0.46875 | O22: =IF($N22=Données!$F$12,0,IF($N22<Données!$F$11,1,0)) -> 0 | AE22: Horodateur Payé : | AF22: - | AG22: 30.1
B23: =B22+1 -> 2014-12-17 | F23: 0 | G23: =IF($D23<>"",IF($D23<Données!$C$2,1,0),0) -> 0 | J23: 0 | K23: =IF($H23<>"",IF($H23<Données!$C$3,1,0),0) -> 0 | L23: 0 | M23: 0 | N23: =$D23-$I22+IF($I22>$D23,1) -> 0.9791666667 | O23: =IF($N23=Données!$F$12,0,IF($N23<Données!$F$11,1,0)) -> 0 | S23: Dont : | T23: - | U23: =$B$68 -> 6.604166667 | V23: Heures à taux normal ( 35h ) | AE23: Achat divers pour le travail : | AF23: -
B24: 2014-12-18 | F24: 0 | G24: =IF($D24<>"",IF($D24<Données!$C$2,1,0),0) -> 0 | J24: 0 | K24: =IF($H24<>"",IF($H24<Données!$C$3,1,0),0) -> 0 | L24: 0 | M24: 0 | N24: 0 | O24: =IF($N24=Données!$F$12,0,IF($N24<Données!$F$11,1,0)) -> 0 | T24: - | U24: =$C$68 -> 0.6666666667 | V24: Heures en HS 10% ( 35h à 39h ) | AF24: -
B25: 2014-12-19 | D25: 0.4895833333 | E25: 0.6145833333 | F25: 0.125 | G25: =IF($D25<>"",IF($D25<Données!$C$2,1,0),0) -> 0 | H25: 0.78125 | I25: 0.9791666667 | J25: 0.1979166667 | K25: =IF($H25<>"",IF($H25<Données!$C$3,1,0),0) -> 0 | L25: 0.3229166667 | M25: 0 | N25: 0.4895833333 | O25: =IF($N25=Données!$F$12,0,IF($N25<Données!$F$11,1,0)) -> 0 | T25: - | U25: =$D$68 -> 0.5416666667 | V25: Heures en HS 20% (39h à 43h ) | AF25: -
B26: 2014-12-20 | D26: 0.4895833333 | E26: 0.625 | F26: 0.1354166667 | G26: =IF($D26<>"",IF($D26<Données!$C$2,1,0),0) -> 0 | H26: 0.78125 | I26: 0.05208333333 | J26: 0.2708333333 | K26: =IF($H26<>"",IF($H26<Données!$C$3,1,0),0) -> 0 | L26: 0.40625 | M26: 0 | N26: 0.5104166667 | O26: =IF($N26=Données!$F$12,0,IF($N26<Données!$F$11,1,0)) -> 0 | T26: - | U26: =$E$68 -> 0.4583333333 | V26: Heures en HS 40% ( 43h et plus ) | AF26: -
B27: 2014-12-21 | D27: 0.4895833333 | E27: 0.65625 | F27: 0.1666666667 | G27: =IF($D27<>"",IF($D27<Données!$C$2,1,0),0) -> 0 | H27: 0.8333333333 | I27: 0.9895833333 | J27: 0.15625 | K27: =IF($H27<>"",IF($H27<Données!$C$3,1,0),0) -> 0 | L27: 0.3229166667 | M27: 0 | N27: 0.4375 | O27: =IF($N27=Données!$F$12,0,IF($N27<Données!$F$11,1,0)) -> 1 | T27: - | U27: =SUM(M12+M20+M28+M36+M44+M52) -> 0 | V27: Nombre de repas | AF27: -
B28: Total Semaine | E28: =WEEKNUM(B21,21) -> 51 | F28: =SUM($F21:$F27) -> 0.7291666667 | G28: =G21+G22+G23+G24+G25+G26+G27 -> 0 | J28: =SUM(J21:J27) -> 1.104166667 | K28: =K21+K22+K23+K24+K25+K26+K27 -> 0 | L28: =SUM(L21:L27) -> 1.833333333 | M28: =SUM(M21:M27) -> 0 | O28: =SUM(O21:O27) -> 1 | AF28: -
B29: =B27+1 -> 2014-12-22 | D29: 0.4895833333 | E29: 0.6354166667 | F29: =$E29-$D29+IF($D29>$E29,1) -> 0.1458333333 | G29: =IF($D29<>"",IF($D29<Données!$C$2,1,0),0) -> 0 | H29: 0.78125 | I29: 0.0625 | J29: =$I29-$H29+IF($H29>$I29,1) -> 0.28125 | K29: =IF($H29<>"",IF($H29<Données!$C$3,1,0),0) -> 0 | L29: =$F29+$J29-($G29+$K29)*("00:30") -> 0.4270833333 | M29: =$G29+$K29 -> 0 | N29: =$D29-$I27+IF($I27>$D29,1) -> 0.5 | O29: =IF($N29=Données!$F$12,0,IF($N29<Données!$F$11,1,0)) -> 0 | S29: Heure fiche de paie: | AF29: -
B30: =B29+1 -> 2014-12-23 | D30: 0.4895833333 | E30: 0.6458333333 | F30: =$E30-$D30+IF($D30>$E30,1) -> 0.15625 | G30: =IF($D30<>"",IF($D30<Données!$C$2,1,0),0) -> 0 | H30: 0.78125 | I30: 0.01041666667 | J30: =$I30-$H30+IF($H30>$I30,1) -> 0.2291666667 | K30: =IF($H30<>"",IF($H30<Données!$C$3,1,0),0) -> 0 | L30: =$F30+$J30-($G30+$K30)*("00:30") -> 0.3854166667 | M30: =$G30+$K30 -> 0 | N30: =$D30-$I29+IF($I29>$D30,1) -> 0.4270833333 | O30: =IF($N30=Données!$F$12,0,IF($N30<Données!$F$11,1,0)) -> 1 | AF30: -
B31: =B30+1 -> 2014-12-24 | F31: 0 | G31: =IF($D31<>"",IF($D31<Données!$C$2,1,0),0) -> 0 | J31: 0 | K31: =IF($H31<>"",IF($H31<Données!$C$3,1,0),0) -> 0 | L31: 0 | M31: 0 | N31: =$D31-$I30+IF($I30>$D31,1) -> 0.9895833333 | O31: =IF($N31=Données!$F$12,0,IF($N31<Données!$F$11,1,0)) -> 0 | S31: Dont : | T31: - | U31: 6.319444444 | V31: Heures à taux normal | AF31: -
B32: 2014-12-25 | F32: 0 | G32: =IF($D32<>"",IF($D32<Données!$C$2,1,0),0) -> 0 | J32: 0 | K32: =IF($H32<>"",IF($H32<Données!$C$3,1,0),0) -> 0 | L32: 0 | M32: 0 | N32: 0 | O32: =IF($N32=Données!$F$12,0,IF($N32<Données!$F$11,1,0)) -> 0 | T32: - | U32: 0.73125 | V32: Heures en HS 10% | AF32: -
B33: 2014-12-26 | D33: 0.4895833333 | E33: 0.59375 | F33: 0.1041666667 | G33: =IF($D33<>"",IF($D33<Données!$C$2,1,0),0) -> 0 | H33: 0.7708333333 | I33: 0.09375 | J33: 0.3229166667 | K33: 0 | L33: 0.4270833333 | M33: 0 | N33: 0.4895833333 | O33: =IF($N33=Données!$F$12,0,IF($N33<Données!$F$11,1,0)) -> 0 | T33: - | U33: 0 | V33: Heures en HS 20%
B34: 2014-12-27 | D34: 0.4895833333 | E34: 0.6458333333 | F34: 0.15625 | G34: =IF($D34<>"",IF($D34<Données!$C$2,1,0),0) -> 0 | H34: 0.78125 | I34: 0.05208333333 | J34: 0.2708333333 | K34: =IF($H34<>"",IF($H34<Données!$C$3,1,0),0) -> 0 | L34: 0.4270833333 | M34: 0 | N34: 0.3958333333 | O34: =IF($N34=Données!$F$12,0,IF($N34<Données!$F$11,1,0)) -> 1 | T34: - | U34: 0 | V34: Heures en HS 40% | AE34: Total dépenses: | AF34: - | AG34: =SUM(AG22:AG32) -> 30.1
B35: 2014-12-28 | D35: 0.4895833333 | E35: 0.6875 | F35: 0.1979166667 | G35: =IF($D35<>"",IF($D35<Données!$C$2,1,0),0) -> 0 | H35: 0.78125 | I35: 0.01041666667 | J35: 0.2291666667 | K35: =IF($H35<>"",IF($H35<Données!$C$3,1,0),0) -> 0 | L35: 0.4270833333 | M35: 0 | N35: 0.4375 | O35: =IF($N35=Données!$F$12,0,IF($N35<Données!$F$11,1,0)) -> 1 | T35: - | U35: 0 | V35: Nombre de repas
B36: Total Semaine | E36: =WEEKNUM(B29,21) -> 52 | F36: =SUM($F29:$F35) -> 0.7604166667 | G36: =G29+G30+G31+G32+G33+G34+G35 -> 0 | J36: =SUM(J29:J35) -> 1.333333333 | K36: =K29+K30+K31+K32+K33+K34+K35 -> 0 | L36: =SUM(L29:L35) -> 2.09375 | M36: =SUM(M29:M35) -> 0 | O36: =SUM(O29:O35) -> 3
B37: =B35+1 -> 2014-12-29 | D37: 0.4895833333 | E37: 0.625 | F37: =$E37-$D37+IF($D37>$E37,1) -> 0.1354166667 | G37: =IF($D37<>"",IF($D37<Données!$C$2,1,0),0) -> 0 | H37: 0.78125 | I37: 0.9895833333 | J37: =$I37-$H37+IF($H37>$I37,1) -> 0.2083333333 | K37: =IF($H37<>"",IF($H37<Données!$C$3,1,0),0) -> 0 | L37: =$F37+$J37-($G37+$K37)*("00:30") -> 0.34375 | M37: =$G37+$K37 -> 0 | N37: =$D37-$I35+IF($I35>$D37,1) -> 0.4791666667 | O37: =IF($N37=Données!$F$12,0,IF($N37<Données!$F$11,1,0)) -> 0 | S37: Différence:
B38: =B37+1 -> 2014-12-30 | D38: 0.4895833333 | E38: 0.6354166667 | F38: =$E38-$D38+IF($D38>$E38,1) -> 0.1458333333 | G38: =IF($D38<>"",IF($D38<Données!$C$2,1,0),0) -> 0 | H38: 0.78125 | I38: 0.9895833333 | J38: =$I38-$H38+IF($H38>$I38,1) -> 0.2083333333 | K38: =IF($H38<>"",IF($H38<Données!$C$3,1,0),0) -> 0 | L38: =$F38+$J38-($G38+$K38)*("00:30") -> 0.3541666667 | M38: =$G38+$K38 -> 0 | N38: =$D38-$I37+IF($I37>$D38,1) -> 0.5 | O38: =IF($N38=Données!$F$12,0,IF($N38<Données!$F$11,1,0)) -> 0
B39: =B38+1 -> 2014-12-31 | F39: 0 | G39: =IF($D39<>"",IF($D39<Données!$C$2,1,0),0) -> 0 | J39: 0 | K39: =IF($H39<>"",IF($H39<Données!$C$3,1,0),0) -> 0 | L39: 0 | M39: 0 | N39: 0 | O39: =IF($N39=Données!$F$12,0,IF($N39<Données!$F$11,1,0)) -> 0 | S39: Dont : | T39: - | U39: =$U31-$U23+IF($U23>$U31,1) -> 0.7152777778 | V39: Heures à taux normal
B40: 2015-01-01 | F40: 0 | G40: =IF($D40<>"",IF($D40<Données!$C$2,1,0),0) -> 0 | J40: 0 | K40: =IF($H40<>"",IF($H40<Données!$C$3,1,0),0) -> 0 | L40: 0 | M40: 0 | N40: =$D40-$I39+IF($I39>$D40,1) -> 0 | O40: =IF($N40=Données!$F$12,0,IF($N40<Données!$F$11,1,0)) -> 0 | T40: - | U40: =$U32-$U24+IF($U24>$U32,1) -> 0.06458333333 | V40: Heures en HS 10%
B41: 2015-01-02 | F41: 0 | G41: =IF($D41<>"",IF($D41<Données!$C$2,1,0),0) -> 0 | J41: 0 | K41: =IF($H41<>"",IF($H41<Données!$C$3,1,0),0) -> 0 | L41: 0.3229166667 | M41: 0 | N41: 0 | O41: =IF($N41=Données!$F$12,0,IF($N41<Données!$F$11,1,0)) -> 0 | T41: - | U41: =$U33-$U25+IF($U25>$U33,1) -> 0.4583333333 | V41: Heures en HS 20%
B42: 2015-01-03 | F42: 0 | G42: =IF($D42<>"",IF($D42<Données!$C$2,1,0),0) -> 0 | J42: 0 | K42: =IF($H42<>"",IF($H42<Données!$C$3,1,0),0) -> 0 | L42: 0.3229166667 | M42: 0 | N42: 0 | O42: =IF($N42=Données!$F$12,0,IF($N42<Données!$F$11,1,0)) -> 0 | T42: - | U42: =$U34-$U26+IF($U26>$U34,1) -> 0.5416666667 | V42: Heures en HS 40%
B43: 2015-01-04 | F43: 0 | G43: =IF($D43<>"",IF($D43<Données!$C$2,1,0),0) -> 0 | J43: 0 | K43: =IF($H43<>"",IF($H43<Données!$C$3,1,0),0) -> 0 | L43: 0.3229166667 | M43: 0 | N43: 0 | O43: =IF($N43=Données!$F$12,0,IF($N43<Données!$F$11,1,0)) -> 0 | T43: - | U43: =SUM(U35-U27) -> 0 | V43: Nombre de repas
B44: Total Semaine | E44: =WEEKNUM(B37,21) -> 1 | F44: =SUM($F37:$F43) -> 0.28125 | G44: =G37+G38+G39+G40+G41+G42+G43 -> 0 | J44: =SUM(J37:J43) -> 0.4166666667 | K44: =K37+K38+K39+K40+K41+K42+K43 -> 0 | L44: =SUM(L37:L43) -> 1.666666667 | M44: =SUM(M37:M43) -> 0 | O44: =SUM(O37:O43) -> 0
B45: =B43+1 -> 2015-01-05 | F45: =$E45-$D45+IF($D45>$E45,1) -> 0 | G45: =IF($D45<>"",IF($D45<Données!$C$2,1,0),0) -> 0 | J45: =$I45-$H45+IF($H45>$I45,1) -> 0 | K45: =IF($H45<>"",IF($H45<Données!$C$3,1,0),0) -> 0 | L45: =$F45+$J45-($G45+$K45)*("00:30") -> 0 | M45: =$G45+$K45 -> 0 | N45: =$D45-$I43+IF($I43>$D45,1) -> 0 | O45: =IF($N45=Données!$F$12,0,IF($N45<Données!$F$11,1,0)) -> 0
B46: =B45+1 -> 2015-01-06 | F46: 0 | G46: =IF($D46<>"",IF($D46<Données!$C$2,1,0),0) -> 0 | J46: =$I46-$H46+IF($H46>$I46,1) -> 0 | K46: =IF($H46<>"",IF($H46<Données!$C$3,1,0),0) -> 0 | L46: =$F46+$J46-($G46+$K46)*("00:30") -> 0 | M46: =$G46+$K46 -> 0 | N46: =$D46-$I45+IF($I45>$D46,1) -> 0 | O46: =IF($N46=Données!$F$12,0,IF($N46<Données!$F$11,1,0)) -> 0
B47: =B46+1 -> 2015-01-07 | F47: 0 | G47: =IF($D47<>"",IF($D47<Données!$C$2,1,0),0) -> 0 | J47: 0 | K47: =IF($H47<>"",IF($H47<Données!$C$3,1,0),0) -> 0 | L47: 0 | M47: 0 | N47: =$D47-$I46+IF($I46>$D47,1) -> 0 | O47: =IF($N47=Données!$F$12,0,IF($N47<Données!$F$11,1,0)) -> 0
B48: 2015-01-08 | F48: 0 | G48: =IF($D48<>"",IF($D48<Données!$C$2,1,0),0) -> 0 | J48: 0 | K48: =IF($H48<>"",IF($H48<Données!$C$3,1,0),0) -> 0 | L48: 0 | M48: 0 | N48: 0 | O48: =IF($N48=Données!$F$12,0,IF($N48<Données!$F$11,1,0)) -> 0
B49: 2015-01-09 | F49: 0 | G49: =IF($D49<>"",IF($D49<Données!$C$2,1,0),0) -> 0 | J49: 0 | K49: =IF($H49<>"",IF($H49<Données!$C$3,1,0),0) -> 0 | L49: 0 | M49: 0 | N49: 0 | O49: =IF($N49=Données!$F$12,0,IF($N49<Données!$F$11,1,0)) -> 0
B50: 2015-01-10 | F50: 0 | G50: =IF($D50<>"",IF($D50<Données!$C$2,1,0),0) -> 0 | J50: 0 | K50: =IF($H50<>"",IF($H50<Données!$C$3,1,0),0) -> 0 | L50: 0 | M50: 0 | N50: 0 | O50: =IF($N50=Données!$F$12,0,IF($N50<Données!$F$11,1,0)) -> 0
B51: 2015-01-11 | F51: 0 | G51: =IF($D51<>"",IF($D51<Données!$C$2,1,0),0) -> 0 | J51: 0 | K51: =IF($H51<>"",IF($H51<Données!$C$3,1,0),0) -> 0 | L51: 0 | M51: 0 | N51: 0 | O51: =IF($N51=Données!$F$12,0,IF($N51<Données!$F$11,1,0)) -> 0
B52: Total semaine | E52: =WEEKNUM(B45,21) -> 2 | F52: =SUM($F45:$F51) -> 0 | G52: =G45+G46+G47+G48+G49+G50+G51 -> 0 | J52: =SUM(J45:J51) -> 0 | K52: =K45+K46+K47+K48+K49+K50+K51 -> 0 | L52: =SUM(L45:L51) -> 0 | M52: =SUM(M45:M51) -> 0 | O52: =SUM(O45:O51) -> 0
N53: 7.041666667
L54: =CodeCouleur(M54) -> 50 | N54: REPOS
L55: =CodeCouleur(M55) -> 42 | N55: Récup
L56: 48 | N56: JFG
L57: 44 | N57: VAC
L58: 3 | N58: MAL
L59: =CodeCouleur(M59) -> 40 | N59: Jf Taf
A60: Heures | C60: 1.458333333 | D60: 1.625 | E60: 1.791666667 | F60: Total
A61: Taux | B61: 1 | C61: 1.1 | D61: 1.2 | E61: 1.4
A62: S 1 | B62: =IF($L$12<=$C$60,$L$12,$C$60) -> 0.7708333333 | C62: =IF($L$12<=$C$60,0,IF($L$12<=$D$60,$L$12,$D$60)-$C$60) -> 0 | D62: =IF($L$12<=$D$60,0,IF($L$12<=$E$60,$L$12,$D$60)-$C$60) -> 0 | E62: =IF($L$12<=$E$60,0,IF($L$12>$E$60,$L$12,$E$60)-$E$60) -> 0 | F62: =B62+C62+D62+E62 -> 0.7708333333
A63: S 2 | B63: =IF($L$20<=$C$60,$L$20,$C$60) -> 1.458333333 | C63: =IF($L$20<=$C$60,0,IF($L$20<=$D$60,$L$20,$D$60)-$C$60) -> 0.1666666667 | D63: =IF($L$20<=$D$60,0,IF($L$20<=$E$60,$L$20,$D$60)-$C$60) -> 0.1666666667 | E63: =IF($L$20<=$E$60,0,IF($L$20>$E$60,$L$20,$E$60)-$E$60) -> 0.1145833333 | F63: 1.90625
A64: S 3 | B64: =IF($L$28<=$C$60,$L$28,$C$60) -> 1.458333333 | C64: =IF($L$28<=$C$60,0,IF($L$28<=$D$60,$L$28,$D$60)-$C$60) -> 0.1666666667 | D64: =IF($L$28<=$D$60,0,IF($L$28<=$E$60,$L$28,$D$60)-$C$60) -> 0.1666666667 | E64: =IF($L$28<=$E$60,0,IF($L$28>$E$60,$L$28,$E$60)-$E$60) -> 0.04166666667 | F64: 1.833333333
A65: S 4 | B65: =IF($L$36<=$C$60,$L$36,$C$60) -> 1.458333333 | C65: =IF($L$36<=$C$60,0,IF($L$36<=$D$60,$L$36,$D$60)-$C$60) -> 0.1666666667 | D65: =IF($L$36<=$D$60,0,IF($L$36<=$E$60,$L$36,$D$60)-$C$60) -> 0.1666666667 | E65: =IF($L$36<=$E$60,0,IF($L$36>$E$60,$L$36,$E$60)-$E$60) -> 0.3020833333 | F65: 2.09375
A66: S 5 | B66: =IF($L$44<=$C$60,$L$44,$C$60) -> 1.458333333 | C66: =IF($L$44<=$C$60,0,IF($L$44<=$D$60,$L$44,$D$60)-$C$60) -> 0.1666666667 | D66: 0.04166666667 | E66: =IF($L$44<=$E$60,0,IF($L$44>$E$60,$L$44,$E$60)-$E$60) -> 0 | F66: 1.666666667
A67: S 6 | B67: =IF($L$52<=$C$60,$L$52,$C$60) -> 0 | C67: =IF($L$52<=$C$60,0,IF($L$52<=$D$60,$L$52,$D$60)-$C$60) -> 0 | D67: =NbCellsCoul($D$5:$I$11,50)*0.25 -> 0 | E67: =IF($L$52<=$E$60,0,IF($L$52>$E$60,$L$52,$E$60)-$E$60) -> 0 | F67: 0
A68: Total | B68: =SUM(B62:B67) -> 6.604166667 | C68: =SUM(C62:C67) -> 0.6666666667 | D68: =SUM(D62:D67) -> 0.5416666667 | E68: =SUM(E62:E67) -> 0.4583333333 | F68: 8.270833333
A71: Jours | B71: Repos | C71: Récup | D71: Jfg | E71: Vac | F71: Mal | G71: Vides | H71: Taf | I71: Jf Taf | J71: <11h
A72: S 1 | B72: =NbCellsCoul($D$5:$I$11,50)*0.25 -> 0 | C72: =NbCellsCoul($D$5:$I$11,42)*0.25 -> 0 | D72: =NbCellsCoul($D$5:$I$11,48)*0.25 -> 0 | E72: =NbCellsCoul($D$5:$I$11,44)*0.25 -> 0 | F72: =NbCellsCoul($D$5:$I$11,3)*0.25 -> 0 | G72: =+COUNTBLANK(E5:H11)/2 -> 5 | H72: =7-$G72 -> 2 | I72: =NbCellsCoul($D$5:$I$11,40)*0.25 -> 0 | J72: =SUM($O$6:$O$11) -> 0
A73: S 2 | B73: =NbCellsCoul($D$13:$I$19,50)*0.25 -> 2 | C73: =NbCellsCoul($D$13:$I$19,42)*0.25 -> 0 | D73: =NbCellsCoul($D$13:$I$19,48)*0.25 -> 0 | E73: =NbCellsCoul($D$13:$I$19,44)*0.25 -> 0 | F73: =NbCellsCoul($D$13:$I$19,3)*0.25 -> 0 | G73: =+COUNTBLANK(E13:H19)/2 -> 2 | H73: 5 | I73: =NbCellsCoul($D$13:$I$19,40)*0.25 -> 0 | J73: =SUM($O$13:$O$19) -> 2
A74: S 3 | B74: =NbCellsCoul($D$21:$I$27,50)*0.25 -> 2 | C74: =NbCellsCoul($D$21:$I$27,42)*0.25 -> 0 | D74: =NbCellsCoul($D$21:$I$27,48)*0.25 -> 0 | E74: =NbCellsCoul($D$21:$I$27,44)*0.25 -> 0 | F74: =NbCellsCoul($D$21:$I$27,3)*0.25 -> 0 | G74: =+COUNTBLANK(E21:H27)/2 -> 2 | H74: 5 | I74: =NbCellsCoul($D$21:$I$27,40)*0.25 -> 0 | J74: =SUM($O$21:$O$27) -> 1
A75: S 4 | B75: =NbCellsCoul($D$29:$I$35,50)*0.25 -> 2 | C75: =NbCellsCoul($D$29:$I$35,42)*0.25 -> 0 | D75: =NbCellsCoul($D$29:$I$35,48)*0.25 -> 0 | E75: =NbCellsCoul($D$29:$I$35,44)*0.25 -> 0 | F75: =NbCellsCoul($D$29:$I$35,3)*0.25 -> 0 | G75: =+COUNTBLANK(E29:H35)/2 -> 2 | H75: 5 | I75: =NbCellsCoul($D$29:$I$35,40)*0.25 -> 0 | J75: =SUM($O$29:$O$35) -> 3
A76: S 5 | B76: =NbCellsCoul($D$37:$I$43,50)*0.25 -> 2 | C76: =NbCellsCoul($D$37:$I$43,42)*0.25 -> 0 | D76: =NbCellsCoul($D$37:$I$43,48)*0.25 -> 0 | E76: =NbCellsCoul($D$37:$I$43,44)*0.25 -> 0 | F76: =NbCellsCoul($D$37:$I$43,3)*0.25 -> 3 | G76: =+COUNTBLANK(E37:H43)/2 -> 5 | H76: 2 | I76: =NbCellsCoul($D$37:$I$43,40)*0.25 -> 0 | J76: =SUM($O$37:$O$43) -> 0
A77: S 6 | B77: =NbCellsCoul($D$45:$I$51,50)*0.25 -> 0 | C77: =NbCellsCoul($D$45:$I$51,42)*0.25 -> 0 | D77: =NbCellsCoul($D$45:$I$51,48)*0.25 -> 0 | E77: =NbCellsCoul($D$45:$I$51,44)*0.25 -> 0 | F77: =NbCellsCoul($D$45:$I$51,3)*0.25 -> 0 | G77: =+COUNTBLANK(E45:H51)/2 -> 7 | H77: 0 | I77: =NbCellsCoul($D$45:$I$51,40)*0.25 -> 0 | J77: =SUM($O$45:$O$51) -> 0
A78: Total | B78: =SUM(B$72:B$77) -> 8 | C78: 0 | D78: 0 | E78: 0 | F78: =SUM(F$72:F$77) -> 3 | G78: =SUM(G$72:G$77) -> 23 | H78: =SUM(H$72:H$77) -> 19 | I78: =SUM(I$72:I$77) -> 0 | J78: =SUM(J$72:J$77) -> 6

Sheet Déc 14
D1: TEMPS DE TRAVAIL | S1: RÉCAPITULATIF | AE1: IMPÔTS
F2: =Données!G14 -> 12 | J2: =Données!C15 -> 2014
B3: Jour | D3: Midi | F3: Cumul Midi | G3: Repas | H3: Soir | J3: Cumul Soir | K3: Repas | L3: Totaux | M3: Total Repas
D4: Début | E4: Fin | H4: Début | I4: Fin | AF4: =VLOOKUP(F2,Données!E15:F26,2) -> Décembre | AG4: =J2 -> 2014
B5: =Données!I15-WEEKDAY(Données!I15-1)+1 -> 2014-12-01 | D5: 0.4895833333 | E5: 0.6354166667 | F5: =$E5-$D5+IF($D5>$E5,1) -> 0.1458333333 | G5: =IF($D5<>"",IF($D5<Données!$C$2,1,0),0) -> 0 | H5: 0.78125 | I5: 0.9791666667 | J5: =$I5-$H5+IF($H5>$I5,1) -> 0.1979166667 | K5: =IF($H5<>"",IF($H5<Données!$C$3,1,0),0) -> 0 | L5: =$F5+$J5-($G5+$K5)*("00:30") -> 0.34375 | M5: =$G5+$K5 -> 0
B6: =B5+1 -> 2014-12-02 | D6: 0.4895833333 | E6: 0.6354166667 | F6: =$E6-$D6+IF($D6>$E6,1) -> 0.1458333333 | G6: =IF($D6<>"",IF($D6<Données!$C$2,1,0),0) -> 0 | H6: 0.78125 | I6: 0 | J6: =$I6-$H6+IF($H6>$I6,1) -> 0.21875 | K6: =IF($H6<>"",IF($H6<Données!$C$3,1,0),0) -> 0 | L6: =$F6+$J6-($G6+$K6)*("00:30") -> 0.3645833333 | M6: =$G6+$K6 -> 0 | N6: =$D6-$I5+IF($I5>$D6,1) -> 0.5104166667 | O6: =IF($N6=Données!$F$12,0,IF($N6<Données!$F$11,1,0)) -> 0 | S6: Soit au total pour le mois de : | U6: =VLOOKUP(F2,Données!E15:F26,2) -> Décembre | V6: =J2 -> 2014
B7: =B6+1 -> 2014-12-03 | F7: 0 | G7: =IF($D7<>"",IF($D7<Données!$C$2,1,0),0) -> 0 | H7: 0.7916666667 | I7: 0.9895833333 | J7: 0.1979166667 | K7: =IF($H7<>"",IF($H7<Données!$C$3,1,0),0) -> 0 | L7: 0.1979166667 | M7: 0 | N7: =$D7-$I6+IF($I6>$D7,1) -> 0 | O7: =IF($N7=Données!$F$12,0,IF($N7<Données!$F$11,1,0)) -> 0
B8: 2014-12-04 | F8: 0 | G8: =IF($D8<>"",IF($D8<Données!$C$2,1,0),0) -> 0 | J8: 0 | K8: =IF($H8<>"",IF($H8<Données!$C$3,1,0),0) -> 0 | L8: 0 | M8: 0 | N8: 0 | O8: =IF($N8=Données!$F$12,0,IF($N8<Données!$F$11,1,0)) -> 0 | AE8: Numéro Fiscal :
B9: 2014-12-05 | F9: 0 | G9: =IF($D9<>"",IF($D9<Données!$C$2,1,0),0) -> 0 | H9: 0.78125 | I9: 0.03125 | J9: 0.25 | K9: =IF($H9<>"",IF($H9<Données!$C$3,1,0),0) -> 0 | L9: 0.25 | M9: 0 | N9: =$D9-$I8+IF($I8>$D9,1) -> 0 | O9: =IF($N9=Données!$F$12,0,IF($N9<Données!$F$11,1,0)) -> 0 | S9: Nombre de jours travaillés : | U9: =H78 -> 22.5 | AE9: MDP:
B10: 2014-12-06 | D10: 0.4895833333 | E10: 0.6458333333 | F10: 0.15625 | G10: =IF($D10<>"",IF($D10<Données!$C$2,1,0),0) -> 0 | H10: 0.78125 | I10: 0 | J10: 0.21875 | K10: =IF($H10<>"",IF($H10<Données!$C$3,1,0),0) -> 0 | L10: 0.375 | M10: 0 | N10: =$D10-$I9+IF($I9>$D10,1) -> 0.4583333333 | O10: =IF($N10=Données!$F$12,0,IF($N10<Données!$F$11,1,0)) -> 0 | S10: Nombre de jours repos : | U10: =B78 -> 6.5
B11: 2014-12-07 | D11: 0.4895833333 | E11: 0.6770833333 | F11: 0.1875 | G11: =IF($D11<>"",IF($D11<Données!$C$2,1,0),0) -> 0 | H11: 0.78125 | I11: 0.02083333333 | J11: 0.2395833333 | K11: =IF($H11<>"",IF($H11<Données!$C$3,1,0),0) -> 0 | L11: 0.4270833333 | M11: 0 | N11: =$D11-$I10+IF($I10>$D11,1) -> 0.4895833333 | O11: =IF($N11=Données!$F$12,0,IF($N11<Données!$F$11,1,0)) -> 0 | S11: Nombre de jours récup : | U11: =C$78 -> 0 | AE11: Adresse domicile: | AF11: -
B12: Total Semaine | E12: =WEEKNUM(B5,21) -> 49 | F12: =SUM($F5:$F11) -> 0.6354166667 | G12: =G5+G6+G7+G8+G9+G10+G11 -> 0 | J12: =SUM(J5:J11) -> 1.322916667 | K12: =K5+K6+K7+K8+K9+K10+K11 -> 0 | L12: =SUM(L5:L11) -> 1.958333333 | M12: =SUM(M5:M11) -> 0 | O12: =SUM(O6:O11) -> 0 | S12: Nombre de jfg : | U12: =D$78 -> 0
B13: =B11+1 -> 2014-12-08 | D13: 0.4895833333 | E13: 0.6145833333 | F13: =$E13-$D13+IF($D13>$E13,1) -> 0.125 | G13: =IF($D13<>"",IF($D13<Données!$C$2,1,0),0) -> 0 | H13: 0.78125 | I13: 0.9791666667 | J13: =$I13-$H13+IF($H13>$I13,1) -> 0.1979166667 | K13: =IF($H13<>"",IF($H13<Données!$C$3,1,0),0) -> 0 | L13: =$F13+$J13-($G13+$K13)*("00:30") -> 0.3229166667 | M13: =$G13+$K13 -> 0 | N13: =$D13-$I11+IF($I11>$D13,1) -> 0.46875 | O13: =IF($N13=Données!$F$12,0,IF($N13<Données!$F$11,1,0)) -> 0 | S13: Nombre de jours de vacances : | U13: =E$78 -> 0
B14: =B13+1 -> 2014-12-09 | D14: 0.4895833333 | E14: 0.6458333333 | F14: =$E14-$D14+IF($D14>$E14,1) -> 0.15625 | G14: =IF($D14<>"",IF($D14<Données!$C$2,1,0),0) -> 0 | H14: 0.78125 | I14: 0.02083333333 | J14: =$I14-$H14+IF($H14>$I14,1) -> 0.2395833333 | K14: =IF($H14<>"",IF($H14<Données!$C$3,1,0),0) -> 0 | L14: =$F14+$J14-($G14+$K14)*("00:30") -> 0.3958333333 | M14: =$G14+$K14 -> 0 | N14: =$D14-$I13+IF($I13>$D14,1) -> 0.5104166667 | O14: =IF($N14=Données!$F$12,0,IF($N14<Données!$F$11,1,0)) -> 0 | S14: Nombre de jours de maladie : | U14: =F$78 -> 0
B15: =B14+1 -> 2014-12-10 | F15: 0 | G15: =IF($D15<>"",IF($D15<Données!$C$2,1,0),0) -> 0 | J15: 0 | K15: =IF($H15<>"",IF($H15<Données!$C$3,1,0),0) -> 0 | L15: 0 | M15: 0 | N15: =$D15-$I14+IF($I14>$D15,1) -> 0.9791666667 | O15: =IF($N15=Données!$F$12,0,IF($N15<Données!$F$11,1,0)) -> 0 | S15: Nombre jours fériées travaillés : | U15: =I78 -> 1.5 | AE15: Adresse lieu de travail: | AF15: -
B16: 2014-12-11 | F16: 0 | G16: =IF($D16<>"",IF($D16<Données!$C$2,1,0),0) -> 0 | J16: 0 | K16: =IF($H16<>"",IF($H16<Données!$C$3,1,0),0) -> 0 | L16: 0 | M16: 0 | N16: 0 | O16: =IF($N16=Données!$F$12,0,IF($N16<Données!$F$11,1,0)) -> 0 | S16: Nombre de fois 11h de batement non respecté : | U16: =J78 -> 3
B17: 2014-12-12 | D17: 0.4895833333 | E17: 0.6458333333 | F17: 0.15625 | G17: =IF($D17<>"",IF($D17<Données!$C$2,1,0),0) -> 0 | H17: 0.78125 | I17: 0.08333333333 | J17: 0.3020833333 | K17: =IF($H17<>"",IF($H17<Données!$C$3,1,0),0) -> 0 | L17: 0.4583333333 | M17: 0 | N17: 0.4895833333 | O17: =IF($N17=Données!$F$12,0,IF($N17<Données!$F$11,1,0)) -> 0
B18: 2014-12-13 | D18: 0.4895833333 | E18: 0.6666666667 | F18: 0.1770833333 | G18: =IF($D18<>"",IF($D18<Données!$C$2,1,0),0) -> 0 | H18: 0.78125 | I18: 0.02083333333 | J18: 0.2395833333 | K18: =IF($H18<>"",IF($H18<Données!$C$3,1,0),0) -> 0 | L18: 0.4166666667 | M18: 0 | N18: 0.40625 | O18: =IF($N18=Données!$F$12,0,IF($N18<Données!$F$11,1,0)) -> 1 | AE18: Distance ( Source Mappy) : | AF18: - | AG18: 7,4 KM
B19: 2014-12-14 | D19: 0.4895833333 | E19: 0.65625 | F19: 0.1666666667 | G19: =IF($D19<>"",IF($D19<Données!$C$2,1,0),0) -> 0 | H19: 0.78125 | I19: 0.9791666667 | J19: 0.1979166667 | K19: =IF($H19<>"",IF($H19<Données!$C$3,1,0),0) -> 0 | L19: 0.3645833333 | M19: 0 | N19: 0.46875 | O19: =IF($N19=Données!$F$12,0,IF($N19<Données!$F$11,1,0)) -> 0 | U19: =SUM(L12+L20+L28+L36+L44+L52) -> 8.958333333 | V19: Heures effectués
B20: Total Semaine | E20: =WEEKNUM(B13,21) -> 50 | F20: =SUM($F13:$F19) -> 0.78125 | G20: =G13+G14+G15+G16+G17+G18+G19 -> 0 | J20: =SUM(J13:J19) -> 1.177083333 | K20: =K13+K14+K15+K16+K17+K18+K19 -> 0 | L20: =SUM(L13:L19) -> 1.958333333 | M20: =SUM(M13:M19) -> 0 | O20: =SUM(O13:O19) -> 1 | U20: =IF(U19<N53,"- "&TEXT(ABS(N53-U19),"[hh]:mm"),U19-N53) -> 1.916666667 | V20: Heures dues/supp | AE20: Nombre Aller-Retour : | AF20: - | AG20: =COUNT(E5:E11,I5:I11,E13:E19,I13:I19,E21:E27,I21:I27,E29:E35,I29:I35,E37:E43,I37:I43,E45:E51,I45:I51) -> 45
B21: =B19+1 -> 2014-12-15 | D21: 0.4895833333 | E21: 0.625 | F21: =$E21-$D21+IF($D21>$E21,1) -> 0.1354166667 | G21: =IF($D21<>"",IF($D21<Données!$C$2,1,0),0) -> 0 | H21: 0.78125 | I21: 0.9791666667 | J21: =$I21-$H21+IF($H21>$I21,1) -> 0.1979166667 | K21: =IF($H21<>"",IF($H21<Données!$C$3,1,0),0) -> 0 | L21: =$F21+$J21-($G21+$K21)*("00:30") -> 0.3333333333 | M21: =$G21+$K21 -> 0 | N21: =$D21-$I19+IF($I19>$D21,1) -> 0.5104166667 | O21: =IF($N21=Données!$F$12,0,IF($N21<Données!$F$11,1,0)) -> 0 | AE21: Km Parcourue : | AF21: - | AG21: =SUM(AG20*14.8) -> 666 | AH21: Km
B22: =B21+1 -> 2014-12-16 | D22: 0.4895833333 | E22: 0.625 | F22: =$E22-$D22+IF($D22>$E22,1) -> 0.1354166667 | G22: =IF($D22<>"",IF($D22<Données!$C$2,1,0),0) -> 0 | H22: 0.78125 | I22: 0.9270833333 | J22: =$I22-$H22+IF($H22>$I22,1) -> 0.1458333333 | K22: =IF($H22<>"",IF($H22<Données!$C$3,1,0),0) -> 0 | L22: =$F22+$J22-($G22+$K22)*("00:30") -> 0.28125 | M22: =$G22+$K22 -> 0 | N22: =$D22-$I21+IF($I21>$D22,1) -> 0.5104166667 | O22: =IF($N22=Données!$F$12,0,IF($N22<Données!$F$11,1,0)) -> 0 | AE22: Horodateur Payé : | AF22: - | AG22: 36
B23: =B22+1 -> 2014-12-17 | F23: 0 | G23: =IF($D23<>"",IF($D23<Données!$C$2,1,0),0) -> 0 | J23: 0 | K23: =IF($H23<>"",IF($H23<Données!$C$3,1,0),0) -> 0 | L23: 0 | M23: 0 | N23: 0 | O23: =IF($N23=Données!$F$12,0,IF($N23<Données!$F$11,1,0)) -> 0 | S23: Dont : | T23: - | U23: =$B$68 -> 6.989583333 | V23: Heures à taux normal ( 35h ) | AE23: Achat divers pour le travail : | AF23: -
B24: 2014-12-18 | F24: 0 | G24: =IF($D24<>"",IF($D24<Données!$C$2,1,0),0) -> 0 | J24: 0 | K24: =IF($H24<>"",IF($H24<Données!$C$3,1,0),0) -> 0 | L24: 0 | M24: 0 | N24: =$D24-$I23+IF($I23>$D24,1) -> 0 | O24: =IF($N24=Données!$F$12,0,IF($N24<Données!$F$11,1,0)) -> 0 | T24: - | U24: =$C$68 -> 0.6666666667 | V24: Heures en HS 10% ( 35h à 39h ) | AF24: -
B25: 2014-12-19 | D25: 0.4895833333 | E25: 0.6666666667 | F25: 0.1770833333 | G25: =IF($D25<>"",IF($D25<Données!$C$2,1,0),0) -> 0 | H25: 0.78125 | I25: 0.03125 | J25: 0.25 | K25: =IF($H25<>"",IF($H25<Données!$C$3,1,0),0) -> 0 | L25: 0.4270833333 | M25: 0 | N25: 0.4895833333 | O25: =IF($N25=Données!$F$12,0,IF($N25<Données!$F$11,1,0)) -> 0 | T25: - | U25: =$D$68 -> 0.6666666667 | V25: Heures en HS 20% (39h à 43h ) | AF25: -
B26: 2014-12-20 | D26: 0.4895833333 | E26: 0.6770833333 | F26: 0.1875 | G26: =IF($D26<>"",IF($D26<Données!$C$2,1,0),0) -> 0 | H26: 0.78125 | I26: 0.0625 | J26: 0.28125 | K26: =IF($H26<>"",IF($H26<Données!$C$3,1,0),0) -> 0 | L26: 0.46875 | M26: 0 | N26: 0.4583333333 | O26: =IF($N26=Données!$F$12,0,IF($N26<Données!$F$11,1,0)) -> 0 | T26: - | U26: =$E$68 -> 0.6354166667 | V26: Heures en HS 40% ( 43h et plus ) | AF26: -
B27: 2014-12-21 | D27: 0.4895833333 | E27: 0.6875 | F27: 0.1979166667 | G27: =IF($D27<>"",IF($D27<Données!$C$2,1,0),0) -> 0 | H27: 0.78125 | I27: 0 | J27: 0.21875 | K27: =IF($H27<>"",IF($H27<Données!$C$3,1,0),0) -> 0 | L27: 0.4166666667 | M27: 0 | N27: 0.4270833333 | O27: =IF($N27=Données!$F$12,0,IF($N27<Données!$F$11,1,0)) -> 1 | T27: - | U27: =SUM(M12+M20+M28+M36+M44+M52) -> 1 | V27: Nombre de repas | AF27: -
B28: Total Semaine | E28: =WEEKNUM(B21,21) -> 51 | F28: =SUM($F21:$F27) -> 0.8333333333 | G28: =G21+G22+G23+G24+G25+G26+G27 -> 0 | J28: =SUM(J21:J27) -> 1.09375 | K28: =K21+K22+K23+K24+K25+K26+K27 -> 0 | L28: =SUM(L21:L27) -> 1.927083333 | M28: =SUM(M21:M27) -> 0 | O28: =SUM(O21:O27) -> 1 | AF28: -
B29: =B27+1 -> 2014-12-22 | D29: 0.4895833333 | E29: 0.6458333333 | F29: =$E29-$D29+IF($D29>$E29,1) -> 0.15625 | G29: =IF($D29<>"",IF($D29<Données!$C$2,1,0),0) -> 0 | H29: 0.78125 | I29: 0.01041666667 | J29: =$I29-$H29+IF($H29>$I29,1) -> 0.2291666667 | K29: =IF($H29<>"",IF($H29<Données!$C$3,1,0),0) -> 0 | L29: =$F29+$J29-($G29+$K29)*("00:30") -> 0.3854166667 | M29: =$G29+$K29 -> 0 | N29: =$D29-$I27+IF($I27>$D29,1) -> 0.4895833333 | O29: =IF($N29=Données!$F$12,0,IF($N29<Données!$F$11,1,0)) -> 0 | S29: Heure fiche de paie: | AF29: -
B30: =B29+1 -> 2014-12-23 | D30: 0.4895833333 | E30: 0.6354166667 | F30: =$E30-$D30+IF($D30>$E30,1) -> 0.1458333333 | G30: =IF($D30<>"",IF($D30<Données!$C$2,1,0),0) -> 0 | H30: 0.78125 | I30: 0 | J30: =$I30-$H30+IF($H30>$I30,1) -> 0.21875 | K30: =IF($H30<>"",IF($H30<Données!$C$3,1,0),0) -> 0 | L30: =$F30+$J30-($G30+$K30)*("00:30") -> 0.3645833333 | M30: =$G30+$K30 -> 0 | N30: =$D30-$I29+IF($I29>$D30,1) -> 0.4791666667 | O30: =IF($N30=Données!$F$12,0,IF($N30<Données!$F$11,1,0)) -> 0 | AF30: -
B31: =B30+1 -> 2014-12-24 | F31: 0 | G31: =IF($D31<>"",IF($D31<Données!$C$2,1,0),0) -> 0 | H31: 0.75 | I31: 0 | J31: 0.25 | K31: =IF($H31<>"",IF($H31<Données!$C$3,1,0),0) -> 1 | L31: 0.2291666667 | M31: 1 | N31: =$D31-$I30+IF($I30>$D31,1) -> 0 | O31: =IF($N31=Données!$F$12,0,IF($N31<Données!$F$11,1,0)) -> 0 | S31: Dont : | T31: - | U31: 6.319444444 | V31: Heures à taux normal | AF31: -
B32: 2014-12-25 | D32: 0.4791666667 | E32: 0.6875 | F32: 0.2083333333 | G32: 0 | J32: 0 | K32: =IF($H32<>"",IF($H32<Données!$C$3,1,0),0) -> 0 | L32: 0.2083333333 | M32: 0 | N32: 0.4791666667 | O32: =IF($N32=Données!$F$12,0,IF($N32<Données!$F$11,1,0)) -> 0 | T32: - | U32: 0.73125 | V32: Heures en HS 10% | AF32: -
B33: 2014-12-26 | D33: 0.4895833333 | E33: 0.65625 | F33: 0.1666666667 | G33: =IF($D33<>"",IF($D33<Données!$C$2,1,0),0) -> 0 | H33: 0.8333333333 | I33: 0 | J33: 0.1666666667 | K33: =IF($H33<>"",IF($H33<Données!$C$3,1,0),0) -> 0 | L33: 0.3333333333 | M33: 0 | N33: 0.4895833333 | O33: =IF($N33=Données!$F$12,0,IF($N33<Données!$F$11,1,0)) -> 0 | T33: - | U33: 0 | V33: Heures en HS 20%
B34: 2014-12-27 | F34: 0 | G34: =IF($D34<>"",IF($D34<Données!$C$2,1,0),0) -> 0 | H34: 0.78125 | I34: 0.01041666667 | J34: 0.2291666667 | K34: =IF($H34<>"",IF($H34<Données!$C$3,1,0),0) -> 0 | L34: 0.2291666667 | M34: 0 | N34: 0 | O34: =IF($N34=Données!$F$12,0,IF($N34<Données!$F$11,1,0)) -> 0 | T34: - | U34: 0 | V34: Heures en HS 40% | AE34: Total dépenses: | AF34: - | AG34: =SUM(AG22:AG32) -> 36
B35: 2014-12-28 | D35: 0.4895833333 | E35: 0.6979166667 | F35: 0.2083333333 | G35: =IF($D35<>"",IF($D35<Données!$C$2,1,0),0) -> 0 | J35: 0 | K35: =IF($H35<>"",IF($H35<Données!$C$3,1,0),0) -> 0 | L35: 0.2083333333 | M35: 0 | N35: 0.4791666667 | O35: =IF($N35=Données!$F$12,0,IF($N35<Données!$F$11,1,0)) -> 0 | T35: - | U35: 0 | V35: Nombre de repas
B36: Total Semaine | E36: =WEEKNUM(B29,21) -> 52 | F36: =SUM($F29:$F35) -> 0.8854166667 | G36: =G29+G30+G31+G32+G33+G34+G35 -> 0 | J36: =SUM(J29:J35) -> 1.09375 | K36: =K29+K30+K31+K32+K33+K34+K35 -> 1 | L36: =SUM(L29:L35) -> 1.958333333 | M36: =SUM(M29:M35) -> 1 | O36: =SUM(O29:O35) -> 0
B37: =B35+1 -> 2014-12-29 | D37: 0.4895833333 | E37: 0.625 | F37: =$E37-$D37+IF($D37>$E37,1) -> 0.1354166667 | G37: =IF($D37<>"",IF($D37<Données!$C$2,1,0),0) -> 0 | H37: 0.78125 | I37: 0.02083333333 | J37: =$I37-$H37+IF($H37>$I37,1) -> 0.2395833333 | K37: =IF($H37<>"",IF($H37<Données!$C$3,1,0),0) -> 0 | L37: =$F37+$J37-($G37+$K37)*("00:30") -> 0.375 | M37: =$G37+$K37 -> 0 | N37: =$D37-$I35+IF($I35>$D37,1) -> 0.4895833333 | O37: =IF($N37=Données!$F$12,0,IF($N37<Données!$F$11,1,0)) -> 0 | S37: Différence:
B38: =B37+1 -> 2014-12-30 | D38: 0.4895833333 | E38: 0.6666666667 | F38: =$E38-$D38+IF($D38>$E38,1) -> 0.1770833333 | G38: =IF($D38<>"",IF($D38<Données!$C$2,1,0),0) -> 0 | H38: 0.78125 | I38: 0.01041666667 | J38: =$I38-$H38+IF($H38>$I38,1) -> 0.2291666667 | K38: =IF($H38<>"",IF($H38<Données!$C$3,1,0),0) -> 0 | L38: =$F38+$J38-($G38+$K38)*("00:30") -> 0.40625 | M38: =$G38+$K38 -> 0 | N38: =$D38-$I37+IF($I37>$D38,1) -> 0.46875 | O38: =IF($N38=Données!$F$12,0,IF($N38<Données!$F$11,1,0)) -> 0
B39: =B38+1 -> 2014-12-31 | F39: 0 | G39: =IF($D39<>"",IF($D39<Données!$C$2,1,0),0) -> 0 | H39: 0.7708333333 | I39: 0.1458333333 | J39: 0.375 | K39: 0 | L39: 0.375 | M39: 0 | N39: =$D39-$I38+IF($I38>$D39,1) -> 0.9895833333 | O39: =IF($N39=Données!$F$12,0,IF($N39<Données!$F$11,1,0)) -> 0 | S39: Dont : | T39: - | U39: =$U31-$U23+IF($U23>$U31,1) -> 0.3298611111 | V39: Heures à taux normal
B40: 2015-01-01 | F40: 0 | G40: =IF($D40<>"",IF($D40<Données!$C$2,1,0),0) -> 0 | J40: 0 | K40: =IF($H40<>"",IF($H40<Données!$C$3,1,0),0) -> 0 | L40: 0 | M40: 0 | N40: 0.8541666667 | O40: 1 | T40: - | U40: =$U32-$U24+IF($U24>$U32,1) -> 0.06458333333 | V40: Heures en HS 10%
B41: 2015-01-02 | F41: 0 | G41: =IF($D41<>"",IF($D41<Données!$C$2,1,0),0) -> 0 | J41: 0 | K41: =IF($H41<>"",IF($H41<Données!$C$3,1,0),0) -> 0 | L41: 0 | M41: 0 | N41: 0 | O41: =IF($N41=Données!$F$12,0,IF($N41<Données!$F$11,1,0)) -> 0 | T41: - | U41: =$U33-$U25+IF($U25>$U33,1) -> 0.3333333333 | V41: Heures en HS 20%
B42: 2015-01-03 | F42: 0 | G42: =IF($D42<>"",IF($D42<Données!$C$2,1,0),0) -> 0 | J42: 0 | K42: =IF($H42<>"",IF($H42<Données!$C$3,1,0),0) -> 0 | L42: 0 | M42: 0 | N42: 0 | O42: =IF($N42=Données!$F$12,0,IF($N42<Données!$F$11,1,0)) -> 0 | T42: - | U42: =$U34-$U26+IF($U26>$U34,1) -> 0.3645833333 | V42: Heures en HS 40%
B43: 2015-01-04 | F43: 0 | G43: =IF($D43<>"",IF($D43<Données!$C$2,1,0),0) -> 0 | J43: 0 | K43: =IF($H43<>"",IF($H43<Données!$C$3,1,0),0) -> 0 | L43: 0 | M43: 0 | N43: 0 | O43: =IF($N43=Données!$F$12,0,IF($N43<Données!$F$11,1,0)) -> 0 | T43: - | U43: =SUM(U35-U27) -> -1 | V43: Nombre de repas
B44: Total Semaine | E44: =WEEKNUM(B37,21) -> 1 | F44: =SUM($F37:$F43) -> 0.3125 | G44: =G37+G38+G39+G40+G41+G42+G43 -> 0 | J44: =SUM(J37:J43) -> 0.84375 | K44: =K37+K38+K39+K40+K41+K42+K43 -> 0 | L44: =SUM(L37:L43) -> 1.15625 | M44: =SUM(M37:M43) -> 0 | O44: =SUM(O37:O43) -> 1
B45: =B43+1 -> 2015-01-05 | F45: =$E45-$D45+IF($D45>$E45,1) -> 0 | G45: =IF($D45<>"",IF($D45<Données!$C$2,1,0),0) -> 0 | J45: =$I45-$H45+IF($H45>$I45,1) -> 0 | K45: =IF($H45<>"",IF($H45<Données!$C$3,1,0),0) -> 0 | L45: =$F45+$J45-($G45+$K45)*("00:30") -> 0 | M45: =$G45+$K45 -> 0 | N45: =$D45-$I43+IF($I43>$D45,1) -> 0 | O45: =IF($N45=Données!$F$12,0,IF($N45<Données!$F$11,1,0)) -> 0
B46: =B45+1 -> 2015-01-06 | F46: 0 | G46: =IF($D46<>"",IF($D46<Données!$C$2,1,0),0) -> 0 | J46: =$I46-$H46+IF($H46>$I46,1) -> 0 | K46: =IF($H46<>"",IF($H46<Données!$C$3,1,0),0) -> 0 | L46: =$F46+$J46-($G46+$K46)*("00:30") -> 0 | M46: =$G46+$K46 -> 0 | N46: =$D46-$I45+IF($I45>$D46,1) -> 0 | O46: =IF($N46=Données!$F$12,0,IF($N46<Données!$F$11,1,0)) -> 0
B47: =B46+1 -> 2015-01-07 | F47: 0 | G47: =IF($D47<>"",IF($D47<Données!$C$2,1,0),0) -> 0 | J47: 0 | K47: =IF($H47<>"",IF($H47<Données!$C$3,1,0),0) -> 0 | L47: 0 | M47: 0 | N47: =$D47-$I46+IF($I46>$D47,1) -> 0 | O47: =IF($N47=Données!$F$12,0,IF($N47<Données!$F$11,1,0)) -> 0
B48: 2015-01-08 | F48: 0 | G48: =IF($D48<>"",IF($D48<Données!$C$2,1,0),0) -> 0 | J48: 0 | K48: =IF($H48<>"",IF($H48<Données!$C$3,1,0),0) -> 0 | L48: 0 | M48: 0 | N48: 0 | O48: =IF($N48=Données!$F$12,0,IF($N48<Données!$F$11,1,0)) -> 0
B49: 2015-01-09 | F49: 0 | G49: =IF($D49<>"",IF($D49<Données!$C$2,1,0),0) -> 0 | J49: 0 | K49: =IF($H49<>"",IF($H49<Données!$C$3,1,0),0) -> 0 | L49: 0 | M49: 0 | N49: 0 | O49: =IF($N49=Données!$F$12,0,IF($N49<Données!$F$11,1,0)) -> 0
B50: 2015-01-10 | F50: 0 | G50: =IF($D50<>"",IF($D50<Données!$C$2,1,0),0) -> 0 | J50: 0 | K50: =IF($H50<>"",IF($H50<Données!$C$3,1,0),0) -> 0 | L50: 0 | M50: 0 | N50: 0 | O50: =IF($N50=Données!$F$12,0,IF($N50<Données!$F$11,1,0)) -> 0
B51: 2015-01-11 | F51: 0 | G51: =IF($D51<>"",IF($D51<Données!$C$2,1,0),0) -> 0 | J51: 0 | K51: =IF($H51<>"",IF($H51<Données!$C$3,1,0),0) -> 0 | L51: 0 | M51: 0 | N51: 0 | O51: =IF($N51=Données!$F$12,0,IF($N51<Données!$F$11,1,0)) -> 0
B52: Total semaine | E52: =WEEKNUM(B45,21) -> 2 | F52: =SUM($F45:$F51) -> 0 | G52: =G45+G46+G47+G48+G49+G50+G51 -> 0 | J52: =SUM(J45:J51) -> 0 | K52: =K45+K46+K47+K48+K49+K50+K51 -> 0 | L52: =SUM(L45:L51) -> 0 | M52: =SUM(M45:M51) -> 0 | O52: =SUM(O45:O51) -> 0
N53: 7.041666667
L54: =CodeCouleur(M54) -> 50 | N54: REPOS
L55: =CodeCouleur(M55) -> 42 | N55: Récup
L56: 48 | N56: JFG
L57: 44 | N57: VAC
L58: 3 | N58: MAL
L59: =CodeCouleur(M59) -> 40 | N59: Jf Taf
